{"text_format":"1","workbook":"xlsx","n_sheets":14,"sheets":["Titelblatt","Betriebsdaten I","Betriebsdaten II","KWK","Abnehmerverbräuche","Auswertung_I","Auswertung_II","P88EAG_Eingabe","P88EAG_Nachweis","Hilfe","DatenTransformierung","DatenTransformierung2","Brennstoff","Hilfstabelle"],"not_rendered":{"charts":14,"images":21,"macros":1,"external_links":0,"defined_names":220,"comments":7,"pivot_tables":0},"unopened":[],"bounds":{"document_bytes":16777216,"sheet_cells":100000,"rows_first":2000,"rows_last":500,"rows_between":2000,"halvings":0,"cell_chars":16384,"cell_head_chars":4096},"cells_cut":0,"cells_raw":0,"read":"whole","date_system":"1900"}

{"sheet":"Titelblatt","index":0,"n_rows":19,"n_cols":18,"rows_kept":19,"cut":false,"hidden":false,"merged":[[0,11,0,15],[1,9,11,15],[12,9,12,15],[13,0,13,6],[14,0,14,6],[3,3,3,6],[15,0,15,6],[13,9,13,16],[9,4,9,7],[7,4,7,7],[5,4,5,7],[11,0,11,6],[12,0,12,6]]}
["QM Heizwerke - Standardisierter Betriebsbericht",null,null,null,null,null,null,null,null,"Kurzanleitung",null,"Hier geht’s zur Hilfe"]
["Version","18.3",null,null,null,null,null,null,null,"- Speichern Sie diese Excel-Datei auf Ihrem Computer.\n- Aktivieren Sie die BEARBEITUNG und die Excel-MAKROS (mit \"Inhalt aktivieren\") beim Öffnen! *\n- Geben Sie alle erforderlichen Daten in die gelben Eingabefelder ein!\n- Per Klick auf die Schaltfläche \"Fehlerprüfung\" können die Eingaben geprüft werden.\n- Unvollständige Eingaben und Fehler werden angezeigt (Liste mit Fehlermeldungen):\n          - Mit Doppelklick auf einen Listeneintrag springt man zur betroffenen Eingabezelle.\n          - Zellen mit fehlenden oder falschen Eingaben werden ROT markiert.\n- Per Klick auf die Schaltfläche \"XML-Datei erstellen\" werden die Dateien zum Hochladen erstellt.\n          - Nur die XML-Dateien können in die QM Datenbank hochgeladen werden.          \n          - Für die Betriebsdaten und die Abnehmerverbräuche werden separate Dateien erstellt.\n          - Die XML-Dateien werden im gleichen lokalen Verzeichnis wie die Excel-Datei gespeichert.        \n          - Beim Erstellen der XML-Datei werden die Eingaben automatisch geprüft.\n          - Bei Fehlern wird KEINE XML-Datei erstellt.\n- Die Abnehmerverbräuche können nur nach erfolgreichem Import der Betriebsdaten-XML-Datei \n  (offener Betriebsbericht bereits in Datenbank vorhanden) in die Datenbank hochgeladen werden.\n- Die Excel-Vorlage darf NICHT VERÄNDERT werden!",null,null,null,null,null,null,null,"* Evtl. muss für die Makros vorher der Zugriff auf die Datei frei gegeben werden:"]
[null,null,null,null,null,null,null,null,null,null,null,null,null,null,null,null,null,"im Explorer (Dateimanager) auf diese Excel-Datei rechts klicken und \"Eigenschaften\" öffnen"]
[null,null,"Heizwerk - Bezeichnung:"]
[null,null,null,null,null,null,null,null,null,null,null,null,null,null,null,null,null,"und bei Sicherheit \"Zulassen\" anhaken "]
[null,null,"Projektnummer:",null,"Nummer des QM-Projektes in dem der Betriebsbericht hochgeladen wird z.B. 18ST001"]
[]
[null,null,"Betriebsjahr:",null,"Jahr in dem die Betriebsperiode beginnt (Beginn des Betriebsjahres 06/2016: Betriebsbericht für Jahr 2016 erstellen!)"]
[]
[null,null,"Anfangsmonat:",null,"Bei Abrechnung nach Kalenderjahr 01, bei Abrechnung nach Heizsaison z.B. 07 für Beginn im Juli"]
[]
["Der standardisierte Betriebsbericht von klimaaktiv QM Heizwerke dient zur Erfassung und nachfolgenden Auswertung (Benchmarking) der wichtigsten Betriebsdaten einer Biomasse-Nahwärmeanlage."]
["Die Erfassung und Auswertung von Betriebsdaten ist eine wichtige Grundlage für einen effizienten und langfristig erfolgreichen Heizwerksbetrieb!"]
["Zielsetzungen:\n      - Dokumentation des Anlagenbetriebes für Betreiberinnen und Betreiber\n      - Automatisierte Auswertung von Kennzahlen und Vergleich mit anderen Heizwerken\n      - Planungsgrundlage für Anlagenausbau und Optimierung\n      - Erfüllung der Berichtspflichten entsprechend Förderungsvertrag\n      - Weiterentwicklung von Förderungsmaßnahmen\n      - Gesicherte Speicherung wichtiger Daten\n",null,null,null,null,null,null,null,null,"Fehlermeldungen Betriebsbericht\nDurch Doppelklick auf die Fehlermeldung (Zeile) springt man zur entsprechenden Eingabezelle!\n\n"]
["Bei Rückfragen wenden Sie sich bitte an Ihren Qualitätsbeauftragten oder\ndas QM Heizwerke - Team von AEE INTEC\n(qm-heizwerke@aee.at, 03112 5886 -234 oder -262)."]
["Sollte das Hochladen in die QM Heizwerke - Datenbank nicht erfolgreich sein, beachten Sie bitte die Fehlermeldungen beim Hochladen und übermitteln Sie die Excel- und xml-Dateien an die KPC (qm@kommunalkredit.at, 01 31631 739)"]
[]
["Vorlage erstellt vom QM Heizwerke Team"]
["AEE INTEC","07/2023"]

{"sheet":"Betriebsdaten I","index":1,"n_rows":72,"n_cols":20,"rows_kept":72,"cut":false,"hidden":false,"merged":[[20,1,22,3],[2,2,2,3],[4,2,5,2],[10,2,11,2],[4,4,5,4],[4,8,5,8],[10,3,11,3],[4,3,5,3],[4,6,5,6],[4,7,5,7],[10,4,11,4],[10,8,11,8],[4,16,5,16],[4,14,5,14],[4,15,5,15],[31,4,32,7],[31,8,32,8],[31,9,32,15],[20,8,22,8],[20,9,22,13],[10,9,11,9],[10,14,11,14],[10,15,11,15],[4,10,5,10],[4,11,5,11],[4,13,5,13],[10,11,11,11],[24,5,24,6],[2,6,2,7],[23,9,23,13],[24,9,25,9],[2,11,2,12],[4,5,5,5],[4,12,5,12],[4,9,5,9],[10,12,11,12],[10,13,11,13],[20,4,22,7],[24,4,25,4],[10,10,11,10],[10,5,11,5],[10,7,11,7],[10,6,11,6],[23,4,23,8],[65,1,66,1],[65,2,66,3],[65,4,65,8],[39,2,39,3],[33,4,33,8],[41,1,41,16],[65,9,65,13],[65,14,71,16],[66,4,67,4],[66,5,66,6],[66,7,66,8],[66,9,67,9],[66,10,66,11],[10,16,11,16],[66,12,66,13],[67,1,68,1],[67,2,68,3],[23,1,24,1],[25,2,26,3],[23,2,24,3],[38,2,38,3],[37,2,37,3],[35,2,36,3],[33,2,34,3],[25,1,26,1],[35,1,36,1],[33,1,34,1],[28,2,28,3],[29,2,29,3],[24,10,24,11],[69,2,69,3],[70,2,70,3],[71,2,71,3],[23,14,29,16],[27,2,27,3],[33,14,39,16],[34,4,35,4],[34,10,34,11],[34,5,34,6],[34,7,34,8],[34,9,35,9],[24,7,24,8],[24,12,24,13],[34,12,34,13],[33,9,33,13]]}
[null,null,null,null,null,null,null,null,null,null,null,null,null,null,null,null,null,"gelbe Felder sind Eingabefelder!"]
[null,"Betriebsdaten I",null,null,null,null,null,null,null,null,null,null,null,null,null,null,null,"Hier geht’s zur Hilfe"]
[null,"Projektnummer",{"$f":"IF(Titelblatt!D6=\"\",\"\",Titelblatt!D6)","v":""},null,null,"Betriebsjahr",{"$f":"IF(Titelblatt!D8=\"\",YEAR(TODAY()),Titelblatt!D8)","v":2024},null,null,null,"Anfangsmonat",{"$f":"IF(Titelblatt!D10=\"\",1,Titelblatt!D10)","v":1}]
[null,null,null,null,"Erzeugte Wärmemenge je Monat",null,null,null,null,null,null,null,null,null,null,null,null,null,null,"Check XML"]
[null,"Biomassekessel ","Komponenten-Nr. aus QM Datenbank","Einheit",{"$f":"DATE($G$3,$L$3,1)","v":"2024-01-01"},{"$f":"IF($L$3+1>12,DATE($G$3+1,$L$3+1-12,1),DATE($G$3,$L$3+1,1))","v":"2024-02-01"},{"$f":"IF($L$3+2>12,DATE($G$3+1,$L$3+2-12,1),DATE($G$3,$L$3+2,1))","v":"2024-03-01"},{"$f":"IF($L$3+3>12,DATE($G$3+1,$L$3+3-12,1),DATE($G$3,$L$3+3,1))","v":"2024-04-01"},{"$f":"IF($L$3+4>12,DATE($G$3+1,$L$3+4-12,1),DATE($G$3,$L$3+4,1))","v":"2024-05-01"},{"$f":"IF($L$3+5>12,DATE($G$3+1,$L$3+5-12,1),DATE($G$3,$L$3+5,1))","v":"2024-06-01"},{"$f":"IF($L$3+6>12,DATE($G$3+1,$L$3+6-12,1),DATE($G$3,$L$3+6,1))","v":"2024-07-01"},{"$f":"IF($L$3+7>12,DATE($G$3+1,$L$3+7-12,1),DATE($G$3,$L$3+7,1))","v":"2024-08-01"},{"$f":"IF($L$3+8>12,DATE($G$3+1,$L$3+8-12,1),DATE($G$3,$L$3+8,1))","v":"2024-09-01"},{"$f":"IF($L$3+9>12,DATE($G$3+1,$L$3+9-12,1),DATE($G$3,$L$3+9,1))","v":"2024-10-01"},{"$f":"IF($L$3+10>12,DATE($G$3+1,$L$3+10-12,1),DATE($G$3,$L$3+10,1))","v":"2024-11-01"},{"$f":"IF($L$3+11>12,DATE($G$3+1,$L$3+11-12,1),DATE($G$3,$L$3+11,1))","v":"2024-12-01"},"Jahr","Prüfung der Monatssumme","Anzahl Eingabewerte",{"$f":"SUM(T7:T19)","v":0}]
[null,"Bezeichnung",null,null,null,null,null,null,null,null,null,null,null,null,null,null,null,{"$f":"\"(Toleranz +/- \" & Hilfstabelle!Q12*100 & \"%)\"","v":"(Toleranz +/- 3%)"}]
[null,null,null,"kWh",null,null,null,null,null,null,null,null,null,null,null,null,null,{"$f":"IF(S7=0,\"\",IF(S7<13,\"Unvollständige Eingabe\",IF(SUM(E7:P7)=0,\"keine Monatswerte vorhanden, Erstellung xml-Datei möglich\",IF(AND(SUM(E7:P7)>WM_BM_1Jahr*(1-Toleranz),SUM(E7:P7)<WM_BM_1Jahr*(1+Toleranz)), \"ok\",\"Summe Monatswerte ist nicht gleich wie der Jahreswert\"))))","v":""},{"$f":"COUNT(E7:Q7)","v":0},{"$f":"IF(OR(R7=\"ok\",SUM(E7:P7)=0),0,1)","v":0}]
[null,null,null,"kWh",null,null,null,null,null,null,null,null,null,null,null,null,null,{"$f":"IF(S8=0,\"\",IF(S8<13,\"Unvollständige Eingabe\",IF(SUM(E8:P8)=0,\"keine Monatswerte vorhanden, Erstellung xml-Datei möglich\",IF(AND(SUM(E8:P8)>WM_BM_2Jahr*(1-Toleranz),SUM(E8:P8)<WM_BM_2Jahr*(1+Toleranz)), \"ok\",\"Summe Monatswerte ist nicht gleich wie der Jahreswert\"))))","v":""},{"$f":"COUNT(E8:Q8)","v":0},{"$f":"IF(OR(R8=\"ok\",SUM(E8:P8)=0),0,1)","v":0}]
[null,null,null,"kWh",null,null,null,null,null,null,null,null,null,null,null,null,null,{"$f":"IF(S9=0,\"\",IF(S9<13,\"Unvollständige Eingabe\",IF(SUM(E9:P9)=0,\"keine Monatswerte vorhanden, Erstellung xml-Datei möglich\",IF(AND(SUM(E9:P9)>WM_BM_3Jahr*(1-Toleranz),SUM(E9:P9)<WM_BM_3Jahr*(1+Toleranz)), \"ok\",\"Summe Monatswerte ist nicht gleich wie der Jahreswert\"))))","v":""},0,{"$f":"IF(OR(R9=\"ok\",SUM(E9:P9)=0),0,1)","v":0}]
[]
[null,"Weitere Wärmeerzeuger\n(Öl-/Gas-/Biomassekessel, Kondensation, Solar,\nexterne Einspeiser, ...)","Komponenten-Nr. aus QM Datenbank","Einheit",{"$f":"DATE($G$3,$L$3,1)","v":"2024-01-01"},{"$f":"IF($L$3+1>12,DATE($G$3+1,$L$3+1-12,1),DATE($G$3,$L$3+1,1))","v":"2024-02-01"},{"$f":"IF($L$3+2>12,DATE($G$3+1,$L$3+2-12,1),DATE($G$3,$L$3+2,1))","v":"2024-03-01"},{"$f":"IF($L$3+3>12,DATE($G$3+1,$L$3+3-12,1),DATE($G$3,$L$3+3,1))","v":"2024-04-01"},{"$f":"IF($L$3+4>12,DATE($G$3+1,$L$3+4-12,1),DATE($G$3,$L$3+4,1))","v":"2024-05-01"},{"$f":"IF($L$3+5>12,DATE($G$3+1,$L$3+5-12,1),DATE($G$3,$L$3+5,1))","v":"2024-06-01"},{"$f":"IF($L$3+6>12,DATE($G$3+1,$L$3+6-12,1),DATE($G$3,$L$3+6,1))","v":"2024-07-01"},{"$f":"IF($L$3+7>12,DATE($G$3+1,$L$3+7-12,1),DATE($G$3,$L$3+7,1))","v":"2024-08-01"},{"$f":"IF($L$3+8>12,DATE($G$3+1,$L$3+8-12,1),DATE($G$3,$L$3+8,1))","v":"2024-09-01"},{"$f":"IF($L$3+9>12,DATE($G$3+1,$L$3+9-12,1),DATE($G$3,$L$3+9,1))","v":"2024-10-01"},{"$f":"IF($L$3+10>12,DATE($G$3+1,$L$3+10-12,1),DATE($G$3,$L$3+10,1))","v":"2024-11-01"},{"$f":"IF($L$3+11>12,DATE($G$3+1,$L$3+11-12,1),DATE($G$3,$L$3+11,1))","v":"2024-12-01"},"Jahr","Prüfung der Monatssumme"]
[null,"Bezeichnung",null,null,null,null,null,null,null,null,null,null,null,null,null,null,null,{"$f":"\"(Toleranz +/- \" & Hilfstabelle!Q12*100 & \"%)\"","v":"(Toleranz +/- 3%)"}]
[null,null,null,"kWh",null,null,null,null,null,null,null,null,null,null,null,null,null,{"$f":"IF(S13=0,\"\",IF(S13<13,\"Unvollständige Eingabe\",IF(SUM(E13:P13)=0,\"keine Monatswerte vorhanden, Erstellung xml-Datei möglich\",IF(AND(SUM(E13:P13)>WM_Sonstige_1Jahr*(1-Toleranz),SUM(E13:P13)<WM_Sonstige_1Jahr*(1+Toleranz)), \"ok\",\"Summe Monatswerte ist nicht gleich wie der Jahreswert\"))))","v":""},0,{"$f":"IF(OR(R13=\"ok\",SUM(E13:P13)=0),0,1)","v":0}]
[null,null,null,"kWh",null,null,null,null,null,null,null,null,null,null,null,null,null,{"$f":"IF(S14=0,\"\",IF(S14<13,\"Unvollständige Eingabe\",IF(SUM(E14:P14)=0,\"keine Monatswerte vorhanden, Erstellung xml-Datei möglich\",IF(AND(SUM(E14:P14)>WM_Sonstige_2Jahr*(1-Toleranz),SUM(E14:P14)<WM_Sonstige_2Jahr*(1+Toleranz)), \"ok\",\"Summe Monatswerte ist nicht gleich wie der Jahreswert\"))))","v":""},0,0]
[null,null,null,"kWh",null,null,null,null,null,null,null,null,null,null,null,null,null,{"$f":"IF(S15=0,\"\",IF(S15<13,\"Unvollständige Eingabe\",IF(SUM(E15:P15)=0,\"keine Monatswerte vorhanden, Erstellung xml-Datei möglich\",IF(AND(SUM(E15:P15)>WM_Sonstige_3Jahr*(1-Toleranz),SUM(E15:P15)<WM_Sonstige_3Jahr*(1+Toleranz)), \"ok\",\"Summe Monatswerte ist nicht gleich wie der Jahreswert\"))))","v":""},0,0]
[null,null,null,"kWh",null,null,null,null,null,null,null,null,null,null,null,null,null,{"$f":"IF(S16=0,\"\",IF(S16<13,\"Unvollständige Eingabe\",IF(SUM(E16:P16)=0,\"keine Monatswerte vorhanden, Erstellung xml-Datei möglich\",IF(AND(SUM(E16:P16)>WM_Sonstige_4Jahr*(1-Toleranz),SUM(E16:P16)<WM_Sonstige_4Jahr*(1+Toleranz)), \"ok\",\"Summe Monatswerte ist nicht gleich wie der Jahreswert\"))))","v":""},0,0]
[null,null,null,"kWh",null,null,null,null,null,null,null,null,null,null,null,null,null,{"$f":"IF(S17=0,\"\",IF(S17<13,\"Unvollständige Eingabe\",IF(SUM(E17:P17)=0,\"keine Monatswerte vorhanden, Erstellung xml-Datei möglich\",IF(AND(SUM(E17:P17)>WM_Sonstige_5Jahr*(1-Toleranz),SUM(E17:P17)<WM_Sonstige_5Jahr*(1+Toleranz)), \"ok\",\"Summe Monatswerte ist nicht gleich wie der Jahreswert\"))))","v":""},0,0]
[null,null,null,"kWh",null,null,null,null,null,null,null,null,null,null,null,null,null,{"$f":"IF(S18=0,\"\",IF(S18<13,\"Unvollständige Eingabe\",IF(SUM(E18:P18)=0,\"keine Monatswerte vorhanden, Erstellung xml-Datei möglich\",IF(AND(SUM(E18:P18)>WM_Sonstige_6Jahr*(1-Toleranz),SUM(E18:P18)<WM_Sonstige_6Jahr*(1+Toleranz)), \"ok\",\"Summe Monatswerte ist nicht gleich wie der Jahreswert\"))))","v":""},0,0]
[null,null,null,"kWh",null,null,null,null,null,null,null,null,null,null,null,null,null,{"$f":"IF(S19=0,\"\",IF(S19<13,\"Unvollständige Eingabe\",IF(SUM(E19:P19)=0,\"keine Monatswerte vorhanden, Erstellung xml-Datei möglich\",IF(AND(SUM(E19:P19)>WM_Sonstige_7Jahr*(1-Toleranz),SUM(E19:P19)<WM_Sonstige_7Jahr*(1+Toleranz)), \"ok\",\"Summe Monatswerte ist nicht gleich wie der Jahreswert\"))))","v":""},0,0]
[]
[null,"Emissionen entsprechend Messgutachten",null,null,"Bezugssauerstoffgehalt der Eingabewerte:",null,null,null,6,"frei wählbarer Bezugssauerstoffgehalt\n(6 Vol% O2 trocken lt. FAV 2019)"]
[]
[]
[null,"Biomassekessel ",null,null,"Emissionsmessung bei \"Volllast\"",null,null,null,null,"Emissionsmessung bei \"Teilllast\""]
[null,null,null,null,"O2 gemessen",{"$f":"\"Bezugsauerstoffgehalt \"","v":"Bezugsauerstoffgehalt "},null,{"$f":" BezugO2 & \" Vol% O2 trocken\"","v":"6 Vol% O2 trocken"},null,"O2 gemessen",{"$f":"F25","v":"Bezugsauerstoffgehalt "},null,{"$f":"H25","v":"6 Vol% O2 trocken"}]
[null,"Bezeichnung","Komponenten-Nr. aus QM Datenbank",null,null,"CO","NOx","CxHy","Staub",null,"CO","NOx","CxHy","Staub"]
[null,null,null,null,"Vol%trocken","mg/m³n","mg/m³n","mg/m³n","mg/m³n","Vol%trocken","mg/m³n","mg/m³n","mg/m³n","mg/m³n"]
[null,{"$f":"IF(B7=\"\",\"\",B7)","v":""},""]
[null,"",""]
[null,"",""]
[]
[null,null,null,null,"Umrechnung auf Bezugsauerstoffgehalt\n(Vol% O2 trocken)",null,null,null,10,"frei wählbarer Wert auf den die Emissionen oben umgerechnet werden \n(in der Datenbank werden die Emissionen immer auf 6% bzw. 10% umgerechnet angezeigt)"]
[]
[null,"Biomassekessel ",null,null,"Emissionsmessung bei \"Volllast\"",null,null,null,null,"Emissionsmessung bei \"Teilllast\""]
[null,null,null,null,"O2 gemessen",{"$f":"\"Bezugsauerstoffgehalt \"","v":"Bezugsauerstoffgehalt "},null,{"$f":"BezugO2umr&\" Vol% O2 trocken\"","v":"10 Vol% O2 trocken"},null,"O2 gemessen",{"$f":"F35","v":"Bezugsauerstoffgehalt "},null,{"$f":"H35","v":"10 Vol% O2 trocken"}]
[null,"Bezeichnung","Komponenten-Nr. aus QM Datenbank",null,null,"CO","NOx","CxHy","Staub",null,"CO","NOx","CxHy","Staub"]
[null,null,null,null,"Vol%trocken","mg/m³n","mg/m³n","mg/m³n","mg/m³n","Vol%trocken","mg/m³n","mg/m³n","mg/m³n","mg/m³n"]
[null,{"$f":"IF(B28=\"\",\"\",B28)","v":""},{"$f":"C28","v":""},null,{"$f":"E28","v":0},{"$f":"F28*(21-BezugO2umr)/(21-BezugO2)","v":0},{"$f":"G28*(21-BezugO2umr)/(21-BezugO2)","v":0},{"$f":"H28*(21-BezugO2umr)/(21-BezugO2)","v":0},{"$f":"I28*(21-BezugO2umr)/(21-BezugO2)","v":0},{"$f":"J28","v":0},{"$f":"K28*(21-BezugO2umr)/(21-BezugO2)","v":0},{"$f":"L28*(21-BezugO2umr)/(21-BezugO2)","v":0},{"$f":"M28*(21-BezugO2umr)/(21-BezugO2)","v":0},{"$f":"N28*(21-BezugO2umr)/(21-BezugO2)","v":0}]
[null,{"$f":"IF(B29=\"\",\"\",B29)","v":""},"",null,{"$f":"E29","v":0},{"$f":"F29*(21-BezugO2umr)/(21-BezugO2)","v":0},{"$f":"G29*(21-BezugO2umr)/(21-BezugO2)","v":0},{"$f":"H29*(21-BezugO2umr)/(21-BezugO2)","v":0},{"$f":"I29*(21-BezugO2umr)/(21-BezugO2)","v":0},{"$f":"J29","v":0},{"$f":"K29*(21-BezugO2umr)/(21-BezugO2)","v":0},{"$f":"L29*(21-BezugO2umr)/(21-BezugO2)","v":0},{"$f":"M29*(21-BezugO2umr)/(21-BezugO2)","v":0},{"$f":"N29*(21-BezugO2umr)/(21-BezugO2)","v":0}]
[null,{"$f":"IF(B30=\"\",\"\",B30)","v":""},"",null,{"$f":"E30","v":0},{"$f":"F30*(21-BezugO2umr)/(21-BezugO2)","v":0},{"$f":"G30*(21-BezugO2umr)/(21-BezugO2)","v":0},{"$f":"H30*(21-BezugO2umr)/(21-BezugO2)","v":0},{"$f":"I30*(21-BezugO2umr)/(21-BezugO2)","v":0},{"$f":"J30","v":0},{"$f":"K30*(21-BezugO2umr)/(21-BezugO2)","v":0},{"$f":"L30*(21-BezugO2umr)/(21-BezugO2)","v":0},{"$f":"M30*(21-BezugO2umr)/(21-BezugO2)","v":0},{"$f":"N30*(21-BezugO2umr)/(21-BezugO2)","v":0}]
[null,"Anmerkungen zur Wärmeerzeugung:"]
[]
[]
[]
[]
[]
[]
[]
[]
[]
[]
[]
[]
[]
[]
[]
[]
[]
[]
[]
[]
[]
[]
[]
[null,"Nur für Umrechnung auf 13% Bezugsauerstoff und Übertragung auf Sheet DatenTransformierung"]
[null,"Biomassekessel ",null,null,"Emissionsmessung bei \"Volllast\"",null,null,null,null,"Emissionsmessung bei \"Teilllast\""]
[null,null,null,null,"O2 gemessen","Bezugsauerstoffgehalt ",null,"13 Vol%O2 trocken",null,"O2 gemessen","Bezugsauerstoffgehalt ",null,"13 Vol%O2 trocken"]
[null,"Bezeichnung","Nr.",null,null,"CO","NOx","CxHy","Staub",null,"CO","NOx","CxHy","Staub"]
[null,null,null,null,"[Vol%trocken]","[mg/m³n]","[mg/m³n]","[mg/m³n]","[mg/m³n]","[Vol%trocken]","[mg/m³n]","[mg/m³n]","[mg/m³n]","[mg/m³n]"]
[null,0,{"$f":"EM_KmpNr_1","v":""},null,{"$f":"EM_Voll_1","v":0},{"$f":"ROUND(F28*(21-13)/(21-BezugO2),2)","v":0},0,0,0,{"$f":"EM_Teil_1","v":0},{"$f":"ROUND(K28*(21-13)/(21-BezugO2),2)","v":0},0,0,0]
[null,0,{"$f":"EM_KmpNr_2","v":""},null,{"$f":"EM_Voll_2","v":0},0,0,0,0,{"$f":"EM_Teil_2","v":0},0,0,0,0]
[null,0,{"$f":"EM_KmpNr_3","v":""},null,{"$f":"EM_Voll_3","v":0},0,0,0,0,{"$f":"EM_Teil_3","v":0},0,0,0,0]

{"sheet":"Betriebsdaten II","index":2,"n_rows":63,"n_cols":23,"rows_kept":63,"cut":false,"hidden":false,"merged":[[3,11,3,12],[27,1,27,2],[37,1,37,16],[43,1,43,2],[44,1,44,2],[42,1,42,2],[40,1,40,2],[12,1,12,16],[13,12,14,12],[29,1,29,2],[30,1,30,2],[13,7,14,7],[26,1,26,2],[13,10,14,10],[20,1,20,2],[22,1,22,16],[24,1,24,2],[25,1,25,2],[23,1,23,2],[24,6,30,15],[28,1,28,2],[45,1,45,2],[48,1,51,16],[38,1,38,4],[46,1,46,16],[39,1,39,2],[41,1,41,2],[21,1,21,2],[13,15,14,15],[13,16,14,16],[13,6,14,6],[13,1,13,2],[13,4,14,4],[13,9,14,9],[13,5,14,5],[13,11,14,11],[18,1,18,2],[19,1,19,2],[7,1,7,2],[5,1,5,2],[5,6,6,6],[5,12,6,12],[5,4,6,4],[5,5,6,5],[3,6,3,7],[5,11,6,11],[5,7,6,7],[33,1,33,16],[5,16,6,16],[3,1,3,2],[5,9,6,9],[5,10,6,10],[8,1,8,2],[5,8,6,8],[13,13,14,13],[10,1,11,2],[5,13,6,13],[5,14,6,14],[5,15,6,15],[9,1,9,2],[53,1,53,3],[57,1,57,2],[58,1,58,2],[57,3,57,6],[58,3,58,6],[53,4,53,6],[54,4,56,15],[57,8,57,9],[57,10,57,11],[57,13,57,14],[5,18,6,19],[60,4,60,6],[60,7,60,15],[61,4,61,15],[62,4,62,15],[58,8,58,9],[58,10,58,11],[58,13,58,14],[53,7,53,15],[36,4,36,5],[34,4,34,5],[13,14,14,14],[13,8,14,8],[59,1,59,16],[35,4,35,5],[31,1,31,16],[27,17,27,19],[28,17,28,19],[7,18,10,19],[11,18,11,19],[23,17,23,19],[24,17,24,19],[15,18,19,19],[13,18,13,19],[14,18,14,19],[12,17,12,19]]}
[null,null,null,null,null,null,null,null,null,null,null,null,null,null,null,null,null,"gelbe Felder sind Eingabefelder!"]
[null,"Erfassung der Betriebsdaten II",null,null,null,null,null,null,null,null,null,null,null,null,null,null,null,"Hier geht’s zur Hilfe"]
[]
[null,"Projektnummer",null,{"$f":"IF('Betriebsdaten I'!C3=\"\",\"\",'Betriebsdaten I'!C3)","v":""},null,"Betriebsjahr",{"$f":"IF('Betriebsdaten I'!G3=\"\",\"\",'Betriebsdaten I'!G3)","v":2024},null,null,null,"Anfangsmonat",{"$f":"IF('Betriebsdaten I'!L3=\"\",\"\",'Betriebsdaten I'!L3)","v":1}]
[null,null,null,null,null,null,null,null,null,null,null,null,null,null,null,null,null,null,null,null,null,"Check XML","Checksum III"]
[null,"Verteilte Wärmemengen und Volumina",null,"Monat",{"$f":"DATE($G$4,$L$4,1)","v":"2024-01-01"},{"$f":"IF($L$4+1>12,DATE($G$4+1,$L$4+1-12,1),DATE($G$4,$L$4+1,1))","v":"2024-02-01"},{"$f":"IF($L$4+2>12,DATE($G$4+1,$L$4+2-12,1),DATE($G$4,$L$4+2,1))","v":"2024-03-01"},{"$f":"IF($L$4+3>12,DATE($G$4+1,$L$4+3-12,1),DATE($G$4,$L$4+3,1))","v":"2024-04-01"},{"$f":"IF($L$4+4>12,DATE($G$4+1,$L$4+4-12,1),DATE($G$4,$L$4+4,1))","v":"2024-05-01"},{"$f":"IF($L$4+5>12,DATE($G$4+1,$L$4+5-12,1),DATE($G$4,$L$4+5,1))","v":"2024-06-01"},{"$f":"IF($L$4+6>12,DATE($G$4+1,$L$4+6-12,1),DATE($G$4,$L$4+6,1))","v":"2024-07-01"},{"$f":"IF($L$4+7>12,DATE($G$4+1,$L$4+7-12,1),DATE($G$4,$L$4+7,1))","v":"2024-08-01"},{"$f":"IF($L$4+8>12,DATE($G$4+1,$L$4+8-12,1),DATE($G$4,$L$4+8,1))","v":"2024-09-01"},{"$f":"IF($L$4+9>12,DATE($G$4+1,$L$4+9-12,1),DATE($G$4,$L$4+9,1))","v":"2024-10-01"},{"$f":"IF($L$4+10>12,DATE($G$4+1,$L$4+10-12,1),DATE($G$4,$L$4+10,1))","v":"2024-11-01"},{"$f":"IF($L$4+11>12,DATE($G$4+1,$L$4+11-12,1),DATE($G$4,$L$4+11,1))","v":"2024-12-01"},"Jahr","Prüfung der Monatssumme","Eingespeiste Wärmemenge in das Netz darf nicht kleiner sein als die Wärmemenge der Abnehmer am Netz",null,"Anzahl Eingabewerte",{"$f":"SUM(V8:V29)","v":2},{"$f":"SUM(W7:W26)","v":2}]
[null,null,null,"Einheit",null,null,null,null,null,null,null,null,null,null,null,null,null,{"$f":"\"(Toleranz +/- \" & Hilfstabelle!Q12*100 & \"%)\"","v":"(Toleranz +/- 3%)"}]
[null,"Eingesp. Wärmemenge in das Netz",null,"kWh",null,null,null,null,null,null,null,null,null,null,null,null,null,{"$f":"IF(U8=0,\"\",IF(U8<13,\"Unvollständige Eingabe\",IF(SUM(E8:P8)=0,\"keine Monatswerte vorhanden, Erstellung xml-Datei möglich\",IF(AND(SUM(E8:P8)>EingespeisteWaermemengeJahr*(1-Toleranz),SUM(E8:P8)<EingespeisteWaermemengeJahr*(1+Toleranz)), \"ok\",\"Summe Monatswerte ist nicht gleich wie der Jahreswert\"))))","v":""},{"$f":"IF(OR(ISBLANK(Q8),ISBLANK(Q10)),\"\",IF(Q10<Q8,\"ok\",\"Netzeinspeisung ist kleiner als Verbrauch der Abnehmer am Netz\"))","v":""},null,{"$f":"COUNT(E8:Q8)","v":0},{"$f":"IF(OR(R8=\"ok\",SUM(E8:P8)=0),0,1)","v":0},{"$f":"IF(S8=\"ok\",0,1)","v":1}]
[null,"Volumen Netz gefördert",null,"m³",null,null,null,null,null,null,null,null,null,null,null,null,null,{"$f":"IF(U9=0,\"\",IF(U9<13,\"Unvollständige Eingabe\",IF(SUM(E9:P9)=0,\"keine Monatswerte vorhanden, Erstellung xml-Datei möglich\",IF(AND(SUM(E9:P9)>VolumenNetzJahr*(1-Toleranz),SUM(E9:P9)<VolumenNetzJahr*(1+Toleranz)), \"ok\",\"Summe Monatswerte ist nicht gleich wie der Jahreswert\"))))","v":""},null,null,{"$f":"COUNT(E9:Q9)","v":0},{"$f":"IF(OR(R9=\"ok\",SUM(E9:P9)=0),0,1)","v":0}]
[null,"S Wärmem. d. Abnehmer am Netz",null,"kWh",null,null,null,null,null,null,null,null,null,null,null,null,null,{"$f":"IF(U10=0,\"\",IF(U10<13,\"Unvollständige Eingabe\",IF(SUM(E10:P10)=0,\"keine Monatswerte vorhanden, Erstellung xml-Datei möglich\",IF(AND(SUM(E10:P10)>WM_AbnehmerNetzJahr*(1-Toleranz),SUM(E10:P10)<WM_AbnehmerNetzJahr*(1+Toleranz)), \"ok\",\"Summe Monatswerte ist nicht gleich wie der Jahreswert\"))))","v":""},null,null,0,0]
[null,"S Wärmem. sonstige Abnehmer am drucklosen Verteiler",null,"kWh",null,null,null,null,null,null,null,null,null,null,null,null,null,{"$f":"IF(U11=0,\"\",IF(U11<13,\"Unvollständige Eingabe\",IF(SUM(E11:P11)=0,\"keine Monatswerte vorhanden, Erstellung xml-Datei möglich\",IF(AND(SUM(E11:P11)>Q11*(1-Toleranz),SUM(E11:P11)<Q11*(1+Toleranz)), \"ok\",\"Summe Monatswerte ist nicht gleich wie der Jahreswert\"))))","v":""},null,null,0,0]
[]
[]
[null,"Betrieblicher Stromverbrauch",null,"Monat",{"$f":"DATE($G$4,$L$4,1)","v":"2024-01-01"},{"$f":"IF($L$4+1>12,DATE($G$4+1,$L$4+1-12,1),DATE($G$4,$L$4+1,1))","v":"2024-02-01"},{"$f":"IF($L$4+2>12,DATE($G$4+1,$L$4+2-12,1),DATE($G$4,$L$4+2,1))","v":"2024-03-01"},{"$f":"IF($L$4+3>12,DATE($G$4+1,$L$4+3-12,1),DATE($G$4,$L$4+3,1))","v":"2024-04-01"},{"$f":"IF($L$4+4>12,DATE($G$4+1,$L$4+4-12,1),DATE($G$4,$L$4+4,1))","v":"2024-05-01"},{"$f":"IF($L$4+5>12,DATE($G$4+1,$L$4+5-12,1),DATE($G$4,$L$4+5,1))","v":"2024-06-01"},{"$f":"IF($L$4+6>12,DATE($G$4+1,$L$4+6-12,1),DATE($G$4,$L$4+6,1))","v":"2024-07-01"},{"$f":"IF($L$4+7>12,DATE($G$4+1,$L$4+7-12,1),DATE($G$4,$L$4+7,1))","v":"2024-08-01"},{"$f":"IF($L$4+8>12,DATE($G$4+1,$L$4+8-12,1),DATE($G$4,$L$4+8,1))","v":"2024-09-01"},{"$f":"IF($L$4+9>12,DATE($G$4+1,$L$4+9-12,1),DATE($G$4,$L$4+9,1))","v":"2024-10-01"},{"$f":"IF($L$4+10>12,DATE($G$4+1,$L$4+10-12,1),DATE($G$4,$L$4+10,1))","v":"2024-11-01"},{"$f":"IF($L$4+11>12,DATE($G$4+1,$L$4+11-12,1),DATE($G$4,$L$4+11,1))","v":"2024-12-01"},"Jahr","Prüfung der Monatssumme","Vergleich Einzelkomponenten mit Gesamtstromverbrauch"]
[null,null,"Komp.Nr.","Einheit",null,null,null,null,null,null,null,null,null,null,null,null,null,{"$f":"\"(Toleranz +/- \" & Hilfstabelle!Q12*100 & \"%)\"","v":"(Toleranz +/- 3%)"},{"$f":"\"(Toleranz - \" & Hilfstabelle!Q12*100 & \"%)\"","v":"(Toleranz - 3%)"}]
[null,"Biomassekessel 1",{"$f":"IF('Betriebsdaten I'!C7=\"\",\"\",'Betriebsdaten I'!C7)","v":""},"kWh",null,null,null,null,null,null,null,null,null,null,null,null,null,{"$f":"IF(U16=0,\"\",IF(U16<13,\"Unvollständige Eingabe\",IF(SUM(E16:P16)=0,\"keine Monatswerte vorhanden, Erstellung xml-Datei möglich\",IF(AND(SUM(E16:P16)>Strom1Jahr*(1-Toleranz),SUM(E16:P16)<Strom1Jahr*(1+Toleranz)), \"ok\",\"Summe Monatswerte ist nicht gleich wie der Jahreswert\"))))","v":""},{"$f":"IF(ISBLANK(Q22),\"\",IF(SUM(Q16:Q21)>Q22*(1+Hilfstabelle!Q12),\"Gesamtstromverbrauch ist niedriger als die Summe des Stromverbrauches der Einzelkomponenten\",\"ok\"))","v":""},null,{"$f":"COUNT(E16:Q16)","v":0},{"$f":"IF(OR(R16=\"ok\",SUM(E16:P16)=0),0,1)","v":0},{"$f":"IF(S16=\"ok\",0,1)","v":1}]
[null,"Biomassekessel 2",{"$f":"IF('Betriebsdaten I'!C8=\"\",\"\",'Betriebsdaten I'!C8)","v":""},"kWh",null,null,null,null,null,null,null,null,null,null,null,null,null,{"$f":"IF(U17=0,\"\",IF(U17<13,\"Unvollständige Eingabe\",IF(SUM(E17:P17)=0,\"keine Monatswerte vorhanden, Erstellung xml-Datei möglich\",IF(AND(SUM(E17:P17)>Strom2Jahr*(1-Toleranz),SUM(E17:P17)<Strom2Jahr*(1+Toleranz)), \"ok\",\"Summe Monatswerte ist nicht gleich wie der Jahreswert\"))))","v":""},null,null,{"$f":"COUNT(E17:Q17)","v":0},0]
[null,"Biomassekessel 3",{"$f":"IF('Betriebsdaten I'!C9=\"\",\"\",'Betriebsdaten I'!C9)","v":""},"kWh",null,null,null,null,null,null,null,null,null,null,null,null,null,{"$f":"IF(U18=0,\"\",IF(U18<13,\"Unvollständige Eingabe\",IF(SUM(E18:P18)=0,\"keine Monatswerte vorhanden, Erstellung xml-Datei möglich\",IF(AND(SUM(E18:P18)>Strom3Jahr*(1-Toleranz),SUM(E18:P18)<Strom3Jahr*(1+Toleranz)), \"ok\",\"Summe Monatswerte ist nicht gleich wie der Jahreswert\"))))","v":""},null,null,0,0]
[null,"Netzpumpe(n)",null,"kWh",null,null,null,null,null,null,null,null,null,null,null,null,null,{"$f":"IF(U19=0,\"\",IF(U19<13,\"Unvollständige Eingabe\",IF(SUM(E19:P19)=0,\"keine Monatswerte vorhanden, Erstellung xml-Datei möglich\",IF(AND(SUM(E19:P19)>Strom5Jahr*(1-Toleranz),SUM(E19:P19)<Strom5Jahr*(1+Toleranz)), \"ok\",\"Summe Monatswerte ist nicht gleich wie der Jahreswert\"))))","v":""},null,null,0,0]
[null,"E-Filter",null,"kWh",null,null,null,null,null,null,null,null,null,null,null,null,null,{"$f":"IF(U20=0,\"\",IF(U20<13,\"Unvollständige Eingabe\",IF(SUM(E20:P20)=0,\"keine Monatswerte vorhanden, Erstellung xml-Datei möglich\",IF(AND(SUM(E20:P20)>Strom6Jahr*(1-Toleranz),SUM(E20:P20)<Strom6Jahr*(1+Toleranz)), \"ok\",\"Summe Monatswerte ist nicht gleich wie der Jahreswert\"))))","v":""},null,null,0,0]
[null,"Sonstige",null,"kWh",null,null,null,null,null,null,null,null,null,null,null,null,null,{"$f":"IF(U21=0,\"\",IF(U21<13,\"Unvollständige Eingabe\",IF(SUM(E21:P21)=0,\"keine Monatswerte vorhanden, Erstellung xml-Datei möglich\",IF(AND(SUM(E21:P21)>Strom7Jahr*(1-Toleranz),SUM(E21:P21)<Strom7Jahr*(1+Toleranz)), \"ok\",\"Summe Monatswerte ist nicht gleich wie der Jahreswert\"))))","v":""},"Summe Komponenten [kWh/a]",{"$f":"SUM(Q16:Q21)","v":0},0,0]
[null,"Gesamtanlage",null,"kWh",null,null,null,null,null,null,null,null,null,null,null,null,null,{"$f":"IF(U22=0,\"\",IF(U22<13,\"Unvollständige Eingabe\",IF(SUM(E22:P22)=0,\"keine Monatswerte vorhanden, Erstellung xml-Datei möglich\",IF(AND(SUM(E22:P22)>Strom8Jahr*(1-Toleranz),SUM(E22:P22)<Strom8Jahr*(1+Toleranz)), \"ok\",\"Summe Monatswerte ist nicht gleich wie der Jahreswert\"))))","v":""},"Gesamtanlage [kWh/a]",{"$f":"Q22","v":0},0,0]
[]
[null,"Brennstoffeinsatz",null,"Einheit","Menge","Preis \n€/Einheit","Anmerkung zum Brennstoffeinsatz:",null,null,null,null,null,null,null,null,null,null,{"$f":"\"Wärmemengen der Abnehmer am Netz (+ sonstige Abnehmer am drucklosen Verteiler) muss gleich sein wie die Summe der Abnehmerverbräuche   (Toleranz +/- \" & Hilfstabelle!Q12*100 & \"%)\"","v":"Wärmemengen der Abnehmer am Netz (+ sonstige Abnehmer am drucklosen Verteiler) muss gleich sein wie die Summe der Abnehmerverbräuche   (Toleranz +/- 3%)"}]
[null,null,null,null,null,null,null,null,null,null,null,null,null,null,null,null,null,{"$f":"IF(ISBLANK(WM_AbnehmerNetzJahr),\"Angabe zur Jahreswärmemenge der Abnehmer am Netz (Zelle Q10) fehlt.\",IF(T26=0,\"keine Abnehmerverbräuche vorhanden!\",IF(AND(T27*(1+Toleranz)>T26,T27*(1-Toleranz)<T26),\"ok\",\"Summe der Abnehmerverbräuche ist nicht gleich Abnehmer am Netz (+ druckloser Verteiler)\")))","v":"Angabe zur Jahreswärmemenge der Abnehmer am Netz (Zelle Q10) fehlt."},null,null,null,{"$f":"IF(R25=\"ok\",0,1)","v":1}]
[null,null,null,null,null,null,null,null,null,null,null,null,null,null,null,null,null,"Abnehmerverbräuche: Summe der Abnehmerverbräuche [kWh/a]",null,{"$f":"SUM(Abnehmerverbräuche!C10:C1210)","v":0}]
[null,null,null,null,null,null,null,null,null,null,null,null,null,null,null,null,null,{"$f":"\"Betriebsdaten II: Abnehmer am Netz \" & IF(ISBLANK(Q10),0,Q10) & \" kWh + \" & \"druckloser Verteiler \" & IF(ISBLANK(Q11),0,Q11) & \" kWh\"","v":"Betriebsdaten II: Abnehmer am Netz 0 kWh + druckloser Verteiler 0 kWh"},null,{"$f":"Q10+Q11","v":0}]
[null,null,null,null,null,null,null,null,null,null,null,null,null,null,null,null,null,{"$f":"\"Summe der Erzeugung muss größer sein als Netzeinspeisung (+ druckloser Verteiler)\"","v":"Summe der Erzeugung muss größer sein als Netzeinspeisung (+ druckloser Verteiler)"}]
[null,null,null,null,null,null,null,null,null,null,null,null,null,null,null,null,null,{"$f":"IF(ISBLANK(Q8),\"\",IF(T30>=T31,\"ok\",\"Summe Erzeugung ist kleiner als Netzeinspeisung (+ druckloser Verteiler)\"))","v":""},null,null,null,{"$f":"IF(R29=\"ok\",0,1)","v":1}]
[null,null,null,null,null,null,null,null,null,null,null,null,null,null,null,null,null,"Betriebsdaten I: Summe Wärmeerzeugung [kWh/a]",null,{"$f":"SUM('Betriebsdaten I'!Q7:Q9)+SUM('Betriebsdaten I'!Q13:Q19)","v":0}]
[null,null,null,null,null,null,null,null,null,null,null,null,null,null,null,null,null,{"$f":"\"Betriebsdaten II: Netzeinspeisung \" & IF(ISBLANK(Q8),0,Q8) & \" kWh + \" & \"druckloser Verteiler \" & IF(ISBLANK(Q11),0,Q11) & \" kWh\"","v":"Betriebsdaten II: Netzeinspeisung 0 kWh + druckloser Verteiler 0 kWh"},null,{"$f":"Q8+Q11","v":0}]
[]
[]
[]
[null,"Reststoffe",null,null,"Jahresmenge"]
[null,"Asche",null,"kg/a"]
[null,"Kondensatschlamm",null,"m³/a"]
[]
[null,"Ergebnis der Wärmeträgeranalyse nach ÖNORM H5195-1"]
[null,"pH-Wert",null,"-"]
[null,"Härtegrad",null,"°dH"]
[null,"Chloride",null,"mg/ltr."]
[null,"Eisen",null,"mg/ltr."]
[null,"Kupfer",null,"mg/ltr."]
[null,"Aluminium",null,"mg/ltr."]
[null,"Ammonium",null,"mg/ltr."]
[]
[null,"Allgemeine Anmerkungen zu den Messergebnissen:"]
[]
[]
[]
[]
[]
[null,"Wärmeverkauf - Typischer Kleinkunde < 25 kW",null,null,"Anmerkung Wärmeverkauf"]
[null,"Grundpreis","€/a"]
[null,"Messpreis","€/a"]
[null,"Arbeitspreis","€/MWh"]
[null,"Bezeichnung Preisindex 1:",null,null,null,null,null,"Basisjahr",null,null,"Gewichtung",null," %"]
[null,"Bezeichnung Preisindex 2:",null,null,null,null,null,"Basisjahr",null,null,"Gewichtung",null," %"]
[]
[null,"Personalkosten / Aufwand",null,null,"Anmerkung Personalkosten"]
[null,"Heizwerkbetreuung","€/a"]
[null,"Verwaltung","€/a"]

{"sheet":"KWK","index":3,"n_rows":72,"n_cols":20,"rows_kept":72,"cut":false,"hidden":true,"merged":[[54,2,54,3],[55,2,55,3],[56,2,56,3],[50,14,56,16],[51,4,52,4],[51,5,51,6],[51,7,51,8],[51,9,52,9],[51,10,51,11],[51,12,51,13],[50,2,51,3],[50,4,50,8],[50,9,50,13],[52,1,53,1],[52,2,53,3],[48,4,48,13],[50,1,51,1],[42,1,43,1],[42,2,43,3],[44,2,44,3],[45,2,45,3],[46,2,46,3],[41,4,42,4],[41,5,41,6],[41,7,41,8],[41,9,42,9],[41,10,41,11],[37,4,39,7],[33,1,36,16],[40,1,41,1],[40,2,41,3],[40,4,40,8],[37,9,39,13],[37,8,39,8],[37,1,39,3],[0,4,0,6],[1,4,1,6],[40,9,40,13],[32,3,32,16],[28,1,28,16],[3,6,3,7],[12,1,12,16],[14,1,14,2],[14,4,15,4],[40,14,46,16],[14,5,15,5],[14,6,15,6],[14,13,15,13],[14,14,15,14],[14,8,15,8],[14,9,15,9],[18,1,18,2],[22,5,23,5],[22,6,23,6],[5,8,5,16],[13,8,13,16],[6,8,7,8],[14,12,15,12],[14,7,15,7],[6,9,7,9],[6,10,7,10],[6,16,7,16],[22,8,23,8],[22,12,23,12],[22,13,23,13],[22,10,23,10],[3,1,3,2],[10,1,10,2],[8,1,8,2],[6,5,7,5],[5,1,5,2],[6,4,7,4],[5,6,5,7],[6,6,7,6],[6,7,7,7],[6,1,6,2],[9,1,9,2],[5,4,5,5],[3,11,3,12],[22,1,22,2],[22,4,23,4],[20,1,20,16],[21,1,21,2],[21,4,21,5],[21,6,21,7],[21,8,21,16],[6,11,7,11],[6,12,7,12],[14,15,15,15],[14,10,15,10],[14,11,15,11],[13,1,13,2],[13,4,13,5],[13,6,13,7],[14,16,15,16],[16,1,16,2],[17,1,17,2],[22,14,23,14],[22,7,23,7],[6,13,7,13],[6,14,7,14],[6,15,7,15],[26,1,26,2],[22,9,23,9],[22,15,23,15],[22,16,23,16],[65,1,66,1],[65,2,66,3],[65,4,65,8],[65,9,65,13],[65,14,71,16],[66,4,67,4],[66,5,66,6],[66,7,66,8],[66,9,67,9],[66,10,66,11],[66,12,66,13],[67,1,68,1],[67,2,68,3],[69,2,69,3],[70,2,70,3],[71,2,71,3],[25,1,25,2],[24,1,24,2],[22,11,23,11],[41,12,41,13]]}
[null,null,null,null,"gelbe Felder sind Eingabefelder!"]
[null,"Betriebsdaten für KWK-Module",null,null,"Hier geht’s zur Hilfe"]
[]
[null,"Projektnummer",null,{"$f":"IF('Betriebsdaten I'!C3=\"\",\"\",'Betriebsdaten I'!C3)","v":""},null,"Betriebsjahr",{"$f":"IF('Betriebsdaten I'!G3=\"\",\"\",'Betriebsdaten I'!G3)","v":2024},null,null,null,"Anfangsmonat",{"$f":"IF('Betriebsdaten I'!L3=\"\",\"\",'Betriebsdaten I'!L3)","v":1}]
[]
[null,"KWK - Anlage #1 ",null,"Komp. Nr.",null,null,"Bezeichnung:",null,null,null,null,null,null,null,null,null,null,null,null,"Check XML"]
[null,null,null,"Monat",{"$f":"DATE($G$4,$L$4,1)","v":"2024-01-01"},{"$f":"IF($L$4+1>12,DATE($G$4+1,$L$4+1-12,1),DATE($G$4,$L$4+1,1))","v":"2024-02-01"},{"$f":"IF($L$4+2>12,DATE($G$4+1,$L$4+2-12,1),DATE($G$4,$L$4+2,1))","v":"2024-03-01"},{"$f":"IF($L$4+3>12,DATE($G$4+1,$L$4+3-12,1),DATE($G$4,$L$4+3,1))","v":"2024-04-01"},{"$f":"IF($L$4+4>12,DATE($G$4+1,$L$4+4-12,1),DATE($G$4,$L$4+4,1))","v":"2024-05-01"},{"$f":"IF($L$4+5>12,DATE($G$4+1,$L$4+5-12,1),DATE($G$4,$L$4+5,1))","v":"2024-06-01"},{"$f":"IF($L$4+6>12,DATE($G$4+1,$L$4+6-12,1),DATE($G$4,$L$4+6,1))","v":"2024-07-01"},{"$f":"IF($L$4+7>12,DATE($G$4+1,$L$4+7-12,1),DATE($G$4,$L$4+7,1))","v":"2024-08-01"},{"$f":"IF($L$4+8>12,DATE($G$4+1,$L$4+8-12,1),DATE($G$4,$L$4+8,1))","v":"2024-09-01"},{"$f":"IF($L$4+9>12,DATE($G$4+1,$L$4+9-12,1),DATE($G$4,$L$4+9,1))","v":"2024-10-01"},{"$f":"IF($L$4+10>12,DATE($G$4+1,$L$4+10-12,1),DATE($G$4,$L$4+10,1))","v":"2024-11-01"},{"$f":"IF($L$4+11>12,DATE($G$4+1,$L$4+11-12,1),DATE($G$4,$L$4+11,1))","v":"2024-12-01"},"Jahr","Prüfung der Monatssumme","Anzahl Eingabewerte",{"$f":"SUM(T9:T27)","v":0}]
[null,null,null,"Einheit",null,null,null,null,null,null,null,null,null,null,null,null,null,{"$f":"\"(Toleranz +/- \" & Hilfstabelle!Q14*100 & \"%)\"","v":"(Toleranz +/- 0%)"}]
[null,"Eingesetzte Brennstoffwärme",null,"kWh",null,null,null,null,null,null,null,null,null,null,null,null,null,{"$f":"IF(S9=0,\"\",IF(S9<13,\"Unvollständige Eingabe\",IF(AND(SUM(E9:P9)>BrstWM_KWK_1Jahr*(1-Toleranz),SUM(E9:P9)<BrstWM_KWK_1Jahr*(1+Toleranz)), \"ok\",\"Summe Monatswerte ist nicht gleich wie der Jahreswert\")))","v":""},{"$f":"COUNT(E9:Q9)","v":0},{"$f":"IF(OR(R9=\"ok\",SUM(E9:P9)=0),0,1)","v":0}]
[null,"Eingespeiste Strommenge",null,"kWh",null,null,null,null,null,null,null,null,null,null,null,null,null,{"$f":"IF(S10=0,\"\",IF(S10<13,\"Unvollständige Eingabe\",IF(AND(SUM(E10:P10)>Strom_KWK_1Jahr*(1-Toleranz),SUM(E10:P10)<Strom_KWK_1Jahr*(1+Toleranz)), \"ok\",\"Summe Monatswerte ist nicht gleich wie der Jahreswert\")))","v":""},{"$f":"COUNT(E10:Q10)","v":0},{"$f":"IF(OR(R10=\"ok\",SUM(E10:P10)=0),0,1)","v":0}]
[null,"Ausgekoppelte Wärmemenge",null,"kWh",null,null,null,null,null,null,null,null,null,null,null,null,null,{"$f":"IF(S11=0,\"\",IF(S11<13,\"Unvollständige Eingabe\",IF(AND(SUM(E11:P11)>WM_KWK_1Jahr*(1-Toleranz),SUM(E11:P11)<WM_KWK_1Jahr*(1+Toleranz)), \"ok\",\"Summe Monatswerte ist nicht gleich wie der Jahreswert\")))","v":""},0,{"$f":"IF(OR(R11=\"ok\",SUM(E11:P11)=0),0,1)","v":0}]
[]
[]
[null,"KWK - Anlage #2",null,"Komp. Nr.",null,null,"Bezeichnung:"]
[null,null,null,"Monat",{"$f":"DATE($G$4,$L$4,1)","v":"2024-01-01"},{"$f":"IF($L$4+1>12,DATE($G$4+1,$L$4+1-12,1),DATE($G$4,$L$4+1,1))","v":"2024-02-01"},{"$f":"IF($L$4+2>12,DATE($G$4+1,$L$4+2-12,1),DATE($G$4,$L$4+2,1))","v":"2024-03-01"},{"$f":"IF($L$4+3>12,DATE($G$4+1,$L$4+3-12,1),DATE($G$4,$L$4+3,1))","v":"2024-04-01"},{"$f":"IF($L$4+4>12,DATE($G$4+1,$L$4+4-12,1),DATE($G$4,$L$4+4,1))","v":"2024-05-01"},{"$f":"IF($L$4+5>12,DATE($G$4+1,$L$4+5-12,1),DATE($G$4,$L$4+5,1))","v":"2024-06-01"},{"$f":"IF($L$4+6>12,DATE($G$4+1,$L$4+6-12,1),DATE($G$4,$L$4+6,1))","v":"2024-07-01"},{"$f":"IF($L$4+7>12,DATE($G$4+1,$L$4+7-12,1),DATE($G$4,$L$4+7,1))","v":"2024-08-01"},{"$f":"IF($L$4+8>12,DATE($G$4+1,$L$4+8-12,1),DATE($G$4,$L$4+8,1))","v":"2024-09-01"},{"$f":"IF($L$4+9>12,DATE($G$4+1,$L$4+9-12,1),DATE($G$4,$L$4+9,1))","v":"2024-10-01"},{"$f":"IF($L$4+10>12,DATE($G$4+1,$L$4+10-12,1),DATE($G$4,$L$4+10,1))","v":"2024-11-01"},{"$f":"IF($L$4+11>12,DATE($G$4+1,$L$4+11-12,1),DATE($G$4,$L$4+11,1))","v":"2024-12-01"},"Jahr"]
[null,null,null,"Einheit"]
[null,"Eingesetzte Brennstoffwärme",null,"kWh",null,null,null,null,null,null,null,null,null,null,null,null,null,{"$f":"IF(S17=0,\"\",IF(S17<13,\"Unvollständige Eingabe\",IF(AND(SUM(E17:P17)>BrstWM_KWK_2Jahr*(1-Toleranz),SUM(E17:P17)<BrstWM_KWK_2Jahr*(1+Toleranz)), \"ok\",\"Summe Monatswerte ist nicht gleich wie der Jahreswert\")))","v":""},0,{"$f":"IF(OR(R17=\"ok\",SUM(E17:P17)=0),0,1)","v":0}]
[null,"Eingespeiste Strommenge",null,"kWh",null,null,null,null,null,null,null,null,null,null,null,null,null,{"$f":"IF(S18=0,\"\",IF(S18<13,\"Unvollständige Eingabe\",IF(AND(SUM(E18:P18)>Strom_KWK_2Jahr*(1-Toleranz),SUM(E18:P18)<Strom_KWK_2Jahr*(1+Toleranz)), \"ok\",\"Summe Monatswerte ist nicht gleich wie der Jahreswert\")))","v":""},0,{"$f":"IF(OR(R18=\"ok\",SUM(E18:P18)=0),0,1)","v":0}]
[null,"Ausgekoppelte Wärmemenge",null,"kWh",null,null,null,null,null,null,null,null,null,null,null,null,null,{"$f":"IF(S19=0,\"\",IF(S19<13,\"Unvollständige Eingabe\",IF(AND(SUM(E19:P19)>WM_KWK_3Jahr*(1-Toleranz),SUM(E19:P19)<WM_KWK_3Jahr*(1+Toleranz)), \"ok\",\"Summe Monatswerte ist nicht gleich wie der Jahreswert\")))","v":""},0,{"$f":"IF(OR(R19=\"ok\",SUM(E19:P19)=0),0,1)","v":0}]
[]
[]
[null,"KWK - Anlage #3",null,"Komp. Nr.",null,null,"Bezeichnung:"]
[null,null,null,"Monat",{"$f":"DATE($G$4,$L$4,1)","v":"2024-01-01"},{"$f":"IF($L$4+1>12,DATE($G$4+1,$L$4+1-12,1),DATE($G$4,$L$4+1,1))","v":"2024-02-01"},{"$f":"IF($L$4+2>12,DATE($G$4+1,$L$4+2-12,1),DATE($G$4,$L$4+2,1))","v":"2024-03-01"},{"$f":"IF($L$4+3>12,DATE($G$4+1,$L$4+3-12,1),DATE($G$4,$L$4+3,1))","v":"2024-04-01"},{"$f":"IF($L$4+4>12,DATE($G$4+1,$L$4+4-12,1),DATE($G$4,$L$4+4,1))","v":"2024-05-01"},{"$f":"IF($L$4+5>12,DATE($G$4+1,$L$4+5-12,1),DATE($G$4,$L$4+5,1))","v":"2024-06-01"},{"$f":"IF($L$4+6>12,DATE($G$4+1,$L$4+6-12,1),DATE($G$4,$L$4+6,1))","v":"2024-07-01"},{"$f":"IF($L$4+7>12,DATE($G$4+1,$L$4+7-12,1),DATE($G$4,$L$4+7,1))","v":"2024-08-01"},{"$f":"IF($L$4+8>12,DATE($G$4+1,$L$4+8-12,1),DATE($G$4,$L$4+8,1))","v":"2024-09-01"},{"$f":"IF($L$4+9>12,DATE($G$4+1,$L$4+9-12,1),DATE($G$4,$L$4+9,1))","v":"2024-10-01"},{"$f":"IF($L$4+10>12,DATE($G$4+1,$L$4+10-12,1),DATE($G$4,$L$4+10,1))","v":"2024-11-01"},{"$f":"IF($L$4+11>12,DATE($G$4+1,$L$4+11-12,1),DATE($G$4,$L$4+11,1))","v":"2024-12-01"},"Jahr"]
[null,null,null,"Einheit"]
[null,"Eingesetzte Brennstoffwärme",null,"kWh",null,null,null,null,null,null,null,null,null,null,null,null,null,{"$f":"IF(S25=0,\"\",IF(S25<13,\"Unvollständige Eingabe\",IF(AND(SUM(E25:P25)>BrstWM_KWK_3Jahr*(1-Toleranz),SUM(E25:P25)<BrstWM_KWK_3Jahr*(1+Toleranz)), \"ok\",\"Summe Monatswerte ist nicht gleich wie der Jahreswert\")))","v":""},0,{"$f":"IF(OR(R25=\"ok\",SUM(E25:P25)=0),0,1)","v":0}]
[null,"Eingespeiste Strommenge",null,"kWh",null,null,null,null,null,null,null,null,null,null,null,null,null,{"$f":"IF(S26=0,\"\",IF(S26<13,\"Unvollständige Eingabe\",IF(AND(SUM(E26:P26)>Strom_KWK_3Jahr*(1-Toleranz),SUM(E26:P26)<Strom_KWK_3Jahr*(1+Toleranz)), \"ok\",\"Summe Monatswerte ist nicht gleich wie der Jahreswert\")))","v":""},0,{"$f":"IF(OR(R26=\"ok\",SUM(E26:P26)=0),0,1)","v":0}]
[null,"Ausgekoppelte Wärmemenge",null,"kWh",null,null,null,null,null,null,null,null,null,null,null,null,null,{"$f":"IF(S27=0,\"\",IF(S27<13,\"Unvollständige Eingabe\",IF(AND(SUM(E27:P27)>WM_KWK_3Jahr*(1-Toleranz),SUM(E27:P27)<WM_KWK_3Jahr*(1+Toleranz)), \"ok\",\"Summe Monatswerte ist nicht gleich wie der Jahreswert\")))","v":""},0,{"$f":"IF(OR(R27=\"ok\",SUM(E27:P27)=0),0,1)","v":0}]
[]
[]
[]
[]
[]
[null,"Anmerkungen zum KWK - Einsatz:"]
[]
[]
[]
[]
[null,"Emissionen entsprechend Messgutachten",null,null,"Bezugssauerstoffgehalt der Eingabewerte:",null,null,null,null," Eingabemöglichkeiten: 6, 10 oder 11 Vol% O2"]
[]
[]
[null,"KWK-Anlage",null,null,"Emissionsmessung bei \"Volllast\"",null,null,null,null,"Emissionsmessung bei \"Teilllast\""]
[null,null,null,null,"O2 gemessen",{"$f":"\"Bezugsauerstoffgehalt \"","v":"Bezugsauerstoffgehalt "},null,{"$f":" BezugO2 & \" Vol%O2 trocken\"","v":"6 Vol%O2 trocken"},null,"O2 gemessen",{"$f":"F42","v":"Bezugsauerstoffgehalt "},null,{"$f":"H42","v":"6 Vol%O2 trocken"}]
[null,"Bezeichnung","Komponenten-Nr. aus QM-Datenbank",null,null,"CO","NOx","CxHy","Staub",null,"CO","NOx","CxHy","Staub"]
[null,null,null,null,"Vol%trocken","mg/m³n","mg/m³n","mg/m³n","mg/m³n","Vol%trocken","mg/m³n","mg/m³n","mg/m³n","mg/m³n"]
[null,{"$f":"IF(I6=\"\",\"\",I6)","v":""},{"$f":"IF(ISBLANK(KmpNrKWK1),\"\",KmpNrKWK1)","v":""}]
[null,{"$f":"IF(I14=\"\",\"\",I14)","v":""},{"$f":"IF(ISBLANK(KmpNrKWK2),\"\",KmpNrKWK2)","v":""}]
[null,{"$f":"IF(I22=\"\",\"\",I22)","v":""},{"$f":"IF(ISBLANK(KmpNrKWK3),\"\",KmpNrKWK3)","v":""}]
[]
[null,null,null,null,{"$f":"\"Umrechnung auf Bezugsauerstoffgehalt \" & IF(BezugO2 =6,10,6) & \" Vol%O2 trocken\"","v":"Umrechnung auf Bezugsauerstoffgehalt 10 Vol%O2 trocken"}]
[]
[null,"KWK-Anlage",null,null,"Emissionsmessung bei \"Volllast\"",null,null,null,null,"Emissionsmessung bei \"Teilllast\""]
[null,null,null,null,"O2 gemessen",{"$f":"\"Bezugsauerstoffgehalt \"","v":"Bezugsauerstoffgehalt "},null,{"$f":" IF(BezugO2 =6,10,6) & \" Vol%O2 trocken\"","v":"10 Vol%O2 trocken"},null,"O2 gemessen",{"$f":"F52","v":"Bezugsauerstoffgehalt "},null,{"$f":"H52","v":"10 Vol%O2 trocken"}]
[null,"Bezeichnung","Komponenten-Nr. aus QM-Datenbank",null,null,"CO","NOx","CxHy","Staub",null,"CO","NOx","CxHy","Staub"]
[null,null,null,null,"Vol%trocken","mg/m³n","mg/m³n","mg/m³n","mg/m³n","Vol%trocken","mg/m³n","mg/m³n","mg/m³n","mg/m³n"]
[null,{"$f":"IF(B45=\"\",\"\",B45)","v":""},{"$f":"C45","v":""},null,{"$f":"E45","v":0},{"$f":"F45*(21-IF(BezugO2KWK =11,13,11))/(21-BezugO2KWK)","v":0},0,0,0,{"$f":"J45","v":0},{"$f":"K45*(21-IF(BezugO2KWK =11,13,11))/(21-BezugO2KWK)","v":0},0,0,0]
[null,{"$f":"IF(B46=\"\",\"\",B46)","v":""},"",null,{"$f":"E46","v":0},0,0,0,0,{"$f":"J46","v":0},0,0,0,0]
[null,{"$f":"IF(B47=\"\",\"\",B47)","v":""},"",null,{"$f":"E47","v":0},0,0,0,0,{"$f":"J47","v":0},0,0,0,0]
[]
[]
[]
[]
[]
[]
[]
[null,"Nur für Umrechnung auf 13% Bezugsauerstoff und Übertragung auf Sheet DatenTransformierung"]
[null,"KWK-Anlage",null,null,"Emissionsmessung bei \"Volllast\"",null,null,null,null,"Emissionsmessung bei \"Teilllast\""]
[null,null,null,null,"O2 gemessen","Bezugsauerstoffgehalt ",null,"13 Vol%O2 trocken",null,"O2 gemessen","Bezugsauerstoffgehalt ",null,"13 Vol%O2 trocken"]
[null,"Bezeichnung","Nr.",null,null,"CO","NOx","CxHy","Staub",null,"CO","NOx","CxHy","Staub"]
[null,null,null,null,"[Vol%trocken]","[mg/m³n]","[mg/m³n]","[mg/m³n]","[mg/m³n]","[Vol%trocken]","[mg/m³n]","[mg/m³n]","[mg/m³n]","[mg/m³n]"]
[null,0,{"$f":"EM_KmpNr_1KWK","v":""},null,{"$f":"IF(ISBLANK(EM_Voll_1KWK),\"\",EM_Voll_1KWK)","v":""},{"$f":"IF(ISBLANK(F45),\"\",ROUND(F45*(21-13)/(21-BezugO2KWK),2))","v":""},"","","",{"$f":"IF(ISBLANK(EM_Teil_1KWK),\"\",EM_Teil_1KWK)","v":""},{"$f":"IF(ISBLANK(K45),\"\",ROUND(K45*(21-13)/(21-BezugO2KWK),2))","v":""},"","",""]
[null,0,{"$f":"EM_KmpNr_2KWK","v":""},null,{"$f":"IF(ISBLANK(EM_Voll_2KWK),\"\",EM_Voll_2KWK)","v":""},"","","","",{"$f":"IF(ISBLANK(EM_Teil_2KWK),\"\",EM_Teil_2KWK)","v":""},"","","",""]
[null,0,{"$f":"EM_KmpNr_3KWK","v":""},null,{"$f":"IF(ISBLANK(EM_Voll_3KWK),\"\",EM_Voll_3KWK)","v":""},"","","","",{"$f":"IF(ISBLANK(EM_Teil_3KWK),\"\",EM_Teil_3KWK)","v":""},"","","",""]

{"sheet":"Abnehmerverbräuche","index":4,"n_rows":1210,"n_cols":17,"rows_kept":1210,"cut":false,"hidden":false,"merged":[[5,5,5,6],[1,2,1,4],[0,2,0,4],[2,9,2,11]]}
[null,null,"gelbe Felder sind Eingabefelder!"]
[" Abnehmerverbräuche",null,"Hier geht’s zur Hilfe",null,null,null,null,null,null,null,null,null,null,null,null,null,"Fehlermeldungen Abnehmerverbräuche"]
[null,null,null,null,null,null,null,null,null,"Netztemperaturen Jahresmittelwert",null,null,null,null,null,null," Durch Doppelklick auf die Fehlermeldung (Zeile) springt man zur entsprechenden Eingabezelle!"]
[null,"Projektnummer",{"$f":"IF('Betriebsdaten I'!C3=\"\",\"\",'Betriebsdaten I'!C3)","v":""},null,"Betriebsjahr",{"$f":"IF('Betriebsdaten I'!G3=\"\",\"\",'Betriebsdaten I'!G3)","v":2024},null,null,null,"Vorlauf [°C]"]
[null,null,null,null,null,null,null,null,null,"Rücklauf [°C]"]
[null,null,null,null,null,"Pflichtspalte"]
[null,"Summe",{"$f":"SUM(C10:C1210)","v":0},null,{"$f":"SUM(E10:E1210)","v":0}]
["Abn.\n - Nr.","Objekt/\nLiegenschafts-bezeichnung","Verbrauch","Zählerstand","Volumen","Zählerstand \nVolumen","Änderungs- \nAblesedatum","Mittlere Vorlauftemperatur","Mittlere Rücklauftemperatur","spezifischer Volumenstrom","mittlere Spreizung","Anteil am Gesamt-wärmeverkauf",null,null,"Automatische Abnehmeranalyse"]
[null,"Text","kWh/a","kWh","m3/a","m3","TT.MM.JJJJ","°C","°C","m³/MWh","K"]
[null,null,null,null,null,null,null,{"$f":"IF(ISBLANK(A10),\"\",NetzvorlaufTemp)","v":""},{"$f":"IF(ISBLANK(A10),\"\",NetzrücklaufTemp)","v":""},{"$f":"IF((SUM(E10)=0)+(SUM(C10)=0),\"\",E10/C10*1000)","v":""},{"$f":"IF(J10=\"\",\"\",C10/(4.189*978*E10/3600))","v":""},{"$f":"IF(ISBLANK(C10)+('Betriebsdaten II'!$T$26=0),\"\",C10/'Betriebsdaten II'!$T$26)","v":""},{"$f":"IF(ISERR(J10*L10),\"\",J10*L10)","v":""},{"$f":"IF(ISERR(RANK(M10,$M$10:$M$1210)),\"\",RANK(M10,$M$10:$M$1210))","v":""},{"$f":"IF(N10=\"\",\"\",IF(AND(N10<5,K10<30), \"Optimierungsmöglichkeiten prüfen!\",\"\"))","v":""}]
[null,null,null,null,null,null,null,"","",{"$f":"IF((SUM(E11)=0)+(SUM(C11)=0),\"\",E11/C11*1000)","v":""},{"$f":"IF(J11=\"\",\"\",C11/(4.189*978*E11/3600))","v":""},{"$f":"IF(ISBLANK(C11)+('Betriebsdaten II'!$T$26=0),\"\",C11/'Betriebsdaten II'!$T$26)","v":""},"",{"$f":"IF(ISERR(RANK(M11,$M$10:$M$1210)),\"\",RANK(M11,$M$10:$M$1210))","v":""},""]
[null,null,null,null,null,null,null,"","","","",{"$f":"IF(ISBLANK(C12)+('Betriebsdaten II'!$T$26=0),\"\",C12/'Betriebsdaten II'!$T$26)","v":""},"","",""]
[null,null,null,null,null,null,null,"","","","",{"$f":"IF(ISBLANK(C13)+('Betriebsdaten II'!$T$26=0),\"\",C13/'Betriebsdaten II'!$T$26)","v":""},"","",""]
[null,null,null,null,null,null,null,"","","","",{"$f":"IF(ISBLANK(C14)+('Betriebsdaten II'!$T$26=0),\"\",C14/'Betriebsdaten II'!$T$26)","v":""},"","",""]
[null,null,null,null,null,null,null,"","","","",{"$f":"IF(ISBLANK(C15)+('Betriebsdaten II'!$T$26=0),\"\",C15/'Betriebsdaten II'!$T$26)","v":""},"","",""]
[null,null,null,null,null,null,null,"","","","",{"$f":"IF(ISBLANK(C16)+('Betriebsdaten II'!$T$26=0),\"\",C16/'Betriebsdaten II'!$T$26)","v":""},"","",""]
[null,null,null,null,null,null,null,"","","","",{"$f":"IF(ISBLANK(C17)+('Betriebsdaten II'!$T$26=0),\"\",C17/'Betriebsdaten II'!$T$26)","v":""},"","",""]
[null,null,null,null,null,null,null,"","","","",{"$f":"IF(ISBLANK(C18)+('Betriebsdaten II'!$T$26=0),\"\",C18/'Betriebsdaten II'!$T$26)","v":""},"","",""]
[null,null,null,null,null,null,null,"","","","",{"$f":"IF(ISBLANK(C19)+('Betriebsdaten II'!$T$26=0),\"\",C19/'Betriebsdaten II'!$T$26)","v":""},"","",""]
[null,null,null,null,null,null,null,"","","","",{"$f":"IF(ISBLANK(C20)+('Betriebsdaten II'!$T$26=0),\"\",C20/'Betriebsdaten II'!$T$26)","v":""},"","",""]
[null,null,null,null,null,null,null,"","","","",{"$f":"IF(ISBLANK(C21)+('Betriebsdaten II'!$T$26=0),\"\",C21/'Betriebsdaten II'!$T$26)","v":""},"","",""]
[null,null,null,null,null,null,null,"","","","",{"$f":"IF(ISBLANK(C22)+('Betriebsdaten II'!$T$26=0),\"\",C22/'Betriebsdaten II'!$T$26)","v":""},"","",""]
[null,null,null,null,null,null,null,"","","","",{"$f":"IF(ISBLANK(C23)+('Betriebsdaten II'!$T$26=0),\"\",C23/'Betriebsdaten II'!$T$26)","v":""},"","",""]
[null,null,null,null,null,null,null,"","","","",{"$f":"IF(ISBLANK(C24)+('Betriebsdaten II'!$T$26=0),\"\",C24/'Betriebsdaten II'!$T$26)","v":""},"","",""]
[null,null,null,null,null,null,null,"","","","",{"$f":"IF(ISBLANK(C25)+('Betriebsdaten II'!$T$26=0),\"\",C25/'Betriebsdaten II'!$T$26)","v":""},"","",""]
[null,null,null,null,null,null,null,"","","","",{"$f":"IF(ISBLANK(C26)+('Betriebsdaten II'!$T$26=0),\"\",C26/'Betriebsdaten II'!$T$26)","v":""},"","",""]
[null,null,null,null,null,null,null,"","","","",{"$f":"IF(ISBLANK(C27)+('Betriebsdaten II'!$T$26=0),\"\",C27/'Betriebsdaten II'!$T$26)","v":""},"","",""]
[null,null,null,null,null,null,null,"","","","",{"$f":"IF(ISBLANK(C28)+('Betriebsdaten II'!$T$26=0),\"\",C28/'Betriebsdaten II'!$T$26)","v":""},"","",""]
[null,null,null,null,null,null,null,"","","","",{"$f":"IF(ISBLANK(C29)+('Betriebsdaten II'!$T$26=0),\"\",C29/'Betriebsdaten II'!$T$26)","v":""},"","",""]
[null,null,null,null,null,null,null,"","","","",{"$f":"IF(ISBLANK(C30)+('Betriebsdaten II'!$T$26=0),\"\",C30/'Betriebsdaten II'!$T$26)","v":""},"","",""]
[null,null,null,null,null,null,null,"","","","",{"$f":"IF(ISBLANK(C31)+('Betriebsdaten II'!$T$26=0),\"\",C31/'Betriebsdaten II'!$T$26)","v":""},"","",""]
[null,null,null,null,null,null,null,"","","","",{"$f":"IF(ISBLANK(C32)+('Betriebsdaten II'!$T$26=0),\"\",C32/'Betriebsdaten II'!$T$26)","v":""},"","",""]
[null,null,null,null,null,null,null,"","","","",{"$f":"IF(ISBLANK(C33)+('Betriebsdaten II'!$T$26=0),\"\",C33/'Betriebsdaten II'!$T$26)","v":""},"","",""]
[null,null,null,null,null,null,null,"","","","",{"$f":"IF(ISBLANK(C34)+('Betriebsdaten II'!$T$26=0),\"\",C34/'Betriebsdaten II'!$T$26)","v":""},"","",""]
[null,null,null,null,null,null,null,"","","","",{"$f":"IF(ISBLANK(C35)+('Betriebsdaten II'!$T$26=0),\"\",C35/'Betriebsdaten II'!$T$26)","v":""},"","",""]
[null,null,null,null,null,null,null,"","","","",{"$f":"IF(ISBLANK(C36)+('Betriebsdaten II'!$T$26=0),\"\",C36/'Betriebsdaten II'!$T$26)","v":""},"","",""]
[null,null,null,null,null,null,null,"","","","",{"$f":"IF(ISBLANK(C37)+('Betriebsdaten II'!$T$26=0),\"\",C37/'Betriebsdaten II'!$T$26)","v":""},"","",""]
[null,null,null,null,null,null,null,"","","","",{"$f":"IF(ISBLANK(C38)+('Betriebsdaten II'!$T$26=0),\"\",C38/'Betriebsdaten II'!$T$26)","v":""},"","",""]
[null,null,null,null,null,null,null,"","","","",{"$f":"IF(ISBLANK(C39)+('Betriebsdaten II'!$T$26=0),\"\",C39/'Betriebsdaten II'!$T$26)","v":""},"","",""]
[null,null,null,null,null,null,null,"","","","",{"$f":"IF(ISBLANK(C40)+('Betriebsdaten II'!$T$26=0),\"\",C40/'Betriebsdaten II'!$T$26)","v":""},"","",""]
[null,null,null,null,null,null,null,"","","","",{"$f":"IF(ISBLANK(C41)+('Betriebsdaten II'!$T$26=0),\"\",C41/'Betriebsdaten II'!$T$26)","v":""},"","",""]
[null,null,null,null,null,null,null,"","","","",{"$f":"IF(ISBLANK(C42)+('Betriebsdaten II'!$T$26=0),\"\",C42/'Betriebsdaten II'!$T$26)","v":""},"","",""]
[null,null,null,null,null,null,null,"","","","",{"$f":"IF(ISBLANK(C43)+('Betriebsdaten II'!$T$26=0),\"\",C43/'Betriebsdaten II'!$T$26)","v":""},"","",""]
[null,null,null,null,null,null,null,"","","","",{"$f":"IF(ISBLANK(C44)+('Betriebsdaten II'!$T$26=0),\"\",C44/'Betriebsdaten II'!$T$26)","v":""},"","",""]
[null,null,null,null,null,null,null,"","","","",{"$f":"IF(ISBLANK(C45)+('Betriebsdaten II'!$T$26=0),\"\",C45/'Betriebsdaten II'!$T$26)","v":""},"","",""]
[null,null,null,null,null,null,null,"","","","",{"$f":"IF(ISBLANK(C46)+('Betriebsdaten II'!$T$26=0),\"\",C46/'Betriebsdaten II'!$T$26)","v":""},"","",""]
[null,null,null,null,null,null,null,"","","","",{"$f":"IF(ISBLANK(C47)+('Betriebsdaten II'!$T$26=0),\"\",C47/'Betriebsdaten II'!$T$26)","v":""},"","",""]
[null,null,null,null,null,null,null,"","","","",{"$f":"IF(ISBLANK(C48)+('Betriebsdaten II'!$T$26=0),\"\",C48/'Betriebsdaten II'!$T$26)","v":""},"","",""]
[null,null,null,null,null,null,null,"","","","",{"$f":"IF(ISBLANK(C49)+('Betriebsdaten II'!$T$26=0),\"\",C49/'Betriebsdaten II'!$T$26)","v":""},"","",""]
[null,null,null,null,null,null,null,"","","","",{"$f":"IF(ISBLANK(C50)+('Betriebsdaten II'!$T$26=0),\"\",C50/'Betriebsdaten II'!$T$26)","v":""},"","",""]
[null,null,null,null,null,null,null,"","","","",{"$f":"IF(ISBLANK(C51)+('Betriebsdaten II'!$T$26=0),\"\",C51/'Betriebsdaten II'!$T$26)","v":""},"","",""]
[null,null,null,null,null,null,null,"","","","",{"$f":"IF(ISBLANK(C52)+('Betriebsdaten II'!$T$26=0),\"\",C52/'Betriebsdaten II'!$T$26)","v":""},"","",""]
[null,null,null,null,null,null,null,"","","","",{"$f":"IF(ISBLANK(C53)+('Betriebsdaten II'!$T$26=0),\"\",C53/'Betriebsdaten II'!$T$26)","v":""},"","",""]
[null,null,null,null,null,null,null,"","","","",{"$f":"IF(ISBLANK(C54)+('Betriebsdaten II'!$T$26=0),\"\",C54/'Betriebsdaten II'!$T$26)","v":""},"","",""]
[null,null,null,null,null,null,null,"","","","",{"$f":"IF(ISBLANK(C55)+('Betriebsdaten II'!$T$26=0),\"\",C55/'Betriebsdaten II'!$T$26)","v":""},"","",""]
[null,null,null,null,null,null,null,"","","","",{"$f":"IF(ISBLANK(C56)+('Betriebsdaten II'!$T$26=0),\"\",C56/'Betriebsdaten II'!$T$26)","v":""},"","",""]
[null,null,null,null,null,null,null,"","","","",{"$f":"IF(ISBLANK(C57)+('Betriebsdaten II'!$T$26=0),\"\",C57/'Betriebsdaten II'!$T$26)","v":""},"","",""]
[null,null,null,null,null,null,null,"","","","",{"$f":"IF(ISBLANK(C58)+('Betriebsdaten II'!$T$26=0),\"\",C58/'Betriebsdaten II'!$T$26)","v":""},"","",""]
[null,null,null,null,null,null,null,"","","","",{"$f":"IF(ISBLANK(C59)+('Betriebsdaten II'!$T$26=0),\"\",C59/'Betriebsdaten II'!$T$26)","v":""},"","",""]
[null,null,null,null,null,null,null,"","","","",{"$f":"IF(ISBLANK(C60)+('Betriebsdaten II'!$T$26=0),\"\",C60/'Betriebsdaten II'!$T$26)","v":""},"","",""]
[null,null,null,null,null,null,null,"","","","",{"$f":"IF(ISBLANK(C61)+('Betriebsdaten II'!$T$26=0),\"\",C61/'Betriebsdaten II'!$T$26)","v":""},"","",""]
[null,null,null,null,null,null,null,"","","","",{"$f":"IF(ISBLANK(C62)+('Betriebsdaten II'!$T$26=0),\"\",C62/'Betriebsdaten II'!$T$26)","v":""},"","",""]
[null,null,null,null,null,null,null,"","","","",{"$f":"IF(ISBLANK(C63)+('Betriebsdaten II'!$T$26=0),\"\",C63/'Betriebsdaten II'!$T$26)","v":""},"","",""]
[null,null,null,null,null,null,null,"","","","",{"$f":"IF(ISBLANK(C64)+('Betriebsdaten II'!$T$26=0),\"\",C64/'Betriebsdaten II'!$T$26)","v":""},"","",""]
[null,null,null,null,null,null,null,"","","","",{"$f":"IF(ISBLANK(C65)+('Betriebsdaten II'!$T$26=0),\"\",C65/'Betriebsdaten II'!$T$26)","v":""},"","",""]
[null,null,null,null,null,null,null,"","","","",{"$f":"IF(ISBLANK(C66)+('Betriebsdaten II'!$T$26=0),\"\",C66/'Betriebsdaten II'!$T$26)","v":""},"","",""]
[null,null,null,null,null,null,null,"","","","",{"$f":"IF(ISBLANK(C67)+('Betriebsdaten II'!$T$26=0),\"\",C67/'Betriebsdaten II'!$T$26)","v":""},"","",""]
[null,null,null,null,null,null,null,"","","","",{"$f":"IF(ISBLANK(C68)+('Betriebsdaten II'!$T$26=0),\"\",C68/'Betriebsdaten II'!$T$26)","v":""},"","",""]
[null,null,null,null,null,null,null,"","","","",{"$f":"IF(ISBLANK(C69)+('Betriebsdaten II'!$T$26=0),\"\",C69/'Betriebsdaten II'!$T$26)","v":""},"","",""]
[null,null,null,null,null,null,null,"","","","",{"$f":"IF(ISBLANK(C70)+('Betriebsdaten II'!$T$26=0),\"\",C70/'Betriebsdaten II'!$T$26)","v":""},"","",""]
[null,null,null,null,null,null,null,"","","","",{"$f":"IF(ISBLANK(C71)+('Betriebsdaten II'!$T$26=0),\"\",C71/'Betriebsdaten II'!$T$26)","v":""},"","",""]
[null,null,null,null,null,null,null,"","","","",{"$f":"IF(ISBLANK(C72)+('Betriebsdaten II'!$T$26=0),\"\",C72/'Betriebsdaten II'!$T$26)","v":""},"","",""]
[null,null,null,null,null,null,null,"","","","",{"$f":"IF(ISBLANK(C73)+('Betriebsdaten II'!$T$26=0),\"\",C73/'Betriebsdaten II'!$T$26)","v":""},"","",""]
[null,null,null,null,null,null,null,{"$f":"IF(ISBLANK(A74),\"\",NetzvorlaufTemp)","v":""},{"$f":"IF(ISBLANK(A74),\"\",NetzrücklaufTemp)","v":""},"","",{"$f":"IF(ISBLANK(C74)+('Betriebsdaten II'!$T$26=0),\"\",C74/'Betriebsdaten II'!$T$26)","v":""},{"$f":"IF(ISERR(J74*L74),\"\",J74*L74)","v":""},"",{"$f":"IF(N74=\"\",\"\",IF(AND(N74<5,K74<30), \"Optimierungsmöglichkeiten prüfen!\",\"\"))","v":""}]
[null,null,null,null,null,null,null,"","",{"$f":"IF((SUM(E75)=0)+(SUM(C75)=0),\"\",E75/C75*1000)","v":""},{"$f":"IF(J75=\"\",\"\",C75/(4.189*978*E75/3600))","v":""},{"$f":"IF(ISBLANK(C75)+('Betriebsdaten II'!$T$26=0),\"\",C75/'Betriebsdaten II'!$T$26)","v":""},"",{"$f":"IF(ISERR(RANK(M75,$M$10:$M$1210)),\"\",RANK(M75,$M$10:$M$1210))","v":""},""]
[null,null,null,null,null,null,null,"","","","",{"$f":"IF(ISBLANK(C76)+('Betriebsdaten II'!$T$26=0),\"\",C76/'Betriebsdaten II'!$T$26)","v":""},"","",""]
[null,null,null,null,null,null,null,"","","","",{"$f":"IF(ISBLANK(C77)+('Betriebsdaten II'!$T$26=0),\"\",C77/'Betriebsdaten II'!$T$26)","v":""},"","",""]
[null,null,null,null,null,null,null,"","","","",{"$f":"IF(ISBLANK(C78)+('Betriebsdaten II'!$T$26=0),\"\",C78/'Betriebsdaten II'!$T$26)","v":""},"","",""]
[null,null,null,null,null,null,null,"","","","",{"$f":"IF(ISBLANK(C79)+('Betriebsdaten II'!$T$26=0),\"\",C79/'Betriebsdaten II'!$T$26)","v":""},"","",""]
[null,null,null,null,null,null,null,"","","","",{"$f":"IF(ISBLANK(C80)+('Betriebsdaten II'!$T$26=0),\"\",C80/'Betriebsdaten II'!$T$26)","v":""},"","",""]
[null,null,null,null,null,null,null,"","","","",{"$f":"IF(ISBLANK(C81)+('Betriebsdaten II'!$T$26=0),\"\",C81/'Betriebsdaten II'!$T$26)","v":""},"","",""]
[null,null,null,null,null,null,null,"","","","",{"$f":"IF(ISBLANK(C82)+('Betriebsdaten II'!$T$26=0),\"\",C82/'Betriebsdaten II'!$T$26)","v":""},"","",""]
[null,null,null,null,null,null,null,"","","","",{"$f":"IF(ISBLANK(C83)+('Betriebsdaten II'!$T$26=0),\"\",C83/'Betriebsdaten II'!$T$26)","v":""},"","",""]
[null,null,null,null,null,null,null,"","","","",{"$f":"IF(ISBLANK(C84)+('Betriebsdaten II'!$T$26=0),\"\",C84/'Betriebsdaten II'!$T$26)","v":""},"","",""]
[null,null,null,null,null,null,null,"","","","",{"$f":"IF(ISBLANK(C85)+('Betriebsdaten II'!$T$26=0),\"\",C85/'Betriebsdaten II'!$T$26)","v":""},"","",""]
[null,null,null,null,null,null,null,"","","","",{"$f":"IF(ISBLANK(C86)+('Betriebsdaten II'!$T$26=0),\"\",C86/'Betriebsdaten II'!$T$26)","v":""},"","",""]
[null,null,null,null,null,null,null,"","","","",{"$f":"IF(ISBLANK(C87)+('Betriebsdaten II'!$T$26=0),\"\",C87/'Betriebsdaten II'!$T$26)","v":""},"","",""]
[null,null,null,null,null,null,null,"","","","",{"$f":"IF(ISBLANK(C88)+('Betriebsdaten II'!$T$26=0),\"\",C88/'Betriebsdaten II'!$T$26)","v":""},"","",""]
[null,null,null,null,null,null,null,"","","","",{"$f":"IF(ISBLANK(C89)+('Betriebsdaten II'!$T$26=0),\"\",C89/'Betriebsdaten II'!$T$26)","v":""},"","",""]
[null,null,null,null,null,null,null,"","","","",{"$f":"IF(ISBLANK(C90)+('Betriebsdaten II'!$T$26=0),\"\",C90/'Betriebsdaten II'!$T$26)","v":""},"","",""]
[null,null,null,null,null,null,null,"","","","",{"$f":"IF(ISBLANK(C91)+('Betriebsdaten II'!$T$26=0),\"\",C91/'Betriebsdaten II'!$T$26)","v":""},"","",""]
[null,null,null,null,null,null,null,"","","","",{"$f":"IF(ISBLANK(C92)+('Betriebsdaten II'!$T$26=0),\"\",C92/'Betriebsdaten II'!$T$26)","v":""},"","",""]
[null,null,null,null,null,null,null,"","","","",{"$f":"IF(ISBLANK(C93)+('Betriebsdaten II'!$T$26=0),\"\",C93/'Betriebsdaten II'!$T$26)","v":""},"","",""]
[null,null,null,null,null,null,null,"","","","",{"$f":"IF(ISBLANK(C94)+('Betriebsdaten II'!$T$26=0),\"\",C94/'Betriebsdaten II'!$T$26)","v":""},"","",""]
[null,null,null,null,null,null,null,"","","","",{"$f":"IF(ISBLANK(C95)+('Betriebsdaten II'!$T$26=0),\"\",C95/'Betriebsdaten II'!$T$26)","v":""},"","",""]
[null,null,null,null,null,null,null,"","","","",{"$f":"IF(ISBLANK(C96)+('Betriebsdaten II'!$T$26=0),\"\",C96/'Betriebsdaten II'!$T$26)","v":""},"","",""]
[null,null,null,null,null,null,null,"","","","",{"$f":"IF(ISBLANK(C97)+('Betriebsdaten II'!$T$26=0),\"\",C97/'Betriebsdaten II'!$T$26)","v":""},"","",""]
[null,null,null,null,null,null,null,"","","","",{"$f":"IF(ISBLANK(C98)+('Betriebsdaten II'!$T$26=0),\"\",C98/'Betriebsdaten II'!$T$26)","v":""},"","",""]
[null,null,null,null,null,null,null,"","","","",{"$f":"IF(ISBLANK(C99)+('Betriebsdaten II'!$T$26=0),\"\",C99/'Betriebsdaten II'!$T$26)","v":""},"","",""]
[null,null,null,null,null,null,null,"","","","",{"$f":"IF(ISBLANK(C100)+('Betriebsdaten II'!$T$26=0),\"\",C100/'Betriebsdaten II'!$T$26)","v":""},"","",""]
[null,null,null,null,null,null,null,"","","","",{"$f":"IF(ISBLANK(C101)+('Betriebsdaten II'!$T$26=0),\"\",C101/'Betriebsdaten II'!$T$26)","v":""},"","",""]
[null,null,null,null,null,null,null,"","","","",{"$f":"IF(ISBLANK(C102)+('Betriebsdaten II'!$T$26=0),\"\",C102/'Betriebsdaten II'!$T$26)","v":""},"","",""]
[null,null,null,null,null,null,null,"","","","",{"$f":"IF(ISBLANK(C103)+('Betriebsdaten II'!$T$26=0),\"\",C103/'Betriebsdaten II'!$T$26)","v":""},"","",""]
[null,null,null,null,null,null,null,"","","","",{"$f":"IF(ISBLANK(C104)+('Betriebsdaten II'!$T$26=0),\"\",C104/'Betriebsdaten II'!$T$26)","v":""},"","",""]
[null,null,null,null,null,null,null,"","","","",{"$f":"IF(ISBLANK(C105)+('Betriebsdaten II'!$T$26=0),\"\",C105/'Betriebsdaten II'!$T$26)","v":""},"","",""]
[null,null,null,null,null,null,null,"","","","",{"$f":"IF(ISBLANK(C106)+('Betriebsdaten II'!$T$26=0),\"\",C106/'Betriebsdaten II'!$T$26)","v":""},"","",""]
[null,null,null,null,null,null,null,"","","","",{"$f":"IF(ISBLANK(C107)+('Betriebsdaten II'!$T$26=0),\"\",C107/'Betriebsdaten II'!$T$26)","v":""},"","",""]
[null,null,null,null,null,null,null,"","","","",{"$f":"IF(ISBLANK(C108)+('Betriebsdaten II'!$T$26=0),\"\",C108/'Betriebsdaten II'!$T$26)","v":""},"","",""]
[null,null,null,null,null,null,null,"","","","",{"$f":"IF(ISBLANK(C109)+('Betriebsdaten II'!$T$26=0),\"\",C109/'Betriebsdaten II'!$T$26)","v":""},"","",""]
[null,null,null,null,null,null,null,"","","","",{"$f":"IF(ISBLANK(C110)+('Betriebsdaten II'!$T$26=0),\"\",C110/'Betriebsdaten II'!$T$26)","v":""},"","",""]
[null,null,null,null,null,null,null,"","","","",{"$f":"IF(ISBLANK(C111)+('Betriebsdaten II'!$T$26=0),\"\",C111/'Betriebsdaten II'!$T$26)","v":""},"","",""]
[null,null,null,null,null,null,null,"","","","",{"$f":"IF(ISBLANK(C112)+('Betriebsdaten II'!$T$26=0),\"\",C112/'Betriebsdaten II'!$T$26)","v":""},"","",""]
[null,null,null,null,null,null,null,"","","","",{"$f":"IF(ISBLANK(C113)+('Betriebsdaten II'!$T$26=0),\"\",C113/'Betriebsdaten II'!$T$26)","v":""},"","",""]
[null,null,null,null,null,null,null,"","","","",{"$f":"IF(ISBLANK(C114)+('Betriebsdaten II'!$T$26=0),\"\",C114/'Betriebsdaten II'!$T$26)","v":""},"","",""]
[null,null,null,null,null,null,null,"","","","",{"$f":"IF(ISBLANK(C115)+('Betriebsdaten II'!$T$26=0),\"\",C115/'Betriebsdaten II'!$T$26)","v":""},"","",""]
[null,null,null,null,null,null,null,"","","","",{"$f":"IF(ISBLANK(C116)+('Betriebsdaten II'!$T$26=0),\"\",C116/'Betriebsdaten II'!$T$26)","v":""},"","",""]
[null,null,null,null,null,null,null,"","","","",{"$f":"IF(ISBLANK(C117)+('Betriebsdaten II'!$T$26=0),\"\",C117/'Betriebsdaten II'!$T$26)","v":""},"","",""]
[null,null,null,null,null,null,null,"","","","",{"$f":"IF(ISBLANK(C118)+('Betriebsdaten II'!$T$26=0),\"\",C118/'Betriebsdaten II'!$T$26)","v":""},"","",""]
[null,null,null,null,null,null,null,"","","","",{"$f":"IF(ISBLANK(C119)+('Betriebsdaten II'!$T$26=0),\"\",C119/'Betriebsdaten II'!$T$26)","v":""},"","",""]
[null,null,null,null,null,null,null,"","","","",{"$f":"IF(ISBLANK(C120)+('Betriebsdaten II'!$T$26=0),\"\",C120/'Betriebsdaten II'!$T$26)","v":""},"","",""]
[null,null,null,null,null,null,null,"","","","",{"$f":"IF(ISBLANK(C121)+('Betriebsdaten II'!$T$26=0),\"\",C121/'Betriebsdaten II'!$T$26)","v":""},"","",""]
[null,null,null,null,null,null,null,"","","","",{"$f":"IF(ISBLANK(C122)+('Betriebsdaten II'!$T$26=0),\"\",C122/'Betriebsdaten II'!$T$26)","v":""},"","",""]
[null,null,null,null,null,null,null,"","","","",{"$f":"IF(ISBLANK(C123)+('Betriebsdaten II'!$T$26=0),\"\",C123/'Betriebsdaten II'!$T$26)","v":""},"","",""]
[null,null,null,null,null,null,null,"","","","",{"$f":"IF(ISBLANK(C124)+('Betriebsdaten II'!$T$26=0),\"\",C124/'Betriebsdaten II'!$T$26)","v":""},"","",""]
[null,null,null,null,null,null,null,"","","","",{"$f":"IF(ISBLANK(C125)+('Betriebsdaten II'!$T$26=0),\"\",C125/'Betriebsdaten II'!$T$26)","v":""},"","",""]
[null,null,null,null,null,null,null,"","","","",{"$f":"IF(ISBLANK(C126)+('Betriebsdaten II'!$T$26=0),\"\",C126/'Betriebsdaten II'!$T$26)","v":""},"","",""]
[null,null,null,null,null,null,null,"","","","",{"$f":"IF(ISBLANK(C127)+('Betriebsdaten II'!$T$26=0),\"\",C127/'Betriebsdaten II'!$T$26)","v":""},"","",""]
[null,null,null,null,null,null,null,"","","","",{"$f":"IF(ISBLANK(C128)+('Betriebsdaten II'!$T$26=0),\"\",C128/'Betriebsdaten II'!$T$26)","v":""},"","",""]
[null,null,null,null,null,null,null,"","","","",{"$f":"IF(ISBLANK(C129)+('Betriebsdaten II'!$T$26=0),\"\",C129/'Betriebsdaten II'!$T$26)","v":""},"","",""]
[null,null,null,null,null,null,null,"","","","",{"$f":"IF(ISBLANK(C130)+('Betriebsdaten II'!$T$26=0),\"\",C130/'Betriebsdaten II'!$T$26)","v":""},"","",""]
[null,null,null,null,null,null,null,"","","","",{"$f":"IF(ISBLANK(C131)+('Betriebsdaten II'!$T$26=0),\"\",C131/'Betriebsdaten II'!$T$26)","v":""},"","",""]
[null,null,null,null,null,null,null,"","","","",{"$f":"IF(ISBLANK(C132)+('Betriebsdaten II'!$T$26=0),\"\",C132/'Betriebsdaten II'!$T$26)","v":""},"","",""]
[null,null,null,null,null,null,null,"","","","",{"$f":"IF(ISBLANK(C133)+('Betriebsdaten II'!$T$26=0),\"\",C133/'Betriebsdaten II'!$T$26)","v":""},"","",""]
[null,null,null,null,null,null,null,"","","","",{"$f":"IF(ISBLANK(C134)+('Betriebsdaten II'!$T$26=0),\"\",C134/'Betriebsdaten II'!$T$26)","v":""},"","",""]
[null,null,null,null,null,null,null,"","","","",{"$f":"IF(ISBLANK(C135)+('Betriebsdaten II'!$T$26=0),\"\",C135/'Betriebsdaten II'!$T$26)","v":""},"","",""]
[null,null,null,null,null,null,null,"","","","",{"$f":"IF(ISBLANK(C136)+('Betriebsdaten II'!$T$26=0),\"\",C136/'Betriebsdaten II'!$T$26)","v":""},"","",""]
[null,null,null,null,null,null,null,"","","","",{"$f":"IF(ISBLANK(C137)+('Betriebsdaten II'!$T$26=0),\"\",C137/'Betriebsdaten II'!$T$26)","v":""},"","",""]
[null,null,null,null,null,null,null,{"$f":"IF(ISBLANK(A138),\"\",NetzvorlaufTemp)","v":""},{"$f":"IF(ISBLANK(A138),\"\",NetzrücklaufTemp)","v":""},"","",{"$f":"IF(ISBLANK(C138)+('Betriebsdaten II'!$T$26=0),\"\",C138/'Betriebsdaten II'!$T$26)","v":""},{"$f":"IF(ISERR(J138*L138),\"\",J138*L138)","v":""},"",{"$f":"IF(N138=\"\",\"\",IF(AND(N138<5,K138<30), \"Optimierungsmöglichkeiten prüfen!\",\"\"))","v":""}]
[null,null,null,null,null,null,null,"","",{"$f":"IF((SUM(E139)=0)+(SUM(C139)=0),\"\",E139/C139*1000)","v":""},{"$f":"IF(J139=\"\",\"\",C139/(4.189*978*E139/3600))","v":""},{"$f":"IF(ISBLANK(C139)+('Betriebsdaten II'!$T$26=0),\"\",C139/'Betriebsdaten II'!$T$26)","v":""},"",{"$f":"IF(ISERR(RANK(M139,$M$10:$M$1210)),\"\",RANK(M139,$M$10:$M$1210))","v":""},""]
[null,null,null,null,null,null,null,"","","","",{"$f":"IF(ISBLANK(C140)+('Betriebsdaten II'!$T$26=0),\"\",C140/'Betriebsdaten II'!$T$26)","v":""},"","",""]
[null,null,null,null,null,null,null,"","","","",{"$f":"IF(ISBLANK(C141)+('Betriebsdaten II'!$T$26=0),\"\",C141/'Betriebsdaten II'!$T$26)","v":""},"","",""]
[null,null,null,null,null,null,null,"","","","",{"$f":"IF(ISBLANK(C142)+('Betriebsdaten II'!$T$26=0),\"\",C142/'Betriebsdaten II'!$T$26)","v":""},"","",""]
[null,null,null,null,null,null,null,"","","","",{"$f":"IF(ISBLANK(C143)+('Betriebsdaten II'!$T$26=0),\"\",C143/'Betriebsdaten II'!$T$26)","v":""},"","",""]
[null,null,null,null,null,null,null,"","","","",{"$f":"IF(ISBLANK(C144)+('Betriebsdaten II'!$T$26=0),\"\",C144/'Betriebsdaten II'!$T$26)","v":""},"","",""]
[null,null,null,null,null,null,null,"","","","",{"$f":"IF(ISBLANK(C145)+('Betriebsdaten II'!$T$26=0),\"\",C145/'Betriebsdaten II'!$T$26)","v":""},"","",""]
[null,null,null,null,null,null,null,"","","","",{"$f":"IF(ISBLANK(C146)+('Betriebsdaten II'!$T$26=0),\"\",C146/'Betriebsdaten II'!$T$26)","v":""},"","",""]
[null,null,null,null,null,null,null,"","","","",{"$f":"IF(ISBLANK(C147)+('Betriebsdaten II'!$T$26=0),\"\",C147/'Betriebsdaten II'!$T$26)","v":""},"","",""]
[null,null,null,null,null,null,null,"","","","",{"$f":"IF(ISBLANK(C148)+('Betriebsdaten II'!$T$26=0),\"\",C148/'Betriebsdaten II'!$T$26)","v":""},"","",""]
[null,null,null,null,null,null,null,"","","","",{"$f":"IF(ISBLANK(C149)+('Betriebsdaten II'!$T$26=0),\"\",C149/'Betriebsdaten II'!$T$26)","v":""},"","",""]
[null,null,null,null,null,null,null,"","","","",{"$f":"IF(ISBLANK(C150)+('Betriebsdaten II'!$T$26=0),\"\",C150/'Betriebsdaten II'!$T$26)","v":""},"","",""]
[null,null,null,null,null,null,null,"","","","",{"$f":"IF(ISBLANK(C151)+('Betriebsdaten II'!$T$26=0),\"\",C151/'Betriebsdaten II'!$T$26)","v":""},"","",""]
[null,null,null,null,null,null,null,"","","","",{"$f":"IF(ISBLANK(C152)+('Betriebsdaten II'!$T$26=0),\"\",C152/'Betriebsdaten II'!$T$26)","v":""},"","",""]
[null,null,null,null,null,null,null,"","","","",{"$f":"IF(ISBLANK(C153)+('Betriebsdaten II'!$T$26=0),\"\",C153/'Betriebsdaten II'!$T$26)","v":""},"","",""]
[null,null,null,null,null,null,null,"","","","",{"$f":"IF(ISBLANK(C154)+('Betriebsdaten II'!$T$26=0),\"\",C154/'Betriebsdaten II'!$T$26)","v":""},"","",""]
[null,null,null,null,null,null,null,"","","","",{"$f":"IF(ISBLANK(C155)+('Betriebsdaten II'!$T$26=0),\"\",C155/'Betriebsdaten II'!$T$26)","v":""},"","",""]
[null,null,null,null,null,null,null,"","","","",{"$f":"IF(ISBLANK(C156)+('Betriebsdaten II'!$T$26=0),\"\",C156/'Betriebsdaten II'!$T$26)","v":""},"","",""]
[null,null,null,null,null,null,null,"","","","",{"$f":"IF(ISBLANK(C157)+('Betriebsdaten II'!$T$26=0),\"\",C157/'Betriebsdaten II'!$T$26)","v":""},"","",""]
[null,null,null,null,null,null,null,"","","","",{"$f":"IF(ISBLANK(C158)+('Betriebsdaten II'!$T$26=0),\"\",C158/'Betriebsdaten II'!$T$26)","v":""},"","",""]
[null,null,null,null,null,null,null,"","","","",{"$f":"IF(ISBLANK(C159)+('Betriebsdaten II'!$T$26=0),\"\",C159/'Betriebsdaten II'!$T$26)","v":""},"","",""]
[null,null,null,null,null,null,null,"","","","",{"$f":"IF(ISBLANK(C160)+('Betriebsdaten II'!$T$26=0),\"\",C160/'Betriebsdaten II'!$T$26)","v":""},"","",""]
[null,null,null,null,null,null,null,"","","","",{"$f":"IF(ISBLANK(C161)+('Betriebsdaten II'!$T$26=0),\"\",C161/'Betriebsdaten II'!$T$26)","v":""},"","",""]
[null,null,null,null,null,null,null,"","","","",{"$f":"IF(ISBLANK(C162)+('Betriebsdaten II'!$T$26=0),\"\",C162/'Betriebsdaten II'!$T$26)","v":""},"","",""]
[null,null,null,null,null,null,null,"","","","",{"$f":"IF(ISBLANK(C163)+('Betriebsdaten II'!$T$26=0),\"\",C163/'Betriebsdaten II'!$T$26)","v":""},"","",""]
[null,null,null,null,null,null,null,"","","","",{"$f":"IF(ISBLANK(C164)+('Betriebsdaten II'!$T$26=0),\"\",C164/'Betriebsdaten II'!$T$26)","v":""},"","",""]
[null,null,null,null,null,null,null,"","","","",{"$f":"IF(ISBLANK(C165)+('Betriebsdaten II'!$T$26=0),\"\",C165/'Betriebsdaten II'!$T$26)","v":""},"","",""]
[null,null,null,null,null,null,null,"","","","",{"$f":"IF(ISBLANK(C166)+('Betriebsdaten II'!$T$26=0),\"\",C166/'Betriebsdaten II'!$T$26)","v":""},"","",""]
[null,null,null,null,null,null,null,"","","","",{"$f":"IF(ISBLANK(C167)+('Betriebsdaten II'!$T$26=0),\"\",C167/'Betriebsdaten II'!$T$26)","v":""},"","",""]
[null,null,null,null,null,null,null,"","","","",{"$f":"IF(ISBLANK(C168)+('Betriebsdaten II'!$T$26=0),\"\",C168/'Betriebsdaten II'!$T$26)","v":""},"","",""]
[null,null,null,null,null,null,null,"","","","",{"$f":"IF(ISBLANK(C169)+('Betriebsdaten II'!$T$26=0),\"\",C169/'Betriebsdaten II'!$T$26)","v":""},"","",""]
[null,null,null,null,null,null,null,"","","","",{"$f":"IF(ISBLANK(C170)+('Betriebsdaten II'!$T$26=0),\"\",C170/'Betriebsdaten II'!$T$26)","v":""},"","",""]
[null,null,null,null,null,null,null,"","","","",{"$f":"IF(ISBLANK(C171)+('Betriebsdaten II'!$T$26=0),\"\",C171/'Betriebsdaten II'!$T$26)","v":""},"","",""]
[null,null,null,null,null,null,null,"","","","",{"$f":"IF(ISBLANK(C172)+('Betriebsdaten II'!$T$26=0),\"\",C172/'Betriebsdaten II'!$T$26)","v":""},"","",""]
[null,null,null,null,null,null,null,"","","","",{"$f":"IF(ISBLANK(C173)+('Betriebsdaten II'!$T$26=0),\"\",C173/'Betriebsdaten II'!$T$26)","v":""},"","",""]
[null,null,null,null,null,null,null,"","","","",{"$f":"IF(ISBLANK(C174)+('Betriebsdaten II'!$T$26=0),\"\",C174/'Betriebsdaten II'!$T$26)","v":""},"","",""]
[null,null,null,null,null,null,null,"","","","",{"$f":"IF(ISBLANK(C175)+('Betriebsdaten II'!$T$26=0),\"\",C175/'Betriebsdaten II'!$T$26)","v":""},"","",""]
[null,null,null,null,null,null,null,"","","","",{"$f":"IF(ISBLANK(C176)+('Betriebsdaten II'!$T$26=0),\"\",C176/'Betriebsdaten II'!$T$26)","v":""},"","",""]
[null,null,null,null,null,null,null,"","","","",{"$f":"IF(ISBLANK(C177)+('Betriebsdaten II'!$T$26=0),\"\",C177/'Betriebsdaten II'!$T$26)","v":""},"","",""]
[null,null,null,null,null,null,null,"","","","",{"$f":"IF(ISBLANK(C178)+('Betriebsdaten II'!$T$26=0),\"\",C178/'Betriebsdaten II'!$T$26)","v":""},"","",""]
[null,null,null,null,null,null,null,"","","","",{"$f":"IF(ISBLANK(C179)+('Betriebsdaten II'!$T$26=0),\"\",C179/'Betriebsdaten II'!$T$26)","v":""},"","",""]
[null,null,null,null,null,null,null,"","","","",{"$f":"IF(ISBLANK(C180)+('Betriebsdaten II'!$T$26=0),\"\",C180/'Betriebsdaten II'!$T$26)","v":""},"","",""]
[null,null,null,null,null,null,null,"","","","",{"$f":"IF(ISBLANK(C181)+('Betriebsdaten II'!$T$26=0),\"\",C181/'Betriebsdaten II'!$T$26)","v":""},"","",""]
[null,null,null,null,null,null,null,"","","","",{"$f":"IF(ISBLANK(C182)+('Betriebsdaten II'!$T$26=0),\"\",C182/'Betriebsdaten II'!$T$26)","v":""},"","",""]
[null,null,null,null,null,null,null,"","","","",{"$f":"IF(ISBLANK(C183)+('Betriebsdaten II'!$T$26=0),\"\",C183/'Betriebsdaten II'!$T$26)","v":""},"","",""]
[null,null,null,null,null,null,null,"","","","",{"$f":"IF(ISBLANK(C184)+('Betriebsdaten II'!$T$26=0),\"\",C184/'Betriebsdaten II'!$T$26)","v":""},"","",""]
[null,null,null,null,null,null,null,"","","","",{"$f":"IF(ISBLANK(C185)+('Betriebsdaten II'!$T$26=0),\"\",C185/'Betriebsdaten II'!$T$26)","v":""},"","",""]
[null,null,null,null,null,null,null,"","","","",{"$f":"IF(ISBLANK(C186)+('Betriebsdaten II'!$T$26=0),\"\",C186/'Betriebsdaten II'!$T$26)","v":""},"","",""]
[null,null,null,null,null,null,null,"","","","",{"$f":"IF(ISBLANK(C187)+('Betriebsdaten II'!$T$26=0),\"\",C187/'Betriebsdaten II'!$T$26)","v":""},"","",""]
[null,null,null,null,null,null,null,"","","","",{"$f":"IF(ISBLANK(C188)+('Betriebsdaten II'!$T$26=0),\"\",C188/'Betriebsdaten II'!$T$26)","v":""},"","",""]
[null,null,null,null,null,null,null,"","","","",{"$f":"IF(ISBLANK(C189)+('Betriebsdaten II'!$T$26=0),\"\",C189/'Betriebsdaten II'!$T$26)","v":""},"","",""]
[null,null,null,null,null,null,null,"","","","",{"$f":"IF(ISBLANK(C190)+('Betriebsdaten II'!$T$26=0),\"\",C190/'Betriebsdaten II'!$T$26)","v":""},"","",""]
[null,null,null,null,null,null,null,"","","","",{"$f":"IF(ISBLANK(C191)+('Betriebsdaten II'!$T$26=0),\"\",C191/'Betriebsdaten II'!$T$26)","v":""},"","",""]
[null,null,null,null,null,null,null,"","","","",{"$f":"IF(ISBLANK(C192)+('Betriebsdaten II'!$T$26=0),\"\",C192/'Betriebsdaten II'!$T$26)","v":""},"","",""]
[null,null,null,null,null,null,null,"","","","",{"$f":"IF(ISBLANK(C193)+('Betriebsdaten II'!$T$26=0),\"\",C193/'Betriebsdaten II'!$T$26)","v":""},"","",""]
[null,null,null,null,null,null,null,"","","","",{"$f":"IF(ISBLANK(C194)+('Betriebsdaten II'!$T$26=0),\"\",C194/'Betriebsdaten II'!$T$26)","v":""},"","",""]
[null,null,null,null,null,null,null,"","","","",{"$f":"IF(ISBLANK(C195)+('Betriebsdaten II'!$T$26=0),\"\",C195/'Betriebsdaten II'!$T$26)","v":""},"","",""]
[null,null,null,null,null,null,null,"","","","",{"$f":"IF(ISBLANK(C196)+('Betriebsdaten II'!$T$26=0),\"\",C196/'Betriebsdaten II'!$T$26)","v":""},"","",""]
[null,null,null,null,null,null,null,"","","","",{"$f":"IF(ISBLANK(C197)+('Betriebsdaten II'!$T$26=0),\"\",C197/'Betriebsdaten II'!$T$26)","v":""},"","",""]
[null,null,null,null,null,null,null,"","","","",{"$f":"IF(ISBLANK(C198)+('Betriebsdaten II'!$T$26=0),\"\",C198/'Betriebsdaten II'!$T$26)","v":""},"","",""]
[null,null,null,null,null,null,null,"","","","",{"$f":"IF(ISBLANK(C199)+('Betriebsdaten II'!$T$26=0),\"\",C199/'Betriebsdaten II'!$T$26)","v":""},"","",""]
[null,null,null,null,null,null,null,"","","","",{"$f":"IF(ISBLANK(C200)+('Betriebsdaten II'!$T$26=0),\"\",C200/'Betriebsdaten II'!$T$26)","v":""},"","",""]
[null,null,null,null,null,null,null,"","","","",{"$f":"IF(ISBLANK(C201)+('Betriebsdaten II'!$T$26=0),\"\",C201/'Betriebsdaten II'!$T$26)","v":""},"","",""]
[null,null,null,null,null,null,null,{"$f":"IF(ISBLANK(A202),\"\",NetzvorlaufTemp)","v":""},{"$f":"IF(ISBLANK(A202),\"\",NetzrücklaufTemp)","v":""},"","",{"$f":"IF(ISBLANK(C202)+('Betriebsdaten II'!$T$26=0),\"\",C202/'Betriebsdaten II'!$T$26)","v":""},{"$f":"IF(ISERR(J202*L202),\"\",J202*L202)","v":""},"",{"$f":"IF(N202=\"\",\"\",IF(AND(N202<5,K202<30), \"Optimierungsmöglichkeiten prüfen!\",\"\"))","v":""}]
[null,null,null,null,null,null,null,"","",{"$f":"IF((SUM(E203)=0)+(SUM(C203)=0),\"\",E203/C203*1000)","v":""},{"$f":"IF(J203=\"\",\"\",C203/(4.189*978*E203/3600))","v":""},{"$f":"IF(ISBLANK(C203)+('Betriebsdaten II'!$T$26=0),\"\",C203/'Betriebsdaten II'!$T$26)","v":""},"",{"$f":"IF(ISERR(RANK(M203,$M$10:$M$1210)),\"\",RANK(M203,$M$10:$M$1210))","v":""},""]
[null,null,null,null,null,null,null,"","","","",{"$f":"IF(ISBLANK(C204)+('Betriebsdaten II'!$T$26=0),\"\",C204/'Betriebsdaten II'!$T$26)","v":""},"","",""]
[null,null,null,null,null,null,null,"","","","",{"$f":"IF(ISBLANK(C205)+('Betriebsdaten II'!$T$26=0),\"\",C205/'Betriebsdaten II'!$T$26)","v":""},"","",""]
[null,null,null,null,null,null,null,"","","","",{"$f":"IF(ISBLANK(C206)+('Betriebsdaten II'!$T$26=0),\"\",C206/'Betriebsdaten II'!$T$26)","v":""},"","",""]
[null,null,null,null,null,null,null,"","","","",{"$f":"IF(ISBLANK(C207)+('Betriebsdaten II'!$T$26=0),\"\",C207/'Betriebsdaten II'!$T$26)","v":""},"","",""]
[null,null,null,null,null,null,null,"","","","",{"$f":"IF(ISBLANK(C208)+('Betriebsdaten II'!$T$26=0),\"\",C208/'Betriebsdaten II'!$T$26)","v":""},"","",""]
[null,null,null,null,null,null,null,"","","","",{"$f":"IF(ISBLANK(C209)+('Betriebsdaten II'!$T$26=0),\"\",C209/'Betriebsdaten II'!$T$26)","v":""},"","",""]
[null,null,null,null,null,null,null,"","","","",{"$f":"IF(ISBLANK(C210)+('Betriebsdaten II'!$T$26=0),\"\",C210/'Betriebsdaten II'!$T$26)","v":""},"","",""]
[null,null,null,null,null,null,null,"","","","",{"$f":"IF(ISBLANK(C211)+('Betriebsdaten II'!$T$26=0),\"\",C211/'Betriebsdaten II'!$T$26)","v":""},"","",""]
[null,null,null,null,null,null,null,"","","","",{"$f":"IF(ISBLANK(C212)+('Betriebsdaten II'!$T$26=0),\"\",C212/'Betriebsdaten II'!$T$26)","v":""},"","",""]
[null,null,null,null,null,null,null,"","","","",{"$f":"IF(ISBLANK(C213)+('Betriebsdaten II'!$T$26=0),\"\",C213/'Betriebsdaten II'!$T$26)","v":""},"","",""]
[null,null,null,null,null,null,null,"","","","",{"$f":"IF(ISBLANK(C214)+('Betriebsdaten II'!$T$26=0),\"\",C214/'Betriebsdaten II'!$T$26)","v":""},"","",""]
[null,null,null,null,null,null,null,"","","","",{"$f":"IF(ISBLANK(C215)+('Betriebsdaten II'!$T$26=0),\"\",C215/'Betriebsdaten II'!$T$26)","v":""},"","",""]
[null,null,null,null,null,null,null,"","","","",{"$f":"IF(ISBLANK(C216)+('Betriebsdaten II'!$T$26=0),\"\",C216/'Betriebsdaten II'!$T$26)","v":""},"","",""]
[null,null,null,null,null,null,null,"","","","",{"$f":"IF(ISBLANK(C217)+('Betriebsdaten II'!$T$26=0),\"\",C217/'Betriebsdaten II'!$T$26)","v":""},"","",""]
[null,null,null,null,null,null,null,"","","","",{"$f":"IF(ISBLANK(C218)+('Betriebsdaten II'!$T$26=0),\"\",C218/'Betriebsdaten II'!$T$26)","v":""},"","",""]
[null,null,null,null,null,null,null,"","","","",{"$f":"IF(ISBLANK(C219)+('Betriebsdaten II'!$T$26=0),\"\",C219/'Betriebsdaten II'!$T$26)","v":""},"","",""]
[null,null,null,null,null,null,null,"","","","",{"$f":"IF(ISBLANK(C220)+('Betriebsdaten II'!$T$26=0),\"\",C220/'Betriebsdaten II'!$T$26)","v":""},"","",""]
[null,null,null,null,null,null,null,"","","","",{"$f":"IF(ISBLANK(C221)+('Betriebsdaten II'!$T$26=0),\"\",C221/'Betriebsdaten II'!$T$26)","v":""},"","",""]
[null,null,null,null,null,null,null,"","","","",{"$f":"IF(ISBLANK(C222)+('Betriebsdaten II'!$T$26=0),\"\",C222/'Betriebsdaten II'!$T$26)","v":""},"","",""]
[null,null,null,null,null,null,null,"","","","",{"$f":"IF(ISBLANK(C223)+('Betriebsdaten II'!$T$26=0),\"\",C223/'Betriebsdaten II'!$T$26)","v":""},"","",""]
[null,null,null,null,null,null,null,"","","","",{"$f":"IF(ISBLANK(C224)+('Betriebsdaten II'!$T$26=0),\"\",C224/'Betriebsdaten II'!$T$26)","v":""},"","",""]
[null,null,null,null,null,null,null,"","","","",{"$f":"IF(ISBLANK(C225)+('Betriebsdaten II'!$T$26=0),\"\",C225/'Betriebsdaten II'!$T$26)","v":""},"","",""]
[null,null,null,null,null,null,null,"","","","",{"$f":"IF(ISBLANK(C226)+('Betriebsdaten II'!$T$26=0),\"\",C226/'Betriebsdaten II'!$T$26)","v":""},"","",""]
[null,null,null,null,null,null,null,"","","","",{"$f":"IF(ISBLANK(C227)+('Betriebsdaten II'!$T$26=0),\"\",C227/'Betriebsdaten II'!$T$26)","v":""},"","",""]
[null,null,null,null,null,null,null,"","","","",{"$f":"IF(ISBLANK(C228)+('Betriebsdaten II'!$T$26=0),\"\",C228/'Betriebsdaten II'!$T$26)","v":""},"","",""]
[null,null,null,null,null,null,null,"","","","",{"$f":"IF(ISBLANK(C229)+('Betriebsdaten II'!$T$26=0),\"\",C229/'Betriebsdaten II'!$T$26)","v":""},"","",""]
[null,null,null,null,null,null,null,"","","","",{"$f":"IF(ISBLANK(C230)+('Betriebsdaten II'!$T$26=0),\"\",C230/'Betriebsdaten II'!$T$26)","v":""},"","",""]
[null,null,null,null,null,null,null,"","","","",{"$f":"IF(ISBLANK(C231)+('Betriebsdaten II'!$T$26=0),\"\",C231/'Betriebsdaten II'!$T$26)","v":""},"","",""]
[null,null,null,null,null,null,null,"","","","",{"$f":"IF(ISBLANK(C232)+('Betriebsdaten II'!$T$26=0),\"\",C232/'Betriebsdaten II'!$T$26)","v":""},"","",""]
[null,null,null,null,null,null,null,"","","","",{"$f":"IF(ISBLANK(C233)+('Betriebsdaten II'!$T$26=0),\"\",C233/'Betriebsdaten II'!$T$26)","v":""},"","",""]
[null,null,null,null,null,null,null,"","","","",{"$f":"IF(ISBLANK(C234)+('Betriebsdaten II'!$T$26=0),\"\",C234/'Betriebsdaten II'!$T$26)","v":""},"","",""]
[null,null,null,null,null,null,null,"","","","",{"$f":"IF(ISBLANK(C235)+('Betriebsdaten II'!$T$26=0),\"\",C235/'Betriebsdaten II'!$T$26)","v":""},"","",""]
[null,null,null,null,null,null,null,"","","","",{"$f":"IF(ISBLANK(C236)+('Betriebsdaten II'!$T$26=0),\"\",C236/'Betriebsdaten II'!$T$26)","v":""},"","",""]
[null,null,null,null,null,null,null,"","","","",{"$f":"IF(ISBLANK(C237)+('Betriebsdaten II'!$T$26=0),\"\",C237/'Betriebsdaten II'!$T$26)","v":""},"","",""]
[null,null,null,null,null,null,null,"","","","",{"$f":"IF(ISBLANK(C238)+('Betriebsdaten II'!$T$26=0),\"\",C238/'Betriebsdaten II'!$T$26)","v":""},"","",""]
[null,null,null,null,null,null,null,"","","","",{"$f":"IF(ISBLANK(C239)+('Betriebsdaten II'!$T$26=0),\"\",C239/'Betriebsdaten II'!$T$26)","v":""},"","",""]
[null,null,null,null,null,null,null,"","","","",{"$f":"IF(ISBLANK(C240)+('Betriebsdaten II'!$T$26=0),\"\",C240/'Betriebsdaten II'!$T$26)","v":""},"","",""]
[null,null,null,null,null,null,null,"","","","",{"$f":"IF(ISBLANK(C241)+('Betriebsdaten II'!$T$26=0),\"\",C241/'Betriebsdaten II'!$T$26)","v":""},"","",""]
[null,null,null,null,null,null,null,"","","","",{"$f":"IF(ISBLANK(C242)+('Betriebsdaten II'!$T$26=0),\"\",C242/'Betriebsdaten II'!$T$26)","v":""},"","",""]
[null,null,null,null,null,null,null,"","","","",{"$f":"IF(ISBLANK(C243)+('Betriebsdaten II'!$T$26=0),\"\",C243/'Betriebsdaten II'!$T$26)","v":""},"","",""]
[null,null,null,null,null,null,null,"","","","",{"$f":"IF(ISBLANK(C244)+('Betriebsdaten II'!$T$26=0),\"\",C244/'Betriebsdaten II'!$T$26)","v":""},"","",""]
[null,null,null,null,null,null,null,"","","","",{"$f":"IF(ISBLANK(C245)+('Betriebsdaten II'!$T$26=0),\"\",C245/'Betriebsdaten II'!$T$26)","v":""},"","",""]
[null,null,null,null,null,null,null,"","","","",{"$f":"IF(ISBLANK(C246)+('Betriebsdaten II'!$T$26=0),\"\",C246/'Betriebsdaten II'!$T$26)","v":""},"","",""]
[null,null,null,null,null,null,null,"","","","",{"$f":"IF(ISBLANK(C247)+('Betriebsdaten II'!$T$26=0),\"\",C247/'Betriebsdaten II'!$T$26)","v":""},"","",""]
[null,null,null,null,null,null,null,"","","","",{"$f":"IF(ISBLANK(C248)+('Betriebsdaten II'!$T$26=0),\"\",C248/'Betriebsdaten II'!$T$26)","v":""},"","",""]
[null,null,null,null,null,null,null,"","","","",{"$f":"IF(ISBLANK(C249)+('Betriebsdaten II'!$T$26=0),\"\",C249/'Betriebsdaten II'!$T$26)","v":""},"","",""]
[null,null,null,null,null,null,null,"","","","",{"$f":"IF(ISBLANK(C250)+('Betriebsdaten II'!$T$26=0),\"\",C250/'Betriebsdaten II'!$T$26)","v":""},"","",""]
[null,null,null,null,null,null,null,"","","","",{"$f":"IF(ISBLANK(C251)+('Betriebsdaten II'!$T$26=0),\"\",C251/'Betriebsdaten II'!$T$26)","v":""},"","",""]
[null,null,null,null,null,null,null,"","","","",{"$f":"IF(ISBLANK(C252)+('Betriebsdaten II'!$T$26=0),\"\",C252/'Betriebsdaten II'!$T$26)","v":""},"","",""]
[null,null,null,null,null,null,null,"","","","",{"$f":"IF(ISBLANK(C253)+('Betriebsdaten II'!$T$26=0),\"\",C253/'Betriebsdaten II'!$T$26)","v":""},"","",""]
[null,null,null,null,null,null,null,"","","","",{"$f":"IF(ISBLANK(C254)+('Betriebsdaten II'!$T$26=0),\"\",C254/'Betriebsdaten II'!$T$26)","v":""},"","",""]
[null,null,null,null,null,null,null,"","","","",{"$f":"IF(ISBLANK(C255)+('Betriebsdaten II'!$T$26=0),\"\",C255/'Betriebsdaten II'!$T$26)","v":""},"","",""]
[null,null,null,null,null,null,null,"","","","",{"$f":"IF(ISBLANK(C256)+('Betriebsdaten II'!$T$26=0),\"\",C256/'Betriebsdaten II'!$T$26)","v":""},"","",""]
[null,null,null,null,null,null,null,"","","","",{"$f":"IF(ISBLANK(C257)+('Betriebsdaten II'!$T$26=0),\"\",C257/'Betriebsdaten II'!$T$26)","v":""},"","",""]
[null,null,null,null,null,null,null,"","","","",{"$f":"IF(ISBLANK(C258)+('Betriebsdaten II'!$T$26=0),\"\",C258/'Betriebsdaten II'!$T$26)","v":""},"","",""]
[null,null,null,null,null,null,null,"","","","",{"$f":"IF(ISBLANK(C259)+('Betriebsdaten II'!$T$26=0),\"\",C259/'Betriebsdaten II'!$T$26)","v":""},"","",""]
[null,null,null,null,null,null,null,"","","","",{"$f":"IF(ISBLANK(C260)+('Betriebsdaten II'!$T$26=0),\"\",C260/'Betriebsdaten II'!$T$26)","v":""},"","",""]
[null,null,null,null,null,null,null,"","","","",{"$f":"IF(ISBLANK(C261)+('Betriebsdaten II'!$T$26=0),\"\",C261/'Betriebsdaten II'!$T$26)","v":""},"","",""]
[null,null,null,null,null,null,null,"","","","",{"$f":"IF(ISBLANK(C262)+('Betriebsdaten II'!$T$26=0),\"\",C262/'Betriebsdaten II'!$T$26)","v":""},"","",""]
[null,null,null,null,null,null,null,"","","","",{"$f":"IF(ISBLANK(C263)+('Betriebsdaten II'!$T$26=0),\"\",C263/'Betriebsdaten II'!$T$26)","v":""},"","",""]
[null,null,null,null,null,null,null,"","","","",{"$f":"IF(ISBLANK(C264)+('Betriebsdaten II'!$T$26=0),\"\",C264/'Betriebsdaten II'!$T$26)","v":""},"","",""]
[null,null,null,null,null,null,null,"","","","",{"$f":"IF(ISBLANK(C265)+('Betriebsdaten II'!$T$26=0),\"\",C265/'Betriebsdaten II'!$T$26)","v":""},"","",""]
[null,null,null,null,null,null,null,{"$f":"IF(ISBLANK(A266),\"\",NetzvorlaufTemp)","v":""},{"$f":"IF(ISBLANK(A266),\"\",NetzrücklaufTemp)","v":""},"","",{"$f":"IF(ISBLANK(C266)+('Betriebsdaten II'!$T$26=0),\"\",C266/'Betriebsdaten II'!$T$26)","v":""},{"$f":"IF(ISERR(J266*L266),\"\",J266*L266)","v":""},"",{"$f":"IF(N266=\"\",\"\",IF(AND(N266<5,K266<30), \"Optimierungsmöglichkeiten prüfen!\",\"\"))","v":""}]
[null,null,null,null,null,null,null,"","",{"$f":"IF((SUM(E267)=0)+(SUM(C267)=0),\"\",E267/C267*1000)","v":""},{"$f":"IF(J267=\"\",\"\",C267/(4.189*978*E267/3600))","v":""},{"$f":"IF(ISBLANK(C267)+('Betriebsdaten II'!$T$26=0),\"\",C267/'Betriebsdaten II'!$T$26)","v":""},"",{"$f":"IF(ISERR(RANK(M267,$M$10:$M$1210)),\"\",RANK(M267,$M$10:$M$1210))","v":""},""]
[null,null,null,null,null,null,null,"","","","",{"$f":"IF(ISBLANK(C268)+('Betriebsdaten II'!$T$26=0),\"\",C268/'Betriebsdaten II'!$T$26)","v":""},"","",""]
[null,null,null,null,null,null,null,"","","","",{"$f":"IF(ISBLANK(C269)+('Betriebsdaten II'!$T$26=0),\"\",C269/'Betriebsdaten II'!$T$26)","v":""},"","",""]
[null,null,null,null,null,null,null,"","","","",{"$f":"IF(ISBLANK(C270)+('Betriebsdaten II'!$T$26=0),\"\",C270/'Betriebsdaten II'!$T$26)","v":""},"","",""]
[null,null,null,null,null,null,null,"","","","",{"$f":"IF(ISBLANK(C271)+('Betriebsdaten II'!$T$26=0),\"\",C271/'Betriebsdaten II'!$T$26)","v":""},"","",""]
[null,null,null,null,null,null,null,"","","","",{"$f":"IF(ISBLANK(C272)+('Betriebsdaten II'!$T$26=0),\"\",C272/'Betriebsdaten II'!$T$26)","v":""},"","",""]
[null,null,null,null,null,null,null,"","","","",{"$f":"IF(ISBLANK(C273)+('Betriebsdaten II'!$T$26=0),\"\",C273/'Betriebsdaten II'!$T$26)","v":""},"","",""]
[null,null,null,null,null,null,null,"","","","",{"$f":"IF(ISBLANK(C274)+('Betriebsdaten II'!$T$26=0),\"\",C274/'Betriebsdaten II'!$T$26)","v":""},"","",""]
[null,null,null,null,null,null,null,"","","","",{"$f":"IF(ISBLANK(C275)+('Betriebsdaten II'!$T$26=0),\"\",C275/'Betriebsdaten II'!$T$26)","v":""},"","",""]
[null,null,null,null,null,null,null,"","","","",{"$f":"IF(ISBLANK(C276)+('Betriebsdaten II'!$T$26=0),\"\",C276/'Betriebsdaten II'!$T$26)","v":""},"","",""]
[null,null,null,null,null,null,null,"","","","",{"$f":"IF(ISBLANK(C277)+('Betriebsdaten II'!$T$26=0),\"\",C277/'Betriebsdaten II'!$T$26)","v":""},"","",""]
[null,null,null,null,null,null,null,"","","","",{"$f":"IF(ISBLANK(C278)+('Betriebsdaten II'!$T$26=0),\"\",C278/'Betriebsdaten II'!$T$26)","v":""},"","",""]
[null,null,null,null,null,null,null,"","","","",{"$f":"IF(ISBLANK(C279)+('Betriebsdaten II'!$T$26=0),\"\",C279/'Betriebsdaten II'!$T$26)","v":""},"","",""]
[null,null,null,null,null,null,null,"","","","",{"$f":"IF(ISBLANK(C280)+('Betriebsdaten II'!$T$26=0),\"\",C280/'Betriebsdaten II'!$T$26)","v":""},"","",""]
[null,null,null,null,null,null,null,"","","","",{"$f":"IF(ISBLANK(C281)+('Betriebsdaten II'!$T$26=0),\"\",C281/'Betriebsdaten II'!$T$26)","v":""},"","",""]
[null,null,null,null,null,null,null,"","","","",{"$f":"IF(ISBLANK(C282)+('Betriebsdaten II'!$T$26=0),\"\",C282/'Betriebsdaten II'!$T$26)","v":""},"","",""]
[null,null,null,null,null,null,null,"","","","",{"$f":"IF(ISBLANK(C283)+('Betriebsdaten II'!$T$26=0),\"\",C283/'Betriebsdaten II'!$T$26)","v":""},"","",""]
[null,null,null,null,null,null,null,"","","","",{"$f":"IF(ISBLANK(C284)+('Betriebsdaten II'!$T$26=0),\"\",C284/'Betriebsdaten II'!$T$26)","v":""},"","",""]
[null,null,null,null,null,null,null,"","","","",{"$f":"IF(ISBLANK(C285)+('Betriebsdaten II'!$T$26=0),\"\",C285/'Betriebsdaten II'!$T$26)","v":""},"","",""]
[null,null,null,null,null,null,null,"","","","",{"$f":"IF(ISBLANK(C286)+('Betriebsdaten II'!$T$26=0),\"\",C286/'Betriebsdaten II'!$T$26)","v":""},"","",""]
[null,null,null,null,null,null,null,"","","","",{"$f":"IF(ISBLANK(C287)+('Betriebsdaten II'!$T$26=0),\"\",C287/'Betriebsdaten II'!$T$26)","v":""},"","",""]
[null,null,null,null,null,null,null,"","","","",{"$f":"IF(ISBLANK(C288)+('Betriebsdaten II'!$T$26=0),\"\",C288/'Betriebsdaten II'!$T$26)","v":""},"","",""]
[null,null,null,null,null,null,null,"","","","",{"$f":"IF(ISBLANK(C289)+('Betriebsdaten II'!$T$26=0),\"\",C289/'Betriebsdaten II'!$T$26)","v":""},"","",""]
[null,null,null,null,null,null,null,"","","","",{"$f":"IF(ISBLANK(C290)+('Betriebsdaten II'!$T$26=0),\"\",C290/'Betriebsdaten II'!$T$26)","v":""},"","",""]
[null,null,null,null,null,null,null,"","","","",{"$f":"IF(ISBLANK(C291)+('Betriebsdaten II'!$T$26=0),\"\",C291/'Betriebsdaten II'!$T$26)","v":""},"","",""]
[null,null,null,null,null,null,null,"","","","",{"$f":"IF(ISBLANK(C292)+('Betriebsdaten II'!$T$26=0),\"\",C292/'Betriebsdaten II'!$T$26)","v":""},"","",""]
[null,null,null,null,null,null,null,"","","","",{"$f":"IF(ISBLANK(C293)+('Betriebsdaten II'!$T$26=0),\"\",C293/'Betriebsdaten II'!$T$26)","v":""},"","",""]
[null,null,null,null,null,null,null,"","","","",{"$f":"IF(ISBLANK(C294)+('Betriebsdaten II'!$T$26=0),\"\",C294/'Betriebsdaten II'!$T$26)","v":""},"","",""]
[null,null,null,null,null,null,null,"","","","",{"$f":"IF(ISBLANK(C295)+('Betriebsdaten II'!$T$26=0),\"\",C295/'Betriebsdaten II'!$T$26)","v":""},"","",""]
[null,null,null,null,null,null,null,"","","","",{"$f":"IF(ISBLANK(C296)+('Betriebsdaten II'!$T$26=0),\"\",C296/'Betriebsdaten II'!$T$26)","v":""},"","",""]
[null,null,null,null,null,null,null,"","","","",{"$f":"IF(ISBLANK(C297)+('Betriebsdaten II'!$T$26=0),\"\",C297/'Betriebsdaten II'!$T$26)","v":""},"","",""]
[null,null,null,null,null,null,null,"","","","",{"$f":"IF(ISBLANK(C298)+('Betriebsdaten II'!$T$26=0),\"\",C298/'Betriebsdaten II'!$T$26)","v":""},"","",""]
[null,null,null,null,null,null,null,"","","","",{"$f":"IF(ISBLANK(C299)+('Betriebsdaten II'!$T$26=0),\"\",C299/'Betriebsdaten II'!$T$26)","v":""},"","",""]
[null,null,null,null,null,null,null,"","","","",{"$f":"IF(ISBLANK(C300)+('Betriebsdaten II'!$T$26=0),\"\",C300/'Betriebsdaten II'!$T$26)","v":""},"","",""]
[null,null,null,null,null,null,null,"","","","",{"$f":"IF(ISBLANK(C301)+('Betriebsdaten II'!$T$26=0),\"\",C301/'Betriebsdaten II'!$T$26)","v":""},"","",""]
[null,null,null,null,null,null,null,"","","","",{"$f":"IF(ISBLANK(C302)+('Betriebsdaten II'!$T$26=0),\"\",C302/'Betriebsdaten II'!$T$26)","v":""},"","",""]
[null,null,null,null,null,null,null,"","","","",{"$f":"IF(ISBLANK(C303)+('Betriebsdaten II'!$T$26=0),\"\",C303/'Betriebsdaten II'!$T$26)","v":""},"","",""]
[null,null,null,null,null,null,null,"","","","",{"$f":"IF(ISBLANK(C304)+('Betriebsdaten II'!$T$26=0),\"\",C304/'Betriebsdaten II'!$T$26)","v":""},"","",""]
[null,null,null,null,null,null,null,"","","","",{"$f":"IF(ISBLANK(C305)+('Betriebsdaten II'!$T$26=0),\"\",C305/'Betriebsdaten II'!$T$26)","v":""},"","",""]
[null,null,null,null,null,null,null,"","","","",{"$f":"IF(ISBLANK(C306)+('Betriebsdaten II'!$T$26=0),\"\",C306/'Betriebsdaten II'!$T$26)","v":""},"","",""]
[null,null,null,null,null,null,null,"","","","",{"$f":"IF(ISBLANK(C307)+('Betriebsdaten II'!$T$26=0),\"\",C307/'Betriebsdaten II'!$T$26)","v":""},"","",""]
[null,null,null,null,null,null,null,"","","","",{"$f":"IF(ISBLANK(C308)+('Betriebsdaten II'!$T$26=0),\"\",C308/'Betriebsdaten II'!$T$26)","v":""},"","",""]
[null,null,null,null,null,null,null,"","","","",{"$f":"IF(ISBLANK(C309)+('Betriebsdaten II'!$T$26=0),\"\",C309/'Betriebsdaten II'!$T$26)","v":""},"","",""]
[null,null,null,null,null,null,null,"","","","",{"$f":"IF(ISBLANK(C310)+('Betriebsdaten II'!$T$26=0),\"\",C310/'Betriebsdaten II'!$T$26)","v":""},"","",""]
[null,null,null,null,null,null,null,"","","","",{"$f":"IF(ISBLANK(C311)+('Betriebsdaten II'!$T$26=0),\"\",C311/'Betriebsdaten II'!$T$26)","v":""},"","",""]
[null,null,null,null,null,null,null,"","","","",{"$f":"IF(ISBLANK(C312)+('Betriebsdaten II'!$T$26=0),\"\",C312/'Betriebsdaten II'!$T$26)","v":""},"","",""]
[null,null,null,null,null,null,null,"","","","",{"$f":"IF(ISBLANK(C313)+('Betriebsdaten II'!$T$26=0),\"\",C313/'Betriebsdaten II'!$T$26)","v":""},"","",""]
[null,null,null,null,null,null,null,"","","","",{"$f":"IF(ISBLANK(C314)+('Betriebsdaten II'!$T$26=0),\"\",C314/'Betriebsdaten II'!$T$26)","v":""},"","",""]
[null,null,null,null,null,null,null,"","","","",{"$f":"IF(ISBLANK(C315)+('Betriebsdaten II'!$T$26=0),\"\",C315/'Betriebsdaten II'!$T$26)","v":""},"","",""]
[null,null,null,null,null,null,null,"","","","",{"$f":"IF(ISBLANK(C316)+('Betriebsdaten II'!$T$26=0),\"\",C316/'Betriebsdaten II'!$T$26)","v":""},"","",""]
[null,null,null,null,null,null,null,"","","","",{"$f":"IF(ISBLANK(C317)+('Betriebsdaten II'!$T$26=0),\"\",C317/'Betriebsdaten II'!$T$26)","v":""},"","",""]
[null,null,null,null,null,null,null,"","","","",{"$f":"IF(ISBLANK(C318)+('Betriebsdaten II'!$T$26=0),\"\",C318/'Betriebsdaten II'!$T$26)","v":""},"","",""]
[null,null,null,null,null,null,null,"","","","",{"$f":"IF(ISBLANK(C319)+('Betriebsdaten II'!$T$26=0),\"\",C319/'Betriebsdaten II'!$T$26)","v":""},"","",""]
[null,null,null,null,null,null,null,"","","","",{"$f":"IF(ISBLANK(C320)+('Betriebsdaten II'!$T$26=0),\"\",C320/'Betriebsdaten II'!$T$26)","v":""},"","",""]
[null,null,null,null,null,null,null,"","","","",{"$f":"IF(ISBLANK(C321)+('Betriebsdaten II'!$T$26=0),\"\",C321/'Betriebsdaten II'!$T$26)","v":""},"","",""]
[null,null,null,null,null,null,null,"","","","",{"$f":"IF(ISBLANK(C322)+('Betriebsdaten II'!$T$26=0),\"\",C322/'Betriebsdaten II'!$T$26)","v":""},"","",""]
[null,null,null,null,null,null,null,"","","","",{"$f":"IF(ISBLANK(C323)+('Betriebsdaten II'!$T$26=0),\"\",C323/'Betriebsdaten II'!$T$26)","v":""},"","",""]
[null,null,null,null,null,null,null,"","","","",{"$f":"IF(ISBLANK(C324)+('Betriebsdaten II'!$T$26=0),\"\",C324/'Betriebsdaten II'!$T$26)","v":""},"","",""]
[null,null,null,null,null,null,null,"","","","",{"$f":"IF(ISBLANK(C325)+('Betriebsdaten II'!$T$26=0),\"\",C325/'Betriebsdaten II'!$T$26)","v":""},"","",""]
[null,null,null,null,null,null,null,"","","","",{"$f":"IF(ISBLANK(C326)+('Betriebsdaten II'!$T$26=0),\"\",C326/'Betriebsdaten II'!$T$26)","v":""},"","",""]
[null,null,null,null,null,null,null,"","","","",{"$f":"IF(ISBLANK(C327)+('Betriebsdaten II'!$T$26=0),\"\",C327/'Betriebsdaten II'!$T$26)","v":""},"","",""]
[null,null,null,null,null,null,null,"","","","",{"$f":"IF(ISBLANK(C328)+('Betriebsdaten II'!$T$26=0),\"\",C328/'Betriebsdaten II'!$T$26)","v":""},"","",""]
[null,null,null,null,null,null,null,"","","","",{"$f":"IF(ISBLANK(C329)+('Betriebsdaten II'!$T$26=0),\"\",C329/'Betriebsdaten II'!$T$26)","v":""},"","",""]
[null,null,null,null,null,null,null,{"$f":"IF(ISBLANK(A330),\"\",NetzvorlaufTemp)","v":""},{"$f":"IF(ISBLANK(A330),\"\",NetzrücklaufTemp)","v":""},"","",{"$f":"IF(ISBLANK(C330)+('Betriebsdaten II'!$T$26=0),\"\",C330/'Betriebsdaten II'!$T$26)","v":""},{"$f":"IF(ISERR(J330*L330),\"\",J330*L330)","v":""},"",{"$f":"IF(N330=\"\",\"\",IF(AND(N330<5,K330<30), \"Optimierungsmöglichkeiten prüfen!\",\"\"))","v":""}]
[null,null,null,null,null,null,null,"","",{"$f":"IF((SUM(E331)=0)+(SUM(C331)=0),\"\",E331/C331*1000)","v":""},{"$f":"IF(J331=\"\",\"\",C331/(4.189*978*E331/3600))","v":""},{"$f":"IF(ISBLANK(C331)+('Betriebsdaten II'!$T$26=0),\"\",C331/'Betriebsdaten II'!$T$26)","v":""},"",{"$f":"IF(ISERR(RANK(M331,$M$10:$M$1210)),\"\",RANK(M331,$M$10:$M$1210))","v":""},""]
[null,null,null,null,null,null,null,"","","","",{"$f":"IF(ISBLANK(C332)+('Betriebsdaten II'!$T$26=0),\"\",C332/'Betriebsdaten II'!$T$26)","v":""},"","",""]
[null,null,null,null,null,null,null,"","","","",{"$f":"IF(ISBLANK(C333)+('Betriebsdaten II'!$T$26=0),\"\",C333/'Betriebsdaten II'!$T$26)","v":""},"","",""]
[null,null,null,null,null,null,null,"","","","",{"$f":"IF(ISBLANK(C334)+('Betriebsdaten II'!$T$26=0),\"\",C334/'Betriebsdaten II'!$T$26)","v":""},"","",""]
[null,null,null,null,null,null,null,"","","","",{"$f":"IF(ISBLANK(C335)+('Betriebsdaten II'!$T$26=0),\"\",C335/'Betriebsdaten II'!$T$26)","v":""},"","",""]
[null,null,null,null,null,null,null,"","","","",{"$f":"IF(ISBLANK(C336)+('Betriebsdaten II'!$T$26=0),\"\",C336/'Betriebsdaten II'!$T$26)","v":""},"","",""]
[null,null,null,null,null,null,null,"","","","",{"$f":"IF(ISBLANK(C337)+('Betriebsdaten II'!$T$26=0),\"\",C337/'Betriebsdaten II'!$T$26)","v":""},"","",""]
[null,null,null,null,null,null,null,"","","","",{"$f":"IF(ISBLANK(C338)+('Betriebsdaten II'!$T$26=0),\"\",C338/'Betriebsdaten II'!$T$26)","v":""},"","",""]
[null,null,null,null,null,null,null,"","","","",{"$f":"IF(ISBLANK(C339)+('Betriebsdaten II'!$T$26=0),\"\",C339/'Betriebsdaten II'!$T$26)","v":""},"","",""]
[null,null,null,null,null,null,null,"","","","",{"$f":"IF(ISBLANK(C340)+('Betriebsdaten II'!$T$26=0),\"\",C340/'Betriebsdaten II'!$T$26)","v":""},"","",""]
[null,null,null,null,null,null,null,"","","","",{"$f":"IF(ISBLANK(C341)+('Betriebsdaten II'!$T$26=0),\"\",C341/'Betriebsdaten II'!$T$26)","v":""},"","",""]
[null,null,null,null,null,null,null,"","","","",{"$f":"IF(ISBLANK(C342)+('Betriebsdaten II'!$T$26=0),\"\",C342/'Betriebsdaten II'!$T$26)","v":""},"","",""]
[null,null,null,null,null,null,null,"","","","",{"$f":"IF(ISBLANK(C343)+('Betriebsdaten II'!$T$26=0),\"\",C343/'Betriebsdaten II'!$T$26)","v":""},"","",""]
[null,null,null,null,null,null,null,"","","","",{"$f":"IF(ISBLANK(C344)+('Betriebsdaten II'!$T$26=0),\"\",C344/'Betriebsdaten II'!$T$26)","v":""},"","",""]
[null,null,null,null,null,null,null,"","","","",{"$f":"IF(ISBLANK(C345)+('Betriebsdaten II'!$T$26=0),\"\",C345/'Betriebsdaten II'!$T$26)","v":""},"","",""]
[null,null,null,null,null,null,null,"","","","",{"$f":"IF(ISBLANK(C346)+('Betriebsdaten II'!$T$26=0),\"\",C346/'Betriebsdaten II'!$T$26)","v":""},"","",""]
[null,null,null,null,null,null,null,"","","","",{"$f":"IF(ISBLANK(C347)+('Betriebsdaten II'!$T$26=0),\"\",C347/'Betriebsdaten II'!$T$26)","v":""},"","",""]
[null,null,null,null,null,null,null,"","","","",{"$f":"IF(ISBLANK(C348)+('Betriebsdaten II'!$T$26=0),\"\",C348/'Betriebsdaten II'!$T$26)","v":""},"","",""]
[null,null,null,null,null,null,null,"","","","",{"$f":"IF(ISBLANK(C349)+('Betriebsdaten II'!$T$26=0),\"\",C349/'Betriebsdaten II'!$T$26)","v":""},"","",""]
[null,null,null,null,null,null,null,"","","","",{"$f":"IF(ISBLANK(C350)+('Betriebsdaten II'!$T$26=0),\"\",C350/'Betriebsdaten II'!$T$26)","v":""},"","",""]
[null,null,null,null,null,null,null,"","","","",{"$f":"IF(ISBLANK(C351)+('Betriebsdaten II'!$T$26=0),\"\",C351/'Betriebsdaten II'!$T$26)","v":""},"","",""]
[null,null,null,null,null,null,null,"","","","",{"$f":"IF(ISBLANK(C352)+('Betriebsdaten II'!$T$26=0),\"\",C352/'Betriebsdaten II'!$T$26)","v":""},"","",""]
[null,null,null,null,null,null,null,"","","","",{"$f":"IF(ISBLANK(C353)+('Betriebsdaten II'!$T$26=0),\"\",C353/'Betriebsdaten II'!$T$26)","v":""},"","",""]
[null,null,null,null,null,null,null,"","","","",{"$f":"IF(ISBLANK(C354)+('Betriebsdaten II'!$T$26=0),\"\",C354/'Betriebsdaten II'!$T$26)","v":""},"","",""]
[null,null,null,null,null,null,null,"","","","",{"$f":"IF(ISBLANK(C355)+('Betriebsdaten II'!$T$26=0),\"\",C355/'Betriebsdaten II'!$T$26)","v":""},"","",""]
[null,null,null,null,null,null,null,"","","","",{"$f":"IF(ISBLANK(C356)+('Betriebsdaten II'!$T$26=0),\"\",C356/'Betriebsdaten II'!$T$26)","v":""},"","",""]
[null,null,null,null,null,null,null,"","","","",{"$f":"IF(ISBLANK(C357)+('Betriebsdaten II'!$T$26=0),\"\",C357/'Betriebsdaten II'!$T$26)","v":""},"","",""]
[null,null,null,null,null,null,null,"","","","",{"$f":"IF(ISBLANK(C358)+('Betriebsdaten II'!$T$26=0),\"\",C358/'Betriebsdaten II'!$T$26)","v":""},"","",""]
[null,null,null,null,null,null,null,"","","","",{"$f":"IF(ISBLANK(C359)+('Betriebsdaten II'!$T$26=0),\"\",C359/'Betriebsdaten II'!$T$26)","v":""},"","",""]
[null,null,null,null,null,null,null,"","","","",{"$f":"IF(ISBLANK(C360)+('Betriebsdaten II'!$T$26=0),\"\",C360/'Betriebsdaten II'!$T$26)","v":""},"","",""]
[null,null,null,null,null,null,null,"","","","",{"$f":"IF(ISBLANK(C361)+('Betriebsdaten II'!$T$26=0),\"\",C361/'Betriebsdaten II'!$T$26)","v":""},"","",""]
[null,null,null,null,null,null,null,"","","","",{"$f":"IF(ISBLANK(C362)+('Betriebsdaten II'!$T$26=0),\"\",C362/'Betriebsdaten II'!$T$26)","v":""},"","",""]
[null,null,null,null,null,null,null,"","","","",{"$f":"IF(ISBLANK(C363)+('Betriebsdaten II'!$T$26=0),\"\",C363/'Betriebsdaten II'!$T$26)","v":""},"","",""]
[null,null,null,null,null,null,null,"","","","",{"$f":"IF(ISBLANK(C364)+('Betriebsdaten II'!$T$26=0),\"\",C364/'Betriebsdaten II'!$T$26)","v":""},"","",""]
[null,null,null,null,null,null,null,"","","","",{"$f":"IF(ISBLANK(C365)+('Betriebsdaten II'!$T$26=0),\"\",C365/'Betriebsdaten II'!$T$26)","v":""},"","",""]
[null,null,null,null,null,null,null,"","","","",{"$f":"IF(ISBLANK(C366)+('Betriebsdaten II'!$T$26=0),\"\",C366/'Betriebsdaten II'!$T$26)","v":""},"","",""]
[null,null,null,null,null,null,null,"","","","",{"$f":"IF(ISBLANK(C367)+('Betriebsdaten II'!$T$26=0),\"\",C367/'Betriebsdaten II'!$T$26)","v":""},"","",""]
[null,null,null,null,null,null,null,"","","","",{"$f":"IF(ISBLANK(C368)+('Betriebsdaten II'!$T$26=0),\"\",C368/'Betriebsdaten II'!$T$26)","v":""},"","",""]
[null,null,null,null,null,null,null,"","","","",{"$f":"IF(ISBLANK(C369)+('Betriebsdaten II'!$T$26=0),\"\",C369/'Betriebsdaten II'!$T$26)","v":""},"","",""]
[null,null,null,null,null,null,null,"","","","",{"$f":"IF(ISBLANK(C370)+('Betriebsdaten II'!$T$26=0),\"\",C370/'Betriebsdaten II'!$T$26)","v":""},"","",""]
[null,null,null,null,null,null,null,"","","","",{"$f":"IF(ISBLANK(C371)+('Betriebsdaten II'!$T$26=0),\"\",C371/'Betriebsdaten II'!$T$26)","v":""},"","",""]
[null,null,null,null,null,null,null,"","","","",{"$f":"IF(ISBLANK(C372)+('Betriebsdaten II'!$T$26=0),\"\",C372/'Betriebsdaten II'!$T$26)","v":""},"","",""]
[null,null,null,null,null,null,null,"","","","",{"$f":"IF(ISBLANK(C373)+('Betriebsdaten II'!$T$26=0),\"\",C373/'Betriebsdaten II'!$T$26)","v":""},"","",""]
[null,null,null,null,null,null,null,"","","","",{"$f":"IF(ISBLANK(C374)+('Betriebsdaten II'!$T$26=0),\"\",C374/'Betriebsdaten II'!$T$26)","v":""},"","",""]
[null,null,null,null,null,null,null,"","","","",{"$f":"IF(ISBLANK(C375)+('Betriebsdaten II'!$T$26=0),\"\",C375/'Betriebsdaten II'!$T$26)","v":""},"","",""]
[null,null,null,null,null,null,null,"","","","",{"$f":"IF(ISBLANK(C376)+('Betriebsdaten II'!$T$26=0),\"\",C376/'Betriebsdaten II'!$T$26)","v":""},"","",""]
[null,null,null,null,null,null,null,"","","","",{"$f":"IF(ISBLANK(C377)+('Betriebsdaten II'!$T$26=0),\"\",C377/'Betriebsdaten II'!$T$26)","v":""},"","",""]
[null,null,null,null,null,null,null,"","","","",{"$f":"IF(ISBLANK(C378)+('Betriebsdaten II'!$T$26=0),\"\",C378/'Betriebsdaten II'!$T$26)","v":""},"","",""]
[null,null,null,null,null,null,null,"","","","",{"$f":"IF(ISBLANK(C379)+('Betriebsdaten II'!$T$26=0),\"\",C379/'Betriebsdaten II'!$T$26)","v":""},"","",""]
[null,null,null,null,null,null,null,"","","","",{"$f":"IF(ISBLANK(C380)+('Betriebsdaten II'!$T$26=0),\"\",C380/'Betriebsdaten II'!$T$26)","v":""},"","",""]
[null,null,null,null,null,null,null,"","","","",{"$f":"IF(ISBLANK(C381)+('Betriebsdaten II'!$T$26=0),\"\",C381/'Betriebsdaten II'!$T$26)","v":""},"","",""]
[null,null,null,null,null,null,null,"","","","",{"$f":"IF(ISBLANK(C382)+('Betriebsdaten II'!$T$26=0),\"\",C382/'Betriebsdaten II'!$T$26)","v":""},"","",""]
[null,null,null,null,null,null,null,"","","","",{"$f":"IF(ISBLANK(C383)+('Betriebsdaten II'!$T$26=0),\"\",C383/'Betriebsdaten II'!$T$26)","v":""},"","",""]
[null,null,null,null,null,null,null,"","","","",{"$f":"IF(ISBLANK(C384)+('Betriebsdaten II'!$T$26=0),\"\",C384/'Betriebsdaten II'!$T$26)","v":""},"","",""]
[null,null,null,null,null,null,null,"","","","",{"$f":"IF(ISBLANK(C385)+('Betriebsdaten II'!$T$26=0),\"\",C385/'Betriebsdaten II'!$T$26)","v":""},"","",""]
[null,null,null,null,null,null,null,"","","","",{"$f":"IF(ISBLANK(C386)+('Betriebsdaten II'!$T$26=0),\"\",C386/'Betriebsdaten II'!$T$26)","v":""},"","",""]
[null,null,null,null,null,null,null,"","","","",{"$f":"IF(ISBLANK(C387)+('Betriebsdaten II'!$T$26=0),\"\",C387/'Betriebsdaten II'!$T$26)","v":""},"","",""]
[null,null,null,null,null,null,null,"","","","",{"$f":"IF(ISBLANK(C388)+('Betriebsdaten II'!$T$26=0),\"\",C388/'Betriebsdaten II'!$T$26)","v":""},"","",""]
[null,null,null,null,null,null,null,"","","","",{"$f":"IF(ISBLANK(C389)+('Betriebsdaten II'!$T$26=0),\"\",C389/'Betriebsdaten II'!$T$26)","v":""},"","",""]
[null,null,null,null,null,null,null,"","","","",{"$f":"IF(ISBLANK(C390)+('Betriebsdaten II'!$T$26=0),\"\",C390/'Betriebsdaten II'!$T$26)","v":""},"","",""]
[null,null,null,null,null,null,null,"","","","",{"$f":"IF(ISBLANK(C391)+('Betriebsdaten II'!$T$26=0),\"\",C391/'Betriebsdaten II'!$T$26)","v":""},"","",""]
[null,null,null,null,null,null,null,"","","","",{"$f":"IF(ISBLANK(C392)+('Betriebsdaten II'!$T$26=0),\"\",C392/'Betriebsdaten II'!$T$26)","v":""},"","",""]
[null,null,null,null,null,null,null,"","","","",{"$f":"IF(ISBLANK(C393)+('Betriebsdaten II'!$T$26=0),\"\",C393/'Betriebsdaten II'!$T$26)","v":""},"","",""]
[null,null,null,null,null,null,null,{"$f":"IF(ISBLANK(A394),\"\",NetzvorlaufTemp)","v":""},{"$f":"IF(ISBLANK(A394),\"\",NetzrücklaufTemp)","v":""},"","",{"$f":"IF(ISBLANK(C394)+('Betriebsdaten II'!$T$26=0),\"\",C394/'Betriebsdaten II'!$T$26)","v":""},{"$f":"IF(ISERR(J394*L394),\"\",J394*L394)","v":""},"",{"$f":"IF(N394=\"\",\"\",IF(AND(N394<5,K394<30), \"Optimierungsmöglichkeiten prüfen!\",\"\"))","v":""}]
[null,null,null,null,null,null,null,"","",{"$f":"IF((SUM(E395)=0)+(SUM(C395)=0),\"\",E395/C395*1000)","v":""},{"$f":"IF(J395=\"\",\"\",C395/(4.189*978*E395/3600))","v":""},{"$f":"IF(ISBLANK(C395)+('Betriebsdaten II'!$T$26=0),\"\",C395/'Betriebsdaten II'!$T$26)","v":""},"",{"$f":"IF(ISERR(RANK(M395,$M$10:$M$1210)),\"\",RANK(M395,$M$10:$M$1210))","v":""},""]
[null,null,null,null,null,null,null,"","","","",{"$f":"IF(ISBLANK(C396)+('Betriebsdaten II'!$T$26=0),\"\",C396/'Betriebsdaten II'!$T$26)","v":""},"","",""]
[null,null,null,null,null,null,null,"","","","",{"$f":"IF(ISBLANK(C397)+('Betriebsdaten II'!$T$26=0),\"\",C397/'Betriebsdaten II'!$T$26)","v":""},"","",""]
[null,null,null,null,null,null,null,"","","","",{"$f":"IF(ISBLANK(C398)+('Betriebsdaten II'!$T$26=0),\"\",C398/'Betriebsdaten II'!$T$26)","v":""},"","",""]
[null,null,null,null,null,null,null,"","","","",{"$f":"IF(ISBLANK(C399)+('Betriebsdaten II'!$T$26=0),\"\",C399/'Betriebsdaten II'!$T$26)","v":""},"","",""]
[null,null,null,null,null,null,null,"","","","",{"$f":"IF(ISBLANK(C400)+('Betriebsdaten II'!$T$26=0),\"\",C400/'Betriebsdaten II'!$T$26)","v":""},"","",""]
[null,null,null,null,null,null,null,"","","","",{"$f":"IF(ISBLANK(C401)+('Betriebsdaten II'!$T$26=0),\"\",C401/'Betriebsdaten II'!$T$26)","v":""},"","",""]
[null,null,null,null,null,null,null,"","","","",{"$f":"IF(ISBLANK(C402)+('Betriebsdaten II'!$T$26=0),\"\",C402/'Betriebsdaten II'!$T$26)","v":""},"","",""]
[null,null,null,null,null,null,null,"","","","",{"$f":"IF(ISBLANK(C403)+('Betriebsdaten II'!$T$26=0),\"\",C403/'Betriebsdaten II'!$T$26)","v":""},"","",""]
[null,null,null,null,null,null,null,"","","","",{"$f":"IF(ISBLANK(C404)+('Betriebsdaten II'!$T$26=0),\"\",C404/'Betriebsdaten II'!$T$26)","v":""},"","",""]
[null,null,null,null,null,null,null,"","","","",{"$f":"IF(ISBLANK(C405)+('Betriebsdaten II'!$T$26=0),\"\",C405/'Betriebsdaten II'!$T$26)","v":""},"","",""]
[null,null,null,null,null,null,null,"","","","",{"$f":"IF(ISBLANK(C406)+('Betriebsdaten II'!$T$26=0),\"\",C406/'Betriebsdaten II'!$T$26)","v":""},"","",""]
[null,null,null,null,null,null,null,"","","","",{"$f":"IF(ISBLANK(C407)+('Betriebsdaten II'!$T$26=0),\"\",C407/'Betriebsdaten II'!$T$26)","v":""},"","",""]
[null,null,null,null,null,null,null,"","","","",{"$f":"IF(ISBLANK(C408)+('Betriebsdaten II'!$T$26=0),\"\",C408/'Betriebsdaten II'!$T$26)","v":""},"","",""]
[null,null,null,null,null,null,null,"","","","",{"$f":"IF(ISBLANK(C409)+('Betriebsdaten II'!$T$26=0),\"\",C409/'Betriebsdaten II'!$T$26)","v":""},"","",""]
[null,null,null,null,null,null,null,"","","","",{"$f":"IF(ISBLANK(C410)+('Betriebsdaten II'!$T$26=0),\"\",C410/'Betriebsdaten II'!$T$26)","v":""},"","",""]
[null,null,null,null,null,null,null,"","","","",{"$f":"IF(ISBLANK(C411)+('Betriebsdaten II'!$T$26=0),\"\",C411/'Betriebsdaten II'!$T$26)","v":""},"","",""]
[null,null,null,null,null,null,null,"","","","",{"$f":"IF(ISBLANK(C412)+('Betriebsdaten II'!$T$26=0),\"\",C412/'Betriebsdaten II'!$T$26)","v":""},"","",""]
[null,null,null,null,null,null,null,"","","","",{"$f":"IF(ISBLANK(C413)+('Betriebsdaten II'!$T$26=0),\"\",C413/'Betriebsdaten II'!$T$26)","v":""},"","",""]
[null,null,null,null,null,null,null,"","","","",{"$f":"IF(ISBLANK(C414)+('Betriebsdaten II'!$T$26=0),\"\",C414/'Betriebsdaten II'!$T$26)","v":""},"","",""]
[null,null,null,null,null,null,null,"","","","",{"$f":"IF(ISBLANK(C415)+('Betriebsdaten II'!$T$26=0),\"\",C415/'Betriebsdaten II'!$T$26)","v":""},"","",""]
[null,null,null,null,null,null,null,"","","","",{"$f":"IF(ISBLANK(C416)+('Betriebsdaten II'!$T$26=0),\"\",C416/'Betriebsdaten II'!$T$26)","v":""},"","",""]
[null,null,null,null,null,null,null,"","","","",{"$f":"IF(ISBLANK(C417)+('Betriebsdaten II'!$T$26=0),\"\",C417/'Betriebsdaten II'!$T$26)","v":""},"","",""]
[null,null,null,null,null,null,null,"","","","",{"$f":"IF(ISBLANK(C418)+('Betriebsdaten II'!$T$26=0),\"\",C418/'Betriebsdaten II'!$T$26)","v":""},"","",""]
[null,null,null,null,null,null,null,"","","","",{"$f":"IF(ISBLANK(C419)+('Betriebsdaten II'!$T$26=0),\"\",C419/'Betriebsdaten II'!$T$26)","v":""},"","",""]
[null,null,null,null,null,null,null,"","","","",{"$f":"IF(ISBLANK(C420)+('Betriebsdaten II'!$T$26=0),\"\",C420/'Betriebsdaten II'!$T$26)","v":""},"","",""]
[null,null,null,null,null,null,null,"","","","",{"$f":"IF(ISBLANK(C421)+('Betriebsdaten II'!$T$26=0),\"\",C421/'Betriebsdaten II'!$T$26)","v":""},"","",""]
[null,null,null,null,null,null,null,"","","","",{"$f":"IF(ISBLANK(C422)+('Betriebsdaten II'!$T$26=0),\"\",C422/'Betriebsdaten II'!$T$26)","v":""},"","",""]
[null,null,null,null,null,null,null,"","","","",{"$f":"IF(ISBLANK(C423)+('Betriebsdaten II'!$T$26=0),\"\",C423/'Betriebsdaten II'!$T$26)","v":""},"","",""]
[null,null,null,null,null,null,null,"","","","",{"$f":"IF(ISBLANK(C424)+('Betriebsdaten II'!$T$26=0),\"\",C424/'Betriebsdaten II'!$T$26)","v":""},"","",""]
[null,null,null,null,null,null,null,"","","","",{"$f":"IF(ISBLANK(C425)+('Betriebsdaten II'!$T$26=0),\"\",C425/'Betriebsdaten II'!$T$26)","v":""},"","",""]
[null,null,null,null,null,null,null,"","","","",{"$f":"IF(ISBLANK(C426)+('Betriebsdaten II'!$T$26=0),\"\",C426/'Betriebsdaten II'!$T$26)","v":""},"","",""]
[null,null,null,null,null,null,null,"","","","",{"$f":"IF(ISBLANK(C427)+('Betriebsdaten II'!$T$26=0),\"\",C427/'Betriebsdaten II'!$T$26)","v":""},"","",""]
[null,null,null,null,null,null,null,"","","","",{"$f":"IF(ISBLANK(C428)+('Betriebsdaten II'!$T$26=0),\"\",C428/'Betriebsdaten II'!$T$26)","v":""},"","",""]
[null,null,null,null,null,null,null,"","","","",{"$f":"IF(ISBLANK(C429)+('Betriebsdaten II'!$T$26=0),\"\",C429/'Betriebsdaten II'!$T$26)","v":""},"","",""]
[null,null,null,null,null,null,null,"","","","",{"$f":"IF(ISBLANK(C430)+('Betriebsdaten II'!$T$26=0),\"\",C430/'Betriebsdaten II'!$T$26)","v":""},"","",""]
[null,null,null,null,null,null,null,"","","","",{"$f":"IF(ISBLANK(C431)+('Betriebsdaten II'!$T$26=0),\"\",C431/'Betriebsdaten II'!$T$26)","v":""},"","",""]
[null,null,null,null,null,null,null,"","","","",{"$f":"IF(ISBLANK(C432)+('Betriebsdaten II'!$T$26=0),\"\",C432/'Betriebsdaten II'!$T$26)","v":""},"","",""]
[null,null,null,null,null,null,null,"","","","",{"$f":"IF(ISBLANK(C433)+('Betriebsdaten II'!$T$26=0),\"\",C433/'Betriebsdaten II'!$T$26)","v":""},"","",""]
[null,null,null,null,null,null,null,"","","","",{"$f":"IF(ISBLANK(C434)+('Betriebsdaten II'!$T$26=0),\"\",C434/'Betriebsdaten II'!$T$26)","v":""},"","",""]
[null,null,null,null,null,null,null,"","","","",{"$f":"IF(ISBLANK(C435)+('Betriebsdaten II'!$T$26=0),\"\",C435/'Betriebsdaten II'!$T$26)","v":""},"","",""]
[null,null,null,null,null,null,null,"","","","",{"$f":"IF(ISBLANK(C436)+('Betriebsdaten II'!$T$26=0),\"\",C436/'Betriebsdaten II'!$T$26)","v":""},"","",""]
[null,null,null,null,null,null,null,"","","","",{"$f":"IF(ISBLANK(C437)+('Betriebsdaten II'!$T$26=0),\"\",C437/'Betriebsdaten II'!$T$26)","v":""},"","",""]
[null,null,null,null,null,null,null,"","","","",{"$f":"IF(ISBLANK(C438)+('Betriebsdaten II'!$T$26=0),\"\",C438/'Betriebsdaten II'!$T$26)","v":""},"","",""]
[null,null,null,null,null,null,null,"","","","",{"$f":"IF(ISBLANK(C439)+('Betriebsdaten II'!$T$26=0),\"\",C439/'Betriebsdaten II'!$T$26)","v":""},"","",""]
[null,null,null,null,null,null,null,"","","","",{"$f":"IF(ISBLANK(C440)+('Betriebsdaten II'!$T$26=0),\"\",C440/'Betriebsdaten II'!$T$26)","v":""},"","",""]
[null,null,null,null,null,null,null,"","","","",{"$f":"IF(ISBLANK(C441)+('Betriebsdaten II'!$T$26=0),\"\",C441/'Betriebsdaten II'!$T$26)","v":""},"","",""]
[null,null,null,null,null,null,null,"","","","",{"$f":"IF(ISBLANK(C442)+('Betriebsdaten II'!$T$26=0),\"\",C442/'Betriebsdaten II'!$T$26)","v":""},"","",""]
[null,null,null,null,null,null,null,"","","","",{"$f":"IF(ISBLANK(C443)+('Betriebsdaten II'!$T$26=0),\"\",C443/'Betriebsdaten II'!$T$26)","v":""},"","",""]
[null,null,null,null,null,null,null,"","","","",{"$f":"IF(ISBLANK(C444)+('Betriebsdaten II'!$T$26=0),\"\",C444/'Betriebsdaten II'!$T$26)","v":""},"","",""]
[null,null,null,null,null,null,null,"","","","",{"$f":"IF(ISBLANK(C445)+('Betriebsdaten II'!$T$26=0),\"\",C445/'Betriebsdaten II'!$T$26)","v":""},"","",""]
[null,null,null,null,null,null,null,"","","","",{"$f":"IF(ISBLANK(C446)+('Betriebsdaten II'!$T$26=0),\"\",C446/'Betriebsdaten II'!$T$26)","v":""},"","",""]
[null,null,null,null,null,null,null,"","","","",{"$f":"IF(ISBLANK(C447)+('Betriebsdaten II'!$T$26=0),\"\",C447/'Betriebsdaten II'!$T$26)","v":""},"","",""]
[null,null,null,null,null,null,null,"","","","",{"$f":"IF(ISBLANK(C448)+('Betriebsdaten II'!$T$26=0),\"\",C448/'Betriebsdaten II'!$T$26)","v":""},"","",""]
[null,null,null,null,null,null,null,"","","","",{"$f":"IF(ISBLANK(C449)+('Betriebsdaten II'!$T$26=0),\"\",C449/'Betriebsdaten II'!$T$26)","v":""},"","",""]
[null,null,null,null,null,null,null,"","","","",{"$f":"IF(ISBLANK(C450)+('Betriebsdaten II'!$T$26=0),\"\",C450/'Betriebsdaten II'!$T$26)","v":""},"","",""]
[null,null,null,null,null,null,null,"","","","",{"$f":"IF(ISBLANK(C451)+('Betriebsdaten II'!$T$26=0),\"\",C451/'Betriebsdaten II'!$T$26)","v":""},"","",""]
[null,null,null,null,null,null,null,"","","","",{"$f":"IF(ISBLANK(C452)+('Betriebsdaten II'!$T$26=0),\"\",C452/'Betriebsdaten II'!$T$26)","v":""},"","",""]
[null,null,null,null,null,null,null,"","","","",{"$f":"IF(ISBLANK(C453)+('Betriebsdaten II'!$T$26=0),\"\",C453/'Betriebsdaten II'!$T$26)","v":""},"","",""]
[null,null,null,null,null,null,null,"","","","",{"$f":"IF(ISBLANK(C454)+('Betriebsdaten II'!$T$26=0),\"\",C454/'Betriebsdaten II'!$T$26)","v":""},"","",""]
[null,null,null,null,null,null,null,"","","","",{"$f":"IF(ISBLANK(C455)+('Betriebsdaten II'!$T$26=0),\"\",C455/'Betriebsdaten II'!$T$26)","v":""},"","",""]
[null,null,null,null,null,null,null,"","","","",{"$f":"IF(ISBLANK(C456)+('Betriebsdaten II'!$T$26=0),\"\",C456/'Betriebsdaten II'!$T$26)","v":""},"","",""]
[null,null,null,null,null,null,null,"","","","",{"$f":"IF(ISBLANK(C457)+('Betriebsdaten II'!$T$26=0),\"\",C457/'Betriebsdaten II'!$T$26)","v":""},"","",""]
[null,null,null,null,null,null,null,{"$f":"IF(ISBLANK(A458),\"\",NetzvorlaufTemp)","v":""},{"$f":"IF(ISBLANK(A458),\"\",NetzrücklaufTemp)","v":""},"","",{"$f":"IF(ISBLANK(C458)+('Betriebsdaten II'!$T$26=0),\"\",C458/'Betriebsdaten II'!$T$26)","v":""},{"$f":"IF(ISERR(J458*L458),\"\",J458*L458)","v":""},"",{"$f":"IF(N458=\"\",\"\",IF(AND(N458<5,K458<30), \"Optimierungsmöglichkeiten prüfen!\",\"\"))","v":""}]
[null,null,null,null,null,null,null,"","",{"$f":"IF((SUM(E459)=0)+(SUM(C459)=0),\"\",E459/C459*1000)","v":""},{"$f":"IF(J459=\"\",\"\",C459/(4.189*978*E459/3600))","v":""},{"$f":"IF(ISBLANK(C459)+('Betriebsdaten II'!$T$26=0),\"\",C459/'Betriebsdaten II'!$T$26)","v":""},"",{"$f":"IF(ISERR(RANK(M459,$M$10:$M$1210)),\"\",RANK(M459,$M$10:$M$1210))","v":""},""]
[null,null,null,null,null,null,null,"","","","",{"$f":"IF(ISBLANK(C460)+('Betriebsdaten II'!$T$26=0),\"\",C460/'Betriebsdaten II'!$T$26)","v":""},"","",""]
[null,null,null,null,null,null,null,"","","","",{"$f":"IF(ISBLANK(C461)+('Betriebsdaten II'!$T$26=0),\"\",C461/'Betriebsdaten II'!$T$26)","v":""},"","",""]
[null,null,null,null,null,null,null,"","","","",{"$f":"IF(ISBLANK(C462)+('Betriebsdaten II'!$T$26=0),\"\",C462/'Betriebsdaten II'!$T$26)","v":""},"","",""]
[null,null,null,null,null,null,null,"","","","",{"$f":"IF(ISBLANK(C463)+('Betriebsdaten II'!$T$26=0),\"\",C463/'Betriebsdaten II'!$T$26)","v":""},"","",""]
[null,null,null,null,null,null,null,"","","","",{"$f":"IF(ISBLANK(C464)+('Betriebsdaten II'!$T$26=0),\"\",C464/'Betriebsdaten II'!$T$26)","v":""},"","",""]
[null,null,null,null,null,null,null,"","","","",{"$f":"IF(ISBLANK(C465)+('Betriebsdaten II'!$T$26=0),\"\",C465/'Betriebsdaten II'!$T$26)","v":""},"","",""]
[null,null,null,null,null,null,null,"","","","",{"$f":"IF(ISBLANK(C466)+('Betriebsdaten II'!$T$26=0),\"\",C466/'Betriebsdaten II'!$T$26)","v":""},"","",""]
[null,null,null,null,null,null,null,"","","","",{"$f":"IF(ISBLANK(C467)+('Betriebsdaten II'!$T$26=0),\"\",C467/'Betriebsdaten II'!$T$26)","v":""},"","",""]
[null,null,null,null,null,null,null,"","","","",{"$f":"IF(ISBLANK(C468)+('Betriebsdaten II'!$T$26=0),\"\",C468/'Betriebsdaten II'!$T$26)","v":""},"","",""]
[null,null,null,null,null,null,null,"","","","",{"$f":"IF(ISBLANK(C469)+('Betriebsdaten II'!$T$26=0),\"\",C469/'Betriebsdaten II'!$T$26)","v":""},"","",""]
[null,null,null,null,null,null,null,"","","","",{"$f":"IF(ISBLANK(C470)+('Betriebsdaten II'!$T$26=0),\"\",C470/'Betriebsdaten II'!$T$26)","v":""},"","",""]
[null,null,null,null,null,null,null,"","","","",{"$f":"IF(ISBLANK(C471)+('Betriebsdaten II'!$T$26=0),\"\",C471/'Betriebsdaten II'!$T$26)","v":""},"","",""]
[null,null,null,null,null,null,null,"","","","",{"$f":"IF(ISBLANK(C472)+('Betriebsdaten II'!$T$26=0),\"\",C472/'Betriebsdaten II'!$T$26)","v":""},"","",""]
[null,null,null,null,null,null,null,"","","","",{"$f":"IF(ISBLANK(C473)+('Betriebsdaten II'!$T$26=0),\"\",C473/'Betriebsdaten II'!$T$26)","v":""},"","",""]
[null,null,null,null,null,null,null,"","","","",{"$f":"IF(ISBLANK(C474)+('Betriebsdaten II'!$T$26=0),\"\",C474/'Betriebsdaten II'!$T$26)","v":""},"","",""]
[null,null,null,null,null,null,null,"","","","",{"$f":"IF(ISBLANK(C475)+('Betriebsdaten II'!$T$26=0),\"\",C475/'Betriebsdaten II'!$T$26)","v":""},"","",""]
[null,null,null,null,null,null,null,"","","","",{"$f":"IF(ISBLANK(C476)+('Betriebsdaten II'!$T$26=0),\"\",C476/'Betriebsdaten II'!$T$26)","v":""},"","",""]
[null,null,null,null,null,null,null,"","","","",{"$f":"IF(ISBLANK(C477)+('Betriebsdaten II'!$T$26=0),\"\",C477/'Betriebsdaten II'!$T$26)","v":""},"","",""]
[null,null,null,null,null,null,null,"","","","",{"$f":"IF(ISBLANK(C478)+('Betriebsdaten II'!$T$26=0),\"\",C478/'Betriebsdaten II'!$T$26)","v":""},"","",""]
[null,null,null,null,null,null,null,"","","","",{"$f":"IF(ISBLANK(C479)+('Betriebsdaten II'!$T$26=0),\"\",C479/'Betriebsdaten II'!$T$26)","v":""},"","",""]
[null,null,null,null,null,null,null,"","","","",{"$f":"IF(ISBLANK(C480)+('Betriebsdaten II'!$T$26=0),\"\",C480/'Betriebsdaten II'!$T$26)","v":""},"","",""]
[null,null,null,null,null,null,null,"","","","",{"$f":"IF(ISBLANK(C481)+('Betriebsdaten II'!$T$26=0),\"\",C481/'Betriebsdaten II'!$T$26)","v":""},"","",""]
[null,null,null,null,null,null,null,"","","","",{"$f":"IF(ISBLANK(C482)+('Betriebsdaten II'!$T$26=0),\"\",C482/'Betriebsdaten II'!$T$26)","v":""},"","",""]
[null,null,null,null,null,null,null,"","","","",{"$f":"IF(ISBLANK(C483)+('Betriebsdaten II'!$T$26=0),\"\",C483/'Betriebsdaten II'!$T$26)","v":""},"","",""]
[null,null,null,null,null,null,null,"","","","",{"$f":"IF(ISBLANK(C484)+('Betriebsdaten II'!$T$26=0),\"\",C484/'Betriebsdaten II'!$T$26)","v":""},"","",""]
[null,null,null,null,null,null,null,"","","","",{"$f":"IF(ISBLANK(C485)+('Betriebsdaten II'!$T$26=0),\"\",C485/'Betriebsdaten II'!$T$26)","v":""},"","",""]
[null,null,null,null,null,null,null,"","","","",{"$f":"IF(ISBLANK(C486)+('Betriebsdaten II'!$T$26=0),\"\",C486/'Betriebsdaten II'!$T$26)","v":""},"","",""]
[null,null,null,null,null,null,null,"","","","",{"$f":"IF(ISBLANK(C487)+('Betriebsdaten II'!$T$26=0),\"\",C487/'Betriebsdaten II'!$T$26)","v":""},"","",""]
[null,null,null,null,null,null,null,"","","","",{"$f":"IF(ISBLANK(C488)+('Betriebsdaten II'!$T$26=0),\"\",C488/'Betriebsdaten II'!$T$26)","v":""},"","",""]
[null,null,null,null,null,null,null,"","","","",{"$f":"IF(ISBLANK(C489)+('Betriebsdaten II'!$T$26=0),\"\",C489/'Betriebsdaten II'!$T$26)","v":""},"","",""]
[null,null,null,null,null,null,null,"","","","",{"$f":"IF(ISBLANK(C490)+('Betriebsdaten II'!$T$26=0),\"\",C490/'Betriebsdaten II'!$T$26)","v":""},"","",""]
[null,null,null,null,null,null,null,"","","","",{"$f":"IF(ISBLANK(C491)+('Betriebsdaten II'!$T$26=0),\"\",C491/'Betriebsdaten II'!$T$26)","v":""},"","",""]
[null,null,null,null,null,null,null,"","","","",{"$f":"IF(ISBLANK(C492)+('Betriebsdaten II'!$T$26=0),\"\",C492/'Betriebsdaten II'!$T$26)","v":""},"","",""]
[null,null,null,null,null,null,null,"","","","",{"$f":"IF(ISBLANK(C493)+('Betriebsdaten II'!$T$26=0),\"\",C493/'Betriebsdaten II'!$T$26)","v":""},"","",""]
[null,null,null,null,null,null,null,"","","","",{"$f":"IF(ISBLANK(C494)+('Betriebsdaten II'!$T$26=0),\"\",C494/'Betriebsdaten II'!$T$26)","v":""},"","",""]
[null,null,null,null,null,null,null,"","","","",{"$f":"IF(ISBLANK(C495)+('Betriebsdaten II'!$T$26=0),\"\",C495/'Betriebsdaten II'!$T$26)","v":""},"","",""]
[null,null,null,null,null,null,null,"","","","",{"$f":"IF(ISBLANK(C496)+('Betriebsdaten II'!$T$26=0),\"\",C496/'Betriebsdaten II'!$T$26)","v":""},"","",""]
[null,null,null,null,null,null,null,"","","","",{"$f":"IF(ISBLANK(C497)+('Betriebsdaten II'!$T$26=0),\"\",C497/'Betriebsdaten II'!$T$26)","v":""},"","",""]
[null,null,null,null,null,null,null,"","","","",{"$f":"IF(ISBLANK(C498)+('Betriebsdaten II'!$T$26=0),\"\",C498/'Betriebsdaten II'!$T$26)","v":""},"","",""]
[null,null,null,null,null,null,null,"","","","",{"$f":"IF(ISBLANK(C499)+('Betriebsdaten II'!$T$26=0),\"\",C499/'Betriebsdaten II'!$T$26)","v":""},"","",""]
[null,null,null,null,null,null,null,"","","","",{"$f":"IF(ISBLANK(C500)+('Betriebsdaten II'!$T$26=0),\"\",C500/'Betriebsdaten II'!$T$26)","v":""},"","",""]
[null,null,null,null,null,null,null,"","","","",{"$f":"IF(ISBLANK(C501)+('Betriebsdaten II'!$T$26=0),\"\",C501/'Betriebsdaten II'!$T$26)","v":""},"","",""]
[null,null,null,null,null,null,null,"","","","",{"$f":"IF(ISBLANK(C502)+('Betriebsdaten II'!$T$26=0),\"\",C502/'Betriebsdaten II'!$T$26)","v":""},"","",""]
[null,null,null,null,null,null,null,"","","","",{"$f":"IF(ISBLANK(C503)+('Betriebsdaten II'!$T$26=0),\"\",C503/'Betriebsdaten II'!$T$26)","v":""},"","",""]
[null,null,null,null,null,null,null,"","","","",{"$f":"IF(ISBLANK(C504)+('Betriebsdaten II'!$T$26=0),\"\",C504/'Betriebsdaten II'!$T$26)","v":""},"","",""]
[null,null,null,null,null,null,null,"","","","",{"$f":"IF(ISBLANK(C505)+('Betriebsdaten II'!$T$26=0),\"\",C505/'Betriebsdaten II'!$T$26)","v":""},"","",""]
[null,null,null,null,null,null,null,"","","","",{"$f":"IF(ISBLANK(C506)+('Betriebsdaten II'!$T$26=0),\"\",C506/'Betriebsdaten II'!$T$26)","v":""},"","",""]
[null,null,null,null,null,null,null,"","","","",{"$f":"IF(ISBLANK(C507)+('Betriebsdaten II'!$T$26=0),\"\",C507/'Betriebsdaten II'!$T$26)","v":""},"","",""]
[null,null,null,null,null,null,null,"","","","",{"$f":"IF(ISBLANK(C508)+('Betriebsdaten II'!$T$26=0),\"\",C508/'Betriebsdaten II'!$T$26)","v":""},"","",""]
[null,null,null,null,null,null,null,"","","","",{"$f":"IF(ISBLANK(C509)+('Betriebsdaten II'!$T$26=0),\"\",C509/'Betriebsdaten II'!$T$26)","v":""},"","",""]
[null,null,null,null,null,null,null,"","","","",{"$f":"IF(ISBLANK(C510)+('Betriebsdaten II'!$T$26=0),\"\",C510/'Betriebsdaten II'!$T$26)","v":""},"","",""]
[null,null,null,null,null,null,null,"","","","",{"$f":"IF(ISBLANK(C511)+('Betriebsdaten II'!$T$26=0),\"\",C511/'Betriebsdaten II'!$T$26)","v":""},"","",""]
[null,null,null,null,null,null,null,"","","","",{"$f":"IF(ISBLANK(C512)+('Betriebsdaten II'!$T$26=0),\"\",C512/'Betriebsdaten II'!$T$26)","v":""},"","",""]
[null,null,null,null,null,null,null,"","","","",{"$f":"IF(ISBLANK(C513)+('Betriebsdaten II'!$T$26=0),\"\",C513/'Betriebsdaten II'!$T$26)","v":""},"","",""]
[null,null,null,null,null,null,null,"","","","",{"$f":"IF(ISBLANK(C514)+('Betriebsdaten II'!$T$26=0),\"\",C514/'Betriebsdaten II'!$T$26)","v":""},"","",""]
[null,null,null,null,null,null,null,"","","","",{"$f":"IF(ISBLANK(C515)+('Betriebsdaten II'!$T$26=0),\"\",C515/'Betriebsdaten II'!$T$26)","v":""},"","",""]
[null,null,null,null,null,null,null,"","","","",{"$f":"IF(ISBLANK(C516)+('Betriebsdaten II'!$T$26=0),\"\",C516/'Betriebsdaten II'!$T$26)","v":""},"","",""]
[null,null,null,null,null,null,null,"","","","",{"$f":"IF(ISBLANK(C517)+('Betriebsdaten II'!$T$26=0),\"\",C517/'Betriebsdaten II'!$T$26)","v":""},"","",""]
[null,null,null,null,null,null,null,"","","","",{"$f":"IF(ISBLANK(C518)+('Betriebsdaten II'!$T$26=0),\"\",C518/'Betriebsdaten II'!$T$26)","v":""},"","",""]
[null,null,null,null,null,null,null,"","","","",{"$f":"IF(ISBLANK(C519)+('Betriebsdaten II'!$T$26=0),\"\",C519/'Betriebsdaten II'!$T$26)","v":""},"","",""]
[null,null,null,null,null,null,null,"","","","",{"$f":"IF(ISBLANK(C520)+('Betriebsdaten II'!$T$26=0),\"\",C520/'Betriebsdaten II'!$T$26)","v":""},"","",""]
[null,null,null,null,null,null,null,"","","","",{"$f":"IF(ISBLANK(C521)+('Betriebsdaten II'!$T$26=0),\"\",C521/'Betriebsdaten II'!$T$26)","v":""},"","",""]
[null,null,null,null,null,null,null,{"$f":"IF(ISBLANK(A522),\"\",NetzvorlaufTemp)","v":""},{"$f":"IF(ISBLANK(A522),\"\",NetzrücklaufTemp)","v":""},"","",{"$f":"IF(ISBLANK(C522)+('Betriebsdaten II'!$T$26=0),\"\",C522/'Betriebsdaten II'!$T$26)","v":""},{"$f":"IF(ISERR(J522*L522),\"\",J522*L522)","v":""},"",{"$f":"IF(N522=\"\",\"\",IF(AND(N522<5,K522<30), \"Optimierungsmöglichkeiten prüfen!\",\"\"))","v":""}]
[null,null,null,null,null,null,null,"","",{"$f":"IF((SUM(E523)=0)+(SUM(C523)=0),\"\",E523/C523*1000)","v":""},{"$f":"IF(J523=\"\",\"\",C523/(4.189*978*E523/3600))","v":""},{"$f":"IF(ISBLANK(C523)+('Betriebsdaten II'!$T$26=0),\"\",C523/'Betriebsdaten II'!$T$26)","v":""},"",{"$f":"IF(ISERR(RANK(M523,$M$10:$M$1210)),\"\",RANK(M523,$M$10:$M$1210))","v":""},""]
[null,null,null,null,null,null,null,"","","","",{"$f":"IF(ISBLANK(C524)+('Betriebsdaten II'!$T$26=0),\"\",C524/'Betriebsdaten II'!$T$26)","v":""},"","",""]
[null,null,null,null,null,null,null,"","","","",{"$f":"IF(ISBLANK(C525)+('Betriebsdaten II'!$T$26=0),\"\",C525/'Betriebsdaten II'!$T$26)","v":""},"","",""]
[null,null,null,null,null,null,null,"","","","",{"$f":"IF(ISBLANK(C526)+('Betriebsdaten II'!$T$26=0),\"\",C526/'Betriebsdaten II'!$T$26)","v":""},"","",""]
[null,null,null,null,null,null,null,"","","","",{"$f":"IF(ISBLANK(C527)+('Betriebsdaten II'!$T$26=0),\"\",C527/'Betriebsdaten II'!$T$26)","v":""},"","",""]
[null,null,null,null,null,null,null,"","","","",{"$f":"IF(ISBLANK(C528)+('Betriebsdaten II'!$T$26=0),\"\",C528/'Betriebsdaten II'!$T$26)","v":""},"","",""]
[null,null,null,null,null,null,null,"","","","",{"$f":"IF(ISBLANK(C529)+('Betriebsdaten II'!$T$26=0),\"\",C529/'Betriebsdaten II'!$T$26)","v":""},"","",""]
[null,null,null,null,null,null,null,"","","","",{"$f":"IF(ISBLANK(C530)+('Betriebsdaten II'!$T$26=0),\"\",C530/'Betriebsdaten II'!$T$26)","v":""},"","",""]
[null,null,null,null,null,null,null,"","","","",{"$f":"IF(ISBLANK(C531)+('Betriebsdaten II'!$T$26=0),\"\",C531/'Betriebsdaten II'!$T$26)","v":""},"","",""]
[null,null,null,null,null,null,null,"","","","",{"$f":"IF(ISBLANK(C532)+('Betriebsdaten II'!$T$26=0),\"\",C532/'Betriebsdaten II'!$T$26)","v":""},"","",""]
[null,null,null,null,null,null,null,"","","","",{"$f":"IF(ISBLANK(C533)+('Betriebsdaten II'!$T$26=0),\"\",C533/'Betriebsdaten II'!$T$26)","v":""},"","",""]
[null,null,null,null,null,null,null,"","","","",{"$f":"IF(ISBLANK(C534)+('Betriebsdaten II'!$T$26=0),\"\",C534/'Betriebsdaten II'!$T$26)","v":""},"","",""]
[null,null,null,null,null,null,null,"","","","",{"$f":"IF(ISBLANK(C535)+('Betriebsdaten II'!$T$26=0),\"\",C535/'Betriebsdaten II'!$T$26)","v":""},"","",""]
[null,null,null,null,null,null,null,"","","","",{"$f":"IF(ISBLANK(C536)+('Betriebsdaten II'!$T$26=0),\"\",C536/'Betriebsdaten II'!$T$26)","v":""},"","",""]
[null,null,null,null,null,null,null,"","","","",{"$f":"IF(ISBLANK(C537)+('Betriebsdaten II'!$T$26=0),\"\",C537/'Betriebsdaten II'!$T$26)","v":""},"","",""]
[null,null,null,null,null,null,null,"","","","",{"$f":"IF(ISBLANK(C538)+('Betriebsdaten II'!$T$26=0),\"\",C538/'Betriebsdaten II'!$T$26)","v":""},"","",""]
[null,null,null,null,null,null,null,"","","","",{"$f":"IF(ISBLANK(C539)+('Betriebsdaten II'!$T$26=0),\"\",C539/'Betriebsdaten II'!$T$26)","v":""},"","",""]
[null,null,null,null,null,null,null,"","","","",{"$f":"IF(ISBLANK(C540)+('Betriebsdaten II'!$T$26=0),\"\",C540/'Betriebsdaten II'!$T$26)","v":""},"","",""]
[null,null,null,null,null,null,null,"","","","",{"$f":"IF(ISBLANK(C541)+('Betriebsdaten II'!$T$26=0),\"\",C541/'Betriebsdaten II'!$T$26)","v":""},"","",""]
[null,null,null,null,null,null,null,"","","","",{"$f":"IF(ISBLANK(C542)+('Betriebsdaten II'!$T$26=0),\"\",C542/'Betriebsdaten II'!$T$26)","v":""},"","",""]
[null,null,null,null,null,null,null,"","","","",{"$f":"IF(ISBLANK(C543)+('Betriebsdaten II'!$T$26=0),\"\",C543/'Betriebsdaten II'!$T$26)","v":""},"","",""]
[null,null,null,null,null,null,null,"","","","",{"$f":"IF(ISBLANK(C544)+('Betriebsdaten II'!$T$26=0),\"\",C544/'Betriebsdaten II'!$T$26)","v":""},"","",""]
[null,null,null,null,null,null,null,"","","","",{"$f":"IF(ISBLANK(C545)+('Betriebsdaten II'!$T$26=0),\"\",C545/'Betriebsdaten II'!$T$26)","v":""},"","",""]
[null,null,null,null,null,null,null,"","","","",{"$f":"IF(ISBLANK(C546)+('Betriebsdaten II'!$T$26=0),\"\",C546/'Betriebsdaten II'!$T$26)","v":""},"","",""]
[null,null,null,null,null,null,null,"","","","",{"$f":"IF(ISBLANK(C547)+('Betriebsdaten II'!$T$26=0),\"\",C547/'Betriebsdaten II'!$T$26)","v":""},"","",""]
[null,null,null,null,null,null,null,"","","","",{"$f":"IF(ISBLANK(C548)+('Betriebsdaten II'!$T$26=0),\"\",C548/'Betriebsdaten II'!$T$26)","v":""},"","",""]
[null,null,null,null,null,null,null,"","","","",{"$f":"IF(ISBLANK(C549)+('Betriebsdaten II'!$T$26=0),\"\",C549/'Betriebsdaten II'!$T$26)","v":""},"","",""]
[null,null,null,null,null,null,null,"","","","",{"$f":"IF(ISBLANK(C550)+('Betriebsdaten II'!$T$26=0),\"\",C550/'Betriebsdaten II'!$T$26)","v":""},"","",""]
[null,null,null,null,null,null,null,"","","","",{"$f":"IF(ISBLANK(C551)+('Betriebsdaten II'!$T$26=0),\"\",C551/'Betriebsdaten II'!$T$26)","v":""},"","",""]
[null,null,null,null,null,null,null,"","","","",{"$f":"IF(ISBLANK(C552)+('Betriebsdaten II'!$T$26=0),\"\",C552/'Betriebsdaten II'!$T$26)","v":""},"","",""]
[null,null,null,null,null,null,null,"","","","",{"$f":"IF(ISBLANK(C553)+('Betriebsdaten II'!$T$26=0),\"\",C553/'Betriebsdaten II'!$T$26)","v":""},"","",""]
[null,null,null,null,null,null,null,"","","","",{"$f":"IF(ISBLANK(C554)+('Betriebsdaten II'!$T$26=0),\"\",C554/'Betriebsdaten II'!$T$26)","v":""},"","",""]
[null,null,null,null,null,null,null,"","","","",{"$f":"IF(ISBLANK(C555)+('Betriebsdaten II'!$T$26=0),\"\",C555/'Betriebsdaten II'!$T$26)","v":""},"","",""]
[null,null,null,null,null,null,null,"","","","",{"$f":"IF(ISBLANK(C556)+('Betriebsdaten II'!$T$26=0),\"\",C556/'Betriebsdaten II'!$T$26)","v":""},"","",""]
[null,null,null,null,null,null,null,"","","","",{"$f":"IF(ISBLANK(C557)+('Betriebsdaten II'!$T$26=0),\"\",C557/'Betriebsdaten II'!$T$26)","v":""},"","",""]
[null,null,null,null,null,null,null,"","","","",{"$f":"IF(ISBLANK(C558)+('Betriebsdaten II'!$T$26=0),\"\",C558/'Betriebsdaten II'!$T$26)","v":""},"","",""]
[null,null,null,null,null,null,null,"","","","",{"$f":"IF(ISBLANK(C559)+('Betriebsdaten II'!$T$26=0),\"\",C559/'Betriebsdaten II'!$T$26)","v":""},"","",""]
[null,null,null,null,null,null,null,"","","","",{"$f":"IF(ISBLANK(C560)+('Betriebsdaten II'!$T$26=0),\"\",C560/'Betriebsdaten II'!$T$26)","v":""},"","",""]
[null,null,null,null,null,null,null,"","","","",{"$f":"IF(ISBLANK(C561)+('Betriebsdaten II'!$T$26=0),\"\",C561/'Betriebsdaten II'!$T$26)","v":""},"","",""]
[null,null,null,null,null,null,null,"","","","",{"$f":"IF(ISBLANK(C562)+('Betriebsdaten II'!$T$26=0),\"\",C562/'Betriebsdaten II'!$T$26)","v":""},"","",""]
[null,null,null,null,null,null,null,"","","","",{"$f":"IF(ISBLANK(C563)+('Betriebsdaten II'!$T$26=0),\"\",C563/'Betriebsdaten II'!$T$26)","v":""},"","",""]
[null,null,null,null,null,null,null,"","","","",{"$f":"IF(ISBLANK(C564)+('Betriebsdaten II'!$T$26=0),\"\",C564/'Betriebsdaten II'!$T$26)","v":""},"","",""]
[null,null,null,null,null,null,null,"","","","",{"$f":"IF(ISBLANK(C565)+('Betriebsdaten II'!$T$26=0),\"\",C565/'Betriebsdaten II'!$T$26)","v":""},"","",""]
[null,null,null,null,null,null,null,"","","","",{"$f":"IF(ISBLANK(C566)+('Betriebsdaten II'!$T$26=0),\"\",C566/'Betriebsdaten II'!$T$26)","v":""},"","",""]
[null,null,null,null,null,null,null,"","","","",{"$f":"IF(ISBLANK(C567)+('Betriebsdaten II'!$T$26=0),\"\",C567/'Betriebsdaten II'!$T$26)","v":""},"","",""]
[null,null,null,null,null,null,null,"","","","",{"$f":"IF(ISBLANK(C568)+('Betriebsdaten II'!$T$26=0),\"\",C568/'Betriebsdaten II'!$T$26)","v":""},"","",""]
[null,null,null,null,null,null,null,"","","","",{"$f":"IF(ISBLANK(C569)+('Betriebsdaten II'!$T$26=0),\"\",C569/'Betriebsdaten II'!$T$26)","v":""},"","",""]
[null,null,null,null,null,null,null,"","","","",{"$f":"IF(ISBLANK(C570)+('Betriebsdaten II'!$T$26=0),\"\",C570/'Betriebsdaten II'!$T$26)","v":""},"","",""]
[null,null,null,null,null,null,null,"","","","",{"$f":"IF(ISBLANK(C571)+('Betriebsdaten II'!$T$26=0),\"\",C571/'Betriebsdaten II'!$T$26)","v":""},"","",""]
[null,null,null,null,null,null,null,"","","","",{"$f":"IF(ISBLANK(C572)+('Betriebsdaten II'!$T$26=0),\"\",C572/'Betriebsdaten II'!$T$26)","v":""},"","",""]
[null,null,null,null,null,null,null,"","","","",{"$f":"IF(ISBLANK(C573)+('Betriebsdaten II'!$T$26=0),\"\",C573/'Betriebsdaten II'!$T$26)","v":""},"","",""]
[null,null,null,null,null,null,null,"","","","",{"$f":"IF(ISBLANK(C574)+('Betriebsdaten II'!$T$26=0),\"\",C574/'Betriebsdaten II'!$T$26)","v":""},"","",""]
[null,null,null,null,null,null,null,"","","","",{"$f":"IF(ISBLANK(C575)+('Betriebsdaten II'!$T$26=0),\"\",C575/'Betriebsdaten II'!$T$26)","v":""},"","",""]
[null,null,null,null,null,null,null,"","","","",{"$f":"IF(ISBLANK(C576)+('Betriebsdaten II'!$T$26=0),\"\",C576/'Betriebsdaten II'!$T$26)","v":""},"","",""]
[null,null,null,null,null,null,null,"","","","",{"$f":"IF(ISBLANK(C577)+('Betriebsdaten II'!$T$26=0),\"\",C577/'Betriebsdaten II'!$T$26)","v":""},"","",""]
[null,null,null,null,null,null,null,"","","","",{"$f":"IF(ISBLANK(C578)+('Betriebsdaten II'!$T$26=0),\"\",C578/'Betriebsdaten II'!$T$26)","v":""},"","",""]
[null,null,null,null,null,null,null,"","","","",{"$f":"IF(ISBLANK(C579)+('Betriebsdaten II'!$T$26=0),\"\",C579/'Betriebsdaten II'!$T$26)","v":""},"","",""]
[null,null,null,null,null,null,null,"","","","",{"$f":"IF(ISBLANK(C580)+('Betriebsdaten II'!$T$26=0),\"\",C580/'Betriebsdaten II'!$T$26)","v":""},"","",""]
[null,null,null,null,null,null,null,"","","","",{"$f":"IF(ISBLANK(C581)+('Betriebsdaten II'!$T$26=0),\"\",C581/'Betriebsdaten II'!$T$26)","v":""},"","",""]
[null,null,null,null,null,null,null,"","","","",{"$f":"IF(ISBLANK(C582)+('Betriebsdaten II'!$T$26=0),\"\",C582/'Betriebsdaten II'!$T$26)","v":""},"","",""]
[null,null,null,null,null,null,null,"","","","",{"$f":"IF(ISBLANK(C583)+('Betriebsdaten II'!$T$26=0),\"\",C583/'Betriebsdaten II'!$T$26)","v":""},"","",""]
[null,null,null,null,null,null,null,"","","","",{"$f":"IF(ISBLANK(C584)+('Betriebsdaten II'!$T$26=0),\"\",C584/'Betriebsdaten II'!$T$26)","v":""},"","",""]
[null,null,null,null,null,null,null,"","","","",{"$f":"IF(ISBLANK(C585)+('Betriebsdaten II'!$T$26=0),\"\",C585/'Betriebsdaten II'!$T$26)","v":""},"","",""]
[null,null,null,null,null,null,null,{"$f":"IF(ISBLANK(A586),\"\",NetzvorlaufTemp)","v":""},{"$f":"IF(ISBLANK(A586),\"\",NetzrücklaufTemp)","v":""},"","",{"$f":"IF(ISBLANK(C586)+('Betriebsdaten II'!$T$26=0),\"\",C586/'Betriebsdaten II'!$T$26)","v":""},{"$f":"IF(ISERR(J586*L586),\"\",J586*L586)","v":""},"",{"$f":"IF(N586=\"\",\"\",IF(AND(N586<5,K586<30), \"Optimierungsmöglichkeiten prüfen!\",\"\"))","v":""}]
[null,null,null,null,null,null,null,"","",{"$f":"IF((SUM(E587)=0)+(SUM(C587)=0),\"\",E587/C587*1000)","v":""},{"$f":"IF(J587=\"\",\"\",C587/(4.189*978*E587/3600))","v":""},{"$f":"IF(ISBLANK(C587)+('Betriebsdaten II'!$T$26=0),\"\",C587/'Betriebsdaten II'!$T$26)","v":""},"",{"$f":"IF(ISERR(RANK(M587,$M$10:$M$1210)),\"\",RANK(M587,$M$10:$M$1210))","v":""},""]
[null,null,null,null,null,null,null,"","","","",{"$f":"IF(ISBLANK(C588)+('Betriebsdaten II'!$T$26=0),\"\",C588/'Betriebsdaten II'!$T$26)","v":""},"","",""]
[null,null,null,null,null,null,null,"","","","",{"$f":"IF(ISBLANK(C589)+('Betriebsdaten II'!$T$26=0),\"\",C589/'Betriebsdaten II'!$T$26)","v":""},"","",""]
[null,null,null,null,null,null,null,"","","","",{"$f":"IF(ISBLANK(C590)+('Betriebsdaten II'!$T$26=0),\"\",C590/'Betriebsdaten II'!$T$26)","v":""},"","",""]
[null,null,null,null,null,null,null,"","","","",{"$f":"IF(ISBLANK(C591)+('Betriebsdaten II'!$T$26=0),\"\",C591/'Betriebsdaten II'!$T$26)","v":""},"","",""]
[null,null,null,null,null,null,null,"","","","",{"$f":"IF(ISBLANK(C592)+('Betriebsdaten II'!$T$26=0),\"\",C592/'Betriebsdaten II'!$T$26)","v":""},"","",""]
[null,null,null,null,null,null,null,"","","","",{"$f":"IF(ISBLANK(C593)+('Betriebsdaten II'!$T$26=0),\"\",C593/'Betriebsdaten II'!$T$26)","v":""},"","",""]
[null,null,null,null,null,null,null,"","","","",{"$f":"IF(ISBLANK(C594)+('Betriebsdaten II'!$T$26=0),\"\",C594/'Betriebsdaten II'!$T$26)","v":""},"","",""]
[null,null,null,null,null,null,null,"","","","",{"$f":"IF(ISBLANK(C595)+('Betriebsdaten II'!$T$26=0),\"\",C595/'Betriebsdaten II'!$T$26)","v":""},"","",""]
[null,null,null,null,null,null,null,"","","","",{"$f":"IF(ISBLANK(C596)+('Betriebsdaten II'!$T$26=0),\"\",C596/'Betriebsdaten II'!$T$26)","v":""},"","",""]
[null,null,null,null,null,null,null,"","","","",{"$f":"IF(ISBLANK(C597)+('Betriebsdaten II'!$T$26=0),\"\",C597/'Betriebsdaten II'!$T$26)","v":""},"","",""]
[null,null,null,null,null,null,null,"","","","",{"$f":"IF(ISBLANK(C598)+('Betriebsdaten II'!$T$26=0),\"\",C598/'Betriebsdaten II'!$T$26)","v":""},"","",""]
[null,null,null,null,null,null,null,"","","","",{"$f":"IF(ISBLANK(C599)+('Betriebsdaten II'!$T$26=0),\"\",C599/'Betriebsdaten II'!$T$26)","v":""},"","",""]
[null,null,null,null,null,null,null,"","","","",{"$f":"IF(ISBLANK(C600)+('Betriebsdaten II'!$T$26=0),\"\",C600/'Betriebsdaten II'!$T$26)","v":""},"","",""]
[null,null,null,null,null,null,null,"","","","",{"$f":"IF(ISBLANK(C601)+('Betriebsdaten II'!$T$26=0),\"\",C601/'Betriebsdaten II'!$T$26)","v":""},"","",""]
[null,null,null,null,null,null,null,"","","","",{"$f":"IF(ISBLANK(C602)+('Betriebsdaten II'!$T$26=0),\"\",C602/'Betriebsdaten II'!$T$26)","v":""},"","",""]
[null,null,null,null,null,null,null,"","","","",{"$f":"IF(ISBLANK(C603)+('Betriebsdaten II'!$T$26=0),\"\",C603/'Betriebsdaten II'!$T$26)","v":""},"","",""]
[null,null,null,null,null,null,null,"","","","",{"$f":"IF(ISBLANK(C604)+('Betriebsdaten II'!$T$26=0),\"\",C604/'Betriebsdaten II'!$T$26)","v":""},"","",""]
[null,null,null,null,null,null,null,"","","","",{"$f":"IF(ISBLANK(C605)+('Betriebsdaten II'!$T$26=0),\"\",C605/'Betriebsdaten II'!$T$26)","v":""},"","",""]
[null,null,null,null,null,null,null,"","","","",{"$f":"IF(ISBLANK(C606)+('Betriebsdaten II'!$T$26=0),\"\",C606/'Betriebsdaten II'!$T$26)","v":""},"","",""]
[null,null,null,null,null,null,null,"","","","",{"$f":"IF(ISBLANK(C607)+('Betriebsdaten II'!$T$26=0),\"\",C607/'Betriebsdaten II'!$T$26)","v":""},"","",""]
[null,null,null,null,null,null,null,"","","","",{"$f":"IF(ISBLANK(C608)+('Betriebsdaten II'!$T$26=0),\"\",C608/'Betriebsdaten II'!$T$26)","v":""},"","",""]
[null,null,null,null,null,null,null,"","","","",{"$f":"IF(ISBLANK(C609)+('Betriebsdaten II'!$T$26=0),\"\",C609/'Betriebsdaten II'!$T$26)","v":""},"","",""]
[null,null,null,null,null,null,null,"","","","",{"$f":"IF(ISBLANK(C610)+('Betriebsdaten II'!$T$26=0),\"\",C610/'Betriebsdaten II'!$T$26)","v":""},"","",""]
[null,null,null,null,null,null,null,"","","","",{"$f":"IF(ISBLANK(C611)+('Betriebsdaten II'!$T$26=0),\"\",C611/'Betriebsdaten II'!$T$26)","v":""},"","",""]
[null,null,null,null,null,null,null,"","","","",{"$f":"IF(ISBLANK(C612)+('Betriebsdaten II'!$T$26=0),\"\",C612/'Betriebsdaten II'!$T$26)","v":""},"","",""]
[null,null,null,null,null,null,null,"","","","",{"$f":"IF(ISBLANK(C613)+('Betriebsdaten II'!$T$26=0),\"\",C613/'Betriebsdaten II'!$T$26)","v":""},"","",""]
[null,null,null,null,null,null,null,"","","","",{"$f":"IF(ISBLANK(C614)+('Betriebsdaten II'!$T$26=0),\"\",C614/'Betriebsdaten II'!$T$26)","v":""},"","",""]
[null,null,null,null,null,null,null,"","","","",{"$f":"IF(ISBLANK(C615)+('Betriebsdaten II'!$T$26=0),\"\",C615/'Betriebsdaten II'!$T$26)","v":""},"","",""]
[null,null,null,null,null,null,null,"","","","",{"$f":"IF(ISBLANK(C616)+('Betriebsdaten II'!$T$26=0),\"\",C616/'Betriebsdaten II'!$T$26)","v":""},"","",""]
[null,null,null,null,null,null,null,"","","","",{"$f":"IF(ISBLANK(C617)+('Betriebsdaten II'!$T$26=0),\"\",C617/'Betriebsdaten II'!$T$26)","v":""},"","",""]
[null,null,null,null,null,null,null,"","","","",{"$f":"IF(ISBLANK(C618)+('Betriebsdaten II'!$T$26=0),\"\",C618/'Betriebsdaten II'!$T$26)","v":""},"","",""]
[null,null,null,null,null,null,null,"","","","",{"$f":"IF(ISBLANK(C619)+('Betriebsdaten II'!$T$26=0),\"\",C619/'Betriebsdaten II'!$T$26)","v":""},"","",""]
[null,null,null,null,null,null,null,"","","","",{"$f":"IF(ISBLANK(C620)+('Betriebsdaten II'!$T$26=0),\"\",C620/'Betriebsdaten II'!$T$26)","v":""},"","",""]
[null,null,null,null,null,null,null,"","","","",{"$f":"IF(ISBLANK(C621)+('Betriebsdaten II'!$T$26=0),\"\",C621/'Betriebsdaten II'!$T$26)","v":""},"","",""]
[null,null,null,null,null,null,null,"","","","",{"$f":"IF(ISBLANK(C622)+('Betriebsdaten II'!$T$26=0),\"\",C622/'Betriebsdaten II'!$T$26)","v":""},"","",""]
[null,null,null,null,null,null,null,"","","","",{"$f":"IF(ISBLANK(C623)+('Betriebsdaten II'!$T$26=0),\"\",C623/'Betriebsdaten II'!$T$26)","v":""},"","",""]
[null,null,null,null,null,null,null,"","","","",{"$f":"IF(ISBLANK(C624)+('Betriebsdaten II'!$T$26=0),\"\",C624/'Betriebsdaten II'!$T$26)","v":""},"","",""]
[null,null,null,null,null,null,null,"","","","",{"$f":"IF(ISBLANK(C625)+('Betriebsdaten II'!$T$26=0),\"\",C625/'Betriebsdaten II'!$T$26)","v":""},"","",""]
[null,null,null,null,null,null,null,"","","","",{"$f":"IF(ISBLANK(C626)+('Betriebsdaten II'!$T$26=0),\"\",C626/'Betriebsdaten II'!$T$26)","v":""},"","",""]
[null,null,null,null,null,null,null,"","","","",{"$f":"IF(ISBLANK(C627)+('Betriebsdaten II'!$T$26=0),\"\",C627/'Betriebsdaten II'!$T$26)","v":""},"","",""]
[null,null,null,null,null,null,null,"","","","",{"$f":"IF(ISBLANK(C628)+('Betriebsdaten II'!$T$26=0),\"\",C628/'Betriebsdaten II'!$T$26)","v":""},"","",""]
[null,null,null,null,null,null,null,"","","","",{"$f":"IF(ISBLANK(C629)+('Betriebsdaten II'!$T$26=0),\"\",C629/'Betriebsdaten II'!$T$26)","v":""},"","",""]
[null,null,null,null,null,null,null,"","","","",{"$f":"IF(ISBLANK(C630)+('Betriebsdaten II'!$T$26=0),\"\",C630/'Betriebsdaten II'!$T$26)","v":""},"","",""]
[null,null,null,null,null,null,null,"","","","",{"$f":"IF(ISBLANK(C631)+('Betriebsdaten II'!$T$26=0),\"\",C631/'Betriebsdaten II'!$T$26)","v":""},"","",""]
[null,null,null,null,null,null,null,"","","","",{"$f":"IF(ISBLANK(C632)+('Betriebsdaten II'!$T$26=0),\"\",C632/'Betriebsdaten II'!$T$26)","v":""},"","",""]
[null,null,null,null,null,null,null,"","","","",{"$f":"IF(ISBLANK(C633)+('Betriebsdaten II'!$T$26=0),\"\",C633/'Betriebsdaten II'!$T$26)","v":""},"","",""]
[null,null,null,null,null,null,null,"","","","",{"$f":"IF(ISBLANK(C634)+('Betriebsdaten II'!$T$26=0),\"\",C634/'Betriebsdaten II'!$T$26)","v":""},"","",""]
[null,null,null,null,null,null,null,"","","","",{"$f":"IF(ISBLANK(C635)+('Betriebsdaten II'!$T$26=0),\"\",C635/'Betriebsdaten II'!$T$26)","v":""},"","",""]
[null,null,null,null,null,null,null,"","","","",{"$f":"IF(ISBLANK(C636)+('Betriebsdaten II'!$T$26=0),\"\",C636/'Betriebsdaten II'!$T$26)","v":""},"","",""]
[null,null,null,null,null,null,null,"","","","",{"$f":"IF(ISBLANK(C637)+('Betriebsdaten II'!$T$26=0),\"\",C637/'Betriebsdaten II'!$T$26)","v":""},"","",""]
[null,null,null,null,null,null,null,"","","","",{"$f":"IF(ISBLANK(C638)+('Betriebsdaten II'!$T$26=0),\"\",C638/'Betriebsdaten II'!$T$26)","v":""},"","",""]
[null,null,null,null,null,null,null,"","","","",{"$f":"IF(ISBLANK(C639)+('Betriebsdaten II'!$T$26=0),\"\",C639/'Betriebsdaten II'!$T$26)","v":""},"","",""]
[null,null,null,null,null,null,null,"","","","",{"$f":"IF(ISBLANK(C640)+('Betriebsdaten II'!$T$26=0),\"\",C640/'Betriebsdaten II'!$T$26)","v":""},"","",""]
[null,null,null,null,null,null,null,"","","","",{"$f":"IF(ISBLANK(C641)+('Betriebsdaten II'!$T$26=0),\"\",C641/'Betriebsdaten II'!$T$26)","v":""},"","",""]
[null,null,null,null,null,null,null,"","","","",{"$f":"IF(ISBLANK(C642)+('Betriebsdaten II'!$T$26=0),\"\",C642/'Betriebsdaten II'!$T$26)","v":""},"","",""]
[null,null,null,null,null,null,null,"","","","",{"$f":"IF(ISBLANK(C643)+('Betriebsdaten II'!$T$26=0),\"\",C643/'Betriebsdaten II'!$T$26)","v":""},"","",""]
[null,null,null,null,null,null,null,"","","","",{"$f":"IF(ISBLANK(C644)+('Betriebsdaten II'!$T$26=0),\"\",C644/'Betriebsdaten II'!$T$26)","v":""},"","",""]
[null,null,null,null,null,null,null,"","","","",{"$f":"IF(ISBLANK(C645)+('Betriebsdaten II'!$T$26=0),\"\",C645/'Betriebsdaten II'!$T$26)","v":""},"","",""]
[null,null,null,null,null,null,null,"","","","",{"$f":"IF(ISBLANK(C646)+('Betriebsdaten II'!$T$26=0),\"\",C646/'Betriebsdaten II'!$T$26)","v":""},"","",""]
[null,null,null,null,null,null,null,"","","","",{"$f":"IF(ISBLANK(C647)+('Betriebsdaten II'!$T$26=0),\"\",C647/'Betriebsdaten II'!$T$26)","v":""},"","",""]
[null,null,null,null,null,null,null,"","","","",{"$f":"IF(ISBLANK(C648)+('Betriebsdaten II'!$T$26=0),\"\",C648/'Betriebsdaten II'!$T$26)","v":""},"","",""]
[null,null,null,null,null,null,null,"","","","",{"$f":"IF(ISBLANK(C649)+('Betriebsdaten II'!$T$26=0),\"\",C649/'Betriebsdaten II'!$T$26)","v":""},"","",""]
[null,null,null,null,null,null,null,{"$f":"IF(ISBLANK(A650),\"\",NetzvorlaufTemp)","v":""},{"$f":"IF(ISBLANK(A650),\"\",NetzrücklaufTemp)","v":""},"","",{"$f":"IF(ISBLANK(C650)+('Betriebsdaten II'!$T$26=0),\"\",C650/'Betriebsdaten II'!$T$26)","v":""},{"$f":"IF(ISERR(J650*L650),\"\",J650*L650)","v":""},"",{"$f":"IF(N650=\"\",\"\",IF(AND(N650<5,K650<30), \"Optimierungsmöglichkeiten prüfen!\",\"\"))","v":""}]
[null,null,null,null,null,null,null,"","",{"$f":"IF((SUM(E651)=0)+(SUM(C651)=0),\"\",E651/C651*1000)","v":""},{"$f":"IF(J651=\"\",\"\",C651/(4.189*978*E651/3600))","v":""},{"$f":"IF(ISBLANK(C651)+('Betriebsdaten II'!$T$26=0),\"\",C651/'Betriebsdaten II'!$T$26)","v":""},"",{"$f":"IF(ISERR(RANK(M651,$M$10:$M$1210)),\"\",RANK(M651,$M$10:$M$1210))","v":""},""]
[null,null,null,null,null,null,null,"","","","",{"$f":"IF(ISBLANK(C652)+('Betriebsdaten II'!$T$26=0),\"\",C652/'Betriebsdaten II'!$T$26)","v":""},"","",""]
[null,null,null,null,null,null,null,"","","","",{"$f":"IF(ISBLANK(C653)+('Betriebsdaten II'!$T$26=0),\"\",C653/'Betriebsdaten II'!$T$26)","v":""},"","",""]
[null,null,null,null,null,null,null,"","","","",{"$f":"IF(ISBLANK(C654)+('Betriebsdaten II'!$T$26=0),\"\",C654/'Betriebsdaten II'!$T$26)","v":""},"","",""]
[null,null,null,null,null,null,null,"","","","",{"$f":"IF(ISBLANK(C655)+('Betriebsdaten II'!$T$26=0),\"\",C655/'Betriebsdaten II'!$T$26)","v":""},"","",""]
[null,null,null,null,null,null,null,"","","","",{"$f":"IF(ISBLANK(C656)+('Betriebsdaten II'!$T$26=0),\"\",C656/'Betriebsdaten II'!$T$26)","v":""},"","",""]
[null,null,null,null,null,null,null,"","","","",{"$f":"IF(ISBLANK(C657)+('Betriebsdaten II'!$T$26=0),\"\",C657/'Betriebsdaten II'!$T$26)","v":""},"","",""]
[null,null,null,null,null,null,null,"","","","",{"$f":"IF(ISBLANK(C658)+('Betriebsdaten II'!$T$26=0),\"\",C658/'Betriebsdaten II'!$T$26)","v":""},"","",""]
[null,null,null,null,null,null,null,"","","","",{"$f":"IF(ISBLANK(C659)+('Betriebsdaten II'!$T$26=0),\"\",C659/'Betriebsdaten II'!$T$26)","v":""},"","",""]
[null,null,null,null,null,null,null,"","","","",{"$f":"IF(ISBLANK(C660)+('Betriebsdaten II'!$T$26=0),\"\",C660/'Betriebsdaten II'!$T$26)","v":""},"","",""]
[null,null,null,null,null,null,null,"","","","",{"$f":"IF(ISBLANK(C661)+('Betriebsdaten II'!$T$26=0),\"\",C661/'Betriebsdaten II'!$T$26)","v":""},"","",""]
[null,null,null,null,null,null,null,"","","","",{"$f":"IF(ISBLANK(C662)+('Betriebsdaten II'!$T$26=0),\"\",C662/'Betriebsdaten II'!$T$26)","v":""},"","",""]
[null,null,null,null,null,null,null,"","","","",{"$f":"IF(ISBLANK(C663)+('Betriebsdaten II'!$T$26=0),\"\",C663/'Betriebsdaten II'!$T$26)","v":""},"","",""]
[null,null,null,null,null,null,null,"","","","",{"$f":"IF(ISBLANK(C664)+('Betriebsdaten II'!$T$26=0),\"\",C664/'Betriebsdaten II'!$T$26)","v":""},"","",""]
[null,null,null,null,null,null,null,"","","","",{"$f":"IF(ISBLANK(C665)+('Betriebsdaten II'!$T$26=0),\"\",C665/'Betriebsdaten II'!$T$26)","v":""},"","",""]
[null,null,null,null,null,null,null,"","","","",{"$f":"IF(ISBLANK(C666)+('Betriebsdaten II'!$T$26=0),\"\",C666/'Betriebsdaten II'!$T$26)","v":""},"","",""]
[null,null,null,null,null,null,null,"","","","",{"$f":"IF(ISBLANK(C667)+('Betriebsdaten II'!$T$26=0),\"\",C667/'Betriebsdaten II'!$T$26)","v":""},"","",""]
[null,null,null,null,null,null,null,"","","","",{"$f":"IF(ISBLANK(C668)+('Betriebsdaten II'!$T$26=0),\"\",C668/'Betriebsdaten II'!$T$26)","v":""},"","",""]
[null,null,null,null,null,null,null,"","","","",{"$f":"IF(ISBLANK(C669)+('Betriebsdaten II'!$T$26=0),\"\",C669/'Betriebsdaten II'!$T$26)","v":""},"","",""]
[null,null,null,null,null,null,null,"","","","",{"$f":"IF(ISBLANK(C670)+('Betriebsdaten II'!$T$26=0),\"\",C670/'Betriebsdaten II'!$T$26)","v":""},"","",""]
[null,null,null,null,null,null,null,"","","","",{"$f":"IF(ISBLANK(C671)+('Betriebsdaten II'!$T$26=0),\"\",C671/'Betriebsdaten II'!$T$26)","v":""},"","",""]
[null,null,null,null,null,null,null,"","","","",{"$f":"IF(ISBLANK(C672)+('Betriebsdaten II'!$T$26=0),\"\",C672/'Betriebsdaten II'!$T$26)","v":""},"","",""]
[null,null,null,null,null,null,null,"","","","",{"$f":"IF(ISBLANK(C673)+('Betriebsdaten II'!$T$26=0),\"\",C673/'Betriebsdaten II'!$T$26)","v":""},"","",""]
[null,null,null,null,null,null,null,"","","","",{"$f":"IF(ISBLANK(C674)+('Betriebsdaten II'!$T$26=0),\"\",C674/'Betriebsdaten II'!$T$26)","v":""},"","",""]
[null,null,null,null,null,null,null,"","","","",{"$f":"IF(ISBLANK(C675)+('Betriebsdaten II'!$T$26=0),\"\",C675/'Betriebsdaten II'!$T$26)","v":""},"","",""]
[null,null,null,null,null,null,null,"","","","",{"$f":"IF(ISBLANK(C676)+('Betriebsdaten II'!$T$26=0),\"\",C676/'Betriebsdaten II'!$T$26)","v":""},"","",""]
[null,null,null,null,null,null,null,"","","","",{"$f":"IF(ISBLANK(C677)+('Betriebsdaten II'!$T$26=0),\"\",C677/'Betriebsdaten II'!$T$26)","v":""},"","",""]
[null,null,null,null,null,null,null,"","","","",{"$f":"IF(ISBLANK(C678)+('Betriebsdaten II'!$T$26=0),\"\",C678/'Betriebsdaten II'!$T$26)","v":""},"","",""]
[null,null,null,null,null,null,null,"","","","",{"$f":"IF(ISBLANK(C679)+('Betriebsdaten II'!$T$26=0),\"\",C679/'Betriebsdaten II'!$T$26)","v":""},"","",""]
[null,null,null,null,null,null,null,"","","","",{"$f":"IF(ISBLANK(C680)+('Betriebsdaten II'!$T$26=0),\"\",C680/'Betriebsdaten II'!$T$26)","v":""},"","",""]
[null,null,null,null,null,null,null,"","","","",{"$f":"IF(ISBLANK(C681)+('Betriebsdaten II'!$T$26=0),\"\",C681/'Betriebsdaten II'!$T$26)","v":""},"","",""]
[null,null,null,null,null,null,null,"","","","",{"$f":"IF(ISBLANK(C682)+('Betriebsdaten II'!$T$26=0),\"\",C682/'Betriebsdaten II'!$T$26)","v":""},"","",""]
[null,null,null,null,null,null,null,"","","","",{"$f":"IF(ISBLANK(C683)+('Betriebsdaten II'!$T$26=0),\"\",C683/'Betriebsdaten II'!$T$26)","v":""},"","",""]
[null,null,null,null,null,null,null,"","","","",{"$f":"IF(ISBLANK(C684)+('Betriebsdaten II'!$T$26=0),\"\",C684/'Betriebsdaten II'!$T$26)","v":""},"","",""]
[null,null,null,null,null,null,null,"","","","",{"$f":"IF(ISBLANK(C685)+('Betriebsdaten II'!$T$26=0),\"\",C685/'Betriebsdaten II'!$T$26)","v":""},"","",""]
[null,null,null,null,null,null,null,"","","","",{"$f":"IF(ISBLANK(C686)+('Betriebsdaten II'!$T$26=0),\"\",C686/'Betriebsdaten II'!$T$26)","v":""},"","",""]
[null,null,null,null,null,null,null,"","","","",{"$f":"IF(ISBLANK(C687)+('Betriebsdaten II'!$T$26=0),\"\",C687/'Betriebsdaten II'!$T$26)","v":""},"","",""]
[null,null,null,null,null,null,null,"","","","",{"$f":"IF(ISBLANK(C688)+('Betriebsdaten II'!$T$26=0),\"\",C688/'Betriebsdaten II'!$T$26)","v":""},"","",""]
[null,null,null,null,null,null,null,"","","","",{"$f":"IF(ISBLANK(C689)+('Betriebsdaten II'!$T$26=0),\"\",C689/'Betriebsdaten II'!$T$26)","v":""},"","",""]
[null,null,null,null,null,null,null,"","","","",{"$f":"IF(ISBLANK(C690)+('Betriebsdaten II'!$T$26=0),\"\",C690/'Betriebsdaten II'!$T$26)","v":""},"","",""]
[null,null,null,null,null,null,null,"","","","",{"$f":"IF(ISBLANK(C691)+('Betriebsdaten II'!$T$26=0),\"\",C691/'Betriebsdaten II'!$T$26)","v":""},"","",""]
[null,null,null,null,null,null,null,"","","","",{"$f":"IF(ISBLANK(C692)+('Betriebsdaten II'!$T$26=0),\"\",C692/'Betriebsdaten II'!$T$26)","v":""},"","",""]
[null,null,null,null,null,null,null,"","","","",{"$f":"IF(ISBLANK(C693)+('Betriebsdaten II'!$T$26=0),\"\",C693/'Betriebsdaten II'!$T$26)","v":""},"","",""]
[null,null,null,null,null,null,null,"","","","",{"$f":"IF(ISBLANK(C694)+('Betriebsdaten II'!$T$26=0),\"\",C694/'Betriebsdaten II'!$T$26)","v":""},"","",""]
[null,null,null,null,null,null,null,"","","","",{"$f":"IF(ISBLANK(C695)+('Betriebsdaten II'!$T$26=0),\"\",C695/'Betriebsdaten II'!$T$26)","v":""},"","",""]
[null,null,null,null,null,null,null,"","","","",{"$f":"IF(ISBLANK(C696)+('Betriebsdaten II'!$T$26=0),\"\",C696/'Betriebsdaten II'!$T$26)","v":""},"","",""]
[null,null,null,null,null,null,null,"","","","",{"$f":"IF(ISBLANK(C697)+('Betriebsdaten II'!$T$26=0),\"\",C697/'Betriebsdaten II'!$T$26)","v":""},"","",""]
[null,null,null,null,null,null,null,"","","","",{"$f":"IF(ISBLANK(C698)+('Betriebsdaten II'!$T$26=0),\"\",C698/'Betriebsdaten II'!$T$26)","v":""},"","",""]
[null,null,null,null,null,null,null,"","","","",{"$f":"IF(ISBLANK(C699)+('Betriebsdaten II'!$T$26=0),\"\",C699/'Betriebsdaten II'!$T$26)","v":""},"","",""]
[null,null,null,null,null,null,null,"","","","",{"$f":"IF(ISBLANK(C700)+('Betriebsdaten II'!$T$26=0),\"\",C700/'Betriebsdaten II'!$T$26)","v":""},"","",""]
[null,null,null,null,null,null,null,"","","","",{"$f":"IF(ISBLANK(C701)+('Betriebsdaten II'!$T$26=0),\"\",C701/'Betriebsdaten II'!$T$26)","v":""},"","",""]
[null,null,null,null,null,null,null,"","","","",{"$f":"IF(ISBLANK(C702)+('Betriebsdaten II'!$T$26=0),\"\",C702/'Betriebsdaten II'!$T$26)","v":""},"","",""]
[null,null,null,null,null,null,null,"","","","",{"$f":"IF(ISBLANK(C703)+('Betriebsdaten II'!$T$26=0),\"\",C703/'Betriebsdaten II'!$T$26)","v":""},"","",""]
[null,null,null,null,null,null,null,"","","","",{"$f":"IF(ISBLANK(C704)+('Betriebsdaten II'!$T$26=0),\"\",C704/'Betriebsdaten II'!$T$26)","v":""},"","",""]
[null,null,null,null,null,null,null,"","","","",{"$f":"IF(ISBLANK(C705)+('Betriebsdaten II'!$T$26=0),\"\",C705/'Betriebsdaten II'!$T$26)","v":""},"","",""]
[null,null,null,null,null,null,null,"","","","",{"$f":"IF(ISBLANK(C706)+('Betriebsdaten II'!$T$26=0),\"\",C706/'Betriebsdaten II'!$T$26)","v":""},"","",""]
[null,null,null,null,null,null,null,"","","","",{"$f":"IF(ISBLANK(C707)+('Betriebsdaten II'!$T$26=0),\"\",C707/'Betriebsdaten II'!$T$26)","v":""},"","",""]
[null,null,null,null,null,null,null,"","","","",{"$f":"IF(ISBLANK(C708)+('Betriebsdaten II'!$T$26=0),\"\",C708/'Betriebsdaten II'!$T$26)","v":""},"","",""]
[null,null,null,null,null,null,null,"","","","",{"$f":"IF(ISBLANK(C709)+('Betriebsdaten II'!$T$26=0),\"\",C709/'Betriebsdaten II'!$T$26)","v":""},"","",""]
[null,null,null,null,null,null,null,"","","","",{"$f":"IF(ISBLANK(C710)+('Betriebsdaten II'!$T$26=0),\"\",C710/'Betriebsdaten II'!$T$26)","v":""},"","",""]
[null,null,null,null,null,null,null,"","","","",{"$f":"IF(ISBLANK(C711)+('Betriebsdaten II'!$T$26=0),\"\",C711/'Betriebsdaten II'!$T$26)","v":""},"","",""]
[null,null,null,null,null,null,null,"","","","",{"$f":"IF(ISBLANK(C712)+('Betriebsdaten II'!$T$26=0),\"\",C712/'Betriebsdaten II'!$T$26)","v":""},"","",""]
[null,null,null,null,null,null,null,"","","","",{"$f":"IF(ISBLANK(C713)+('Betriebsdaten II'!$T$26=0),\"\",C713/'Betriebsdaten II'!$T$26)","v":""},"","",""]
[null,null,null,null,null,null,null,{"$f":"IF(ISBLANK(A714),\"\",NetzvorlaufTemp)","v":""},{"$f":"IF(ISBLANK(A714),\"\",NetzrücklaufTemp)","v":""},"","",{"$f":"IF(ISBLANK(C714)+('Betriebsdaten II'!$T$26=0),\"\",C714/'Betriebsdaten II'!$T$26)","v":""},{"$f":"IF(ISERR(J714*L714),\"\",J714*L714)","v":""},"",{"$f":"IF(N714=\"\",\"\",IF(AND(N714<5,K714<30), \"Optimierungsmöglichkeiten prüfen!\",\"\"))","v":""}]
[null,null,null,null,null,null,null,"","",{"$f":"IF((SUM(E715)=0)+(SUM(C715)=0),\"\",E715/C715*1000)","v":""},{"$f":"IF(J715=\"\",\"\",C715/(4.189*978*E715/3600))","v":""},{"$f":"IF(ISBLANK(C715)+('Betriebsdaten II'!$T$26=0),\"\",C715/'Betriebsdaten II'!$T$26)","v":""},"",{"$f":"IF(ISERR(RANK(M715,$M$10:$M$1210)),\"\",RANK(M715,$M$10:$M$1210))","v":""},""]
[null,null,null,null,null,null,null,"","","","",{"$f":"IF(ISBLANK(C716)+('Betriebsdaten II'!$T$26=0),\"\",C716/'Betriebsdaten II'!$T$26)","v":""},"","",""]
[null,null,null,null,null,null,null,"","","","",{"$f":"IF(ISBLANK(C717)+('Betriebsdaten II'!$T$26=0),\"\",C717/'Betriebsdaten II'!$T$26)","v":""},"","",""]
[null,null,null,null,null,null,null,"","","","",{"$f":"IF(ISBLANK(C718)+('Betriebsdaten II'!$T$26=0),\"\",C718/'Betriebsdaten II'!$T$26)","v":""},"","",""]
[null,null,null,null,null,null,null,"","","","",{"$f":"IF(ISBLANK(C719)+('Betriebsdaten II'!$T$26=0),\"\",C719/'Betriebsdaten II'!$T$26)","v":""},"","",""]
[null,null,null,null,null,null,null,"","","","",{"$f":"IF(ISBLANK(C720)+('Betriebsdaten II'!$T$26=0),\"\",C720/'Betriebsdaten II'!$T$26)","v":""},"","",""]
[null,null,null,null,null,null,null,"","","","",{"$f":"IF(ISBLANK(C721)+('Betriebsdaten II'!$T$26=0),\"\",C721/'Betriebsdaten II'!$T$26)","v":""},"","",""]
[null,null,null,null,null,null,null,"","","","",{"$f":"IF(ISBLANK(C722)+('Betriebsdaten II'!$T$26=0),\"\",C722/'Betriebsdaten II'!$T$26)","v":""},"","",""]
[null,null,null,null,null,null,null,"","","","",{"$f":"IF(ISBLANK(C723)+('Betriebsdaten II'!$T$26=0),\"\",C723/'Betriebsdaten II'!$T$26)","v":""},"","",""]
[null,null,null,null,null,null,null,"","","","",{"$f":"IF(ISBLANK(C724)+('Betriebsdaten II'!$T$26=0),\"\",C724/'Betriebsdaten II'!$T$26)","v":""},"","",""]
[null,null,null,null,null,null,null,"","","","",{"$f":"IF(ISBLANK(C725)+('Betriebsdaten II'!$T$26=0),\"\",C725/'Betriebsdaten II'!$T$26)","v":""},"","",""]
[null,null,null,null,null,null,null,"","","","",{"$f":"IF(ISBLANK(C726)+('Betriebsdaten II'!$T$26=0),\"\",C726/'Betriebsdaten II'!$T$26)","v":""},"","",""]
[null,null,null,null,null,null,null,"","","","",{"$f":"IF(ISBLANK(C727)+('Betriebsdaten II'!$T$26=0),\"\",C727/'Betriebsdaten II'!$T$26)","v":""},"","",""]
[null,null,null,null,null,null,null,"","","","",{"$f":"IF(ISBLANK(C728)+('Betriebsdaten II'!$T$26=0),\"\",C728/'Betriebsdaten II'!$T$26)","v":""},"","",""]
[null,null,null,null,null,null,null,"","","","",{"$f":"IF(ISBLANK(C729)+('Betriebsdaten II'!$T$26=0),\"\",C729/'Betriebsdaten II'!$T$26)","v":""},"","",""]
[null,null,null,null,null,null,null,"","","","",{"$f":"IF(ISBLANK(C730)+('Betriebsdaten II'!$T$26=0),\"\",C730/'Betriebsdaten II'!$T$26)","v":""},"","",""]
[null,null,null,null,null,null,null,"","","","",{"$f":"IF(ISBLANK(C731)+('Betriebsdaten II'!$T$26=0),\"\",C731/'Betriebsdaten II'!$T$26)","v":""},"","",""]
[null,null,null,null,null,null,null,"","","","",{"$f":"IF(ISBLANK(C732)+('Betriebsdaten II'!$T$26=0),\"\",C732/'Betriebsdaten II'!$T$26)","v":""},"","",""]
[null,null,null,null,null,null,null,"","","","",{"$f":"IF(ISBLANK(C733)+('Betriebsdaten II'!$T$26=0),\"\",C733/'Betriebsdaten II'!$T$26)","v":""},"","",""]
[null,null,null,null,null,null,null,"","","","",{"$f":"IF(ISBLANK(C734)+('Betriebsdaten II'!$T$26=0),\"\",C734/'Betriebsdaten II'!$T$26)","v":""},"","",""]
[null,null,null,null,null,null,null,"","","","",{"$f":"IF(ISBLANK(C735)+('Betriebsdaten II'!$T$26=0),\"\",C735/'Betriebsdaten II'!$T$26)","v":""},"","",""]
[null,null,null,null,null,null,null,"","","","",{"$f":"IF(ISBLANK(C736)+('Betriebsdaten II'!$T$26=0),\"\",C736/'Betriebsdaten II'!$T$26)","v":""},"","",""]
[null,null,null,null,null,null,null,"","","","",{"$f":"IF(ISBLANK(C737)+('Betriebsdaten II'!$T$26=0),\"\",C737/'Betriebsdaten II'!$T$26)","v":""},"","",""]
[null,null,null,null,null,null,null,"","","","",{"$f":"IF(ISBLANK(C738)+('Betriebsdaten II'!$T$26=0),\"\",C738/'Betriebsdaten II'!$T$26)","v":""},"","",""]
[null,null,null,null,null,null,null,"","","","",{"$f":"IF(ISBLANK(C739)+('Betriebsdaten II'!$T$26=0),\"\",C739/'Betriebsdaten II'!$T$26)","v":""},"","",""]
[null,null,null,null,null,null,null,"","","","",{"$f":"IF(ISBLANK(C740)+('Betriebsdaten II'!$T$26=0),\"\",C740/'Betriebsdaten II'!$T$26)","v":""},"","",""]
[null,null,null,null,null,null,null,"","","","",{"$f":"IF(ISBLANK(C741)+('Betriebsdaten II'!$T$26=0),\"\",C741/'Betriebsdaten II'!$T$26)","v":""},"","",""]
[null,null,null,null,null,null,null,"","","","",{"$f":"IF(ISBLANK(C742)+('Betriebsdaten II'!$T$26=0),\"\",C742/'Betriebsdaten II'!$T$26)","v":""},"","",""]
[null,null,null,null,null,null,null,"","","","",{"$f":"IF(ISBLANK(C743)+('Betriebsdaten II'!$T$26=0),\"\",C743/'Betriebsdaten II'!$T$26)","v":""},"","",""]
[null,null,null,null,null,null,null,"","","","",{"$f":"IF(ISBLANK(C744)+('Betriebsdaten II'!$T$26=0),\"\",C744/'Betriebsdaten II'!$T$26)","v":""},"","",""]
[null,null,null,null,null,null,null,"","","","",{"$f":"IF(ISBLANK(C745)+('Betriebsdaten II'!$T$26=0),\"\",C745/'Betriebsdaten II'!$T$26)","v":""},"","",""]
[null,null,null,null,null,null,null,"","","","",{"$f":"IF(ISBLANK(C746)+('Betriebsdaten II'!$T$26=0),\"\",C746/'Betriebsdaten II'!$T$26)","v":""},"","",""]
[null,null,null,null,null,null,null,"","","","",{"$f":"IF(ISBLANK(C747)+('Betriebsdaten II'!$T$26=0),\"\",C747/'Betriebsdaten II'!$T$26)","v":""},"","",""]
[null,null,null,null,null,null,null,"","","","",{"$f":"IF(ISBLANK(C748)+('Betriebsdaten II'!$T$26=0),\"\",C748/'Betriebsdaten II'!$T$26)","v":""},"","",""]
[null,null,null,null,null,null,null,"","","","",{"$f":"IF(ISBLANK(C749)+('Betriebsdaten II'!$T$26=0),\"\",C749/'Betriebsdaten II'!$T$26)","v":""},"","",""]
[null,null,null,null,null,null,null,"","","","",{"$f":"IF(ISBLANK(C750)+('Betriebsdaten II'!$T$26=0),\"\",C750/'Betriebsdaten II'!$T$26)","v":""},"","",""]
[null,null,null,null,null,null,null,"","","","",{"$f":"IF(ISBLANK(C751)+('Betriebsdaten II'!$T$26=0),\"\",C751/'Betriebsdaten II'!$T$26)","v":""},"","",""]
[null,null,null,null,null,null,null,"","","","",{"$f":"IF(ISBLANK(C752)+('Betriebsdaten II'!$T$26=0),\"\",C752/'Betriebsdaten II'!$T$26)","v":""},"","",""]
[null,null,null,null,null,null,null,"","","","",{"$f":"IF(ISBLANK(C753)+('Betriebsdaten II'!$T$26=0),\"\",C753/'Betriebsdaten II'!$T$26)","v":""},"","",""]
[null,null,null,null,null,null,null,"","","","",{"$f":"IF(ISBLANK(C754)+('Betriebsdaten II'!$T$26=0),\"\",C754/'Betriebsdaten II'!$T$26)","v":""},"","",""]
[null,null,null,null,null,null,null,"","","","",{"$f":"IF(ISBLANK(C755)+('Betriebsdaten II'!$T$26=0),\"\",C755/'Betriebsdaten II'!$T$26)","v":""},"","",""]
[null,null,null,null,null,null,null,"","","","",{"$f":"IF(ISBLANK(C756)+('Betriebsdaten II'!$T$26=0),\"\",C756/'Betriebsdaten II'!$T$26)","v":""},"","",""]
[null,null,null,null,null,null,null,"","","","",{"$f":"IF(ISBLANK(C757)+('Betriebsdaten II'!$T$26=0),\"\",C757/'Betriebsdaten II'!$T$26)","v":""},"","",""]
[null,null,null,null,null,null,null,"","","","",{"$f":"IF(ISBLANK(C758)+('Betriebsdaten II'!$T$26=0),\"\",C758/'Betriebsdaten II'!$T$26)","v":""},"","",""]
[null,null,null,null,null,null,null,"","","","",{"$f":"IF(ISBLANK(C759)+('Betriebsdaten II'!$T$26=0),\"\",C759/'Betriebsdaten II'!$T$26)","v":""},"","",""]
[null,null,null,null,null,null,null,"","","","",{"$f":"IF(ISBLANK(C760)+('Betriebsdaten II'!$T$26=0),\"\",C760/'Betriebsdaten II'!$T$26)","v":""},"","",""]
[null,null,null,null,null,null,null,"","","","",{"$f":"IF(ISBLANK(C761)+('Betriebsdaten II'!$T$26=0),\"\",C761/'Betriebsdaten II'!$T$26)","v":""},"","",""]
[null,null,null,null,null,null,null,"","","","",{"$f":"IF(ISBLANK(C762)+('Betriebsdaten II'!$T$26=0),\"\",C762/'Betriebsdaten II'!$T$26)","v":""},"","",""]
[null,null,null,null,null,null,null,"","","","",{"$f":"IF(ISBLANK(C763)+('Betriebsdaten II'!$T$26=0),\"\",C763/'Betriebsdaten II'!$T$26)","v":""},"","",""]
[null,null,null,null,null,null,null,"","","","",{"$f":"IF(ISBLANK(C764)+('Betriebsdaten II'!$T$26=0),\"\",C764/'Betriebsdaten II'!$T$26)","v":""},"","",""]
[null,null,null,null,null,null,null,"","","","",{"$f":"IF(ISBLANK(C765)+('Betriebsdaten II'!$T$26=0),\"\",C765/'Betriebsdaten II'!$T$26)","v":""},"","",""]
[null,null,null,null,null,null,null,"","","","",{"$f":"IF(ISBLANK(C766)+('Betriebsdaten II'!$T$26=0),\"\",C766/'Betriebsdaten II'!$T$26)","v":""},"","",""]
[null,null,null,null,null,null,null,"","","","",{"$f":"IF(ISBLANK(C767)+('Betriebsdaten II'!$T$26=0),\"\",C767/'Betriebsdaten II'!$T$26)","v":""},"","",""]
[null,null,null,null,null,null,null,"","","","",{"$f":"IF(ISBLANK(C768)+('Betriebsdaten II'!$T$26=0),\"\",C768/'Betriebsdaten II'!$T$26)","v":""},"","",""]
[null,null,null,null,null,null,null,"","","","",{"$f":"IF(ISBLANK(C769)+('Betriebsdaten II'!$T$26=0),\"\",C769/'Betriebsdaten II'!$T$26)","v":""},"","",""]
[null,null,null,null,null,null,null,"","","","",{"$f":"IF(ISBLANK(C770)+('Betriebsdaten II'!$T$26=0),\"\",C770/'Betriebsdaten II'!$T$26)","v":""},"","",""]
[null,null,null,null,null,null,null,"","","","",{"$f":"IF(ISBLANK(C771)+('Betriebsdaten II'!$T$26=0),\"\",C771/'Betriebsdaten II'!$T$26)","v":""},"","",""]
[null,null,null,null,null,null,null,"","","","",{"$f":"IF(ISBLANK(C772)+('Betriebsdaten II'!$T$26=0),\"\",C772/'Betriebsdaten II'!$T$26)","v":""},"","",""]
[null,null,null,null,null,null,null,"","","","",{"$f":"IF(ISBLANK(C773)+('Betriebsdaten II'!$T$26=0),\"\",C773/'Betriebsdaten II'!$T$26)","v":""},"","",""]
[null,null,null,null,null,null,null,"","","","",{"$f":"IF(ISBLANK(C774)+('Betriebsdaten II'!$T$26=0),\"\",C774/'Betriebsdaten II'!$T$26)","v":""},"","",""]
[null,null,null,null,null,null,null,"","","","",{"$f":"IF(ISBLANK(C775)+('Betriebsdaten II'!$T$26=0),\"\",C775/'Betriebsdaten II'!$T$26)","v":""},"","",""]
[null,null,null,null,null,null,null,"","","","",{"$f":"IF(ISBLANK(C776)+('Betriebsdaten II'!$T$26=0),\"\",C776/'Betriebsdaten II'!$T$26)","v":""},"","",""]
[null,null,null,null,null,null,null,"","","","",{"$f":"IF(ISBLANK(C777)+('Betriebsdaten II'!$T$26=0),\"\",C777/'Betriebsdaten II'!$T$26)","v":""},"","",""]
[null,null,null,null,null,null,null,{"$f":"IF(ISBLANK(A778),\"\",NetzvorlaufTemp)","v":""},{"$f":"IF(ISBLANK(A778),\"\",NetzrücklaufTemp)","v":""},"","",{"$f":"IF(ISBLANK(C778)+('Betriebsdaten II'!$T$26=0),\"\",C778/'Betriebsdaten II'!$T$26)","v":""},{"$f":"IF(ISERR(J778*L778),\"\",J778*L778)","v":""},"",{"$f":"IF(N778=\"\",\"\",IF(AND(N778<5,K778<30), \"Optimierungsmöglichkeiten prüfen!\",\"\"))","v":""}]
[null,null,null,null,null,null,null,"","",{"$f":"IF((SUM(E779)=0)+(SUM(C779)=0),\"\",E779/C779*1000)","v":""},{"$f":"IF(J779=\"\",\"\",C779/(4.189*978*E779/3600))","v":""},{"$f":"IF(ISBLANK(C779)+('Betriebsdaten II'!$T$26=0),\"\",C779/'Betriebsdaten II'!$T$26)","v":""},"",{"$f":"IF(ISERR(RANK(M779,$M$10:$M$1210)),\"\",RANK(M779,$M$10:$M$1210))","v":""},""]
[null,null,null,null,null,null,null,"","","","",{"$f":"IF(ISBLANK(C780)+('Betriebsdaten II'!$T$26=0),\"\",C780/'Betriebsdaten II'!$T$26)","v":""},"","",""]
[null,null,null,null,null,null,null,"","","","",{"$f":"IF(ISBLANK(C781)+('Betriebsdaten II'!$T$26=0),\"\",C781/'Betriebsdaten II'!$T$26)","v":""},"","",""]
[null,null,null,null,null,null,null,"","","","",{"$f":"IF(ISBLANK(C782)+('Betriebsdaten II'!$T$26=0),\"\",C782/'Betriebsdaten II'!$T$26)","v":""},"","",""]
[null,null,null,null,null,null,null,"","","","",{"$f":"IF(ISBLANK(C783)+('Betriebsdaten II'!$T$26=0),\"\",C783/'Betriebsdaten II'!$T$26)","v":""},"","",""]
[null,null,null,null,null,null,null,"","","","",{"$f":"IF(ISBLANK(C784)+('Betriebsdaten II'!$T$26=0),\"\",C784/'Betriebsdaten II'!$T$26)","v":""},"","",""]
[null,null,null,null,null,null,null,"","","","",{"$f":"IF(ISBLANK(C785)+('Betriebsdaten II'!$T$26=0),\"\",C785/'Betriebsdaten II'!$T$26)","v":""},"","",""]
[null,null,null,null,null,null,null,"","","","",{"$f":"IF(ISBLANK(C786)+('Betriebsdaten II'!$T$26=0),\"\",C786/'Betriebsdaten II'!$T$26)","v":""},"","",""]
[null,null,null,null,null,null,null,"","","","",{"$f":"IF(ISBLANK(C787)+('Betriebsdaten II'!$T$26=0),\"\",C787/'Betriebsdaten II'!$T$26)","v":""},"","",""]
[null,null,null,null,null,null,null,"","","","",{"$f":"IF(ISBLANK(C788)+('Betriebsdaten II'!$T$26=0),\"\",C788/'Betriebsdaten II'!$T$26)","v":""},"","",""]
[null,null,null,null,null,null,null,"","","","",{"$f":"IF(ISBLANK(C789)+('Betriebsdaten II'!$T$26=0),\"\",C789/'Betriebsdaten II'!$T$26)","v":""},"","",""]
[null,null,null,null,null,null,null,"","","","",{"$f":"IF(ISBLANK(C790)+('Betriebsdaten II'!$T$26=0),\"\",C790/'Betriebsdaten II'!$T$26)","v":""},"","",""]
[null,null,null,null,null,null,null,"","","","",{"$f":"IF(ISBLANK(C791)+('Betriebsdaten II'!$T$26=0),\"\",C791/'Betriebsdaten II'!$T$26)","v":""},"","",""]
[null,null,null,null,null,null,null,"","","","",{"$f":"IF(ISBLANK(C792)+('Betriebsdaten II'!$T$26=0),\"\",C792/'Betriebsdaten II'!$T$26)","v":""},"","",""]
[null,null,null,null,null,null,null,"","","","",{"$f":"IF(ISBLANK(C793)+('Betriebsdaten II'!$T$26=0),\"\",C793/'Betriebsdaten II'!$T$26)","v":""},"","",""]
[null,null,null,null,null,null,null,"","","","",{"$f":"IF(ISBLANK(C794)+('Betriebsdaten II'!$T$26=0),\"\",C794/'Betriebsdaten II'!$T$26)","v":""},"","",""]
[null,null,null,null,null,null,null,"","","","",{"$f":"IF(ISBLANK(C795)+('Betriebsdaten II'!$T$26=0),\"\",C795/'Betriebsdaten II'!$T$26)","v":""},"","",""]
[null,null,null,null,null,null,null,"","","","",{"$f":"IF(ISBLANK(C796)+('Betriebsdaten II'!$T$26=0),\"\",C796/'Betriebsdaten II'!$T$26)","v":""},"","",""]
[null,null,null,null,null,null,null,"","","","",{"$f":"IF(ISBLANK(C797)+('Betriebsdaten II'!$T$26=0),\"\",C797/'Betriebsdaten II'!$T$26)","v":""},"","",""]
[null,null,null,null,null,null,null,"","","","",{"$f":"IF(ISBLANK(C798)+('Betriebsdaten II'!$T$26=0),\"\",C798/'Betriebsdaten II'!$T$26)","v":""},"","",""]
[null,null,null,null,null,null,null,"","","","",{"$f":"IF(ISBLANK(C799)+('Betriebsdaten II'!$T$26=0),\"\",C799/'Betriebsdaten II'!$T$26)","v":""},"","",""]
[null,null,null,null,null,null,null,"","","","",{"$f":"IF(ISBLANK(C800)+('Betriebsdaten II'!$T$26=0),\"\",C800/'Betriebsdaten II'!$T$26)","v":""},"","",""]
[null,null,null,null,null,null,null,"","","","",{"$f":"IF(ISBLANK(C801)+('Betriebsdaten II'!$T$26=0),\"\",C801/'Betriebsdaten II'!$T$26)","v":""},"","",""]
[null,null,null,null,null,null,null,"","","","",{"$f":"IF(ISBLANK(C802)+('Betriebsdaten II'!$T$26=0),\"\",C802/'Betriebsdaten II'!$T$26)","v":""},"","",""]
[null,null,null,null,null,null,null,"","","","",{"$f":"IF(ISBLANK(C803)+('Betriebsdaten II'!$T$26=0),\"\",C803/'Betriebsdaten II'!$T$26)","v":""},"","",""]
[null,null,null,null,null,null,null,"","","","",{"$f":"IF(ISBLANK(C804)+('Betriebsdaten II'!$T$26=0),\"\",C804/'Betriebsdaten II'!$T$26)","v":""},"","",""]
[null,null,null,null,null,null,null,"","","","",{"$f":"IF(ISBLANK(C805)+('Betriebsdaten II'!$T$26=0),\"\",C805/'Betriebsdaten II'!$T$26)","v":""},"","",""]
[null,null,null,null,null,null,null,"","","","",{"$f":"IF(ISBLANK(C806)+('Betriebsdaten II'!$T$26=0),\"\",C806/'Betriebsdaten II'!$T$26)","v":""},"","",""]
[null,null,null,null,null,null,null,"","","","",{"$f":"IF(ISBLANK(C807)+('Betriebsdaten II'!$T$26=0),\"\",C807/'Betriebsdaten II'!$T$26)","v":""},"","",""]
[null,null,null,null,null,null,null,"","","","",{"$f":"IF(ISBLANK(C808)+('Betriebsdaten II'!$T$26=0),\"\",C808/'Betriebsdaten II'!$T$26)","v":""},"","",""]
[null,null,null,null,null,null,null,"","","","",{"$f":"IF(ISBLANK(C809)+('Betriebsdaten II'!$T$26=0),\"\",C809/'Betriebsdaten II'!$T$26)","v":""},"","",""]
[null,null,null,null,null,null,null,"","","","",{"$f":"IF(ISBLANK(C810)+('Betriebsdaten II'!$T$26=0),\"\",C810/'Betriebsdaten II'!$T$26)","v":""},"","",""]
[null,null,null,null,null,null,null,"","","","",{"$f":"IF(ISBLANK(C811)+('Betriebsdaten II'!$T$26=0),\"\",C811/'Betriebsdaten II'!$T$26)","v":""},"","",""]
[null,null,null,null,null,null,null,"","","","",{"$f":"IF(ISBLANK(C812)+('Betriebsdaten II'!$T$26=0),\"\",C812/'Betriebsdaten II'!$T$26)","v":""},"","",""]
[null,null,null,null,null,null,null,"","","","",{"$f":"IF(ISBLANK(C813)+('Betriebsdaten II'!$T$26=0),\"\",C813/'Betriebsdaten II'!$T$26)","v":""},"","",""]
[null,null,null,null,null,null,null,"","","","",{"$f":"IF(ISBLANK(C814)+('Betriebsdaten II'!$T$26=0),\"\",C814/'Betriebsdaten II'!$T$26)","v":""},"","",""]
[null,null,null,null,null,null,null,"","","","",{"$f":"IF(ISBLANK(C815)+('Betriebsdaten II'!$T$26=0),\"\",C815/'Betriebsdaten II'!$T$26)","v":""},"","",""]
[null,null,null,null,null,null,null,"","","","",{"$f":"IF(ISBLANK(C816)+('Betriebsdaten II'!$T$26=0),\"\",C816/'Betriebsdaten II'!$T$26)","v":""},"","",""]
[null,null,null,null,null,null,null,"","","","",{"$f":"IF(ISBLANK(C817)+('Betriebsdaten II'!$T$26=0),\"\",C817/'Betriebsdaten II'!$T$26)","v":""},"","",""]
[null,null,null,null,null,null,null,"","","","",{"$f":"IF(ISBLANK(C818)+('Betriebsdaten II'!$T$26=0),\"\",C818/'Betriebsdaten II'!$T$26)","v":""},"","",""]
[null,null,null,null,null,null,null,"","","","",{"$f":"IF(ISBLANK(C819)+('Betriebsdaten II'!$T$26=0),\"\",C819/'Betriebsdaten II'!$T$26)","v":""},"","",""]
[null,null,null,null,null,null,null,"","","","",{"$f":"IF(ISBLANK(C820)+('Betriebsdaten II'!$T$26=0),\"\",C820/'Betriebsdaten II'!$T$26)","v":""},"","",""]
[null,null,null,null,null,null,null,"","","","",{"$f":"IF(ISBLANK(C821)+('Betriebsdaten II'!$T$26=0),\"\",C821/'Betriebsdaten II'!$T$26)","v":""},"","",""]
[null,null,null,null,null,null,null,"","","","",{"$f":"IF(ISBLANK(C822)+('Betriebsdaten II'!$T$26=0),\"\",C822/'Betriebsdaten II'!$T$26)","v":""},"","",""]
[null,null,null,null,null,null,null,"","","","",{"$f":"IF(ISBLANK(C823)+('Betriebsdaten II'!$T$26=0),\"\",C823/'Betriebsdaten II'!$T$26)","v":""},"","",""]
[null,null,null,null,null,null,null,"","","","",{"$f":"IF(ISBLANK(C824)+('Betriebsdaten II'!$T$26=0),\"\",C824/'Betriebsdaten II'!$T$26)","v":""},"","",""]
[null,null,null,null,null,null,null,"","","","",{"$f":"IF(ISBLANK(C825)+('Betriebsdaten II'!$T$26=0),\"\",C825/'Betriebsdaten II'!$T$26)","v":""},"","",""]
[null,null,null,null,null,null,null,"","","","",{"$f":"IF(ISBLANK(C826)+('Betriebsdaten II'!$T$26=0),\"\",C826/'Betriebsdaten II'!$T$26)","v":""},"","",""]
[null,null,null,null,null,null,null,"","","","",{"$f":"IF(ISBLANK(C827)+('Betriebsdaten II'!$T$26=0),\"\",C827/'Betriebsdaten II'!$T$26)","v":""},"","",""]
[null,null,null,null,null,null,null,"","","","",{"$f":"IF(ISBLANK(C828)+('Betriebsdaten II'!$T$26=0),\"\",C828/'Betriebsdaten II'!$T$26)","v":""},"","",""]
[null,null,null,null,null,null,null,"","","","",{"$f":"IF(ISBLANK(C829)+('Betriebsdaten II'!$T$26=0),\"\",C829/'Betriebsdaten II'!$T$26)","v":""},"","",""]
[null,null,null,null,null,null,null,"","","","",{"$f":"IF(ISBLANK(C830)+('Betriebsdaten II'!$T$26=0),\"\",C830/'Betriebsdaten II'!$T$26)","v":""},"","",""]
[null,null,null,null,null,null,null,"","","","",{"$f":"IF(ISBLANK(C831)+('Betriebsdaten II'!$T$26=0),\"\",C831/'Betriebsdaten II'!$T$26)","v":""},"","",""]
[null,null,null,null,null,null,null,"","","","",{"$f":"IF(ISBLANK(C832)+('Betriebsdaten II'!$T$26=0),\"\",C832/'Betriebsdaten II'!$T$26)","v":""},"","",""]
[null,null,null,null,null,null,null,"","","","",{"$f":"IF(ISBLANK(C833)+('Betriebsdaten II'!$T$26=0),\"\",C833/'Betriebsdaten II'!$T$26)","v":""},"","",""]
[null,null,null,null,null,null,null,"","","","",{"$f":"IF(ISBLANK(C834)+('Betriebsdaten II'!$T$26=0),\"\",C834/'Betriebsdaten II'!$T$26)","v":""},"","",""]
[null,null,null,null,null,null,null,"","","","",{"$f":"IF(ISBLANK(C835)+('Betriebsdaten II'!$T$26=0),\"\",C835/'Betriebsdaten II'!$T$26)","v":""},"","",""]
[null,null,null,null,null,null,null,"","","","",{"$f":"IF(ISBLANK(C836)+('Betriebsdaten II'!$T$26=0),\"\",C836/'Betriebsdaten II'!$T$26)","v":""},"","",""]
[null,null,null,null,null,null,null,"","","","",{"$f":"IF(ISBLANK(C837)+('Betriebsdaten II'!$T$26=0),\"\",C837/'Betriebsdaten II'!$T$26)","v":""},"","",""]
[null,null,null,null,null,null,null,"","","","",{"$f":"IF(ISBLANK(C838)+('Betriebsdaten II'!$T$26=0),\"\",C838/'Betriebsdaten II'!$T$26)","v":""},"","",""]
[null,null,null,null,null,null,null,"","","","",{"$f":"IF(ISBLANK(C839)+('Betriebsdaten II'!$T$26=0),\"\",C839/'Betriebsdaten II'!$T$26)","v":""},"","",""]
[null,null,null,null,null,null,null,"","","","",{"$f":"IF(ISBLANK(C840)+('Betriebsdaten II'!$T$26=0),\"\",C840/'Betriebsdaten II'!$T$26)","v":""},"","",""]
[null,null,null,null,null,null,null,"","","","",{"$f":"IF(ISBLANK(C841)+('Betriebsdaten II'!$T$26=0),\"\",C841/'Betriebsdaten II'!$T$26)","v":""},"","",""]
[null,null,null,null,null,null,null,{"$f":"IF(ISBLANK(A842),\"\",NetzvorlaufTemp)","v":""},{"$f":"IF(ISBLANK(A842),\"\",NetzrücklaufTemp)","v":""},"","",{"$f":"IF(ISBLANK(C842)+('Betriebsdaten II'!$T$26=0),\"\",C842/'Betriebsdaten II'!$T$26)","v":""},{"$f":"IF(ISERR(J842*L842),\"\",J842*L842)","v":""},"",{"$f":"IF(N842=\"\",\"\",IF(AND(N842<5,K842<30), \"Optimierungsmöglichkeiten prüfen!\",\"\"))","v":""}]
[null,null,null,null,null,null,null,"","",{"$f":"IF((SUM(E843)=0)+(SUM(C843)=0),\"\",E843/C843*1000)","v":""},{"$f":"IF(J843=\"\",\"\",C843/(4.189*978*E843/3600))","v":""},{"$f":"IF(ISBLANK(C843)+('Betriebsdaten II'!$T$26=0),\"\",C843/'Betriebsdaten II'!$T$26)","v":""},"",{"$f":"IF(ISERR(RANK(M843,$M$10:$M$1210)),\"\",RANK(M843,$M$10:$M$1210))","v":""},""]
[null,null,null,null,null,null,null,"","","","",{"$f":"IF(ISBLANK(C844)+('Betriebsdaten II'!$T$26=0),\"\",C844/'Betriebsdaten II'!$T$26)","v":""},"","",""]
[null,null,null,null,null,null,null,"","","","",{"$f":"IF(ISBLANK(C845)+('Betriebsdaten II'!$T$26=0),\"\",C845/'Betriebsdaten II'!$T$26)","v":""},"","",""]
[null,null,null,null,null,null,null,"","","","",{"$f":"IF(ISBLANK(C846)+('Betriebsdaten II'!$T$26=0),\"\",C846/'Betriebsdaten II'!$T$26)","v":""},"","",""]
[null,null,null,null,null,null,null,"","","","",{"$f":"IF(ISBLANK(C847)+('Betriebsdaten II'!$T$26=0),\"\",C847/'Betriebsdaten II'!$T$26)","v":""},"","",""]
[null,null,null,null,null,null,null,"","","","",{"$f":"IF(ISBLANK(C848)+('Betriebsdaten II'!$T$26=0),\"\",C848/'Betriebsdaten II'!$T$26)","v":""},"","",""]
[null,null,null,null,null,null,null,"","","","",{"$f":"IF(ISBLANK(C849)+('Betriebsdaten II'!$T$26=0),\"\",C849/'Betriebsdaten II'!$T$26)","v":""},"","",""]
[null,null,null,null,null,null,null,"","","","",{"$f":"IF(ISBLANK(C850)+('Betriebsdaten II'!$T$26=0),\"\",C850/'Betriebsdaten II'!$T$26)","v":""},"","",""]
[null,null,null,null,null,null,null,"","","","",{"$f":"IF(ISBLANK(C851)+('Betriebsdaten II'!$T$26=0),\"\",C851/'Betriebsdaten II'!$T$26)","v":""},"","",""]
[null,null,null,null,null,null,null,"","","","",{"$f":"IF(ISBLANK(C852)+('Betriebsdaten II'!$T$26=0),\"\",C852/'Betriebsdaten II'!$T$26)","v":""},"","",""]
[null,null,null,null,null,null,null,"","","","",{"$f":"IF(ISBLANK(C853)+('Betriebsdaten II'!$T$26=0),\"\",C853/'Betriebsdaten II'!$T$26)","v":""},"","",""]
[null,null,null,null,null,null,null,"","","","",{"$f":"IF(ISBLANK(C854)+('Betriebsdaten II'!$T$26=0),\"\",C854/'Betriebsdaten II'!$T$26)","v":""},"","",""]
[null,null,null,null,null,null,null,"","","","",{"$f":"IF(ISBLANK(C855)+('Betriebsdaten II'!$T$26=0),\"\",C855/'Betriebsdaten II'!$T$26)","v":""},"","",""]
[null,null,null,null,null,null,null,"","","","",{"$f":"IF(ISBLANK(C856)+('Betriebsdaten II'!$T$26=0),\"\",C856/'Betriebsdaten II'!$T$26)","v":""},"","",""]
[null,null,null,null,null,null,null,"","","","",{"$f":"IF(ISBLANK(C857)+('Betriebsdaten II'!$T$26=0),\"\",C857/'Betriebsdaten II'!$T$26)","v":""},"","",""]
[null,null,null,null,null,null,null,"","","","",{"$f":"IF(ISBLANK(C858)+('Betriebsdaten II'!$T$26=0),\"\",C858/'Betriebsdaten II'!$T$26)","v":""},"","",""]
[null,null,null,null,null,null,null,"","","","",{"$f":"IF(ISBLANK(C859)+('Betriebsdaten II'!$T$26=0),\"\",C859/'Betriebsdaten II'!$T$26)","v":""},"","",""]
[null,null,null,null,null,null,null,"","","","",{"$f":"IF(ISBLANK(C860)+('Betriebsdaten II'!$T$26=0),\"\",C860/'Betriebsdaten II'!$T$26)","v":""},"","",""]
[null,null,null,null,null,null,null,"","","","",{"$f":"IF(ISBLANK(C861)+('Betriebsdaten II'!$T$26=0),\"\",C861/'Betriebsdaten II'!$T$26)","v":""},"","",""]
[null,null,null,null,null,null,null,"","","","",{"$f":"IF(ISBLANK(C862)+('Betriebsdaten II'!$T$26=0),\"\",C862/'Betriebsdaten II'!$T$26)","v":""},"","",""]
[null,null,null,null,null,null,null,"","","","",{"$f":"IF(ISBLANK(C863)+('Betriebsdaten II'!$T$26=0),\"\",C863/'Betriebsdaten II'!$T$26)","v":""},"","",""]
[null,null,null,null,null,null,null,"","","","",{"$f":"IF(ISBLANK(C864)+('Betriebsdaten II'!$T$26=0),\"\",C864/'Betriebsdaten II'!$T$26)","v":""},"","",""]
[null,null,null,null,null,null,null,"","","","",{"$f":"IF(ISBLANK(C865)+('Betriebsdaten II'!$T$26=0),\"\",C865/'Betriebsdaten II'!$T$26)","v":""},"","",""]
[null,null,null,null,null,null,null,"","","","",{"$f":"IF(ISBLANK(C866)+('Betriebsdaten II'!$T$26=0),\"\",C866/'Betriebsdaten II'!$T$26)","v":""},"","",""]
[null,null,null,null,null,null,null,"","","","",{"$f":"IF(ISBLANK(C867)+('Betriebsdaten II'!$T$26=0),\"\",C867/'Betriebsdaten II'!$T$26)","v":""},"","",""]
[null,null,null,null,null,null,null,"","","","",{"$f":"IF(ISBLANK(C868)+('Betriebsdaten II'!$T$26=0),\"\",C868/'Betriebsdaten II'!$T$26)","v":""},"","",""]
[null,null,null,null,null,null,null,"","","","",{"$f":"IF(ISBLANK(C869)+('Betriebsdaten II'!$T$26=0),\"\",C869/'Betriebsdaten II'!$T$26)","v":""},"","",""]
[null,null,null,null,null,null,null,"","","","",{"$f":"IF(ISBLANK(C870)+('Betriebsdaten II'!$T$26=0),\"\",C870/'Betriebsdaten II'!$T$26)","v":""},"","",""]
[null,null,null,null,null,null,null,"","","","",{"$f":"IF(ISBLANK(C871)+('Betriebsdaten II'!$T$26=0),\"\",C871/'Betriebsdaten II'!$T$26)","v":""},"","",""]
[null,null,null,null,null,null,null,"","","","",{"$f":"IF(ISBLANK(C872)+('Betriebsdaten II'!$T$26=0),\"\",C872/'Betriebsdaten II'!$T$26)","v":""},"","",""]
[null,null,null,null,null,null,null,"","","","",{"$f":"IF(ISBLANK(C873)+('Betriebsdaten II'!$T$26=0),\"\",C873/'Betriebsdaten II'!$T$26)","v":""},"","",""]
[null,null,null,null,null,null,null,"","","","",{"$f":"IF(ISBLANK(C874)+('Betriebsdaten II'!$T$26=0),\"\",C874/'Betriebsdaten II'!$T$26)","v":""},"","",""]
[null,null,null,null,null,null,null,"","","","",{"$f":"IF(ISBLANK(C875)+('Betriebsdaten II'!$T$26=0),\"\",C875/'Betriebsdaten II'!$T$26)","v":""},"","",""]
[null,null,null,null,null,null,null,"","","","",{"$f":"IF(ISBLANK(C876)+('Betriebsdaten II'!$T$26=0),\"\",C876/'Betriebsdaten II'!$T$26)","v":""},"","",""]
[null,null,null,null,null,null,null,"","","","",{"$f":"IF(ISBLANK(C877)+('Betriebsdaten II'!$T$26=0),\"\",C877/'Betriebsdaten II'!$T$26)","v":""},"","",""]
[null,null,null,null,null,null,null,"","","","",{"$f":"IF(ISBLANK(C878)+('Betriebsdaten II'!$T$26=0),\"\",C878/'Betriebsdaten II'!$T$26)","v":""},"","",""]
[null,null,null,null,null,null,null,"","","","",{"$f":"IF(ISBLANK(C879)+('Betriebsdaten II'!$T$26=0),\"\",C879/'Betriebsdaten II'!$T$26)","v":""},"","",""]
[null,null,null,null,null,null,null,"","","","",{"$f":"IF(ISBLANK(C880)+('Betriebsdaten II'!$T$26=0),\"\",C880/'Betriebsdaten II'!$T$26)","v":""},"","",""]
[null,null,null,null,null,null,null,"","","","",{"$f":"IF(ISBLANK(C881)+('Betriebsdaten II'!$T$26=0),\"\",C881/'Betriebsdaten II'!$T$26)","v":""},"","",""]
[null,null,null,null,null,null,null,"","","","",{"$f":"IF(ISBLANK(C882)+('Betriebsdaten II'!$T$26=0),\"\",C882/'Betriebsdaten II'!$T$26)","v":""},"","",""]
[null,null,null,null,null,null,null,"","","","",{"$f":"IF(ISBLANK(C883)+('Betriebsdaten II'!$T$26=0),\"\",C883/'Betriebsdaten II'!$T$26)","v":""},"","",""]
[null,null,null,null,null,null,null,"","","","",{"$f":"IF(ISBLANK(C884)+('Betriebsdaten II'!$T$26=0),\"\",C884/'Betriebsdaten II'!$T$26)","v":""},"","",""]
[null,null,null,null,null,null,null,"","","","",{"$f":"IF(ISBLANK(C885)+('Betriebsdaten II'!$T$26=0),\"\",C885/'Betriebsdaten II'!$T$26)","v":""},"","",""]
[null,null,null,null,null,null,null,"","","","",{"$f":"IF(ISBLANK(C886)+('Betriebsdaten II'!$T$26=0),\"\",C886/'Betriebsdaten II'!$T$26)","v":""},"","",""]
[null,null,null,null,null,null,null,"","","","",{"$f":"IF(ISBLANK(C887)+('Betriebsdaten II'!$T$26=0),\"\",C887/'Betriebsdaten II'!$T$26)","v":""},"","",""]
[null,null,null,null,null,null,null,"","","","",{"$f":"IF(ISBLANK(C888)+('Betriebsdaten II'!$T$26=0),\"\",C888/'Betriebsdaten II'!$T$26)","v":""},"","",""]
[null,null,null,null,null,null,null,"","","","",{"$f":"IF(ISBLANK(C889)+('Betriebsdaten II'!$T$26=0),\"\",C889/'Betriebsdaten II'!$T$26)","v":""},"","",""]
[null,null,null,null,null,null,null,"","","","",{"$f":"IF(ISBLANK(C890)+('Betriebsdaten II'!$T$26=0),\"\",C890/'Betriebsdaten II'!$T$26)","v":""},"","",""]
[null,null,null,null,null,null,null,"","","","",{"$f":"IF(ISBLANK(C891)+('Betriebsdaten II'!$T$26=0),\"\",C891/'Betriebsdaten II'!$T$26)","v":""},"","",""]
[null,null,null,null,null,null,null,"","","","",{"$f":"IF(ISBLANK(C892)+('Betriebsdaten II'!$T$26=0),\"\",C892/'Betriebsdaten II'!$T$26)","v":""},"","",""]
[null,null,null,null,null,null,null,"","","","",{"$f":"IF(ISBLANK(C893)+('Betriebsdaten II'!$T$26=0),\"\",C893/'Betriebsdaten II'!$T$26)","v":""},"","",""]
[null,null,null,null,null,null,null,"","","","",{"$f":"IF(ISBLANK(C894)+('Betriebsdaten II'!$T$26=0),\"\",C894/'Betriebsdaten II'!$T$26)","v":""},"","",""]
[null,null,null,null,null,null,null,"","","","",{"$f":"IF(ISBLANK(C895)+('Betriebsdaten II'!$T$26=0),\"\",C895/'Betriebsdaten II'!$T$26)","v":""},"","",""]
[null,null,null,null,null,null,null,"","","","",{"$f":"IF(ISBLANK(C896)+('Betriebsdaten II'!$T$26=0),\"\",C896/'Betriebsdaten II'!$T$26)","v":""},"","",""]
[null,null,null,null,null,null,null,"","","","",{"$f":"IF(ISBLANK(C897)+('Betriebsdaten II'!$T$26=0),\"\",C897/'Betriebsdaten II'!$T$26)","v":""},"","",""]
[null,null,null,null,null,null,null,"","","","",{"$f":"IF(ISBLANK(C898)+('Betriebsdaten II'!$T$26=0),\"\",C898/'Betriebsdaten II'!$T$26)","v":""},"","",""]
[null,null,null,null,null,null,null,"","","","",{"$f":"IF(ISBLANK(C899)+('Betriebsdaten II'!$T$26=0),\"\",C899/'Betriebsdaten II'!$T$26)","v":""},"","",""]
[null,null,null,null,null,null,null,"","","","",{"$f":"IF(ISBLANK(C900)+('Betriebsdaten II'!$T$26=0),\"\",C900/'Betriebsdaten II'!$T$26)","v":""},"","",""]
[null,null,null,null,null,null,null,"","","","",{"$f":"IF(ISBLANK(C901)+('Betriebsdaten II'!$T$26=0),\"\",C901/'Betriebsdaten II'!$T$26)","v":""},"","",""]
[null,null,null,null,null,null,null,"","","","",{"$f":"IF(ISBLANK(C902)+('Betriebsdaten II'!$T$26=0),\"\",C902/'Betriebsdaten II'!$T$26)","v":""},"","",""]
[null,null,null,null,null,null,null,"","","","",{"$f":"IF(ISBLANK(C903)+('Betriebsdaten II'!$T$26=0),\"\",C903/'Betriebsdaten II'!$T$26)","v":""},"","",""]
[null,null,null,null,null,null,null,"","","","",{"$f":"IF(ISBLANK(C904)+('Betriebsdaten II'!$T$26=0),\"\",C904/'Betriebsdaten II'!$T$26)","v":""},"","",""]
[null,null,null,null,null,null,null,"","","","",{"$f":"IF(ISBLANK(C905)+('Betriebsdaten II'!$T$26=0),\"\",C905/'Betriebsdaten II'!$T$26)","v":""},"","",""]
[null,null,null,null,null,null,null,{"$f":"IF(ISBLANK(A906),\"\",NetzvorlaufTemp)","v":""},{"$f":"IF(ISBLANK(A906),\"\",NetzrücklaufTemp)","v":""},"","",{"$f":"IF(ISBLANK(C906)+('Betriebsdaten II'!$T$26=0),\"\",C906/'Betriebsdaten II'!$T$26)","v":""},{"$f":"IF(ISERR(J906*L906),\"\",J906*L906)","v":""},"",{"$f":"IF(N906=\"\",\"\",IF(AND(N906<5,K906<30), \"Optimierungsmöglichkeiten prüfen!\",\"\"))","v":""}]
[null,null,null,null,null,null,null,"","",{"$f":"IF((SUM(E907)=0)+(SUM(C907)=0),\"\",E907/C907*1000)","v":""},{"$f":"IF(J907=\"\",\"\",C907/(4.189*978*E907/3600))","v":""},{"$f":"IF(ISBLANK(C907)+('Betriebsdaten II'!$T$26=0),\"\",C907/'Betriebsdaten II'!$T$26)","v":""},"",{"$f":"IF(ISERR(RANK(M907,$M$10:$M$1210)),\"\",RANK(M907,$M$10:$M$1210))","v":""},""]
[null,null,null,null,null,null,null,"","","","",{"$f":"IF(ISBLANK(C908)+('Betriebsdaten II'!$T$26=0),\"\",C908/'Betriebsdaten II'!$T$26)","v":""},"","",""]
[null,null,null,null,null,null,null,"","","","",{"$f":"IF(ISBLANK(C909)+('Betriebsdaten II'!$T$26=0),\"\",C909/'Betriebsdaten II'!$T$26)","v":""},"","",""]
[null,null,null,null,null,null,null,"","","","",{"$f":"IF(ISBLANK(C910)+('Betriebsdaten II'!$T$26=0),\"\",C910/'Betriebsdaten II'!$T$26)","v":""},"","",""]
[null,null,null,null,null,null,null,"","","","",{"$f":"IF(ISBLANK(C911)+('Betriebsdaten II'!$T$26=0),\"\",C911/'Betriebsdaten II'!$T$26)","v":""},"","",""]
[null,null,null,null,null,null,null,"","","","",{"$f":"IF(ISBLANK(C912)+('Betriebsdaten II'!$T$26=0),\"\",C912/'Betriebsdaten II'!$T$26)","v":""},"","",""]
[null,null,null,null,null,null,null,"","","","",{"$f":"IF(ISBLANK(C913)+('Betriebsdaten II'!$T$26=0),\"\",C913/'Betriebsdaten II'!$T$26)","v":""},"","",""]
[null,null,null,null,null,null,null,"","","","",{"$f":"IF(ISBLANK(C914)+('Betriebsdaten II'!$T$26=0),\"\",C914/'Betriebsdaten II'!$T$26)","v":""},"","",""]
[null,null,null,null,null,null,null,"","","","",{"$f":"IF(ISBLANK(C915)+('Betriebsdaten II'!$T$26=0),\"\",C915/'Betriebsdaten II'!$T$26)","v":""},"","",""]
[null,null,null,null,null,null,null,"","","","",{"$f":"IF(ISBLANK(C916)+('Betriebsdaten II'!$T$26=0),\"\",C916/'Betriebsdaten II'!$T$26)","v":""},"","",""]
[null,null,null,null,null,null,null,"","","","",{"$f":"IF(ISBLANK(C917)+('Betriebsdaten II'!$T$26=0),\"\",C917/'Betriebsdaten II'!$T$26)","v":""},"","",""]
[null,null,null,null,null,null,null,"","","","",{"$f":"IF(ISBLANK(C918)+('Betriebsdaten II'!$T$26=0),\"\",C918/'Betriebsdaten II'!$T$26)","v":""},"","",""]
[null,null,null,null,null,null,null,"","","","",{"$f":"IF(ISBLANK(C919)+('Betriebsdaten II'!$T$26=0),\"\",C919/'Betriebsdaten II'!$T$26)","v":""},"","",""]
[null,null,null,null,null,null,null,"","","","",{"$f":"IF(ISBLANK(C920)+('Betriebsdaten II'!$T$26=0),\"\",C920/'Betriebsdaten II'!$T$26)","v":""},"","",""]
[null,null,null,null,null,null,null,"","","","",{"$f":"IF(ISBLANK(C921)+('Betriebsdaten II'!$T$26=0),\"\",C921/'Betriebsdaten II'!$T$26)","v":""},"","",""]
[null,null,null,null,null,null,null,"","","","",{"$f":"IF(ISBLANK(C922)+('Betriebsdaten II'!$T$26=0),\"\",C922/'Betriebsdaten II'!$T$26)","v":""},"","",""]
[null,null,null,null,null,null,null,"","","","",{"$f":"IF(ISBLANK(C923)+('Betriebsdaten II'!$T$26=0),\"\",C923/'Betriebsdaten II'!$T$26)","v":""},"","",""]
[null,null,null,null,null,null,null,"","","","",{"$f":"IF(ISBLANK(C924)+('Betriebsdaten II'!$T$26=0),\"\",C924/'Betriebsdaten II'!$T$26)","v":""},"","",""]
[null,null,null,null,null,null,null,"","","","",{"$f":"IF(ISBLANK(C925)+('Betriebsdaten II'!$T$26=0),\"\",C925/'Betriebsdaten II'!$T$26)","v":""},"","",""]
[null,null,null,null,null,null,null,"","","","",{"$f":"IF(ISBLANK(C926)+('Betriebsdaten II'!$T$26=0),\"\",C926/'Betriebsdaten II'!$T$26)","v":""},"","",""]
[null,null,null,null,null,null,null,"","","","",{"$f":"IF(ISBLANK(C927)+('Betriebsdaten II'!$T$26=0),\"\",C927/'Betriebsdaten II'!$T$26)","v":""},"","",""]
[null,null,null,null,null,null,null,"","","","",{"$f":"IF(ISBLANK(C928)+('Betriebsdaten II'!$T$26=0),\"\",C928/'Betriebsdaten II'!$T$26)","v":""},"","",""]
[null,null,null,null,null,null,null,"","","","",{"$f":"IF(ISBLANK(C929)+('Betriebsdaten II'!$T$26=0),\"\",C929/'Betriebsdaten II'!$T$26)","v":""},"","",""]
[null,null,null,null,null,null,null,"","","","",{"$f":"IF(ISBLANK(C930)+('Betriebsdaten II'!$T$26=0),\"\",C930/'Betriebsdaten II'!$T$26)","v":""},"","",""]
[null,null,null,null,null,null,null,"","","","",{"$f":"IF(ISBLANK(C931)+('Betriebsdaten II'!$T$26=0),\"\",C931/'Betriebsdaten II'!$T$26)","v":""},"","",""]
[null,null,null,null,null,null,null,"","","","",{"$f":"IF(ISBLANK(C932)+('Betriebsdaten II'!$T$26=0),\"\",C932/'Betriebsdaten II'!$T$26)","v":""},"","",""]
[null,null,null,null,null,null,null,"","","","",{"$f":"IF(ISBLANK(C933)+('Betriebsdaten II'!$T$26=0),\"\",C933/'Betriebsdaten II'!$T$26)","v":""},"","",""]
[null,null,null,null,null,null,null,"","","","",{"$f":"IF(ISBLANK(C934)+('Betriebsdaten II'!$T$26=0),\"\",C934/'Betriebsdaten II'!$T$26)","v":""},"","",""]
[null,null,null,null,null,null,null,"","","","",{"$f":"IF(ISBLANK(C935)+('Betriebsdaten II'!$T$26=0),\"\",C935/'Betriebsdaten II'!$T$26)","v":""},"","",""]
[null,null,null,null,null,null,null,"","","","",{"$f":"IF(ISBLANK(C936)+('Betriebsdaten II'!$T$26=0),\"\",C936/'Betriebsdaten II'!$T$26)","v":""},"","",""]
[null,null,null,null,null,null,null,"","","","",{"$f":"IF(ISBLANK(C937)+('Betriebsdaten II'!$T$26=0),\"\",C937/'Betriebsdaten II'!$T$26)","v":""},"","",""]
[null,null,null,null,null,null,null,"","","","",{"$f":"IF(ISBLANK(C938)+('Betriebsdaten II'!$T$26=0),\"\",C938/'Betriebsdaten II'!$T$26)","v":""},"","",""]
[null,null,null,null,null,null,null,"","","","",{"$f":"IF(ISBLANK(C939)+('Betriebsdaten II'!$T$26=0),\"\",C939/'Betriebsdaten II'!$T$26)","v":""},"","",""]
[null,null,null,null,null,null,null,"","","","",{"$f":"IF(ISBLANK(C940)+('Betriebsdaten II'!$T$26=0),\"\",C940/'Betriebsdaten II'!$T$26)","v":""},"","",""]
[null,null,null,null,null,null,null,"","","","",{"$f":"IF(ISBLANK(C941)+('Betriebsdaten II'!$T$26=0),\"\",C941/'Betriebsdaten II'!$T$26)","v":""},"","",""]
[null,null,null,null,null,null,null,"","","","",{"$f":"IF(ISBLANK(C942)+('Betriebsdaten II'!$T$26=0),\"\",C942/'Betriebsdaten II'!$T$26)","v":""},"","",""]
[null,null,null,null,null,null,null,"","","","",{"$f":"IF(ISBLANK(C943)+('Betriebsdaten II'!$T$26=0),\"\",C943/'Betriebsdaten II'!$T$26)","v":""},"","",""]
[null,null,null,null,null,null,null,"","","","",{"$f":"IF(ISBLANK(C944)+('Betriebsdaten II'!$T$26=0),\"\",C944/'Betriebsdaten II'!$T$26)","v":""},"","",""]
[null,null,null,null,null,null,null,"","","","",{"$f":"IF(ISBLANK(C945)+('Betriebsdaten II'!$T$26=0),\"\",C945/'Betriebsdaten II'!$T$26)","v":""},"","",""]
[null,null,null,null,null,null,null,"","","","",{"$f":"IF(ISBLANK(C946)+('Betriebsdaten II'!$T$26=0),\"\",C946/'Betriebsdaten II'!$T$26)","v":""},"","",""]
[null,null,null,null,null,null,null,"","","","",{"$f":"IF(ISBLANK(C947)+('Betriebsdaten II'!$T$26=0),\"\",C947/'Betriebsdaten II'!$T$26)","v":""},"","",""]
[null,null,null,null,null,null,null,"","","","",{"$f":"IF(ISBLANK(C948)+('Betriebsdaten II'!$T$26=0),\"\",C948/'Betriebsdaten II'!$T$26)","v":""},"","",""]
[null,null,null,null,null,null,null,"","","","",{"$f":"IF(ISBLANK(C949)+('Betriebsdaten II'!$T$26=0),\"\",C949/'Betriebsdaten II'!$T$26)","v":""},"","",""]
[null,null,null,null,null,null,null,"","","","",{"$f":"IF(ISBLANK(C950)+('Betriebsdaten II'!$T$26=0),\"\",C950/'Betriebsdaten II'!$T$26)","v":""},"","",""]
[null,null,null,null,null,null,null,"","","","",{"$f":"IF(ISBLANK(C951)+('Betriebsdaten II'!$T$26=0),\"\",C951/'Betriebsdaten II'!$T$26)","v":""},"","",""]
[null,null,null,null,null,null,null,"","","","",{"$f":"IF(ISBLANK(C952)+('Betriebsdaten II'!$T$26=0),\"\",C952/'Betriebsdaten II'!$T$26)","v":""},"","",""]
[null,null,null,null,null,null,null,"","","","",{"$f":"IF(ISBLANK(C953)+('Betriebsdaten II'!$T$26=0),\"\",C953/'Betriebsdaten II'!$T$26)","v":""},"","",""]
[null,null,null,null,null,null,null,"","","","",{"$f":"IF(ISBLANK(C954)+('Betriebsdaten II'!$T$26=0),\"\",C954/'Betriebsdaten II'!$T$26)","v":""},"","",""]
[null,null,null,null,null,null,null,"","","","",{"$f":"IF(ISBLANK(C955)+('Betriebsdaten II'!$T$26=0),\"\",C955/'Betriebsdaten II'!$T$26)","v":""},"","",""]
[null,null,null,null,null,null,null,"","","","",{"$f":"IF(ISBLANK(C956)+('Betriebsdaten II'!$T$26=0),\"\",C956/'Betriebsdaten II'!$T$26)","v":""},"","",""]
[null,null,null,null,null,null,null,"","","","",{"$f":"IF(ISBLANK(C957)+('Betriebsdaten II'!$T$26=0),\"\",C957/'Betriebsdaten II'!$T$26)","v":""},"","",""]
[null,null,null,null,null,null,null,"","","","",{"$f":"IF(ISBLANK(C958)+('Betriebsdaten II'!$T$26=0),\"\",C958/'Betriebsdaten II'!$T$26)","v":""},"","",""]
[null,null,null,null,null,null,null,"","","","",{"$f":"IF(ISBLANK(C959)+('Betriebsdaten II'!$T$26=0),\"\",C959/'Betriebsdaten II'!$T$26)","v":""},"","",""]
[null,null,null,null,null,null,null,"","","","",{"$f":"IF(ISBLANK(C960)+('Betriebsdaten II'!$T$26=0),\"\",C960/'Betriebsdaten II'!$T$26)","v":""},"","",""]
[null,null,null,null,null,null,null,"","","","",{"$f":"IF(ISBLANK(C961)+('Betriebsdaten II'!$T$26=0),\"\",C961/'Betriebsdaten II'!$T$26)","v":""},"","",""]
[null,null,null,null,null,null,null,"","","","",{"$f":"IF(ISBLANK(C962)+('Betriebsdaten II'!$T$26=0),\"\",C962/'Betriebsdaten II'!$T$26)","v":""},"","",""]
[null,null,null,null,null,null,null,"","","","",{"$f":"IF(ISBLANK(C963)+('Betriebsdaten II'!$T$26=0),\"\",C963/'Betriebsdaten II'!$T$26)","v":""},"","",""]
[null,null,null,null,null,null,null,"","","","",{"$f":"IF(ISBLANK(C964)+('Betriebsdaten II'!$T$26=0),\"\",C964/'Betriebsdaten II'!$T$26)","v":""},"","",""]
[null,null,null,null,null,null,null,"","","","",{"$f":"IF(ISBLANK(C965)+('Betriebsdaten II'!$T$26=0),\"\",C965/'Betriebsdaten II'!$T$26)","v":""},"","",""]
[null,null,null,null,null,null,null,"","","","",{"$f":"IF(ISBLANK(C966)+('Betriebsdaten II'!$T$26=0),\"\",C966/'Betriebsdaten II'!$T$26)","v":""},"","",""]
[null,null,null,null,null,null,null,"","","","",{"$f":"IF(ISBLANK(C967)+('Betriebsdaten II'!$T$26=0),\"\",C967/'Betriebsdaten II'!$T$26)","v":""},"","",""]
[null,null,null,null,null,null,null,"","","","",{"$f":"IF(ISBLANK(C968)+('Betriebsdaten II'!$T$26=0),\"\",C968/'Betriebsdaten II'!$T$26)","v":""},"","",""]
[null,null,null,null,null,null,null,"","","","",{"$f":"IF(ISBLANK(C969)+('Betriebsdaten II'!$T$26=0),\"\",C969/'Betriebsdaten II'!$T$26)","v":""},"","",""]
[null,null,null,null,null,null,null,{"$f":"IF(ISBLANK(A970),\"\",NetzvorlaufTemp)","v":""},{"$f":"IF(ISBLANK(A970),\"\",NetzrücklaufTemp)","v":""},"","",{"$f":"IF(ISBLANK(C970)+('Betriebsdaten II'!$T$26=0),\"\",C970/'Betriebsdaten II'!$T$26)","v":""},{"$f":"IF(ISERR(J970*L970),\"\",J970*L970)","v":""},"",{"$f":"IF(N970=\"\",\"\",IF(AND(N970<5,K970<30), \"Optimierungsmöglichkeiten prüfen!\",\"\"))","v":""}]
[null,null,null,null,null,null,null,"","",{"$f":"IF((SUM(E971)=0)+(SUM(C971)=0),\"\",E971/C971*1000)","v":""},{"$f":"IF(J971=\"\",\"\",C971/(4.189*978*E971/3600))","v":""},{"$f":"IF(ISBLANK(C971)+('Betriebsdaten II'!$T$26=0),\"\",C971/'Betriebsdaten II'!$T$26)","v":""},"",{"$f":"IF(ISERR(RANK(M971,$M$10:$M$1210)),\"\",RANK(M971,$M$10:$M$1210))","v":""},""]
[null,null,null,null,null,null,null,"","","","",{"$f":"IF(ISBLANK(C972)+('Betriebsdaten II'!$T$26=0),\"\",C972/'Betriebsdaten II'!$T$26)","v":""},"","",""]
[null,null,null,null,null,null,null,"","","","",{"$f":"IF(ISBLANK(C973)+('Betriebsdaten II'!$T$26=0),\"\",C973/'Betriebsdaten II'!$T$26)","v":""},"","",""]
[null,null,null,null,null,null,null,"","","","",{"$f":"IF(ISBLANK(C974)+('Betriebsdaten II'!$T$26=0),\"\",C974/'Betriebsdaten II'!$T$26)","v":""},"","",""]
[null,null,null,null,null,null,null,"","","","",{"$f":"IF(ISBLANK(C975)+('Betriebsdaten II'!$T$26=0),\"\",C975/'Betriebsdaten II'!$T$26)","v":""},"","",""]
[null,null,null,null,null,null,null,"","","","",{"$f":"IF(ISBLANK(C976)+('Betriebsdaten II'!$T$26=0),\"\",C976/'Betriebsdaten II'!$T$26)","v":""},"","",""]
[null,null,null,null,null,null,null,"","","","",{"$f":"IF(ISBLANK(C977)+('Betriebsdaten II'!$T$26=0),\"\",C977/'Betriebsdaten II'!$T$26)","v":""},"","",""]
[null,null,null,null,null,null,null,"","","","",{"$f":"IF(ISBLANK(C978)+('Betriebsdaten II'!$T$26=0),\"\",C978/'Betriebsdaten II'!$T$26)","v":""},"","",""]
[null,null,null,null,null,null,null,"","","","",{"$f":"IF(ISBLANK(C979)+('Betriebsdaten II'!$T$26=0),\"\",C979/'Betriebsdaten II'!$T$26)","v":""},"","",""]
[null,null,null,null,null,null,null,"","","","",{"$f":"IF(ISBLANK(C980)+('Betriebsdaten II'!$T$26=0),\"\",C980/'Betriebsdaten II'!$T$26)","v":""},"","",""]
[null,null,null,null,null,null,null,"","","","",{"$f":"IF(ISBLANK(C981)+('Betriebsdaten II'!$T$26=0),\"\",C981/'Betriebsdaten II'!$T$26)","v":""},"","",""]
[null,null,null,null,null,null,null,"","","","",{"$f":"IF(ISBLANK(C982)+('Betriebsdaten II'!$T$26=0),\"\",C982/'Betriebsdaten II'!$T$26)","v":""},"","",""]
[null,null,null,null,null,null,null,"","","","",{"$f":"IF(ISBLANK(C983)+('Betriebsdaten II'!$T$26=0),\"\",C983/'Betriebsdaten II'!$T$26)","v":""},"","",""]
[null,null,null,null,null,null,null,"","","","",{"$f":"IF(ISBLANK(C984)+('Betriebsdaten II'!$T$26=0),\"\",C984/'Betriebsdaten II'!$T$26)","v":""},"","",""]
[null,null,null,null,null,null,null,"","","","",{"$f":"IF(ISBLANK(C985)+('Betriebsdaten II'!$T$26=0),\"\",C985/'Betriebsdaten II'!$T$26)","v":""},"","",""]
[null,null,null,null,null,null,null,"","","","",{"$f":"IF(ISBLANK(C986)+('Betriebsdaten II'!$T$26=0),\"\",C986/'Betriebsdaten II'!$T$26)","v":""},"","",""]
[null,null,null,null,null,null,null,"","","","",{"$f":"IF(ISBLANK(C987)+('Betriebsdaten II'!$T$26=0),\"\",C987/'Betriebsdaten II'!$T$26)","v":""},"","",""]
[null,null,null,null,null,null,null,"","","","",{"$f":"IF(ISBLANK(C988)+('Betriebsdaten II'!$T$26=0),\"\",C988/'Betriebsdaten II'!$T$26)","v":""},"","",""]
[null,null,null,null,null,null,null,"","","","",{"$f":"IF(ISBLANK(C989)+('Betriebsdaten II'!$T$26=0),\"\",C989/'Betriebsdaten II'!$T$26)","v":""},"","",""]
[null,null,null,null,null,null,null,"","","","",{"$f":"IF(ISBLANK(C990)+('Betriebsdaten II'!$T$26=0),\"\",C990/'Betriebsdaten II'!$T$26)","v":""},"","",""]
[null,null,null,null,null,null,null,"","","","",{"$f":"IF(ISBLANK(C991)+('Betriebsdaten II'!$T$26=0),\"\",C991/'Betriebsdaten II'!$T$26)","v":""},"","",""]
[null,null,null,null,null,null,null,"","","","",{"$f":"IF(ISBLANK(C992)+('Betriebsdaten II'!$T$26=0),\"\",C992/'Betriebsdaten II'!$T$26)","v":""},"","",""]
[null,null,null,null,null,null,null,"","","","",{"$f":"IF(ISBLANK(C993)+('Betriebsdaten II'!$T$26=0),\"\",C993/'Betriebsdaten II'!$T$26)","v":""},"","",""]
[null,null,null,null,null,null,null,"","","","",{"$f":"IF(ISBLANK(C994)+('Betriebsdaten II'!$T$26=0),\"\",C994/'Betriebsdaten II'!$T$26)","v":""},"","",""]
[null,null,null,null,null,null,null,"","","","",{"$f":"IF(ISBLANK(C995)+('Betriebsdaten II'!$T$26=0),\"\",C995/'Betriebsdaten II'!$T$26)","v":""},"","",""]
[null,null,null,null,null,null,null,"","","","",{"$f":"IF(ISBLANK(C996)+('Betriebsdaten II'!$T$26=0),\"\",C996/'Betriebsdaten II'!$T$26)","v":""},"","",""]
[null,null,null,null,null,null,null,"","","","",{"$f":"IF(ISBLANK(C997)+('Betriebsdaten II'!$T$26=0),\"\",C997/'Betriebsdaten II'!$T$26)","v":""},"","",""]
[null,null,null,null,null,null,null,"","","","",{"$f":"IF(ISBLANK(C998)+('Betriebsdaten II'!$T$26=0),\"\",C998/'Betriebsdaten II'!$T$26)","v":""},"","",""]
[null,null,null,null,null,null,null,"","","","",{"$f":"IF(ISBLANK(C999)+('Betriebsdaten II'!$T$26=0),\"\",C999/'Betriebsdaten II'!$T$26)","v":""},"","",""]
[null,null,null,null,null,null,null,"","","","",{"$f":"IF(ISBLANK(C1000)+('Betriebsdaten II'!$T$26=0),\"\",C1000/'Betriebsdaten II'!$T$26)","v":""},"","",""]
[null,null,null,null,null,null,null,"","","","",{"$f":"IF(ISBLANK(C1001)+('Betriebsdaten II'!$T$26=0),\"\",C1001/'Betriebsdaten II'!$T$26)","v":""},"","",""]
[null,null,null,null,null,null,null,"","","","",{"$f":"IF(ISBLANK(C1002)+('Betriebsdaten II'!$T$26=0),\"\",C1002/'Betriebsdaten II'!$T$26)","v":""},"","",""]
[null,null,null,null,null,null,null,"","","","",{"$f":"IF(ISBLANK(C1003)+('Betriebsdaten II'!$T$26=0),\"\",C1003/'Betriebsdaten II'!$T$26)","v":""},"","",""]
[null,null,null,null,null,null,null,"","","","",{"$f":"IF(ISBLANK(C1004)+('Betriebsdaten II'!$T$26=0),\"\",C1004/'Betriebsdaten II'!$T$26)","v":""},"","",""]
[null,null,null,null,null,null,null,"","","","",{"$f":"IF(ISBLANK(C1005)+('Betriebsdaten II'!$T$26=0),\"\",C1005/'Betriebsdaten II'!$T$26)","v":""},"","",""]
[null,null,null,null,null,null,null,"","","","",{"$f":"IF(ISBLANK(C1006)+('Betriebsdaten II'!$T$26=0),\"\",C1006/'Betriebsdaten II'!$T$26)","v":""},"","",""]
[null,null,null,null,null,null,null,"","","","",{"$f":"IF(ISBLANK(C1007)+('Betriebsdaten II'!$T$26=0),\"\",C1007/'Betriebsdaten II'!$T$26)","v":""},"","",""]
[null,null,null,null,null,null,null,"","","","",{"$f":"IF(ISBLANK(C1008)+('Betriebsdaten II'!$T$26=0),\"\",C1008/'Betriebsdaten II'!$T$26)","v":""},"","",""]
[null,null,null,null,null,null,null,"","","","",{"$f":"IF(ISBLANK(C1009)+('Betriebsdaten II'!$T$26=0),\"\",C1009/'Betriebsdaten II'!$T$26)","v":""},"","",""]
[null,null,null,null,null,null,null,"","","","",{"$f":"IF(ISBLANK(C1010)+('Betriebsdaten II'!$T$26=0),\"\",C1010/'Betriebsdaten II'!$T$26)","v":""},"","",""]
[null,null,null,null,null,null,null,"","","","",{"$f":"IF(ISBLANK(C1011)+('Betriebsdaten II'!$T$26=0),\"\",C1011/'Betriebsdaten II'!$T$26)","v":""},"","",""]
[null,null,null,null,null,null,null,"","","","",{"$f":"IF(ISBLANK(C1012)+('Betriebsdaten II'!$T$26=0),\"\",C1012/'Betriebsdaten II'!$T$26)","v":""},"","",""]
[null,null,null,null,null,null,null,"","","","",{"$f":"IF(ISBLANK(C1013)+('Betriebsdaten II'!$T$26=0),\"\",C1013/'Betriebsdaten II'!$T$26)","v":""},"","",""]
[null,null,null,null,null,null,null,"","","","",{"$f":"IF(ISBLANK(C1014)+('Betriebsdaten II'!$T$26=0),\"\",C1014/'Betriebsdaten II'!$T$26)","v":""},"","",""]
[null,null,null,null,null,null,null,"","","","",{"$f":"IF(ISBLANK(C1015)+('Betriebsdaten II'!$T$26=0),\"\",C1015/'Betriebsdaten II'!$T$26)","v":""},"","",""]
[null,null,null,null,null,null,null,"","","","",{"$f":"IF(ISBLANK(C1016)+('Betriebsdaten II'!$T$26=0),\"\",C1016/'Betriebsdaten II'!$T$26)","v":""},"","",""]
[null,null,null,null,null,null,null,"","","","",{"$f":"IF(ISBLANK(C1017)+('Betriebsdaten II'!$T$26=0),\"\",C1017/'Betriebsdaten II'!$T$26)","v":""},"","",""]
[null,null,null,null,null,null,null,"","","","",{"$f":"IF(ISBLANK(C1018)+('Betriebsdaten II'!$T$26=0),\"\",C1018/'Betriebsdaten II'!$T$26)","v":""},"","",""]
[null,null,null,null,null,null,null,"","","","",{"$f":"IF(ISBLANK(C1019)+('Betriebsdaten II'!$T$26=0),\"\",C1019/'Betriebsdaten II'!$T$26)","v":""},"","",""]
[null,null,null,null,null,null,null,"","","","",{"$f":"IF(ISBLANK(C1020)+('Betriebsdaten II'!$T$26=0),\"\",C1020/'Betriebsdaten II'!$T$26)","v":""},"","",""]
[null,null,null,null,null,null,null,"","","","",{"$f":"IF(ISBLANK(C1021)+('Betriebsdaten II'!$T$26=0),\"\",C1021/'Betriebsdaten II'!$T$26)","v":""},"","",""]
[null,null,null,null,null,null,null,"","","","",{"$f":"IF(ISBLANK(C1022)+('Betriebsdaten II'!$T$26=0),\"\",C1022/'Betriebsdaten II'!$T$26)","v":""},"","",""]
[null,null,null,null,null,null,null,"","","","",{"$f":"IF(ISBLANK(C1023)+('Betriebsdaten II'!$T$26=0),\"\",C1023/'Betriebsdaten II'!$T$26)","v":""},"","",""]
[null,null,null,null,null,null,null,"","","","",{"$f":"IF(ISBLANK(C1024)+('Betriebsdaten II'!$T$26=0),\"\",C1024/'Betriebsdaten II'!$T$26)","v":""},"","",""]
[null,null,null,null,null,null,null,"","","","",{"$f":"IF(ISBLANK(C1025)+('Betriebsdaten II'!$T$26=0),\"\",C1025/'Betriebsdaten II'!$T$26)","v":""},"","",""]
[null,null,null,null,null,null,null,"","","","",{"$f":"IF(ISBLANK(C1026)+('Betriebsdaten II'!$T$26=0),\"\",C1026/'Betriebsdaten II'!$T$26)","v":""},"","",""]
[null,null,null,null,null,null,null,"","","","",{"$f":"IF(ISBLANK(C1027)+('Betriebsdaten II'!$T$26=0),\"\",C1027/'Betriebsdaten II'!$T$26)","v":""},"","",""]
[null,null,null,null,null,null,null,"","","","",{"$f":"IF(ISBLANK(C1028)+('Betriebsdaten II'!$T$26=0),\"\",C1028/'Betriebsdaten II'!$T$26)","v":""},"","",""]
[null,null,null,null,null,null,null,"","","","",{"$f":"IF(ISBLANK(C1029)+('Betriebsdaten II'!$T$26=0),\"\",C1029/'Betriebsdaten II'!$T$26)","v":""},"","",""]
[null,null,null,null,null,null,null,"","","","",{"$f":"IF(ISBLANK(C1030)+('Betriebsdaten II'!$T$26=0),\"\",C1030/'Betriebsdaten II'!$T$26)","v":""},"","",""]
[null,null,null,null,null,null,null,"","","","",{"$f":"IF(ISBLANK(C1031)+('Betriebsdaten II'!$T$26=0),\"\",C1031/'Betriebsdaten II'!$T$26)","v":""},"","",""]
[null,null,null,null,null,null,null,"","","","",{"$f":"IF(ISBLANK(C1032)+('Betriebsdaten II'!$T$26=0),\"\",C1032/'Betriebsdaten II'!$T$26)","v":""},"","",""]
[null,null,null,null,null,null,null,"","","","",{"$f":"IF(ISBLANK(C1033)+('Betriebsdaten II'!$T$26=0),\"\",C1033/'Betriebsdaten II'!$T$26)","v":""},"","",""]
[null,null,null,null,null,null,null,{"$f":"IF(ISBLANK(A1034),\"\",NetzvorlaufTemp)","v":""},{"$f":"IF(ISBLANK(A1034),\"\",NetzrücklaufTemp)","v":""},"","",{"$f":"IF(ISBLANK(C1034)+('Betriebsdaten II'!$T$26=0),\"\",C1034/'Betriebsdaten II'!$T$26)","v":""},{"$f":"IF(ISERR(J1034*L1034),\"\",J1034*L1034)","v":""},"",{"$f":"IF(N1034=\"\",\"\",IF(AND(N1034<5,K1034<30), \"Optimierungsmöglichkeiten prüfen!\",\"\"))","v":""}]
[null,null,null,null,null,null,null,"","",{"$f":"IF((SUM(E1035)=0)+(SUM(C1035)=0),\"\",E1035/C1035*1000)","v":""},{"$f":"IF(J1035=\"\",\"\",C1035/(4.189*978*E1035/3600))","v":""},{"$f":"IF(ISBLANK(C1035)+('Betriebsdaten II'!$T$26=0),\"\",C1035/'Betriebsdaten II'!$T$26)","v":""},"",{"$f":"IF(ISERR(RANK(M1035,$M$10:$M$1210)),\"\",RANK(M1035,$M$10:$M$1210))","v":""},""]
[null,null,null,null,null,null,null,"","","","",{"$f":"IF(ISBLANK(C1036)+('Betriebsdaten II'!$T$26=0),\"\",C1036/'Betriebsdaten II'!$T$26)","v":""},"","",""]
[null,null,null,null,null,null,null,"","","","",{"$f":"IF(ISBLANK(C1037)+('Betriebsdaten II'!$T$26=0),\"\",C1037/'Betriebsdaten II'!$T$26)","v":""},"","",""]
[null,null,null,null,null,null,null,"","","","",{"$f":"IF(ISBLANK(C1038)+('Betriebsdaten II'!$T$26=0),\"\",C1038/'Betriebsdaten II'!$T$26)","v":""},"","",""]
[null,null,null,null,null,null,null,"","","","",{"$f":"IF(ISBLANK(C1039)+('Betriebsdaten II'!$T$26=0),\"\",C1039/'Betriebsdaten II'!$T$26)","v":""},"","",""]
[null,null,null,null,null,null,null,"","","","",{"$f":"IF(ISBLANK(C1040)+('Betriebsdaten II'!$T$26=0),\"\",C1040/'Betriebsdaten II'!$T$26)","v":""},"","",""]
[null,null,null,null,null,null,null,"","","","",{"$f":"IF(ISBLANK(C1041)+('Betriebsdaten II'!$T$26=0),\"\",C1041/'Betriebsdaten II'!$T$26)","v":""},"","",""]
[null,null,null,null,null,null,null,"","","","",{"$f":"IF(ISBLANK(C1042)+('Betriebsdaten II'!$T$26=0),\"\",C1042/'Betriebsdaten II'!$T$26)","v":""},"","",""]
[null,null,null,null,null,null,null,"","","","",{"$f":"IF(ISBLANK(C1043)+('Betriebsdaten II'!$T$26=0),\"\",C1043/'Betriebsdaten II'!$T$26)","v":""},"","",""]
[null,null,null,null,null,null,null,"","","","",{"$f":"IF(ISBLANK(C1044)+('Betriebsdaten II'!$T$26=0),\"\",C1044/'Betriebsdaten II'!$T$26)","v":""},"","",""]
[null,null,null,null,null,null,null,"","","","",{"$f":"IF(ISBLANK(C1045)+('Betriebsdaten II'!$T$26=0),\"\",C1045/'Betriebsdaten II'!$T$26)","v":""},"","",""]
[null,null,null,null,null,null,null,"","","","",{"$f":"IF(ISBLANK(C1046)+('Betriebsdaten II'!$T$26=0),\"\",C1046/'Betriebsdaten II'!$T$26)","v":""},"","",""]
[null,null,null,null,null,null,null,"","","","",{"$f":"IF(ISBLANK(C1047)+('Betriebsdaten II'!$T$26=0),\"\",C1047/'Betriebsdaten II'!$T$26)","v":""},"","",""]
[null,null,null,null,null,null,null,"","","","",{"$f":"IF(ISBLANK(C1048)+('Betriebsdaten II'!$T$26=0),\"\",C1048/'Betriebsdaten II'!$T$26)","v":""},"","",""]
[null,null,null,null,null,null,null,"","","","",{"$f":"IF(ISBLANK(C1049)+('Betriebsdaten II'!$T$26=0),\"\",C1049/'Betriebsdaten II'!$T$26)","v":""},"","",""]
[null,null,null,null,null,null,null,"","","","",{"$f":"IF(ISBLANK(C1050)+('Betriebsdaten II'!$T$26=0),\"\",C1050/'Betriebsdaten II'!$T$26)","v":""},"","",""]
[null,null,null,null,null,null,null,"","","","",{"$f":"IF(ISBLANK(C1051)+('Betriebsdaten II'!$T$26=0),\"\",C1051/'Betriebsdaten II'!$T$26)","v":""},"","",""]
[null,null,null,null,null,null,null,"","","","",{"$f":"IF(ISBLANK(C1052)+('Betriebsdaten II'!$T$26=0),\"\",C1052/'Betriebsdaten II'!$T$26)","v":""},"","",""]
[null,null,null,null,null,null,null,"","","","",{"$f":"IF(ISBLANK(C1053)+('Betriebsdaten II'!$T$26=0),\"\",C1053/'Betriebsdaten II'!$T$26)","v":""},"","",""]
[null,null,null,null,null,null,null,"","","","",{"$f":"IF(ISBLANK(C1054)+('Betriebsdaten II'!$T$26=0),\"\",C1054/'Betriebsdaten II'!$T$26)","v":""},"","",""]
[null,null,null,null,null,null,null,"","","","",{"$f":"IF(ISBLANK(C1055)+('Betriebsdaten II'!$T$26=0),\"\",C1055/'Betriebsdaten II'!$T$26)","v":""},"","",""]
[null,null,null,null,null,null,null,"","","","",{"$f":"IF(ISBLANK(C1056)+('Betriebsdaten II'!$T$26=0),\"\",C1056/'Betriebsdaten II'!$T$26)","v":""},"","",""]
[null,null,null,null,null,null,null,"","","","",{"$f":"IF(ISBLANK(C1057)+('Betriebsdaten II'!$T$26=0),\"\",C1057/'Betriebsdaten II'!$T$26)","v":""},"","",""]
[null,null,null,null,null,null,null,"","","","",{"$f":"IF(ISBLANK(C1058)+('Betriebsdaten II'!$T$26=0),\"\",C1058/'Betriebsdaten II'!$T$26)","v":""},"","",""]
[null,null,null,null,null,null,null,"","","","",{"$f":"IF(ISBLANK(C1059)+('Betriebsdaten II'!$T$26=0),\"\",C1059/'Betriebsdaten II'!$T$26)","v":""},"","",""]
[null,null,null,null,null,null,null,"","","","",{"$f":"IF(ISBLANK(C1060)+('Betriebsdaten II'!$T$26=0),\"\",C1060/'Betriebsdaten II'!$T$26)","v":""},"","",""]
[null,null,null,null,null,null,null,"","","","",{"$f":"IF(ISBLANK(C1061)+('Betriebsdaten II'!$T$26=0),\"\",C1061/'Betriebsdaten II'!$T$26)","v":""},"","",""]
[null,null,null,null,null,null,null,"","","","",{"$f":"IF(ISBLANK(C1062)+('Betriebsdaten II'!$T$26=0),\"\",C1062/'Betriebsdaten II'!$T$26)","v":""},"","",""]
[null,null,null,null,null,null,null,"","","","",{"$f":"IF(ISBLANK(C1063)+('Betriebsdaten II'!$T$26=0),\"\",C1063/'Betriebsdaten II'!$T$26)","v":""},"","",""]
[null,null,null,null,null,null,null,"","","","",{"$f":"IF(ISBLANK(C1064)+('Betriebsdaten II'!$T$26=0),\"\",C1064/'Betriebsdaten II'!$T$26)","v":""},"","",""]
[null,null,null,null,null,null,null,"","","","",{"$f":"IF(ISBLANK(C1065)+('Betriebsdaten II'!$T$26=0),\"\",C1065/'Betriebsdaten II'!$T$26)","v":""},"","",""]
[null,null,null,null,null,null,null,"","","","",{"$f":"IF(ISBLANK(C1066)+('Betriebsdaten II'!$T$26=0),\"\",C1066/'Betriebsdaten II'!$T$26)","v":""},"","",""]
[null,null,null,null,null,null,null,"","","","",{"$f":"IF(ISBLANK(C1067)+('Betriebsdaten II'!$T$26=0),\"\",C1067/'Betriebsdaten II'!$T$26)","v":""},"","",""]
[null,null,null,null,null,null,null,"","","","",{"$f":"IF(ISBLANK(C1068)+('Betriebsdaten II'!$T$26=0),\"\",C1068/'Betriebsdaten II'!$T$26)","v":""},"","",""]
[null,null,null,null,null,null,null,"","","","",{"$f":"IF(ISBLANK(C1069)+('Betriebsdaten II'!$T$26=0),\"\",C1069/'Betriebsdaten II'!$T$26)","v":""},"","",""]
[null,null,null,null,null,null,null,"","","","",{"$f":"IF(ISBLANK(C1070)+('Betriebsdaten II'!$T$26=0),\"\",C1070/'Betriebsdaten II'!$T$26)","v":""},"","",""]
[null,null,null,null,null,null,null,"","","","",{"$f":"IF(ISBLANK(C1071)+('Betriebsdaten II'!$T$26=0),\"\",C1071/'Betriebsdaten II'!$T$26)","v":""},"","",""]
[null,null,null,null,null,null,null,"","","","",{"$f":"IF(ISBLANK(C1072)+('Betriebsdaten II'!$T$26=0),\"\",C1072/'Betriebsdaten II'!$T$26)","v":""},"","",""]
[null,null,null,null,null,null,null,"","","","",{"$f":"IF(ISBLANK(C1073)+('Betriebsdaten II'!$T$26=0),\"\",C1073/'Betriebsdaten II'!$T$26)","v":""},"","",""]
[null,null,null,null,null,null,null,"","","","",{"$f":"IF(ISBLANK(C1074)+('Betriebsdaten II'!$T$26=0),\"\",C1074/'Betriebsdaten II'!$T$26)","v":""},"","",""]
[null,null,null,null,null,null,null,"","","","",{"$f":"IF(ISBLANK(C1075)+('Betriebsdaten II'!$T$26=0),\"\",C1075/'Betriebsdaten II'!$T$26)","v":""},"","",""]
[null,null,null,null,null,null,null,"","","","",{"$f":"IF(ISBLANK(C1076)+('Betriebsdaten II'!$T$26=0),\"\",C1076/'Betriebsdaten II'!$T$26)","v":""},"","",""]
[null,null,null,null,null,null,null,"","","","",{"$f":"IF(ISBLANK(C1077)+('Betriebsdaten II'!$T$26=0),\"\",C1077/'Betriebsdaten II'!$T$26)","v":""},"","",""]
[null,null,null,null,null,null,null,"","","","",{"$f":"IF(ISBLANK(C1078)+('Betriebsdaten II'!$T$26=0),\"\",C1078/'Betriebsdaten II'!$T$26)","v":""},"","",""]
[null,null,null,null,null,null,null,"","","","",{"$f":"IF(ISBLANK(C1079)+('Betriebsdaten II'!$T$26=0),\"\",C1079/'Betriebsdaten II'!$T$26)","v":""},"","",""]
[null,null,null,null,null,null,null,"","","","",{"$f":"IF(ISBLANK(C1080)+('Betriebsdaten II'!$T$26=0),\"\",C1080/'Betriebsdaten II'!$T$26)","v":""},"","",""]
[null,null,null,null,null,null,null,"","","","",{"$f":"IF(ISBLANK(C1081)+('Betriebsdaten II'!$T$26=0),\"\",C1081/'Betriebsdaten II'!$T$26)","v":""},"","",""]
[null,null,null,null,null,null,null,"","","","",{"$f":"IF(ISBLANK(C1082)+('Betriebsdaten II'!$T$26=0),\"\",C1082/'Betriebsdaten II'!$T$26)","v":""},"","",""]
[null,null,null,null,null,null,null,"","","","",{"$f":"IF(ISBLANK(C1083)+('Betriebsdaten II'!$T$26=0),\"\",C1083/'Betriebsdaten II'!$T$26)","v":""},"","",""]
[null,null,null,null,null,null,null,"","","","",{"$f":"IF(ISBLANK(C1084)+('Betriebsdaten II'!$T$26=0),\"\",C1084/'Betriebsdaten II'!$T$26)","v":""},"","",""]
[null,null,null,null,null,null,null,"","","","",{"$f":"IF(ISBLANK(C1085)+('Betriebsdaten II'!$T$26=0),\"\",C1085/'Betriebsdaten II'!$T$26)","v":""},"","",""]
[null,null,null,null,null,null,null,"","","","",{"$f":"IF(ISBLANK(C1086)+('Betriebsdaten II'!$T$26=0),\"\",C1086/'Betriebsdaten II'!$T$26)","v":""},"","",""]
[null,null,null,null,null,null,null,"","","","",{"$f":"IF(ISBLANK(C1087)+('Betriebsdaten II'!$T$26=0),\"\",C1087/'Betriebsdaten II'!$T$26)","v":""},"","",""]
[null,null,null,null,null,null,null,"","","","",{"$f":"IF(ISBLANK(C1088)+('Betriebsdaten II'!$T$26=0),\"\",C1088/'Betriebsdaten II'!$T$26)","v":""},"","",""]
[null,null,null,null,null,null,null,"","","","",{"$f":"IF(ISBLANK(C1089)+('Betriebsdaten II'!$T$26=0),\"\",C1089/'Betriebsdaten II'!$T$26)","v":""},"","",""]
[null,null,null,null,null,null,null,"","","","",{"$f":"IF(ISBLANK(C1090)+('Betriebsdaten II'!$T$26=0),\"\",C1090/'Betriebsdaten II'!$T$26)","v":""},"","",""]
[null,null,null,null,null,null,null,"","","","",{"$f":"IF(ISBLANK(C1091)+('Betriebsdaten II'!$T$26=0),\"\",C1091/'Betriebsdaten II'!$T$26)","v":""},"","",""]
[null,null,null,null,null,null,null,"","","","",{"$f":"IF(ISBLANK(C1092)+('Betriebsdaten II'!$T$26=0),\"\",C1092/'Betriebsdaten II'!$T$26)","v":""},"","",""]
[null,null,null,null,null,null,null,"","","","",{"$f":"IF(ISBLANK(C1093)+('Betriebsdaten II'!$T$26=0),\"\",C1093/'Betriebsdaten II'!$T$26)","v":""},"","",""]
[null,null,null,null,null,null,null,"","","","",{"$f":"IF(ISBLANK(C1094)+('Betriebsdaten II'!$T$26=0),\"\",C1094/'Betriebsdaten II'!$T$26)","v":""},"","",""]
[null,null,null,null,null,null,null,"","","","",{"$f":"IF(ISBLANK(C1095)+('Betriebsdaten II'!$T$26=0),\"\",C1095/'Betriebsdaten II'!$T$26)","v":""},"","",""]
[null,null,null,null,null,null,null,"","","","",{"$f":"IF(ISBLANK(C1096)+('Betriebsdaten II'!$T$26=0),\"\",C1096/'Betriebsdaten II'!$T$26)","v":""},"","",""]
[null,null,null,null,null,null,null,"","","","",{"$f":"IF(ISBLANK(C1097)+('Betriebsdaten II'!$T$26=0),\"\",C1097/'Betriebsdaten II'!$T$26)","v":""},"","",""]
[null,null,null,null,null,null,null,{"$f":"IF(ISBLANK(A1098),\"\",NetzvorlaufTemp)","v":""},{"$f":"IF(ISBLANK(A1098),\"\",NetzrücklaufTemp)","v":""},"","",{"$f":"IF(ISBLANK(C1098)+('Betriebsdaten II'!$T$26=0),\"\",C1098/'Betriebsdaten II'!$T$26)","v":""},{"$f":"IF(ISERR(J1098*L1098),\"\",J1098*L1098)","v":""},"",{"$f":"IF(N1098=\"\",\"\",IF(AND(N1098<5,K1098<30), \"Optimierungsmöglichkeiten prüfen!\",\"\"))","v":""}]
[null,null,null,null,null,null,null,"","",{"$f":"IF((SUM(E1099)=0)+(SUM(C1099)=0),\"\",E1099/C1099*1000)","v":""},{"$f":"IF(J1099=\"\",\"\",C1099/(4.189*978*E1099/3600))","v":""},{"$f":"IF(ISBLANK(C1099)+('Betriebsdaten II'!$T$26=0),\"\",C1099/'Betriebsdaten II'!$T$26)","v":""},"",{"$f":"IF(ISERR(RANK(M1099,$M$10:$M$1210)),\"\",RANK(M1099,$M$10:$M$1210))","v":""},""]
[null,null,null,null,null,null,null,"","","","",{"$f":"IF(ISBLANK(C1100)+('Betriebsdaten II'!$T$26=0),\"\",C1100/'Betriebsdaten II'!$T$26)","v":""},"","",""]
[null,null,null,null,null,null,null,"","","","",{"$f":"IF(ISBLANK(C1101)+('Betriebsdaten II'!$T$26=0),\"\",C1101/'Betriebsdaten II'!$T$26)","v":""},"","",""]
[null,null,null,null,null,null,null,"","","","",{"$f":"IF(ISBLANK(C1102)+('Betriebsdaten II'!$T$26=0),\"\",C1102/'Betriebsdaten II'!$T$26)","v":""},"","",""]
[null,null,null,null,null,null,null,"","","","",{"$f":"IF(ISBLANK(C1103)+('Betriebsdaten II'!$T$26=0),\"\",C1103/'Betriebsdaten II'!$T$26)","v":""},"","",""]
[null,null,null,null,null,null,null,"","","","",{"$f":"IF(ISBLANK(C1104)+('Betriebsdaten II'!$T$26=0),\"\",C1104/'Betriebsdaten II'!$T$26)","v":""},"","",""]
[null,null,null,null,null,null,null,"","","","",{"$f":"IF(ISBLANK(C1105)+('Betriebsdaten II'!$T$26=0),\"\",C1105/'Betriebsdaten II'!$T$26)","v":""},"","",""]
[null,null,null,null,null,null,null,"","","","",{"$f":"IF(ISBLANK(C1106)+('Betriebsdaten II'!$T$26=0),\"\",C1106/'Betriebsdaten II'!$T$26)","v":""},"","",""]
[null,null,null,null,null,null,null,"","","","",{"$f":"IF(ISBLANK(C1107)+('Betriebsdaten II'!$T$26=0),\"\",C1107/'Betriebsdaten II'!$T$26)","v":""},"","",""]
[null,null,null,null,null,null,null,"","","","",{"$f":"IF(ISBLANK(C1108)+('Betriebsdaten II'!$T$26=0),\"\",C1108/'Betriebsdaten II'!$T$26)","v":""},"","",""]
[null,null,null,null,null,null,null,"","","","",{"$f":"IF(ISBLANK(C1109)+('Betriebsdaten II'!$T$26=0),\"\",C1109/'Betriebsdaten II'!$T$26)","v":""},"","",""]
[null,null,null,null,null,null,null,"","","","",{"$f":"IF(ISBLANK(C1110)+('Betriebsdaten II'!$T$26=0),\"\",C1110/'Betriebsdaten II'!$T$26)","v":""},"","",""]
[null,null,null,null,null,null,null,"","","","",{"$f":"IF(ISBLANK(C1111)+('Betriebsdaten II'!$T$26=0),\"\",C1111/'Betriebsdaten II'!$T$26)","v":""},"","",""]
[null,null,null,null,null,null,null,"","","","",{"$f":"IF(ISBLANK(C1112)+('Betriebsdaten II'!$T$26=0),\"\",C1112/'Betriebsdaten II'!$T$26)","v":""},"","",""]
[null,null,null,null,null,null,null,"","","","",{"$f":"IF(ISBLANK(C1113)+('Betriebsdaten II'!$T$26=0),\"\",C1113/'Betriebsdaten II'!$T$26)","v":""},"","",""]
[null,null,null,null,null,null,null,"","","","",{"$f":"IF(ISBLANK(C1114)+('Betriebsdaten II'!$T$26=0),\"\",C1114/'Betriebsdaten II'!$T$26)","v":""},"","",""]
[null,null,null,null,null,null,null,"","","","",{"$f":"IF(ISBLANK(C1115)+('Betriebsdaten II'!$T$26=0),\"\",C1115/'Betriebsdaten II'!$T$26)","v":""},"","",""]
[null,null,null,null,null,null,null,"","","","",{"$f":"IF(ISBLANK(C1116)+('Betriebsdaten II'!$T$26=0),\"\",C1116/'Betriebsdaten II'!$T$26)","v":""},"","",""]
[null,null,null,null,null,null,null,"","","","",{"$f":"IF(ISBLANK(C1117)+('Betriebsdaten II'!$T$26=0),\"\",C1117/'Betriebsdaten II'!$T$26)","v":""},"","",""]
[null,null,null,null,null,null,null,"","","","",{"$f":"IF(ISBLANK(C1118)+('Betriebsdaten II'!$T$26=0),\"\",C1118/'Betriebsdaten II'!$T$26)","v":""},"","",""]
[null,null,null,null,null,null,null,"","","","",{"$f":"IF(ISBLANK(C1119)+('Betriebsdaten II'!$T$26=0),\"\",C1119/'Betriebsdaten II'!$T$26)","v":""},"","",""]
[null,null,null,null,null,null,null,"","","","",{"$f":"IF(ISBLANK(C1120)+('Betriebsdaten II'!$T$26=0),\"\",C1120/'Betriebsdaten II'!$T$26)","v":""},"","",""]
[null,null,null,null,null,null,null,"","","","",{"$f":"IF(ISBLANK(C1121)+('Betriebsdaten II'!$T$26=0),\"\",C1121/'Betriebsdaten II'!$T$26)","v":""},"","",""]
[null,null,null,null,null,null,null,"","","","",{"$f":"IF(ISBLANK(C1122)+('Betriebsdaten II'!$T$26=0),\"\",C1122/'Betriebsdaten II'!$T$26)","v":""},"","",""]
[null,null,null,null,null,null,null,"","","","",{"$f":"IF(ISBLANK(C1123)+('Betriebsdaten II'!$T$26=0),\"\",C1123/'Betriebsdaten II'!$T$26)","v":""},"","",""]
[null,null,null,null,null,null,null,"","","","",{"$f":"IF(ISBLANK(C1124)+('Betriebsdaten II'!$T$26=0),\"\",C1124/'Betriebsdaten II'!$T$26)","v":""},"","",""]
[null,null,null,null,null,null,null,"","","","",{"$f":"IF(ISBLANK(C1125)+('Betriebsdaten II'!$T$26=0),\"\",C1125/'Betriebsdaten II'!$T$26)","v":""},"","",""]
[null,null,null,null,null,null,null,"","","","",{"$f":"IF(ISBLANK(C1126)+('Betriebsdaten II'!$T$26=0),\"\",C1126/'Betriebsdaten II'!$T$26)","v":""},"","",""]
[null,null,null,null,null,null,null,"","","","",{"$f":"IF(ISBLANK(C1127)+('Betriebsdaten II'!$T$26=0),\"\",C1127/'Betriebsdaten II'!$T$26)","v":""},"","",""]
[null,null,null,null,null,null,null,"","","","",{"$f":"IF(ISBLANK(C1128)+('Betriebsdaten II'!$T$26=0),\"\",C1128/'Betriebsdaten II'!$T$26)","v":""},"","",""]
[null,null,null,null,null,null,null,"","","","",{"$f":"IF(ISBLANK(C1129)+('Betriebsdaten II'!$T$26=0),\"\",C1129/'Betriebsdaten II'!$T$26)","v":""},"","",""]
[null,null,null,null,null,null,null,"","","","",{"$f":"IF(ISBLANK(C1130)+('Betriebsdaten II'!$T$26=0),\"\",C1130/'Betriebsdaten II'!$T$26)","v":""},"","",""]
[null,null,null,null,null,null,null,"","","","",{"$f":"IF(ISBLANK(C1131)+('Betriebsdaten II'!$T$26=0),\"\",C1131/'Betriebsdaten II'!$T$26)","v":""},"","",""]
[null,null,null,null,null,null,null,"","","","",{"$f":"IF(ISBLANK(C1132)+('Betriebsdaten II'!$T$26=0),\"\",C1132/'Betriebsdaten II'!$T$26)","v":""},"","",""]
[null,null,null,null,null,null,null,"","","","",{"$f":"IF(ISBLANK(C1133)+('Betriebsdaten II'!$T$26=0),\"\",C1133/'Betriebsdaten II'!$T$26)","v":""},"","",""]
[null,null,null,null,null,null,null,"","","","",{"$f":"IF(ISBLANK(C1134)+('Betriebsdaten II'!$T$26=0),\"\",C1134/'Betriebsdaten II'!$T$26)","v":""},"","",""]
[null,null,null,null,null,null,null,"","","","",{"$f":"IF(ISBLANK(C1135)+('Betriebsdaten II'!$T$26=0),\"\",C1135/'Betriebsdaten II'!$T$26)","v":""},"","",""]
[null,null,null,null,null,null,null,"","","","",{"$f":"IF(ISBLANK(C1136)+('Betriebsdaten II'!$T$26=0),\"\",C1136/'Betriebsdaten II'!$T$26)","v":""},"","",""]
[null,null,null,null,null,null,null,"","","","",{"$f":"IF(ISBLANK(C1137)+('Betriebsdaten II'!$T$26=0),\"\",C1137/'Betriebsdaten II'!$T$26)","v":""},"","",""]
[null,null,null,null,null,null,null,"","","","",{"$f":"IF(ISBLANK(C1138)+('Betriebsdaten II'!$T$26=0),\"\",C1138/'Betriebsdaten II'!$T$26)","v":""},"","",""]
[null,null,null,null,null,null,null,"","","","",{"$f":"IF(ISBLANK(C1139)+('Betriebsdaten II'!$T$26=0),\"\",C1139/'Betriebsdaten II'!$T$26)","v":""},"","",""]
[null,null,null,null,null,null,null,"","","","",{"$f":"IF(ISBLANK(C1140)+('Betriebsdaten II'!$T$26=0),\"\",C1140/'Betriebsdaten II'!$T$26)","v":""},"","",""]
[null,null,null,null,null,null,null,"","","","",{"$f":"IF(ISBLANK(C1141)+('Betriebsdaten II'!$T$26=0),\"\",C1141/'Betriebsdaten II'!$T$26)","v":""},"","",""]
[null,null,null,null,null,null,null,"","","","",{"$f":"IF(ISBLANK(C1142)+('Betriebsdaten II'!$T$26=0),\"\",C1142/'Betriebsdaten II'!$T$26)","v":""},"","",""]
[null,null,null,null,null,null,null,"","","","",{"$f":"IF(ISBLANK(C1143)+('Betriebsdaten II'!$T$26=0),\"\",C1143/'Betriebsdaten II'!$T$26)","v":""},"","",""]
[null,null,null,null,null,null,null,"","","","",{"$f":"IF(ISBLANK(C1144)+('Betriebsdaten II'!$T$26=0),\"\",C1144/'Betriebsdaten II'!$T$26)","v":""},"","",""]
[null,null,null,null,null,null,null,"","","","",{"$f":"IF(ISBLANK(C1145)+('Betriebsdaten II'!$T$26=0),\"\",C1145/'Betriebsdaten II'!$T$26)","v":""},"","",""]
[null,null,null,null,null,null,null,"","","","",{"$f":"IF(ISBLANK(C1146)+('Betriebsdaten II'!$T$26=0),\"\",C1146/'Betriebsdaten II'!$T$26)","v":""},"","",""]
[null,null,null,null,null,null,null,"","","","",{"$f":"IF(ISBLANK(C1147)+('Betriebsdaten II'!$T$26=0),\"\",C1147/'Betriebsdaten II'!$T$26)","v":""},"","",""]
[null,null,null,null,null,null,null,"","","","",{"$f":"IF(ISBLANK(C1148)+('Betriebsdaten II'!$T$26=0),\"\",C1148/'Betriebsdaten II'!$T$26)","v":""},"","",""]
[null,null,null,null,null,null,null,"","","","",{"$f":"IF(ISBLANK(C1149)+('Betriebsdaten II'!$T$26=0),\"\",C1149/'Betriebsdaten II'!$T$26)","v":""},"","",""]
[null,null,null,null,null,null,null,"","","","",{"$f":"IF(ISBLANK(C1150)+('Betriebsdaten II'!$T$26=0),\"\",C1150/'Betriebsdaten II'!$T$26)","v":""},"","",""]
[null,null,null,null,null,null,null,"","","","",{"$f":"IF(ISBLANK(C1151)+('Betriebsdaten II'!$T$26=0),\"\",C1151/'Betriebsdaten II'!$T$26)","v":""},"","",""]
[null,null,null,null,null,null,null,"","","","",{"$f":"IF(ISBLANK(C1152)+('Betriebsdaten II'!$T$26=0),\"\",C1152/'Betriebsdaten II'!$T$26)","v":""},"","",""]
[null,null,null,null,null,null,null,"","","","",{"$f":"IF(ISBLANK(C1153)+('Betriebsdaten II'!$T$26=0),\"\",C1153/'Betriebsdaten II'!$T$26)","v":""},"","",""]
[null,null,null,null,null,null,null,"","","","",{"$f":"IF(ISBLANK(C1154)+('Betriebsdaten II'!$T$26=0),\"\",C1154/'Betriebsdaten II'!$T$26)","v":""},"","",""]
[null,null,null,null,null,null,null,"","","","",{"$f":"IF(ISBLANK(C1155)+('Betriebsdaten II'!$T$26=0),\"\",C1155/'Betriebsdaten II'!$T$26)","v":""},"","",""]
[null,null,null,null,null,null,null,"","","","",{"$f":"IF(ISBLANK(C1156)+('Betriebsdaten II'!$T$26=0),\"\",C1156/'Betriebsdaten II'!$T$26)","v":""},"","",""]
[null,null,null,null,null,null,null,"","","","",{"$f":"IF(ISBLANK(C1157)+('Betriebsdaten II'!$T$26=0),\"\",C1157/'Betriebsdaten II'!$T$26)","v":""},"","",""]
[null,null,null,null,null,null,null,"","","","",{"$f":"IF(ISBLANK(C1158)+('Betriebsdaten II'!$T$26=0),\"\",C1158/'Betriebsdaten II'!$T$26)","v":""},"","",""]
[null,null,null,null,null,null,null,"","","","",{"$f":"IF(ISBLANK(C1159)+('Betriebsdaten II'!$T$26=0),\"\",C1159/'Betriebsdaten II'!$T$26)","v":""},"","",""]
[null,null,null,null,null,null,null,"","","","",{"$f":"IF(ISBLANK(C1160)+('Betriebsdaten II'!$T$26=0),\"\",C1160/'Betriebsdaten II'!$T$26)","v":""},"","",""]
[null,null,null,null,null,null,null,"","","","",{"$f":"IF(ISBLANK(C1161)+('Betriebsdaten II'!$T$26=0),\"\",C1161/'Betriebsdaten II'!$T$26)","v":""},"","",""]
[null,null,null,null,null,null,null,{"$f":"IF(ISBLANK(A1162),\"\",NetzvorlaufTemp)","v":""},{"$f":"IF(ISBLANK(A1162),\"\",NetzrücklaufTemp)","v":""},"","",{"$f":"IF(ISBLANK(C1162)+('Betriebsdaten II'!$T$26=0),\"\",C1162/'Betriebsdaten II'!$T$26)","v":""},{"$f":"IF(ISERR(J1162*L1162),\"\",J1162*L1162)","v":""},"",{"$f":"IF(N1162=\"\",\"\",IF(AND(N1162<5,K1162<30), \"Optimierungsmöglichkeiten prüfen!\",\"\"))","v":""}]
[null,null,null,null,null,null,null,"","",{"$f":"IF((SUM(E1163)=0)+(SUM(C1163)=0),\"\",E1163/C1163*1000)","v":""},{"$f":"IF(J1163=\"\",\"\",C1163/(4.189*978*E1163/3600))","v":""},{"$f":"IF(ISBLANK(C1163)+('Betriebsdaten II'!$T$26=0),\"\",C1163/'Betriebsdaten II'!$T$26)","v":""},"",{"$f":"IF(ISERR(RANK(M1163,$M$10:$M$1210)),\"\",RANK(M1163,$M$10:$M$1210))","v":""},""]
[null,null,null,null,null,null,null,"","","","",{"$f":"IF(ISBLANK(C1164)+('Betriebsdaten II'!$T$26=0),\"\",C1164/'Betriebsdaten II'!$T$26)","v":""},"","",""]
[null,null,null,null,null,null,null,"","","","",{"$f":"IF(ISBLANK(C1165)+('Betriebsdaten II'!$T$26=0),\"\",C1165/'Betriebsdaten II'!$T$26)","v":""},"","",""]
[null,null,null,null,null,null,null,"","","","",{"$f":"IF(ISBLANK(C1166)+('Betriebsdaten II'!$T$26=0),\"\",C1166/'Betriebsdaten II'!$T$26)","v":""},"","",""]
[null,null,null,null,null,null,null,"","","","",{"$f":"IF(ISBLANK(C1167)+('Betriebsdaten II'!$T$26=0),\"\",C1167/'Betriebsdaten II'!$T$26)","v":""},"","",""]
[null,null,null,null,null,null,null,"","","","",{"$f":"IF(ISBLANK(C1168)+('Betriebsdaten II'!$T$26=0),\"\",C1168/'Betriebsdaten II'!$T$26)","v":""},"","",""]
[null,null,null,null,null,null,null,"","","","",{"$f":"IF(ISBLANK(C1169)+('Betriebsdaten II'!$T$26=0),\"\",C1169/'Betriebsdaten II'!$T$26)","v":""},"","",""]
[null,null,null,null,null,null,null,"","","","",{"$f":"IF(ISBLANK(C1170)+('Betriebsdaten II'!$T$26=0),\"\",C1170/'Betriebsdaten II'!$T$26)","v":""},"","",""]
[null,null,null,null,null,null,null,"","","","",{"$f":"IF(ISBLANK(C1171)+('Betriebsdaten II'!$T$26=0),\"\",C1171/'Betriebsdaten II'!$T$26)","v":""},"","",""]
[null,null,null,null,null,null,null,"","","","",{"$f":"IF(ISBLANK(C1172)+('Betriebsdaten II'!$T$26=0),\"\",C1172/'Betriebsdaten II'!$T$26)","v":""},"","",""]
[null,null,null,null,null,null,null,"","","","",{"$f":"IF(ISBLANK(C1173)+('Betriebsdaten II'!$T$26=0),\"\",C1173/'Betriebsdaten II'!$T$26)","v":""},"","",""]
[null,null,null,null,null,null,null,"","","","",{"$f":"IF(ISBLANK(C1174)+('Betriebsdaten II'!$T$26=0),\"\",C1174/'Betriebsdaten II'!$T$26)","v":""},"","",""]
[null,null,null,null,null,null,null,"","","","",{"$f":"IF(ISBLANK(C1175)+('Betriebsdaten II'!$T$26=0),\"\",C1175/'Betriebsdaten II'!$T$26)","v":""},"","",""]
[null,null,null,null,null,null,null,"","","","",{"$f":"IF(ISBLANK(C1176)+('Betriebsdaten II'!$T$26=0),\"\",C1176/'Betriebsdaten II'!$T$26)","v":""},"","",""]
[null,null,null,null,null,null,null,"","","","",{"$f":"IF(ISBLANK(C1177)+('Betriebsdaten II'!$T$26=0),\"\",C1177/'Betriebsdaten II'!$T$26)","v":""},"","",""]
[null,null,null,null,null,null,null,"","","","",{"$f":"IF(ISBLANK(C1178)+('Betriebsdaten II'!$T$26=0),\"\",C1178/'Betriebsdaten II'!$T$26)","v":""},"","",""]
[null,null,null,null,null,null,null,"","","","",{"$f":"IF(ISBLANK(C1179)+('Betriebsdaten II'!$T$26=0),\"\",C1179/'Betriebsdaten II'!$T$26)","v":""},"","",""]
[null,null,null,null,null,null,null,"","","","",{"$f":"IF(ISBLANK(C1180)+('Betriebsdaten II'!$T$26=0),\"\",C1180/'Betriebsdaten II'!$T$26)","v":""},"","",""]
[null,null,null,null,null,null,null,"","","","",{"$f":"IF(ISBLANK(C1181)+('Betriebsdaten II'!$T$26=0),\"\",C1181/'Betriebsdaten II'!$T$26)","v":""},"","",""]
[null,null,null,null,null,null,null,"","","","",{"$f":"IF(ISBLANK(C1182)+('Betriebsdaten II'!$T$26=0),\"\",C1182/'Betriebsdaten II'!$T$26)","v":""},"","",""]
[null,null,null,null,null,null,null,"","","","",{"$f":"IF(ISBLANK(C1183)+('Betriebsdaten II'!$T$26=0),\"\",C1183/'Betriebsdaten II'!$T$26)","v":""},"","",""]
[null,null,null,null,null,null,null,"","","","",{"$f":"IF(ISBLANK(C1184)+('Betriebsdaten II'!$T$26=0),\"\",C1184/'Betriebsdaten II'!$T$26)","v":""},"","",""]
[null,null,null,null,null,null,null,"","","","",{"$f":"IF(ISBLANK(C1185)+('Betriebsdaten II'!$T$26=0),\"\",C1185/'Betriebsdaten II'!$T$26)","v":""},"","",""]
[null,null,null,null,null,null,null,"","","","",{"$f":"IF(ISBLANK(C1186)+('Betriebsdaten II'!$T$26=0),\"\",C1186/'Betriebsdaten II'!$T$26)","v":""},"","",""]
[null,null,null,null,null,null,null,"","","","",{"$f":"IF(ISBLANK(C1187)+('Betriebsdaten II'!$T$26=0),\"\",C1187/'Betriebsdaten II'!$T$26)","v":""},"","",""]
[null,null,null,null,null,null,null,"","","","",{"$f":"IF(ISBLANK(C1188)+('Betriebsdaten II'!$T$26=0),\"\",C1188/'Betriebsdaten II'!$T$26)","v":""},"","",""]
[null,null,null,null,null,null,null,"","","","",{"$f":"IF(ISBLANK(C1189)+('Betriebsdaten II'!$T$26=0),\"\",C1189/'Betriebsdaten II'!$T$26)","v":""},"","",""]
[null,null,null,null,null,null,null,"","","","",{"$f":"IF(ISBLANK(C1190)+('Betriebsdaten II'!$T$26=0),\"\",C1190/'Betriebsdaten II'!$T$26)","v":""},"","",""]
[null,null,null,null,null,null,null,"","","","",{"$f":"IF(ISBLANK(C1191)+('Betriebsdaten II'!$T$26=0),\"\",C1191/'Betriebsdaten II'!$T$26)","v":""},"","",""]
[null,null,null,null,null,null,null,"","","","",{"$f":"IF(ISBLANK(C1192)+('Betriebsdaten II'!$T$26=0),\"\",C1192/'Betriebsdaten II'!$T$26)","v":""},"","",""]
[null,null,null,null,null,null,null,"","","","",{"$f":"IF(ISBLANK(C1193)+('Betriebsdaten II'!$T$26=0),\"\",C1193/'Betriebsdaten II'!$T$26)","v":""},"","",""]
[null,null,null,null,null,null,null,"","","","",{"$f":"IF(ISBLANK(C1194)+('Betriebsdaten II'!$T$26=0),\"\",C1194/'Betriebsdaten II'!$T$26)","v":""},"","",""]
[null,null,null,null,null,null,null,"","","","",{"$f":"IF(ISBLANK(C1195)+('Betriebsdaten II'!$T$26=0),\"\",C1195/'Betriebsdaten II'!$T$26)","v":""},"","",""]
[null,null,null,null,null,null,null,"","","","",{"$f":"IF(ISBLANK(C1196)+('Betriebsdaten II'!$T$26=0),\"\",C1196/'Betriebsdaten II'!$T$26)","v":""},"","",""]
[null,null,null,null,null,null,null,"","","","",{"$f":"IF(ISBLANK(C1197)+('Betriebsdaten II'!$T$26=0),\"\",C1197/'Betriebsdaten II'!$T$26)","v":""},"","",""]
[null,null,null,null,null,null,null,"","","","",{"$f":"IF(ISBLANK(C1198)+('Betriebsdaten II'!$T$26=0),\"\",C1198/'Betriebsdaten II'!$T$26)","v":""},"","",""]
[null,null,null,null,null,null,null,"","","","",{"$f":"IF(ISBLANK(C1199)+('Betriebsdaten II'!$T$26=0),\"\",C1199/'Betriebsdaten II'!$T$26)","v":""},"","",""]
[null,null,null,null,null,null,null,"","","","",{"$f":"IF(ISBLANK(C1200)+('Betriebsdaten II'!$T$26=0),\"\",C1200/'Betriebsdaten II'!$T$26)","v":""},"","",""]
[null,null,null,null,null,null,null,"","","","",{"$f":"IF(ISBLANK(C1201)+('Betriebsdaten II'!$T$26=0),\"\",C1201/'Betriebsdaten II'!$T$26)","v":""},{"$f":"IF(ISERR(J1201*L1201),\"\",J1201*L1201)","v":""},{"$f":"IF(ISERR(RANK(M1201,$M$10:$M$1210)),\"\",RANK(M1201,$M$10:$M$1210))","v":""},{"$f":"IF(N1201=\"\",\"\",IF(AND(N1201<5,K1201<30), \"Optimierungsmöglichkeiten prüfen!\",\"\"))","v":""}]
[null,null,null,null,null,null,null,"","","","",{"$f":"IF(ISBLANK(C1202)+('Betriebsdaten II'!$T$26=0),\"\",C1202/'Betriebsdaten II'!$T$26)","v":""},"","",""]
[null,null,null,null,null,null,null,"","","","",{"$f":"IF(ISBLANK(C1203)+('Betriebsdaten II'!$T$26=0),\"\",C1203/'Betriebsdaten II'!$T$26)","v":""},"","",""]
[null,null,null,null,null,null,null,"","","","",{"$f":"IF(ISBLANK(C1204)+('Betriebsdaten II'!$T$26=0),\"\",C1204/'Betriebsdaten II'!$T$26)","v":""},"","",""]
[null,null,null,null,null,null,null,"","","","",{"$f":"IF(ISBLANK(C1205)+('Betriebsdaten II'!$T$26=0),\"\",C1205/'Betriebsdaten II'!$T$26)","v":""},"","",""]
[null,null,null,null,null,null,null,"","","","",{"$f":"IF(ISBLANK(C1206)+('Betriebsdaten II'!$T$26=0),\"\",C1206/'Betriebsdaten II'!$T$26)","v":""},"","",""]
[null,null,null,null,null,null,null,"","","","",{"$f":"IF(ISBLANK(C1207)+('Betriebsdaten II'!$T$26=0),\"\",C1207/'Betriebsdaten II'!$T$26)","v":""},"","",""]
[null,null,null,null,null,null,null,"","","","",{"$f":"IF(ISBLANK(C1208)+('Betriebsdaten II'!$T$26=0),\"\",C1208/'Betriebsdaten II'!$T$26)","v":""},"","",""]
[null,null,null,null,null,null,null,"","","","",{"$f":"IF(ISBLANK(C1209)+('Betriebsdaten II'!$T$26=0),\"\",C1209/'Betriebsdaten II'!$T$26)","v":""},"","",""]
[null,null,null,null,null,null,null,"","","","",{"$f":"IF(ISBLANK(C1210)+('Betriebsdaten II'!$T$26=0),\"\",C1210/'Betriebsdaten II'!$T$26)","v":""},"","",""]

{"sheet":"Auswertung_I","index":5,"n_rows":15,"n_cols":10,"rows_kept":15,"cut":false,"hidden":false,"merged":[]}
[]
[null,"QM Heizwerke - Auswertung Betriebsbericht"]
[null,null,null,null,null,null,null,"bitte auswählen!","bitte eintragen!"]
[null,"Kennzahlen","Einheit","Wert","Anmerkung",null,"Zusatzeingaben für Wärmeerzeuger","Art","Nennleistung","erzeugte Wärmemenge"]
[null,"Wärmeverkauf Planung","MWh/a",null,{"$f":"IF(ISNUMBER(D5),\"\",\"bitte Planungswert Wärmeverkauf\")","v":"bitte Planungswert Wärmeverkauf"},null,"Wärmeerzeuger (Komponentennummer)",null,"kW","MWh/a"]
[null,"Wärmeverkauf Soll-/Istvergleich","%",{"$f":"IF(OR(Auswertung_I!D5=0,ISBLANK(Auswertung_I!D5)),0,WM_AbnehmerNetzJahr/1000/Auswertung_I!D5)","v":0},{"$f":"IF(ISNUMBER(D5),\"\",\"eingeben!\")","v":"eingeben!"},null,{"$f":"IF(ISBLANK(KmpNrBMKessel1)*ISBLANK(BezeichnungBMKessel1),\"\",\"(\"& KmpNrBMKessel1 & \") \"&BezeichnungBMKessel1)","v":""},null,null,{"$f":"IF(Hilfstabelle!N1=0,\"-\",Hilfstabelle!N1/1000)","v":"-"}]
[null,"Wärmeverluste Netz","%",{"$f":"Auswertung_II!Q10","v":""},null,null,{"$f":"IF(ISBLANK(KmpNrBMKessel2)*ISBLANK(BezeichnungBMKessel2),\"\",\"(\"& KmpNrBMKessel2 & \") \"&BezeichnungBMKessel2)","v":""},null,null,{"$f":"IF(Hilfstabelle!N2=0,\"-\",Hilfstabelle!N2/1000)","v":"-"}]
[null,"Wärmeverluste Heizhaus","%",{"$f":"Auswertung_II!Q8","v":""},null,null,{"$f":"IF(ISBLANK(KmpNrBMKessel3)*ISBLANK(BezeichnungBMKessel3),\"\",\"(\"& KmpNrBMKessel3 & \") \"&BezeichnungBMKessel3)","v":""},null,null,{"$f":"IF(Hilfstabelle!N3=0,\"-\",Hilfstabelle!N3/1000)","v":"-"}]
[null,"Stromverbrauch Gesamtanlagen","kWhel/MWhtherm",{"$f":"Auswertung_II!Q25","v":""},null,null,{"$f":"IF(ISBLANK(KmpNrSonstige1)*ISBLANK(BezeichnungSonstige1),\"\",\"(\"& KmpNrSonstige1 & \") \"&BezeichnungSonstige1)","v":""},null,null,{"$f":"IF(Hilfstabelle!N4=0,\"-\",Hilfstabelle!N4/1000)","v":"-"}]
[null,"Volllaststunden Biomassekessel (Gesamt)","h/a",{"$f":"SUMIF($H$6:$H$15,\"Biomasse\",J6:J15)*1000/SUMIF($H$6:$H$15,\"Biomasse\",I6:I15)","v":{"$error":"#DIV/0!"}},{"$f":"IF(ISBLANK(I6),\"bitte Nennleistung (Spalte I) eingeben!\",\"\")","v":"bitte Nennleistung (Spalte I) eingeben!"},null,{"$f":"IF(ISBLANK(KmpNrSonstige2)*ISBLANK(BezeichnungSonstige2),\"\",\"(\"& KmpNrSonstige2 & \") \"&BezeichnungSonstige2)","v":""},null,null,{"$f":"IF(Hilfstabelle!N5=0,\"-\",Hilfstabelle!N5/1000)","v":"-"}]
[null,"Trassenlänge","trm",null,{"$f":"IF(ISNUMBER(D11),\"\",\"bitte Trassenlänge eingeben!\")","v":"bitte Trassenlänge eingeben!"},null,{"$f":"IF(ISBLANK(KmpNrSonstige3)*ISBLANK(BezeichnungSonstige3),\"\",\"(\"& KmpNrSonstige3 & \") \"&BezeichnungSonstige3)","v":""},null,null,{"$f":"IF(Hilfstabelle!N6=0,\"-\",Hilfstabelle!N6/1000)","v":"-"}]
[null,"Wärmebelegung","kWh/(trm*a)",{"$f":"WM_AbnehmerNetzJahr/Auswertung_I!D11","v":{"$error":"#DIV/0!"}},null,null,{"$f":"IF(ISBLANK(KmpNrSonstige4)*ISBLANK(BezeichnungSonstige4),\"\",\"(\"& KmpNrSonstige4 & \") \"&BezeichnungSonstige4)","v":""},null,null,{"$f":"IF(Hilfstabelle!N7=0,\"-\",Hilfstabelle!N7/1000)","v":"-"}]
[null,"spez. Volumenstrom (Wassermenge)","m³/MWh",{"$f":"Auswertung_II!Q49","v":""},null,null,{"$f":"IF(ISBLANK(KmpNrSonstige5)*ISBLANK(BezeichnungSonstige5),\"\",\"(\"& KmpNrSonstige5 & \") \"&BezeichnungSonstige5)","v":""},null,null,{"$f":"IF(Hilfstabelle!N8=0,\"-\",Hilfstabelle!N8/1000)","v":"-"}]
[null,null,null,null,null,null,{"$f":"IF(ISBLANK(KmpNrSonstige6)*ISBLANK(BezeichnungSonstige6),\"\",\"(\"& KmpNrSonstige6 & \") \"&BezeichnungSonstige6)","v":""},null,null,{"$f":"IF(Hilfstabelle!N9=0,\"-\",Hilfstabelle!N9/1000)","v":"-"}]
[null,null,null,null,null,null,{"$f":"IF(ISBLANK(KmpNrSonstige7)*ISBLANK(BezeichnungSonstige7),\"\",\"(\"& KmpNrSonstige7 & \") \"&BezeichnungSonstige7)","v":""},null,null,{"$f":"IF(Hilfstabelle!N10=0,\"-\",Hilfstabelle!N10/1000)","v":"-"}]

{"sheet":"Auswertung_II","index":6,"n_rows":50,"n_cols":17,"rows_kept":50,"cut":false,"hidden":false,"merged":[[44,14,45,14],[44,15,45,15],[44,11,45,11],[44,12,45,12],[48,2,48,3],[49,2,49,3],[44,13,45,13],[46,2,46,3],[47,2,47,3],[44,7,45,7],[44,8,45,8],[44,9,45,9],[30,13,31,13],[30,14,31,14],[30,15,31,15],[30,16,31,16],[44,1,45,1],[44,2,45,3],[44,4,45,4],[44,5,45,5],[44,6,45,6],[35,2,37,2],[38,2,40,2],[43,2,43,3],[43,6,43,7],[43,11,43,12],[44,16,45,16],[44,10,45,10],[32,2,34,2],[30,6,31,6],[30,7,31,7],[30,8,31,8],[30,9,31,9],[30,10,31,10],[30,11,31,11],[25,2,25,3],[26,2,26,3],[29,2,29,3],[29,6,29,7],[29,11,29,12],[30,12,31,12],[30,1,31,1],[30,2,31,2],[30,3,31,3],[30,4,31,4],[30,5,31,5],[24,2,24,3],[9,2,9,3],[10,2,10,3],[11,1,12,1],[11,2,12,16],[13,2,13,3],[15,2,15,3],[16,2,16,3],[20,2,20,3],[21,2,21,3],[22,1,23,1],[22,2,23,16],[14,2,14,3],[17,2,17,3],[18,2,18,3],[19,2,19,3],[4,14,5,14],[4,15,5,15],[4,16,5,16],[6,2,6,3],[7,2,7,3],[4,12,5,12],[4,13,5,13],[8,2,8,3],[4,8,5,8],[4,9,5,9],[4,10,5,10],[4,11,5,11],[4,7,5,7],[3,2,3,3],[3,6,3,7],[3,11,3,12],[4,1,5,1],[4,2,5,3],[4,4,5,4],[4,5,5,5],[4,6,5,6]]}
[]
[null,"QM Heizwerke - Auswertung Betriebsbericht"]
[]
[null,"Projektnummer:",{"$f":"IF(Titelblatt!$D$6=\"\",\"\",Titelblatt!$D$6)","v":""},null,null,"Jahr:",{"$f":"IF(Titelblatt!$D$8=\"\",YEAR(TODAY()),Titelblatt!$D$8)","v":2024},null,null,null,"Anfangsmonat:",{"$f":"IF(Titelblatt!$D$10=\"\",1,Titelblatt!$D$10)","v":1}]
[null,"Energiebilanz","Einheit",null,{"$f":"DATE($G$4,$L$30,1)","v":"2024-01-01"},{"$f":"IF($L$30+1>12,DATE($G$30+1,$L$30+1-12,1),DATE($G$30,$L$30+1,1))","v":"2024-02-01"},{"$f":"IF($L$30+2>12,DATE($G$30+1,$L$30+2-12,1),DATE($G$30,$L$30+2,1))","v":"2024-03-01"},{"$f":"IF($L$30+3>12,DATE($G$30+1,$L$30+3-12,1),DATE($G$30,$L$30+3,1))","v":"2024-04-01"},{"$f":"IF($L$30+4>12,DATE($G$30+4,$L$30+1-12,1),DATE($G$30,$L$30+4,1))","v":"2024-05-01"},{"$f":"IF($L$30+5>12,DATE($G$30+5,$L$30+1-12,1),DATE($G$30,$L$30+5,1))","v":"2024-06-01"},{"$f":"IF($L$30+6>12,DATE($G$30+1,$L$30+6-12,1),DATE($G$30,$L$30+6,1))","v":"2024-07-01"},{"$f":"IF($L$30+7>12,DATE($G$30+1,$L$30+7-12,1),DATE($G$30,$L$30+7,1))","v":"2024-08-01"},{"$f":"IF($L$30+8>12,DATE($G$30+1,$L$30+8-12,1),DATE($G$30,$L$30+8,1))","v":"2024-09-01"},{"$f":"IF($L$30+9>12,DATE($G$30+1,$L$30+9-12,1),DATE($G$30,$L$30+9,1))","v":"2024-10-01"},{"$f":"IF($L$30+10>12,DATE($G$30+1,$L$30+10-12,1),DATE($G$30,$L$30+10,1))","v":"2024-11-01"},{"$f":"IF($L$30+11>12,DATE($G$30+1,$L$30+11-12,1),DATE($G$30,$L$30+11,1))","v":"2024-12-01"},"Jahr"]
[]
[null,"Erzeugte Wärmemenge","MWh",null,{"$f":"Hilfstabelle!B15/1000","v":0},{"$f":"Hilfstabelle!C15/1000","v":0},{"$f":"Hilfstabelle!D15/1000","v":0},{"$f":"Hilfstabelle!E15/1000","v":0},{"$f":"Hilfstabelle!F15/1000","v":0},{"$f":"Hilfstabelle!G15/1000","v":0},{"$f":"Hilfstabelle!H15/1000","v":0},{"$f":"Hilfstabelle!I15/1000","v":0},{"$f":"Hilfstabelle!J15/1000","v":0},{"$f":"Hilfstabelle!K15/1000","v":0},{"$f":"Hilfstabelle!L15/1000","v":0},{"$f":"Hilfstabelle!M15/1000","v":0},{"$f":"Hilfstabelle!N15/1000","v":0}]
[null,"Wärmeverluste Heizhaus","%",null,{"$f":"Hilfstabelle!B24","v":""},{"$f":"Hilfstabelle!C24","v":""},{"$f":"Hilfstabelle!D24","v":""},{"$f":"Hilfstabelle!E24","v":""},{"$f":"Hilfstabelle!F24","v":""},{"$f":"Hilfstabelle!G24","v":""},{"$f":"Hilfstabelle!H24","v":""},{"$f":"Hilfstabelle!I24","v":""},{"$f":"Hilfstabelle!J24","v":""},{"$f":"Hilfstabelle!K24","v":""},{"$f":"Hilfstabelle!L24","v":""},{"$f":"Hilfstabelle!M24","v":""},{"$f":"Hilfstabelle!N24","v":""}]
[null,"Ins Netz eingespeiste Wärmemenge","MWh",null,{"$f":"Hilfstabelle!B16/1000","v":0},{"$f":"Hilfstabelle!C16/1000","v":0},{"$f":"Hilfstabelle!D16/1000","v":0},{"$f":"Hilfstabelle!E16/1000","v":0},{"$f":"Hilfstabelle!F16/1000","v":0},{"$f":"Hilfstabelle!G16/1000","v":0},{"$f":"Hilfstabelle!H16/1000","v":0},{"$f":"Hilfstabelle!I16/1000","v":0},{"$f":"Hilfstabelle!J16/1000","v":0},{"$f":"Hilfstabelle!K16/1000","v":0},{"$f":"Hilfstabelle!L16/1000","v":0},{"$f":"Hilfstabelle!M16/1000","v":0},{"$f":"Hilfstabelle!N16/1000","v":0}]
[null,"Wärmeverluste Netz","%",null,{"$f":"E47","v":""},{"$f":"F47","v":""},"","","","","","","","","","",""]
[null,"Verkaufte Wärmemenge","MWh",null,{"$f":"Hilfstabelle!B17/1000","v":0},{"$f":"Hilfstabelle!C17/1000","v":0},{"$f":"Hilfstabelle!D17/1000","v":0},{"$f":"Hilfstabelle!E17/1000","v":0},{"$f":"Hilfstabelle!F17/1000","v":0},{"$f":"Hilfstabelle!G17/1000","v":0},{"$f":"Hilfstabelle!H17/1000","v":0},{"$f":"Hilfstabelle!I17/1000","v":0},{"$f":"Hilfstabelle!J17/1000","v":0},{"$f":"Hilfstabelle!K17/1000","v":0},{"$f":"Hilfstabelle!L17/1000","v":0},{"$f":"Hilfstabelle!M17/1000","v":0},{"$f":"Hilfstabelle!N17/1000","v":0}]
[null,"Erzeugungsmix"]
[]
[null,"Anteil der Energieerzeugung mit Biomasse","%",null,{"$f":"IF(SUM(Hilfstabelle!B1:B10)=0,\"\",SUMIF(Auswertung_I!$H$6:$H$15,\"Biomasse\",Hilfstabelle!B1:B10)/(SUM(Hilfstabelle!B1:B10)))","v":""},{"$f":"IF(SUM(Hilfstabelle!C1:C10)=0,\"\",SUMIF(Auswertung_I!$H$6:$H$15,\"Biomasse\",Hilfstabelle!C1:C10)/(SUM(Hilfstabelle!C1:C10)))","v":""},{"$f":"IF(SUM(Hilfstabelle!D1:D10)=0,\"\",SUMIF(Auswertung_I!$H$6:$H$15,\"Biomasse\",Hilfstabelle!D1:D10)/(SUM(Hilfstabelle!D1:D10)))","v":""},{"$f":"IF(SUM(Hilfstabelle!E1:E10)=0,\"\",SUMIF(Auswertung_I!$H$6:$H$15,\"Biomasse\",Hilfstabelle!E1:E10)/(SUM(Hilfstabelle!E1:E10)))","v":""},{"$f":"IF(SUM(Hilfstabelle!F1:F10)=0,\"\",SUMIF(Auswertung_I!$H$6:$H$15,\"Biomasse\",Hilfstabelle!F1:F10)/(SUM(Hilfstabelle!F1:F10)))","v":""},{"$f":"IF(SUM(Hilfstabelle!G1:G10)=0,\"\",SUMIF(Auswertung_I!$H$6:$H$15,\"Biomasse\",Hilfstabelle!G1:G10)/(SUM(Hilfstabelle!G1:G10)))","v":""},{"$f":"IF(SUM(Hilfstabelle!H1:H10)=0,\"\",SUMIF(Auswertung_I!$H$6:$H$15,\"Biomasse\",Hilfstabelle!H1:H10)/(SUM(Hilfstabelle!H1:H10)))","v":""},{"$f":"IF(SUM(Hilfstabelle!I1:I10)=0,\"\",SUMIF(Auswertung_I!$H$6:$H$15,\"Biomasse\",Hilfstabelle!I1:I10)/(SUM(Hilfstabelle!I1:I10)))","v":""},{"$f":"IF(SUM(Hilfstabelle!J1:J10)=0,\"\",SUMIF(Auswertung_I!$H$6:$H$15,\"Biomasse\",Hilfstabelle!J1:J10)/(SUM(Hilfstabelle!J1:J10)))","v":""},{"$f":"IF(SUM(Hilfstabelle!K1:K10)=0,\"\",SUMIF(Auswertung_I!$H$6:$H$15,\"Biomasse\",Hilfstabelle!K1:K10)/(SUM(Hilfstabelle!K1:K10)))","v":""},{"$f":"IF(SUM(Hilfstabelle!L1:L10)=0,\"\",SUMIF(Auswertung_I!$H$6:$H$15,\"Biomasse\",Hilfstabelle!L1:L10)/(SUM(Hilfstabelle!L1:L10)))","v":""},{"$f":"IF(SUM(Hilfstabelle!M1:M10)=0,\"\",SUMIF(Auswertung_I!$H$6:$H$15,\"Biomasse\",Hilfstabelle!M1:M10)/(SUM(Hilfstabelle!M1:M10)))","v":""},{"$f":"IF(SUM(Hilfstabelle!N1:N10)=0,\"\",SUMIF(Auswertung_I!$H$6:$H$15,\"Biomasse\",Hilfstabelle!N1:N10)/(SUM(Hilfstabelle!N1:N10)))","v":""}]
[null,"Anteil Biomasse-KWK (Wärme)","%",null,{"$f":"IF(SUM(Hilfstabelle!B1:B10)=0,\"\",SUMIF(Auswertung_I!$H$6:$H$15,\"Biomasse-KWK\",Hilfstabelle!B1:B10)/(SUM(Hilfstabelle!B1:B10)))","v":""},{"$f":"IF(SUM(Hilfstabelle!C1:C10)=0,\"\",SUMIF(Auswertung_I!$H$6:$H$15,\"Biomasse-KWK\",Hilfstabelle!C1:C10)/(SUM(Hilfstabelle!C1:C10)))","v":""},{"$f":"IF(SUM(Hilfstabelle!D1:D10)=0,\"\",SUMIF(Auswertung_I!$H$6:$H$15,\"Biomasse-KWK\",Hilfstabelle!D1:D10)/(SUM(Hilfstabelle!D1:D10)))","v":""},{"$f":"IF(SUM(Hilfstabelle!E1:E10)=0,\"\",SUMIF(Auswertung_I!$H$6:$H$15,\"Biomasse-KWK\",Hilfstabelle!E1:E10)/(SUM(Hilfstabelle!E1:E10)))","v":""},{"$f":"IF(SUM(Hilfstabelle!F1:F10)=0,\"\",SUMIF(Auswertung_I!$H$6:$H$15,\"Biomasse-KWK\",Hilfstabelle!F1:F10)/(SUM(Hilfstabelle!F1:F10)))","v":""},{"$f":"IF(SUM(Hilfstabelle!G1:G10)=0,\"\",SUMIF(Auswertung_I!$H$6:$H$15,\"Biomasse-KWK\",Hilfstabelle!G1:G10)/(SUM(Hilfstabelle!G1:G10)))","v":""},{"$f":"IF(SUM(Hilfstabelle!H1:H10)=0,\"\",SUMIF(Auswertung_I!$H$6:$H$15,\"Biomasse-KWK\",Hilfstabelle!H1:H10)/(SUM(Hilfstabelle!H1:H10)))","v":""},{"$f":"IF(SUM(Hilfstabelle!I1:I10)=0,\"\",SUMIF(Auswertung_I!$H$6:$H$15,\"Biomasse-KWK\",Hilfstabelle!I1:I10)/(SUM(Hilfstabelle!I1:I10)))","v":""},{"$f":"IF(SUM(Hilfstabelle!J1:J10)=0,\"\",SUMIF(Auswertung_I!$H$6:$H$15,\"Biomasse-KWK\",Hilfstabelle!J1:J10)/(SUM(Hilfstabelle!J1:J10)))","v":""},{"$f":"IF(SUM(Hilfstabelle!K1:K10)=0,\"\",SUMIF(Auswertung_I!$H$6:$H$15,\"Biomasse-KWK\",Hilfstabelle!K1:K10)/(SUM(Hilfstabelle!K1:K10)))","v":""},{"$f":"IF(SUM(Hilfstabelle!L1:L10)=0,\"\",SUMIF(Auswertung_I!$H$6:$H$15,\"Biomasse-KWK\",Hilfstabelle!L1:L10)/(SUM(Hilfstabelle!L1:L10)))","v":""},{"$f":"IF(SUM(Hilfstabelle!M1:M10)=0,\"\",SUMIF(Auswertung_I!$H$6:$H$15,\"Biomasse-KWK\",Hilfstabelle!M1:M10)/(SUM(Hilfstabelle!M1:M10)))","v":""},{"$f":"IF(SUM(Hilfstabelle!N1:N10)=0,\"\",SUMIF(Auswertung_I!$H$6:$H$15,\"Biomasse-KWK\",Hilfstabelle!N1:N10)/(SUM(Hilfstabelle!N1:N10)))","v":""}]
[null,"Anteil Kondensation","%",null,{"$f":"IF(SUM(Hilfstabelle!B1:B10)=0,\"\",SUMIF(Auswertung_I!$H$6:$H$15,\"RG-Kondensation\",Hilfstabelle!B1:B10)/(SUM(Hilfstabelle!B1:B10)))","v":""},{"$f":"IF(SUM(Hilfstabelle!C1:C10)=0,\"\",SUMIF(Auswertung_I!$H$6:$H$15,\"RG-Kondensation\",Hilfstabelle!C1:C10)/(SUM(Hilfstabelle!C1:C10)))","v":""},{"$f":"IF(SUM(Hilfstabelle!D1:D10)=0,\"\",SUMIF(Auswertung_I!$H$6:$H$15,\"RG-Kondensation\",Hilfstabelle!D1:D10)/(SUM(Hilfstabelle!D1:D10)))","v":""},{"$f":"IF(SUM(Hilfstabelle!E1:E10)=0,\"\",SUMIF(Auswertung_I!$H$6:$H$15,\"RG-Kondensation\",Hilfstabelle!E1:E10)/(SUM(Hilfstabelle!E1:E10)))","v":""},{"$f":"IF(SUM(Hilfstabelle!F1:F10)=0,\"\",SUMIF(Auswertung_I!$H$6:$H$15,\"RG-Kondensation\",Hilfstabelle!F1:F10)/(SUM(Hilfstabelle!F1:F10)))","v":""},{"$f":"IF(SUM(Hilfstabelle!G1:G10)=0,\"\",SUMIF(Auswertung_I!$H$6:$H$15,\"RG-Kondensation\",Hilfstabelle!G1:G10)/(SUM(Hilfstabelle!G1:G10)))","v":""},{"$f":"IF(SUM(Hilfstabelle!H1:H10)=0,\"\",SUMIF(Auswertung_I!$H$6:$H$15,\"RG-Kondensation\",Hilfstabelle!H1:H10)/(SUM(Hilfstabelle!H1:H10)))","v":""},{"$f":"IF(SUM(Hilfstabelle!I1:I10)=0,\"\",SUMIF(Auswertung_I!$H$6:$H$15,\"RG-Kondensation\",Hilfstabelle!I1:I10)/(SUM(Hilfstabelle!I1:I10)))","v":""},{"$f":"IF(SUM(Hilfstabelle!J1:J10)=0,\"\",SUMIF(Auswertung_I!$H$6:$H$15,\"RG-Kondensation\",Hilfstabelle!J1:J10)/(SUM(Hilfstabelle!J1:J10)))","v":""},{"$f":"IF(SUM(Hilfstabelle!K1:K10)=0,\"\",SUMIF(Auswertung_I!$H$6:$H$15,\"RG-Kondensation\",Hilfstabelle!K1:K10)/(SUM(Hilfstabelle!K1:K10)))","v":""},{"$f":"IF(SUM(Hilfstabelle!L1:L10)=0,\"\",SUMIF(Auswertung_I!$H$6:$H$15,\"RG-Kondensation\",Hilfstabelle!L1:L10)/(SUM(Hilfstabelle!L1:L10)))","v":""},{"$f":"IF(SUM(Hilfstabelle!M1:M10)=0,\"\",SUMIF(Auswertung_I!$H$6:$H$15,\"RG-Kondensation\",Hilfstabelle!M1:M10)/(SUM(Hilfstabelle!M1:M10)))","v":""},{"$f":"IF(SUM(Hilfstabelle!N1:N10)=0,\"\",SUMIF(Auswertung_I!$H$6:$H$15,\"RG-Kondensation\",Hilfstabelle!N1:N10)/(SUM(Hilfstabelle!N1:N10)))","v":""}]
[null,"Anteil Solar","%",null,{"$f":"IF(SUM(Hilfstabelle!B1:B10)=0,\"\",SUMIF(Auswertung_I!$H$6:$H$15,\"Solar\",Hilfstabelle!B1:B10)/(SUM(Hilfstabelle!B1:B10)))","v":""},{"$f":"IF(SUM(Hilfstabelle!C1:C10)=0,\"\",SUMIF(Auswertung_I!$H$6:$H$15,\"Solar\",Hilfstabelle!C1:C10)/(SUM(Hilfstabelle!C1:C10)))","v":""},{"$f":"IF(SUM(Hilfstabelle!D1:D10)=0,\"\",SUMIF(Auswertung_I!$H$6:$H$15,\"Solar\",Hilfstabelle!D1:D10)/(SUM(Hilfstabelle!D1:D10)))","v":""},{"$f":"IF(SUM(Hilfstabelle!E1:E10)=0,\"\",SUMIF(Auswertung_I!$H$6:$H$15,\"Solar\",Hilfstabelle!E1:E10)/(SUM(Hilfstabelle!E1:E10)))","v":""},{"$f":"IF(SUM(Hilfstabelle!F1:F10)=0,\"\",SUMIF(Auswertung_I!$H$6:$H$15,\"Solar\",Hilfstabelle!F1:F10)/(SUM(Hilfstabelle!F1:F10)))","v":""},{"$f":"IF(SUM(Hilfstabelle!G1:G10)=0,\"\",SUMIF(Auswertung_I!$H$6:$H$15,\"Solar\",Hilfstabelle!G1:G10)/(SUM(Hilfstabelle!G1:G10)))","v":""},{"$f":"IF(SUM(Hilfstabelle!H1:H10)=0,\"\",SUMIF(Auswertung_I!$H$6:$H$15,\"Solar\",Hilfstabelle!H1:H10)/(SUM(Hilfstabelle!H1:H10)))","v":""},{"$f":"IF(SUM(Hilfstabelle!I1:I10)=0,\"\",SUMIF(Auswertung_I!$H$6:$H$15,\"Solar\",Hilfstabelle!I1:I10)/(SUM(Hilfstabelle!I1:I10)))","v":""},{"$f":"IF(SUM(Hilfstabelle!J1:J10)=0,\"\",SUMIF(Auswertung_I!$H$6:$H$15,\"Solar\",Hilfstabelle!J1:J10)/(SUM(Hilfstabelle!J1:J10)))","v":""},{"$f":"IF(SUM(Hilfstabelle!K1:K10)=0,\"\",SUMIF(Auswertung_I!$H$6:$H$15,\"Solar\",Hilfstabelle!K1:K10)/(SUM(Hilfstabelle!K1:K10)))","v":""},{"$f":"IF(SUM(Hilfstabelle!L1:L10)=0,\"\",SUMIF(Auswertung_I!$H$6:$H$15,\"Solar\",Hilfstabelle!L1:L10)/(SUM(Hilfstabelle!L1:L10)))","v":""},{"$f":"IF(SUM(Hilfstabelle!M1:M10)=0,\"\",SUMIF(Auswertung_I!$H$6:$H$15,\"Solar\",Hilfstabelle!M1:M10)/(SUM(Hilfstabelle!M1:M10)))","v":""},{"$f":"IF(SUM(Hilfstabelle!N1:N10)=0,\"\",SUMIF(Auswertung_I!$H$6:$H$15,\"Solar\",Hilfstabelle!N1:N10)/(SUM(Hilfstabelle!N1:N10)))","v":""}]
[null,"Anteil Abwärme","%",null,{"$f":"IF(SUM(Hilfstabelle!B$1:B$10)=0,\"\",SUMIF(Auswertung_I!$H$6:$H$15,\"Abwärme\",Hilfstabelle!B$1:B$10)/(SUM(Hilfstabelle!B$1:B$10)))","v":""},{"$f":"IF(SUM(Hilfstabelle!C1:C10)=0,\"\",SUMIF(Auswertung_I!$H$6:$H$15,\"Abwärme\",Hilfstabelle!C1:C10)/(SUM(Hilfstabelle!C1:C10)))","v":""},{"$f":"IF(SUM(Hilfstabelle!D1:D10)=0,\"\",SUMIF(Auswertung_I!$H$6:$H$15,\"Abwärme\",Hilfstabelle!D1:D10)/(SUM(Hilfstabelle!D1:D10)))","v":""},{"$f":"IF(SUM(Hilfstabelle!E1:E10)=0,\"\",SUMIF(Auswertung_I!$H$6:$H$15,\"Abwärme\",Hilfstabelle!E1:E10)/(SUM(Hilfstabelle!E1:E10)))","v":""},{"$f":"IF(SUM(Hilfstabelle!F1:F10)=0,\"\",SUMIF(Auswertung_I!$H$6:$H$15,\"Abwärme\",Hilfstabelle!F1:F10)/(SUM(Hilfstabelle!F1:F10)))","v":""},{"$f":"IF(SUM(Hilfstabelle!G1:G10)=0,\"\",SUMIF(Auswertung_I!$H$6:$H$15,\"Abwärme\",Hilfstabelle!G1:G10)/(SUM(Hilfstabelle!G1:G10)))","v":""},{"$f":"IF(SUM(Hilfstabelle!H1:H10)=0,\"\",SUMIF(Auswertung_I!$H$6:$H$15,\"Abwärme\",Hilfstabelle!H1:H10)/(SUM(Hilfstabelle!H1:H10)))","v":""},{"$f":"IF(SUM(Hilfstabelle!I1:I10)=0,\"\",SUMIF(Auswertung_I!$H$6:$H$15,\"Abwärme\",Hilfstabelle!I1:I10)/(SUM(Hilfstabelle!I1:I10)))","v":""},{"$f":"IF(SUM(Hilfstabelle!J1:J10)=0,\"\",SUMIF(Auswertung_I!$H$6:$H$15,\"Abwärme\",Hilfstabelle!J1:J10)/(SUM(Hilfstabelle!J1:J10)))","v":""},{"$f":"IF(SUM(Hilfstabelle!K1:K10)=0,\"\",SUMIF(Auswertung_I!$H$6:$H$15,\"Abwärme\",Hilfstabelle!K1:K10)/(SUM(Hilfstabelle!K1:K10)))","v":""},{"$f":"IF(SUM(Hilfstabelle!L1:L10)=0,\"\",SUMIF(Auswertung_I!$H$6:$H$15,\"Abwärme\",Hilfstabelle!L1:L10)/(SUM(Hilfstabelle!L1:L10)))","v":""},{"$f":"IF(SUM(Hilfstabelle!M1:M10)=0,\"\",SUMIF(Auswertung_I!$H$6:$H$15,\"Abwärme\",Hilfstabelle!M1:M10)/(SUM(Hilfstabelle!M1:M10)))","v":""},{"$f":"IF(SUM(Hilfstabelle!N1:N10)=0,\"\",SUMIF(Auswertung_I!$H$6:$H$15,\"Abwärme\",Hilfstabelle!N1:N10)/(SUM(Hilfstabelle!N1:N10)))","v":""}]
[null,"Anteil Wärmepumpe (elektrisch)","%",null,{"$f":"IF(SUM(Hilfstabelle!B$1:B$10)=0,\"\",SUMIF(Auswertung_I!$H$6:$H$15,\"Wärmepumpe\",Hilfstabelle!B$1:B$10)/(SUM(Hilfstabelle!B$1:B$10)))","v":""},{"$f":"IF(SUM(Hilfstabelle!C$1:C$10)=0,\"\",SUMIF(Auswertung_I!$H$6:$H$15,\"Wärmepumpe\",Hilfstabelle!C$1:C$10)/(SUM(Hilfstabelle!C$1:C$10)))","v":""},{"$f":"IF(SUM(Hilfstabelle!D$1:D$10)=0,\"\",SUMIF(Auswertung_I!$H$6:$H$15,\"Wärmepumpe\",Hilfstabelle!D$1:D$10)/(SUM(Hilfstabelle!D$1:D$10)))","v":""},{"$f":"IF(SUM(Hilfstabelle!E$1:E$10)=0,\"\",SUMIF(Auswertung_I!$H$6:$H$15,\"Wärmepumpe\",Hilfstabelle!E$1:E$10)/(SUM(Hilfstabelle!E$1:E$10)))","v":""},{"$f":"IF(SUM(Hilfstabelle!F$1:F$10)=0,\"\",SUMIF(Auswertung_I!$H$6:$H$15,\"Wärmepumpe\",Hilfstabelle!F$1:F$10)/(SUM(Hilfstabelle!F$1:F$10)))","v":""},{"$f":"IF(SUM(Hilfstabelle!G$1:G$10)=0,\"\",SUMIF(Auswertung_I!$H$6:$H$15,\"Wärmepumpe\",Hilfstabelle!G$1:G$10)/(SUM(Hilfstabelle!G$1:G$10)))","v":""},{"$f":"IF(SUM(Hilfstabelle!H$1:H$10)=0,\"\",SUMIF(Auswertung_I!$H$6:$H$15,\"Wärmepumpe\",Hilfstabelle!H$1:H$10)/(SUM(Hilfstabelle!H$1:H$10)))","v":""},{"$f":"IF(SUM(Hilfstabelle!I$1:I$10)=0,\"\",SUMIF(Auswertung_I!$H$6:$H$15,\"Wärmepumpe\",Hilfstabelle!I$1:I$10)/(SUM(Hilfstabelle!I$1:I$10)))","v":""},{"$f":"IF(SUM(Hilfstabelle!J$1:J$10)=0,\"\",SUMIF(Auswertung_I!$H$6:$H$15,\"Wärmepumpe\",Hilfstabelle!J$1:J$10)/(SUM(Hilfstabelle!J$1:J$10)))","v":""},{"$f":"IF(SUM(Hilfstabelle!K$1:K$10)=0,\"\",SUMIF(Auswertung_I!$H$6:$H$15,\"Wärmepumpe\",Hilfstabelle!K$1:K$10)/(SUM(Hilfstabelle!K$1:K$10)))","v":""},{"$f":"IF(SUM(Hilfstabelle!L$1:L$10)=0,\"\",SUMIF(Auswertung_I!$H$6:$H$15,\"Wärmepumpe\",Hilfstabelle!L$1:L$10)/(SUM(Hilfstabelle!L$1:L$10)))","v":""},{"$f":"IF(SUM(Hilfstabelle!M$1:M$10)=0,\"\",SUMIF(Auswertung_I!$H$6:$H$15,\"Wärmepumpe\",Hilfstabelle!M$1:M$10)/(SUM(Hilfstabelle!M$1:M$10)))","v":""},{"$f":"IF(SUM(Hilfstabelle!N$1:N$10)=0,\"\",SUMIF(Auswertung_I!$H$6:$H$15,\"Wärmepumpe\",Hilfstabelle!N$1:N$10)/(SUM(Hilfstabelle!N$1:N$10)))","v":""}]
[null,"Anteil Absorptionswärmepumpe","%",null,{"$f":"IF(SUM(Hilfstabelle!B$1:B$10)=0,\"\",SUMIF(Auswertung_I!$H$6:$H$15,\"Abs.-Wärmepumpe\",Hilfstabelle!B$1:B$10)/(SUM(Hilfstabelle!B$1:B$10)))","v":""},{"$f":"IF(SUM(Hilfstabelle!C$1:C$10)=0,\"\",SUMIF(Auswertung_I!$H$6:$H$15,\"Abs.-Wärmepumpe\",Hilfstabelle!C$1:C$10)/(SUM(Hilfstabelle!C$1:C$10)))","v":""},{"$f":"IF(SUM(Hilfstabelle!D$1:D$10)=0,\"\",SUMIF(Auswertung_I!$H$6:$H$15,\"Abs.-Wärmepumpe\",Hilfstabelle!D$1:D$10)/(SUM(Hilfstabelle!D$1:D$10)))","v":""},{"$f":"IF(SUM(Hilfstabelle!E$1:E$10)=0,\"\",SUMIF(Auswertung_I!$H$6:$H$15,\"Abs.-Wärmepumpe\",Hilfstabelle!E$1:E$10)/(SUM(Hilfstabelle!E$1:E$10)))","v":""},{"$f":"IF(SUM(Hilfstabelle!F$1:F$10)=0,\"\",SUMIF(Auswertung_I!$H$6:$H$15,\"Abs.-Wärmepumpe\",Hilfstabelle!F$1:F$10)/(SUM(Hilfstabelle!F$1:F$10)))","v":""},{"$f":"IF(SUM(Hilfstabelle!G$1:G$10)=0,\"\",SUMIF(Auswertung_I!$H$6:$H$15,\"Abs.-Wärmepumpe\",Hilfstabelle!G$1:G$10)/(SUM(Hilfstabelle!G$1:G$10)))","v":""},{"$f":"IF(SUM(Hilfstabelle!H$1:H$10)=0,\"\",SUMIF(Auswertung_I!$H$6:$H$15,\"Abs.-Wärmepumpe\",Hilfstabelle!H$1:H$10)/(SUM(Hilfstabelle!H$1:H$10)))","v":""},{"$f":"IF(SUM(Hilfstabelle!I$1:I$10)=0,\"\",SUMIF(Auswertung_I!$H$6:$H$15,\"Abs.-Wärmepumpe\",Hilfstabelle!I$1:I$10)/(SUM(Hilfstabelle!I$1:I$10)))","v":""},{"$f":"IF(SUM(Hilfstabelle!J$1:J$10)=0,\"\",SUMIF(Auswertung_I!$H$6:$H$15,\"Abs.-Wärmepumpe\",Hilfstabelle!J$1:J$10)/(SUM(Hilfstabelle!J$1:J$10)))","v":""},{"$f":"IF(SUM(Hilfstabelle!K$1:K$10)=0,\"\",SUMIF(Auswertung_I!$H$6:$H$15,\"Abs.-Wärmepumpe\",Hilfstabelle!K$1:K$10)/(SUM(Hilfstabelle!K$1:K$10)))","v":""},{"$f":"IF(SUM(Hilfstabelle!L$1:L$10)=0,\"\",SUMIF(Auswertung_I!$H$6:$H$15,\"Abs.-Wärmepumpe\",Hilfstabelle!L$1:L$10)/(SUM(Hilfstabelle!L$1:L$10)))","v":""},{"$f":"IF(SUM(Hilfstabelle!M$1:M$10)=0,\"\",SUMIF(Auswertung_I!$H$6:$H$15,\"Abs.-Wärmepumpe\",Hilfstabelle!M$1:M$10)/(SUM(Hilfstabelle!M$1:M$10)))","v":""},{"$f":"IF(SUM(Hilfstabelle!N$1:N$10)=0,\"\",SUMIF(Auswertung_I!$H$6:$H$15,\"Abs.-Wärmepumpe\",Hilfstabelle!N$1:N$10)/(SUM(Hilfstabelle!N$1:N$10)))","v":""}]
[null,"Anteil Fossilenergie","%",null,{"$f":"IF(SUM(Hilfstabelle!B1:B10)=0,\"\",(SUMIF(Auswertung_I!$H$6:$H$15,\"Heizöl\",Hilfstabelle!B1:B10)+SUMIF(Auswertung_I!$H$6:$H$15,\"Erdgas\",Hilfstabelle!B1:B10))/(SUM(Hilfstabelle!B1:B10)))","v":""},{"$f":"IF(SUM(Hilfstabelle!C1:C10)=0,\"\",(SUMIF(Auswertung_I!$H$6:$H$15,\"Heizöl\",Hilfstabelle!C1:C10)+SUMIF(Auswertung_I!$H$6:$H$15,\"Erdgas\",Hilfstabelle!C1:C10))/(SUM(Hilfstabelle!C1:C10)))","v":""},{"$f":"IF(SUM(Hilfstabelle!D1:D10)=0,\"\",(SUMIF(Auswertung_I!$H$6:$H$15,\"Heizöl\",Hilfstabelle!D1:D10)+SUMIF(Auswertung_I!$H$6:$H$15,\"Erdgas\",Hilfstabelle!D1:D10))/(SUM(Hilfstabelle!D1:D10)))","v":""},{"$f":"IF(SUM(Hilfstabelle!E1:E10)=0,\"\",(SUMIF(Auswertung_I!$H$6:$H$15,\"Heizöl\",Hilfstabelle!E1:E10)+SUMIF(Auswertung_I!$H$6:$H$15,\"Erdgas\",Hilfstabelle!E1:E10))/(SUM(Hilfstabelle!E1:E10)))","v":""},{"$f":"IF(SUM(Hilfstabelle!F1:F10)=0,\"\",(SUMIF(Auswertung_I!$H$6:$H$15,\"Heizöl\",Hilfstabelle!F1:F10)+SUMIF(Auswertung_I!$H$6:$H$15,\"Erdgas\",Hilfstabelle!F1:F10))/(SUM(Hilfstabelle!F1:F10)))","v":""},{"$f":"IF(SUM(Hilfstabelle!G1:G10)=0,\"\",(SUMIF(Auswertung_I!$H$6:$H$15,\"Heizöl\",Hilfstabelle!G1:G10)+SUMIF(Auswertung_I!$H$6:$H$15,\"Erdgas\",Hilfstabelle!G1:G10))/(SUM(Hilfstabelle!G1:G10)))","v":""},{"$f":"IF(SUM(Hilfstabelle!H1:H10)=0,\"\",(SUMIF(Auswertung_I!$H$6:$H$15,\"Heizöl\",Hilfstabelle!H1:H10)+SUMIF(Auswertung_I!$H$6:$H$15,\"Erdgas\",Hilfstabelle!H1:H10))/(SUM(Hilfstabelle!H1:H10)))","v":""},{"$f":"IF(SUM(Hilfstabelle!I1:I10)=0,\"\",(SUMIF(Auswertung_I!$H$6:$H$15,\"Heizöl\",Hilfstabelle!I1:I10)+SUMIF(Auswertung_I!$H$6:$H$15,\"Erdgas\",Hilfstabelle!I1:I10))/(SUM(Hilfstabelle!I1:I10)))","v":""},{"$f":"IF(SUM(Hilfstabelle!J1:J10)=0,\"\",(SUMIF(Auswertung_I!$H$6:$H$15,\"Heizöl\",Hilfstabelle!J1:J10)+SUMIF(Auswertung_I!$H$6:$H$15,\"Erdgas\",Hilfstabelle!J1:J10))/(SUM(Hilfstabelle!J1:J10)))","v":""},{"$f":"IF(SUM(Hilfstabelle!K1:K10)=0,\"\",(SUMIF(Auswertung_I!$H$6:$H$15,\"Heizöl\",Hilfstabelle!K1:K10)+SUMIF(Auswertung_I!$H$6:$H$15,\"Erdgas\",Hilfstabelle!K1:K10))/(SUM(Hilfstabelle!K1:K10)))","v":""},{"$f":"IF(SUM(Hilfstabelle!L1:L10)=0,\"\",(SUMIF(Auswertung_I!$H$6:$H$15,\"Heizöl\",Hilfstabelle!L1:L10)+SUMIF(Auswertung_I!$H$6:$H$15,\"Erdgas\",Hilfstabelle!L1:L10))/(SUM(Hilfstabelle!L1:L10)))","v":""},{"$f":"IF(SUM(Hilfstabelle!M1:M10)=0,\"\",(SUMIF(Auswertung_I!$H$6:$H$15,\"Heizöl\",Hilfstabelle!M1:M10)+SUMIF(Auswertung_I!$H$6:$H$15,\"Erdgas\",Hilfstabelle!M1:M10))/(SUM(Hilfstabelle!M1:M10)))","v":""},{"$f":"IF(SUM(Hilfstabelle!N1:N10)=0,\"\",(SUMIF(Auswertung_I!$H$6:$H$15,\"Heizöl\",Hilfstabelle!N1:N10)+SUMIF(Auswertung_I!$H$6:$H$15,\"Erdgas\",Hilfstabelle!N1:N10))/(SUM(Hilfstabelle!N1:N10)))","v":""}]
[null,"Anteil Sonstige","%",null,{"$f":"IF(SUM(Hilfstabelle!B1:B10)=0,\"\",SUMIF(Auswertung_I!$H$6:$H$15,\"Sonstige\",Hilfstabelle!B1:B10)/(SUM(Hilfstabelle!B1:B10)))","v":""},{"$f":"IF(SUM(Hilfstabelle!C1:C10)=0,\"\",SUMIF(Auswertung_I!$H$6:$H$15,\"Sonstige\",Hilfstabelle!C1:C10)/(SUM(Hilfstabelle!C1:C10)))","v":""},{"$f":"IF(SUM(Hilfstabelle!D1:D10)=0,\"\",SUMIF(Auswertung_I!$H$6:$H$15,\"Sonstige\",Hilfstabelle!D1:D10)/(SUM(Hilfstabelle!D1:D10)))","v":""},{"$f":"IF(SUM(Hilfstabelle!E1:E10)=0,\"\",SUMIF(Auswertung_I!$H$6:$H$15,\"Sonstige\",Hilfstabelle!E1:E10)/(SUM(Hilfstabelle!E1:E10)))","v":""},{"$f":"IF(SUM(Hilfstabelle!F1:F10)=0,\"\",SUMIF(Auswertung_I!$H$6:$H$15,\"Sonstige\",Hilfstabelle!F1:F10)/(SUM(Hilfstabelle!F1:F10)))","v":""},{"$f":"IF(SUM(Hilfstabelle!G1:G10)=0,\"\",SUMIF(Auswertung_I!$H$6:$H$15,\"Sonstige\",Hilfstabelle!G1:G10)/(SUM(Hilfstabelle!G1:G10)))","v":""},{"$f":"IF(SUM(Hilfstabelle!H1:H10)=0,\"\",SUMIF(Auswertung_I!$H$6:$H$15,\"Sonstige\",Hilfstabelle!H1:H10)/(SUM(Hilfstabelle!H1:H10)))","v":""},{"$f":"IF(SUM(Hilfstabelle!I1:I10)=0,\"\",SUMIF(Auswertung_I!$H$6:$H$15,\"Sonstige\",Hilfstabelle!I1:I10)/(SUM(Hilfstabelle!I1:I10)))","v":""},{"$f":"IF(SUM(Hilfstabelle!J1:J10)=0,\"\",SUMIF(Auswertung_I!$H$6:$H$15,\"Sonstige\",Hilfstabelle!J1:J10)/(SUM(Hilfstabelle!J1:J10)))","v":""},{"$f":"IF(SUM(Hilfstabelle!K1:K10)=0,\"\",SUMIF(Auswertung_I!$H$6:$H$15,\"Sonstige\",Hilfstabelle!K1:K10)/(SUM(Hilfstabelle!K1:K10)))","v":""},{"$f":"IF(SUM(Hilfstabelle!L1:L10)=0,\"\",SUMIF(Auswertung_I!$H$6:$H$15,\"Sonstige\",Hilfstabelle!L1:L10)/(SUM(Hilfstabelle!L1:L10)))","v":""},{"$f":"IF(SUM(Hilfstabelle!M1:M10)=0,\"\",SUMIF(Auswertung_I!$H$6:$H$15,\"Sonstige\",Hilfstabelle!M1:M10)/(SUM(Hilfstabelle!M1:M10)))","v":""},{"$f":"IF(SUM(Hilfstabelle!N1:N10)=0,\"\",SUMIF(Auswertung_I!$H$6:$H$15,\"Sonstige\",Hilfstabelle!N1:N10)/(SUM(Hilfstabelle!N1:N10)))","v":""}]
[null,"Stromverbrauch"]
[]
[null,"spezifischer Stromverbrauch Gesamtanlage","kWhel/MWhtherm",null,{"$f":"IF(SUM(Hilfstabelle!B1:B10)=0,\"\",'Betriebsdaten II'!E22/(SUM(Hilfstabelle!B1:B10)/1000))","v":""},{"$f":"IF(SUM(Hilfstabelle!C1:C10)=0,\"\",'Betriebsdaten II'!F22/(SUM(Hilfstabelle!C1:C10)/1000))","v":""},{"$f":"IF(SUM(Hilfstabelle!D1:D10)=0,\"\",'Betriebsdaten II'!G22/(SUM(Hilfstabelle!D1:D10)/1000))","v":""},{"$f":"IF(SUM(Hilfstabelle!E1:E10)=0,\"\",'Betriebsdaten II'!H22/(SUM(Hilfstabelle!E1:E10)/1000))","v":""},{"$f":"IF(SUM(Hilfstabelle!F1:F10)=0,\"\",'Betriebsdaten II'!I22/(SUM(Hilfstabelle!F1:F10)/1000))","v":""},{"$f":"IF(SUM(Hilfstabelle!G1:G10)=0,\"\",'Betriebsdaten II'!J22/(SUM(Hilfstabelle!G1:G10)/1000))","v":""},{"$f":"IF(SUM(Hilfstabelle!H1:H10)=0,\"\",'Betriebsdaten II'!K22/(SUM(Hilfstabelle!H1:H10)/1000))","v":""},{"$f":"IF(SUM(Hilfstabelle!I1:I10)=0,\"\",'Betriebsdaten II'!L22/(SUM(Hilfstabelle!I1:I10)/1000))","v":""},{"$f":"IF(SUM(Hilfstabelle!J1:J10)=0,\"\",'Betriebsdaten II'!M22/(SUM(Hilfstabelle!J1:J10)/1000))","v":""},{"$f":"IF(SUM(Hilfstabelle!K1:K10)=0,\"\",'Betriebsdaten II'!N22/(SUM(Hilfstabelle!K1:K10)/1000))","v":""},{"$f":"IF(SUM(Hilfstabelle!L1:L10)=0,\"\",'Betriebsdaten II'!O22/(SUM(Hilfstabelle!L1:L10)/1000))","v":""},{"$f":"IF(SUM(Hilfstabelle!M1:M10)=0,\"\",'Betriebsdaten II'!P22/(SUM(Hilfstabelle!M1:M10)/1000))","v":""},{"$f":"IF(SUM(Hilfstabelle!N1:N10)=0,\"\",'Betriebsdaten II'!Q22/(SUM(Hilfstabelle!N1:N10)/1000))","v":""}]
[null,"spezifischer Stromverbrauch E-Filter","kWhel/MWhtherm",null,{"$f":"IF(SUM(Hilfstabelle!B1:B10)=0,\"\",'Betriebsdaten II'!E20/(SUM(Hilfstabelle!B1:B10)/1000))","v":""},{"$f":"IF(SUM(Hilfstabelle!C1:C10)=0,\"\",'Betriebsdaten II'!F20/(SUM(Hilfstabelle!C1:C10)/1000))","v":""},{"$f":"IF(SUM(Hilfstabelle!D1:D10)=0,\"\",'Betriebsdaten II'!G20/(SUM(Hilfstabelle!D1:D10)/1000))","v":""},{"$f":"IF(SUM(Hilfstabelle!E1:E10)=0,\"\",'Betriebsdaten II'!H20/(SUM(Hilfstabelle!E1:E10)/1000))","v":""},{"$f":"IF(SUM(Hilfstabelle!F1:F10)=0,\"\",'Betriebsdaten II'!I20/(SUM(Hilfstabelle!F1:F10)/1000))","v":""},{"$f":"IF(SUM(Hilfstabelle!G1:G10)=0,\"\",'Betriebsdaten II'!J20/(SUM(Hilfstabelle!G1:G10)/1000))","v":""},{"$f":"IF(SUM(Hilfstabelle!H1:H10)=0,\"\",'Betriebsdaten II'!K20/(SUM(Hilfstabelle!H1:H10)/1000))","v":""},{"$f":"IF(SUM(Hilfstabelle!I1:I10)=0,\"\",'Betriebsdaten II'!L20/(SUM(Hilfstabelle!I1:I10)/1000))","v":""},{"$f":"IF(SUM(Hilfstabelle!J1:J10)=0,\"\",'Betriebsdaten II'!M20/(SUM(Hilfstabelle!J1:J10)/1000))","v":""},{"$f":"IF(SUM(Hilfstabelle!K1:K10)=0,\"\",'Betriebsdaten II'!N20/(SUM(Hilfstabelle!K1:K10)/1000))","v":""},{"$f":"IF(SUM(Hilfstabelle!L1:L10)=0,\"\",'Betriebsdaten II'!O20/(SUM(Hilfstabelle!L1:L10)/1000))","v":""},{"$f":"IF(SUM(Hilfstabelle!M1:M10)=0,\"\",'Betriebsdaten II'!P20/(SUM(Hilfstabelle!M1:M10)/1000))","v":""},{"$f":"IF(SUM(Hilfstabelle!N1:N10)=0,\"\",'Betriebsdaten II'!Q20/(SUM(Hilfstabelle!N1:N10)/1000))","v":""}]
[null,"spezifischer Stromverbrauch Sonstige","kWhel/MWhtherm",null,{"$f":"IF(SUM(Hilfstabelle!B1:B10)=0,\"\",'Betriebsdaten II'!E21/(SUM(Hilfstabelle!B1:B10)/1000))","v":""},{"$f":"IF(SUM(Hilfstabelle!C1:C10)=0,\"\",'Betriebsdaten II'!F21/(SUM(Hilfstabelle!C1:C10)/1000))","v":""},{"$f":"IF(SUM(Hilfstabelle!D1:D10)=0,\"\",'Betriebsdaten II'!G21/(SUM(Hilfstabelle!D1:D10)/1000))","v":""},{"$f":"IF(SUM(Hilfstabelle!E1:E10)=0,\"\",'Betriebsdaten II'!H21/(SUM(Hilfstabelle!E1:E10)/1000))","v":""},{"$f":"IF(SUM(Hilfstabelle!F1:F10)=0,\"\",'Betriebsdaten II'!I21/(SUM(Hilfstabelle!F1:F10)/1000))","v":""},{"$f":"IF(SUM(Hilfstabelle!G1:G10)=0,\"\",'Betriebsdaten II'!J21/(SUM(Hilfstabelle!G1:G10)/1000))","v":""},{"$f":"IF(SUM(Hilfstabelle!H1:H10)=0,\"\",'Betriebsdaten II'!K21/(SUM(Hilfstabelle!H1:H10)/1000))","v":""},{"$f":"IF(SUM(Hilfstabelle!I1:I10)=0,\"\",'Betriebsdaten II'!L21/(SUM(Hilfstabelle!I1:I10)/1000))","v":""},{"$f":"IF(SUM(Hilfstabelle!J1:J10)=0,\"\",'Betriebsdaten II'!M21/(SUM(Hilfstabelle!J1:J10)/1000))","v":""},{"$f":"IF(SUM(Hilfstabelle!K1:K10)=0,\"\",'Betriebsdaten II'!N21/(SUM(Hilfstabelle!K1:K10)/1000))","v":""},{"$f":"IF(SUM(Hilfstabelle!L1:L10)=0,\"\",'Betriebsdaten II'!O21/(SUM(Hilfstabelle!L1:L10)/1000))","v":""},{"$f":"IF(SUM(Hilfstabelle!M1:M10)=0,\"\",'Betriebsdaten II'!P21/(SUM(Hilfstabelle!M1:M10)/1000))","v":""},{"$f":"IF(SUM(Hilfstabelle!N1:N10)=0,\"\",'Betriebsdaten II'!Q21/(SUM(Hilfstabelle!N1:N10)/1000))","v":""}]
[]
[]
[null,"Projektnummer:",{"$f":"IF(Titelblatt!$D$6=\"\",\"\",Titelblatt!$D$6)","v":""},null,null,"Jahr:",{"$f":"IF(Titelblatt!$D$8=\"\",YEAR(TODAY()),Titelblatt!$D$8)","v":2024},null,null,null,"Anfangsmonat:",{"$f":"IF(Titelblatt!$D$10=\"\",1,Titelblatt!$D$10)","v":1}]
[null,"Biomassekessel ","Nr.","Einheit",{"$f":"DATE($G$30,$L$30,1)","v":"2024-01-01"},{"$f":"IF($L$30+1>12,DATE($G$30+1,$L$30+1-12,1),DATE($G$30,$L$30+1,1))","v":"2024-02-01"},{"$f":"IF($L$30+2>12,DATE($G$30+1,$L$30+2-12,1),DATE($G$30,$L$30+2,1))","v":"2024-03-01"},{"$f":"IF($L$30+3>12,DATE($G$30+1,$L$30+3-12,1),DATE($G$30,$L$30+3,1))","v":"2024-04-01"},{"$f":"IF($L$30+4>12,DATE($G$30+4,$L$30+1-12,1),DATE($G$30,$L$30+4,1))","v":"2024-05-01"},{"$f":"IF($L$30+5>12,DATE($G$30+5,$L$30+1-12,1),DATE($G$30,$L$30+5,1))","v":"2024-06-01"},{"$f":"IF($L$30+6>12,DATE($G$30+1,$L$30+6-12,1),DATE($G$30,$L$30+6,1))","v":"2024-07-01"},{"$f":"IF($L$30+7>12,DATE($G$30+1,$L$30+7-12,1),DATE($G$30,$L$30+7,1))","v":"2024-08-01"},{"$f":"IF($L$30+8>12,DATE($G$30+1,$L$30+8-12,1),DATE($G$30,$L$30+8,1))","v":"2024-09-01"},{"$f":"IF($L$30+9>12,DATE($G$30+1,$L$30+9-12,1),DATE($G$30,$L$30+9,1))","v":"2024-10-01"},{"$f":"IF($L$30+10>12,DATE($G$30+1,$L$30+10-12,1),DATE($G$30,$L$30+10,1))","v":"2024-11-01"},{"$f":"IF($L$30+11>12,DATE($G$30+1,$L$30+11-12,1),DATE($G$30,$L$30+11,1))","v":"2024-12-01"},"Jahr"]
[]
[null,{"$f":"IF(ISBLANK(BezeichnungBMKessel1),\"\",BezeichnungBMKessel1)","v":""},{"$f":"'Betriebsdaten I'!C7","v":0}]
[null,"Volllaststunden",null,"h",{"$f":"IF(OR(ISBLANK(Auswertung_I!$I$6),Auswertung_I!$I$6=0,ISBLANK('Betriebsdaten I'!E$7)),\"-\",'Betriebsdaten I'!E$7/Auswertung_I!$I$6)","v":"-"},{"$f":"IF(OR(ISBLANK(Auswertung_I!$I$6),Auswertung_I!$I$6=0,ISBLANK('Betriebsdaten I'!F$7)),\"-\",'Betriebsdaten I'!F$7/Auswertung_I!$I$6)","v":"-"},{"$f":"IF(OR(ISBLANK(Auswertung_I!$I$6),Auswertung_I!$I$6=0,ISBLANK('Betriebsdaten I'!G$7)),\"-\",'Betriebsdaten I'!G$7/Auswertung_I!$I$6)","v":"-"},{"$f":"IF(OR(ISBLANK(Auswertung_I!$I$6),Auswertung_I!$I$6=0,ISBLANK('Betriebsdaten I'!H$7)),\"-\",'Betriebsdaten I'!H$7/Auswertung_I!$I$6)","v":"-"},{"$f":"IF(OR(ISBLANK(Auswertung_I!$I$6),Auswertung_I!$I$6=0,ISBLANK('Betriebsdaten I'!I$7)),\"-\",'Betriebsdaten I'!I$7/Auswertung_I!$I$6)","v":"-"},{"$f":"IF(OR(ISBLANK(Auswertung_I!$I$6),Auswertung_I!$I$6=0,ISBLANK('Betriebsdaten I'!J$7)),\"-\",'Betriebsdaten I'!J$7/Auswertung_I!$I$6)","v":"-"},{"$f":"IF(OR(ISBLANK(Auswertung_I!$I$6),Auswertung_I!$I$6=0,ISBLANK('Betriebsdaten I'!K$7)),\"-\",'Betriebsdaten I'!K$7/Auswertung_I!$I$6)","v":"-"},{"$f":"IF(OR(ISBLANK(Auswertung_I!$I$6),Auswertung_I!$I$6=0,ISBLANK('Betriebsdaten I'!L$7)),\"-\",'Betriebsdaten I'!L$7/Auswertung_I!$I$6)","v":"-"},{"$f":"IF(OR(ISBLANK(Auswertung_I!$I$6),Auswertung_I!$I$6=0,ISBLANK('Betriebsdaten I'!M$7)),\"-\",'Betriebsdaten I'!M$7/Auswertung_I!$I$6)","v":"-"},{"$f":"IF(OR(ISBLANK(Auswertung_I!$I$6),Auswertung_I!$I$6=0,ISBLANK('Betriebsdaten I'!N$7)),\"-\",'Betriebsdaten I'!N$7/Auswertung_I!$I$6)","v":"-"},{"$f":"IF(OR(ISBLANK(Auswertung_I!$I$6),Auswertung_I!$I$6=0,ISBLANK('Betriebsdaten I'!O$7)),\"-\",'Betriebsdaten I'!O$7/Auswertung_I!$I$6)","v":"-"},{"$f":"IF(OR(ISBLANK(Auswertung_I!$I$6),Auswertung_I!$I$6=0,ISBLANK('Betriebsdaten I'!P$7)),\"-\",'Betriebsdaten I'!P$7/Auswertung_I!$I$6)","v":"-"},{"$f":"IF(OR(ISBLANK(Auswertung_I!$I$6),Auswertung_I!$I$6=0,ISBLANK('Betriebsdaten I'!Q$7)),\"-\",'Betriebsdaten I'!Q$7/Auswertung_I!$I$6)","v":"-"}]
[null,"spezifischer Stromverbrauch",null,"kWhel/MWhtherm",{"$f":"IF(OR(ISBLANK('Betriebsdaten I'!E7),'Betriebsdaten I'!E7=0,'Betriebsdaten II'!E16=0),\"-\",'Betriebsdaten II'!E16/'Betriebsdaten I'!E7*1000)","v":"-"},{"$f":"IF(OR(ISBLANK('Betriebsdaten I'!F7),'Betriebsdaten I'!F7=0,'Betriebsdaten II'!F16=0),\"-\",'Betriebsdaten II'!F16/'Betriebsdaten I'!F7*1000)","v":"-"},{"$f":"IF(OR(ISBLANK('Betriebsdaten I'!G7),'Betriebsdaten I'!G7=0,'Betriebsdaten II'!G16=0),\"-\",'Betriebsdaten II'!G16/'Betriebsdaten I'!G7*1000)","v":"-"},{"$f":"IF(OR(ISBLANK('Betriebsdaten I'!H7),'Betriebsdaten I'!H7=0,'Betriebsdaten II'!H16=0),\"-\",'Betriebsdaten II'!H16/'Betriebsdaten I'!H7*1000)","v":"-"},{"$f":"IF(OR(ISBLANK('Betriebsdaten I'!I7),'Betriebsdaten I'!I7=0,'Betriebsdaten II'!I16=0),\"-\",'Betriebsdaten II'!I16/'Betriebsdaten I'!I7*1000)","v":"-"},{"$f":"IF(OR(ISBLANK('Betriebsdaten I'!J7),'Betriebsdaten I'!J7=0,'Betriebsdaten II'!J16=0),\"-\",'Betriebsdaten II'!J16/'Betriebsdaten I'!J7*1000)","v":"-"},{"$f":"IF(OR(ISBLANK('Betriebsdaten I'!K7),'Betriebsdaten I'!K7=0,'Betriebsdaten II'!K16=0),\"-\",'Betriebsdaten II'!K16/'Betriebsdaten I'!K7*1000)","v":"-"},{"$f":"IF(OR(ISBLANK('Betriebsdaten I'!L7),'Betriebsdaten I'!L7=0,'Betriebsdaten II'!L16=0),\"-\",'Betriebsdaten II'!L16/'Betriebsdaten I'!L7*1000)","v":"-"},{"$f":"IF(OR(ISBLANK('Betriebsdaten I'!M7),'Betriebsdaten I'!M7=0,'Betriebsdaten II'!M16=0),\"-\",'Betriebsdaten II'!M16/'Betriebsdaten I'!M7*1000)","v":"-"},{"$f":"IF(OR(ISBLANK('Betriebsdaten I'!N7),'Betriebsdaten I'!N7=0,'Betriebsdaten II'!N16=0),\"-\",'Betriebsdaten II'!N16/'Betriebsdaten I'!N7*1000)","v":"-"},{"$f":"IF(OR(ISBLANK('Betriebsdaten I'!O7),'Betriebsdaten I'!O7=0,'Betriebsdaten II'!O16=0),\"-\",'Betriebsdaten II'!O16/'Betriebsdaten I'!O7*1000)","v":"-"},{"$f":"IF(OR(ISBLANK('Betriebsdaten I'!P7),'Betriebsdaten I'!P7=0,'Betriebsdaten II'!P16=0),\"-\",'Betriebsdaten II'!P16/'Betriebsdaten I'!P7*1000)","v":"-"},{"$f":"IF(OR(ISBLANK('Betriebsdaten I'!Q7),'Betriebsdaten I'!Q7=0,'Betriebsdaten II'!Q16=0),\"-\",'Betriebsdaten II'!Q16/'Betriebsdaten I'!Q7*1000)","v":"-"}]
[null,{"$f":"IF(ISBLANK(BezeichnungBMKessel2),\"\",BezeichnungBMKessel2)","v":""},{"$f":"'Betriebsdaten I'!C8","v":0}]
[null,"Volllaststunden",null,"h",{"$f":"IF(OR(ISBLANK(Auswertung_I!$I$6),Auswertung_I!$I$6=0,ISBLANK('Betriebsdaten I'!E$8)),\"-\",'Betriebsdaten I'!E$8/Auswertung_I!$I$7)","v":"-"},{"$f":"IF(OR(ISBLANK(Auswertung_I!$I$6),Auswertung_I!$I$6=0,ISBLANK('Betriebsdaten I'!F$8)),\"-\",'Betriebsdaten I'!F$8/Auswertung_I!$I$7)","v":"-"},{"$f":"IF(OR(ISBLANK(Auswertung_I!$I$6),Auswertung_I!$I$6=0,ISBLANK('Betriebsdaten I'!G$8)),\"-\",'Betriebsdaten I'!G$8/Auswertung_I!$I$7)","v":"-"},{"$f":"IF(OR(ISBLANK(Auswertung_I!$I$6),Auswertung_I!$I$6=0,ISBLANK('Betriebsdaten I'!H$8)),\"-\",'Betriebsdaten I'!H$8/Auswertung_I!$I$7)","v":"-"},{"$f":"IF(OR(ISBLANK(Auswertung_I!$I$6),Auswertung_I!$I$6=0,ISBLANK('Betriebsdaten I'!I$8)),\"-\",'Betriebsdaten I'!I$8/Auswertung_I!$I$7)","v":"-"},{"$f":"IF(OR(ISBLANK(Auswertung_I!$I$6),Auswertung_I!$I$6=0,ISBLANK('Betriebsdaten I'!J$8)),\"-\",'Betriebsdaten I'!J$8/Auswertung_I!$I$7)","v":"-"},{"$f":"IF(OR(ISBLANK(Auswertung_I!$I$6),Auswertung_I!$I$6=0,ISBLANK('Betriebsdaten I'!K$8)),\"-\",'Betriebsdaten I'!K$8/Auswertung_I!$I$7)","v":"-"},{"$f":"IF(OR(ISBLANK(Auswertung_I!$I$6),Auswertung_I!$I$6=0,ISBLANK('Betriebsdaten I'!L$8)),\"-\",'Betriebsdaten I'!L$8/Auswertung_I!$I$7)","v":"-"},{"$f":"IF(OR(ISBLANK(Auswertung_I!$I$6),Auswertung_I!$I$6=0,ISBLANK('Betriebsdaten I'!M$8)),\"-\",'Betriebsdaten I'!M$8/Auswertung_I!$I$7)","v":"-"},{"$f":"IF(OR(ISBLANK(Auswertung_I!$I$6),Auswertung_I!$I$6=0,ISBLANK('Betriebsdaten I'!N$8)),\"-\",'Betriebsdaten I'!N$8/Auswertung_I!$I$7)","v":"-"},{"$f":"IF(OR(ISBLANK(Auswertung_I!$I$6),Auswertung_I!$I$6=0,ISBLANK('Betriebsdaten I'!O$8)),\"-\",'Betriebsdaten I'!O$8/Auswertung_I!$I$7)","v":"-"},{"$f":"IF(OR(ISBLANK(Auswertung_I!$I$6),Auswertung_I!$I$6=0,ISBLANK('Betriebsdaten I'!P$8)),\"-\",'Betriebsdaten I'!P$8/Auswertung_I!$I$7)","v":"-"},{"$f":"IF(OR(ISBLANK(Auswertung_I!$I$6),Auswertung_I!$I$6=0,ISBLANK('Betriebsdaten I'!Q$8)),\"-\",'Betriebsdaten I'!Q$8/Auswertung_I!$I$7)","v":"-"}]
[null,"spezifischer Stromverbrauch",null,"kWhel/MWhtherm",{"$f":"IF(OR(ISBLANK('Betriebsdaten I'!E8),'Betriebsdaten I'!E8=0,'Betriebsdaten II'!E17=0),\"-\",'Betriebsdaten II'!E17/'Betriebsdaten I'!E8*1000)","v":"-"},{"$f":"IF(OR(ISBLANK('Betriebsdaten I'!F8),'Betriebsdaten I'!F8=0,'Betriebsdaten II'!F17=0),\"-\",'Betriebsdaten II'!F17/'Betriebsdaten I'!F8*1000)","v":"-"},{"$f":"IF(OR(ISBLANK('Betriebsdaten I'!G8),'Betriebsdaten I'!G8=0,'Betriebsdaten II'!G17=0),\"-\",'Betriebsdaten II'!G17/'Betriebsdaten I'!G8*1000)","v":"-"},{"$f":"IF(OR(ISBLANK('Betriebsdaten I'!H8),'Betriebsdaten I'!H8=0,'Betriebsdaten II'!H17=0),\"-\",'Betriebsdaten II'!H17/'Betriebsdaten I'!H8*1000)","v":"-"},{"$f":"IF(OR(ISBLANK('Betriebsdaten I'!I8),'Betriebsdaten I'!I8=0,'Betriebsdaten II'!I17=0),\"-\",'Betriebsdaten II'!I17/'Betriebsdaten I'!I8*1000)","v":"-"},{"$f":"IF(OR(ISBLANK('Betriebsdaten I'!J8),'Betriebsdaten I'!J8=0,'Betriebsdaten II'!J17=0),\"-\",'Betriebsdaten II'!J17/'Betriebsdaten I'!J8*1000)","v":"-"},{"$f":"IF(OR(ISBLANK('Betriebsdaten I'!K8),'Betriebsdaten I'!K8=0,'Betriebsdaten II'!K17=0),\"-\",'Betriebsdaten II'!K17/'Betriebsdaten I'!K8*1000)","v":"-"},{"$f":"IF(OR(ISBLANK('Betriebsdaten I'!L8),'Betriebsdaten I'!L8=0,'Betriebsdaten II'!L17=0),\"-\",'Betriebsdaten II'!L17/'Betriebsdaten I'!L8*1000)","v":"-"},{"$f":"IF(OR(ISBLANK('Betriebsdaten I'!M8),'Betriebsdaten I'!M8=0,'Betriebsdaten II'!M17=0),\"-\",'Betriebsdaten II'!M17/'Betriebsdaten I'!M8*1000)","v":"-"},{"$f":"IF(OR(ISBLANK('Betriebsdaten I'!N8),'Betriebsdaten I'!N8=0,'Betriebsdaten II'!N17=0),\"-\",'Betriebsdaten II'!N17/'Betriebsdaten I'!N8*1000)","v":"-"},{"$f":"IF(OR(ISBLANK('Betriebsdaten I'!O8),'Betriebsdaten I'!O8=0,'Betriebsdaten II'!O17=0),\"-\",'Betriebsdaten II'!O17/'Betriebsdaten I'!O8*1000)","v":"-"},{"$f":"IF(OR(ISBLANK('Betriebsdaten I'!P8),'Betriebsdaten I'!P8=0,'Betriebsdaten II'!P17=0),\"-\",'Betriebsdaten II'!P17/'Betriebsdaten I'!P8*1000)","v":"-"},{"$f":"IF(OR(ISBLANK('Betriebsdaten I'!Q8),'Betriebsdaten I'!Q8=0,'Betriebsdaten II'!Q17=0),\"-\",'Betriebsdaten II'!Q17/'Betriebsdaten I'!Q8*1000)","v":"-"}]
[null,{"$f":"IF(ISBLANK(BezeichnungBMKessel3),\"\",BezeichnungBMKessel3)","v":""},{"$f":"'Betriebsdaten I'!C9","v":0}]
[null,"Volllaststunden",null,"h",{"$f":"IF(OR(ISBLANK(Auswertung_I!$I$6),Auswertung_I!$I$6=0,ISBLANK('Betriebsdaten I'!E$9)),\"-\",'Betriebsdaten I'!E$9/Auswertung_I!$I$8)","v":"-"},{"$f":"IF(OR(ISBLANK(Auswertung_I!$I$6),Auswertung_I!$I$6=0,ISBLANK('Betriebsdaten I'!F$9)),\"-\",'Betriebsdaten I'!F$9/Auswertung_I!$I$8)","v":"-"},{"$f":"IF(OR(ISBLANK(Auswertung_I!$I$6),Auswertung_I!$I$6=0,ISBLANK('Betriebsdaten I'!G$9)),\"-\",'Betriebsdaten I'!G$9/Auswertung_I!$I$8)","v":"-"},{"$f":"IF(OR(ISBLANK(Auswertung_I!$I$6),Auswertung_I!$I$6=0,ISBLANK('Betriebsdaten I'!H$9)),\"-\",'Betriebsdaten I'!H$9/Auswertung_I!$I$8)","v":"-"},{"$f":"IF(OR(ISBLANK(Auswertung_I!$I$6),Auswertung_I!$I$6=0,ISBLANK('Betriebsdaten I'!I$9)),\"-\",'Betriebsdaten I'!I$9/Auswertung_I!$I$8)","v":"-"},{"$f":"IF(OR(ISBLANK(Auswertung_I!$I$6),Auswertung_I!$I$6=0,ISBLANK('Betriebsdaten I'!J$9)),\"-\",'Betriebsdaten I'!J$9/Auswertung_I!$I$8)","v":"-"},{"$f":"IF(OR(ISBLANK(Auswertung_I!$I$6),Auswertung_I!$I$6=0,ISBLANK('Betriebsdaten I'!K$9)),\"-\",'Betriebsdaten I'!K$9/Auswertung_I!$I$8)","v":"-"},{"$f":"IF(OR(ISBLANK(Auswertung_I!$I$6),Auswertung_I!$I$6=0,ISBLANK('Betriebsdaten I'!L$9)),\"-\",'Betriebsdaten I'!L$9/Auswertung_I!$I$8)","v":"-"},{"$f":"IF(OR(ISBLANK(Auswertung_I!$I$6),Auswertung_I!$I$6=0,ISBLANK('Betriebsdaten I'!M$9)),\"-\",'Betriebsdaten I'!M$9/Auswertung_I!$I$8)","v":"-"},{"$f":"IF(OR(ISBLANK(Auswertung_I!$I$6),Auswertung_I!$I$6=0,ISBLANK('Betriebsdaten I'!N$9)),\"-\",'Betriebsdaten I'!N$9/Auswertung_I!$I$8)","v":"-"},{"$f":"IF(OR(ISBLANK(Auswertung_I!$I$6),Auswertung_I!$I$6=0,ISBLANK('Betriebsdaten I'!O$9)),\"-\",'Betriebsdaten I'!O$9/Auswertung_I!$I$8)","v":"-"},{"$f":"IF(OR(ISBLANK(Auswertung_I!$I$6),Auswertung_I!$I$6=0,ISBLANK('Betriebsdaten I'!P$9)),\"-\",'Betriebsdaten I'!P$9/Auswertung_I!$I$8)","v":"-"},{"$f":"IF(OR(ISBLANK(Auswertung_I!$I$6),Auswertung_I!$I$6=0,ISBLANK('Betriebsdaten I'!Q$9)),\"-\",'Betriebsdaten I'!Q$9/Auswertung_I!$I$8)","v":"-"}]
[null,"spezifischer Stromverbrauch",null,"kWhel/MWhtherm",{"$f":"IF(OR(ISBLANK('Betriebsdaten I'!E9),'Betriebsdaten I'!E9=0,'Betriebsdaten II'!E18=0),\"-\",'Betriebsdaten II'!E18/'Betriebsdaten I'!E9*1000)","v":"-"},{"$f":"IF(OR(ISBLANK('Betriebsdaten I'!F9),'Betriebsdaten I'!F9=0,'Betriebsdaten II'!F18=0),\"-\",'Betriebsdaten II'!F18/'Betriebsdaten I'!F9*1000)","v":"-"},{"$f":"IF(OR(ISBLANK('Betriebsdaten I'!G9),'Betriebsdaten I'!G9=0,'Betriebsdaten II'!G18=0),\"-\",'Betriebsdaten II'!G18/'Betriebsdaten I'!G9*1000)","v":"-"},{"$f":"IF(OR(ISBLANK('Betriebsdaten I'!H9),'Betriebsdaten I'!H9=0,'Betriebsdaten II'!H18=0),\"-\",'Betriebsdaten II'!H18/'Betriebsdaten I'!H9*1000)","v":"-"},{"$f":"IF(OR(ISBLANK('Betriebsdaten I'!I9),'Betriebsdaten I'!I9=0,'Betriebsdaten II'!I18=0),\"-\",'Betriebsdaten II'!I18/'Betriebsdaten I'!I9*1000)","v":"-"},{"$f":"IF(OR(ISBLANK('Betriebsdaten I'!J9),'Betriebsdaten I'!J9=0,'Betriebsdaten II'!J18=0),\"-\",'Betriebsdaten II'!J18/'Betriebsdaten I'!J9*1000)","v":"-"},{"$f":"IF(OR(ISBLANK('Betriebsdaten I'!K9),'Betriebsdaten I'!K9=0,'Betriebsdaten II'!K18=0),\"-\",'Betriebsdaten II'!K18/'Betriebsdaten I'!K9*1000)","v":"-"},{"$f":"IF(OR(ISBLANK('Betriebsdaten I'!L9),'Betriebsdaten I'!L9=0,'Betriebsdaten II'!L18=0),\"-\",'Betriebsdaten II'!L18/'Betriebsdaten I'!L9*1000)","v":"-"},{"$f":"IF(OR(ISBLANK('Betriebsdaten I'!M9),'Betriebsdaten I'!M9=0,'Betriebsdaten II'!M18=0),\"-\",'Betriebsdaten II'!M18/'Betriebsdaten I'!M9*1000)","v":"-"},{"$f":"IF(OR(ISBLANK('Betriebsdaten I'!N9),'Betriebsdaten I'!N9=0,'Betriebsdaten II'!N18=0),\"-\",'Betriebsdaten II'!N18/'Betriebsdaten I'!N9*1000)","v":"-"},{"$f":"IF(OR(ISBLANK('Betriebsdaten I'!O9),'Betriebsdaten I'!O9=0,'Betriebsdaten II'!O18=0),\"-\",'Betriebsdaten II'!O18/'Betriebsdaten I'!O9*1000)","v":"-"},{"$f":"IF(OR(ISBLANK('Betriebsdaten I'!P9),'Betriebsdaten I'!P9=0,'Betriebsdaten II'!P18=0),\"-\",'Betriebsdaten II'!P18/'Betriebsdaten I'!P9*1000)","v":"-"},{"$f":"IF(OR(ISBLANK('Betriebsdaten I'!Q9),'Betriebsdaten I'!Q9=0,'Betriebsdaten II'!Q18=0),\"-\",'Betriebsdaten II'!Q18/'Betriebsdaten I'!Q9*1000)","v":"-"}]
[]
[]
[null,"Projektnummer:",{"$f":"IF(Titelblatt!$D$6=\"\",\"\",Titelblatt!$D$6)","v":""},null,null,"Jahr:",{"$f":"IF(Titelblatt!$D$8=\"\",YEAR(TODAY()),Titelblatt!$D$8)","v":2024},null,null,null,"Anfangsmonat:",{"$f":"IF(Titelblatt!$D$10=\"\",1,Titelblatt!$D$10)","v":1}]
[null,"Wärmenetz","Einheit",null,{"$f":"DATE($G$30,$L$30,1)","v":"2024-01-01"},{"$f":"IF($L$30+1>12,DATE($G$30+1,$L$30+1-12,1),DATE($G$30,$L$30+1,1))","v":"2024-02-01"},{"$f":"IF($L$30+2>12,DATE($G$30+1,$L$30+2-12,1),DATE($G$30,$L$30+2,1))","v":"2024-03-01"},{"$f":"IF($L$30+3>12,DATE($G$30+1,$L$30+3-12,1),DATE($G$30,$L$30+3,1))","v":"2024-04-01"},{"$f":"IF($L$30+4>12,DATE($G$30+4,$L$30+1-12,1),DATE($G$30,$L$30+4,1))","v":"2024-05-01"},{"$f":"IF($L$30+5>12,DATE($G$30+5,$L$30+1-12,1),DATE($G$30,$L$30+5,1))","v":"2024-06-01"},{"$f":"IF($L$30+6>12,DATE($G$30+1,$L$30+6-12,1),DATE($G$30,$L$30+6,1))","v":"2024-07-01"},{"$f":"IF($L$30+7>12,DATE($G$30+1,$L$30+7-12,1),DATE($G$30,$L$30+7,1))","v":"2024-08-01"},{"$f":"IF($L$30+8>12,DATE($G$30+1,$L$30+8-12,1),DATE($G$30,$L$30+8,1))","v":"2024-09-01"},{"$f":"IF($L$30+9>12,DATE($G$30+1,$L$30+9-12,1),DATE($G$30,$L$30+9,1))","v":"2024-10-01"},{"$f":"IF($L$30+10>12,DATE($G$30+1,$L$30+10-12,1),DATE($G$30,$L$30+10,1))","v":"2024-11-01"},{"$f":"IF($L$30+11>12,DATE($G$30+1,$L$30+11-12,1),DATE($G$30,$L$30+11,1))","v":"2024-12-01"},"Jahr"]
[]
[null,"Wärmeverluste Netz","%",null,{"$f":"IF('Betriebsdaten II'!E8=0,\"\",('Betriebsdaten II'!E8-'Betriebsdaten II'!E10)/'Betriebsdaten II'!E8)","v":""},{"$f":"IF('Betriebsdaten II'!F8=0,\"\",('Betriebsdaten II'!F8-'Betriebsdaten II'!F10)/'Betriebsdaten II'!F8)","v":""},{"$f":"IF('Betriebsdaten II'!G8=0,\"\",('Betriebsdaten II'!G8-'Betriebsdaten II'!G10)/'Betriebsdaten II'!G8)","v":""},{"$f":"IF('Betriebsdaten II'!H8=0,\"\",('Betriebsdaten II'!H8-'Betriebsdaten II'!H10)/'Betriebsdaten II'!H8)","v":""},{"$f":"IF('Betriebsdaten II'!I8=0,\"\",('Betriebsdaten II'!I8-'Betriebsdaten II'!I10)/'Betriebsdaten II'!I8)","v":""},{"$f":"IF('Betriebsdaten II'!J8=0,\"\",('Betriebsdaten II'!J8-'Betriebsdaten II'!J10)/'Betriebsdaten II'!J8)","v":""},{"$f":"IF('Betriebsdaten II'!K8=0,\"\",('Betriebsdaten II'!K8-'Betriebsdaten II'!K10)/'Betriebsdaten II'!K8)","v":""},{"$f":"IF('Betriebsdaten II'!L8=0,\"\",('Betriebsdaten II'!L8-'Betriebsdaten II'!L10)/'Betriebsdaten II'!L8)","v":""},{"$f":"IF('Betriebsdaten II'!M8=0,\"\",('Betriebsdaten II'!M8-'Betriebsdaten II'!M10)/'Betriebsdaten II'!M8)","v":""},{"$f":"IF('Betriebsdaten II'!N8=0,\"\",('Betriebsdaten II'!N8-'Betriebsdaten II'!N10)/'Betriebsdaten II'!N8)","v":""},{"$f":"IF('Betriebsdaten II'!O8=0,\"\",('Betriebsdaten II'!O8-'Betriebsdaten II'!O10)/'Betriebsdaten II'!O8)","v":""},{"$f":"IF('Betriebsdaten II'!P8=0,\"\",('Betriebsdaten II'!P8-'Betriebsdaten II'!P10)/'Betriebsdaten II'!P8)","v":""},{"$f":"IF('Betriebsdaten II'!Q8=0,\"\",('Betriebsdaten II'!Q8-'Betriebsdaten II'!Q10)/'Betriebsdaten II'!Q8)","v":""}]
[null,"mittlere Spreizung","K",null,{"$f":"IF(ISBLANK('Betriebsdaten II'!E9),\"-\",'Betriebsdaten II'!E8/(980*'Betriebsdaten II'!E9*4.2/3600))","v":"-"},{"$f":"IF(ISBLANK('Betriebsdaten II'!F9),\"-\",'Betriebsdaten II'!F8/(980*'Betriebsdaten II'!F9*4.2/3600))","v":"-"},{"$f":"IF(ISBLANK('Betriebsdaten II'!G9),\"-\",'Betriebsdaten II'!G8/(980*'Betriebsdaten II'!G9*4.2/3600))","v":"-"},{"$f":"IF(ISBLANK('Betriebsdaten II'!H9),\"-\",'Betriebsdaten II'!H8/(980*'Betriebsdaten II'!H9*4.2/3600))","v":"-"},{"$f":"IF(ISBLANK('Betriebsdaten II'!I9),\"-\",'Betriebsdaten II'!I8/(980*'Betriebsdaten II'!I9*4.2/3600))","v":"-"},{"$f":"IF(ISBLANK('Betriebsdaten II'!J9),\"-\",'Betriebsdaten II'!J8/(980*'Betriebsdaten II'!J9*4.2/3600))","v":"-"},{"$f":"IF(ISBLANK('Betriebsdaten II'!K9),\"-\",'Betriebsdaten II'!K8/(980*'Betriebsdaten II'!K9*4.2/3600))","v":"-"},{"$f":"IF(ISBLANK('Betriebsdaten II'!L9),\"-\",'Betriebsdaten II'!L8/(980*'Betriebsdaten II'!L9*4.2/3600))","v":"-"},{"$f":"IF(ISBLANK('Betriebsdaten II'!M9),\"-\",'Betriebsdaten II'!M8/(980*'Betriebsdaten II'!M9*4.2/3600))","v":"-"},{"$f":"IF(ISBLANK('Betriebsdaten II'!N9),\"-\",'Betriebsdaten II'!N8/(980*'Betriebsdaten II'!N9*4.2/3600))","v":"-"},{"$f":"IF(ISBLANK('Betriebsdaten II'!O9),\"-\",'Betriebsdaten II'!O8/(980*'Betriebsdaten II'!O9*4.2/3600))","v":"-"},{"$f":"IF(ISBLANK('Betriebsdaten II'!P9),\"-\",'Betriebsdaten II'!P8/(980*'Betriebsdaten II'!P9*4.2/3600))","v":"-"},{"$f":"IF(ISBLANK('Betriebsdaten II'!Q9),\"-\",'Betriebsdaten II'!Q8/(980*'Betriebsdaten II'!Q9*4.2/3600))","v":"-"}]
[null,"spezifischer Volumenstrom","m³/MWh",null,{"$f":"IF('Betriebsdaten II'!E8=0,\"\",'Betriebsdaten II'!E9/('Betriebsdaten II'!E8/1000))","v":""},{"$f":"IF('Betriebsdaten II'!F8=0,\"\",'Betriebsdaten II'!F9/('Betriebsdaten II'!F8/1000))","v":""},{"$f":"IF('Betriebsdaten II'!G8=0,\"\",'Betriebsdaten II'!G9/('Betriebsdaten II'!G8/1000))","v":""},{"$f":"IF('Betriebsdaten II'!H8=0,\"\",'Betriebsdaten II'!H9/('Betriebsdaten II'!H8/1000))","v":""},{"$f":"IF('Betriebsdaten II'!I8=0,\"\",'Betriebsdaten II'!I9/('Betriebsdaten II'!I8/1000))","v":""},{"$f":"IF('Betriebsdaten II'!J8=0,\"\",'Betriebsdaten II'!J9/('Betriebsdaten II'!J8/1000))","v":""},{"$f":"IF('Betriebsdaten II'!K8=0,\"\",'Betriebsdaten II'!K9/('Betriebsdaten II'!K8/1000))","v":""},{"$f":"IF('Betriebsdaten II'!L8=0,\"\",'Betriebsdaten II'!L9/('Betriebsdaten II'!L8/1000))","v":""},{"$f":"IF('Betriebsdaten II'!M8=0,\"\",'Betriebsdaten II'!M9/('Betriebsdaten II'!M8/1000))","v":""},{"$f":"IF('Betriebsdaten II'!N8=0,\"\",'Betriebsdaten II'!N9/('Betriebsdaten II'!N8/1000))","v":""},{"$f":"IF('Betriebsdaten II'!O8=0,\"\",'Betriebsdaten II'!O9/('Betriebsdaten II'!O8/1000))","v":""},{"$f":"IF('Betriebsdaten II'!P8=0,\"\",'Betriebsdaten II'!P9/('Betriebsdaten II'!P8/1000))","v":""},{"$f":"IF('Betriebsdaten II'!Q8=0,\"\",'Betriebsdaten II'!Q9/('Betriebsdaten II'!Q8/1000))","v":""}]
[null,"spezifischer Stromverbrauch Netzpumpen","kWhel/MWhtherm",null,{"$f":"IF(SUM(Hilfstabelle!B1:B10)=0,\"\",'Betriebsdaten II'!E19/(SUM(Hilfstabelle!B1:B10)/1000))","v":""},{"$f":"IF(SUM(Hilfstabelle!C1:C10)=0,\"\",'Betriebsdaten II'!F19/(SUM(Hilfstabelle!C1:C10)/1000))","v":""},{"$f":"IF(SUM(Hilfstabelle!D1:D10)=0,\"\",'Betriebsdaten II'!G19/(SUM(Hilfstabelle!D1:D10)/1000))","v":""},{"$f":"IF(SUM(Hilfstabelle!E1:E10)=0,\"\",'Betriebsdaten II'!H19/(SUM(Hilfstabelle!E1:E10)/1000))","v":""},{"$f":"IF(SUM(Hilfstabelle!F1:F10)=0,\"\",'Betriebsdaten II'!I19/(SUM(Hilfstabelle!F1:F10)/1000))","v":""},{"$f":"IF(SUM(Hilfstabelle!G1:G10)=0,\"\",'Betriebsdaten II'!J19/(SUM(Hilfstabelle!G1:G10)/1000))","v":""},{"$f":"IF(SUM(Hilfstabelle!H1:H10)=0,\"\",'Betriebsdaten II'!K19/(SUM(Hilfstabelle!H1:H10)/1000))","v":""},{"$f":"IF(SUM(Hilfstabelle!I1:I10)=0,\"\",'Betriebsdaten II'!L19/(SUM(Hilfstabelle!I1:I10)/1000))","v":""},{"$f":"IF(SUM(Hilfstabelle!J1:J10)=0,\"\",'Betriebsdaten II'!M19/(SUM(Hilfstabelle!J1:J10)/1000))","v":""},{"$f":"IF(SUM(Hilfstabelle!K1:K10)=0,\"\",'Betriebsdaten II'!N19/(SUM(Hilfstabelle!K1:K10)/1000))","v":""},{"$f":"IF(SUM(Hilfstabelle!L1:L10)=0,\"\",'Betriebsdaten II'!O19/(SUM(Hilfstabelle!L1:L10)/1000))","v":""},{"$f":"IF(SUM(Hilfstabelle!M1:M10)=0,\"\",'Betriebsdaten II'!P19/(SUM(Hilfstabelle!M1:M10)/1000))","v":""},{"$f":"IF(SUM(Hilfstabelle!N1:N10)=0,\"\",'Betriebsdaten II'!Q19/(SUM(Hilfstabelle!N1:N10)/1000))","v":""}]

{"sheet":"P88EAG_Eingabe","index":7,"n_rows":56,"n_cols":14,"rows_kept":56,"cut":false,"hidden":false,"merged":[[13,4,13,5],[1,8,1,9],[2,2,2,4],[4,3,4,4],[5,3,5,4],[6,3,6,4],[8,3,8,4]]}
[]
[null,null,null,null,null,null,null,null,"elektrisch angetriebene Wärmepumpe"]
[null,null,"Nachweis über den Energieträgeranteil gemäß §88 Erneuerbaren-Ausbau-Gesetz (EAG)",null,null,null,null,null,"Stromverbrauch",{"$f":"M29","v":0},"MWh"]
[null,null,null,null,null,null,null,null,"Jahresarbeitszahl",{"$f":"IF(J5>0,J5/J3,\"\")","v":""}]
[null,null,"Fernwärmenetz",{"$f":"IF(Titelblatt!D4=\"\",\"bitte am Titelblatt eintragen!\",Titelblatt!D4)","v":"bitte am Titelblatt eintragen!"},null,null,null,null,"erzeugte Wärme",{"$f":"M37*M27","v":0},"MWh"]
[null,null,"Betreiber",null,null,null,null,null,"Anteil Umgebungswärme",{"$f":"IF(ISNUMBER(J3),IF(ISNUMBER(J4),J3*(J4-1),IF(ISNUMBER(J5),J5-J3,\"\")),IF(AND(ISNUMBER(J4),ISNUMBER(J5)),J5/J4*(J4-1),\"\"))","v":0},"MWh"]
[null,null,"Adresse",null,null,null,null,null,"Anteil Strom",{"$f":"IF(ISNUMBER(J3),J3,IF(ISNUMBER(J6),J5/J4,\"\"))","v":0},"MWh"]
[]
[null,null,"Angaben geprüft durch"]
[null,null,null,null,null,null,null,null,"Hier geht’s zur Hilfe"]
[null,null,null,"Beginn","Ende"]
[null,null,"Bezugszeitraum",{"$f":"IF(Titelblatt!D8=\"\",\"bitte am Titelblatt eintragen!\",DATE(Titelblatt!D8,Titelblatt!D10,1))","v":"bitte am Titelblatt eintragen!"},{"$f":"DATE(Titelblatt!D8+1,Titelblatt!D10,1)-1","v":"1900-11-30"}]
[null,null,null,null,null,null,null,null,"Vorschlag der Zuordnung durch QM Heizwerke"]
[null,null,null,null,"ins FW-Netz \neingespeiste Wärme",null,null,{"$f":"IF(OR(AND(SUMPRODUCT(--(E17:E25<>\"\"))=0,SUMPRODUCT(--(E28:E31<>\"\"))=0,SUMPRODUCT(--(E34:E36<>\"\"))=0,SUMPRODUCT(--(E39:E42<>\"\"))=0,SUMPRODUCT(--(E45:E46<>\"\"))=0),AND(SUMPRODUCT(--(F17:F25<>\"\"))=0,SUMPRODUCT(--(F28:F31<>\"\"))=0,SUMPRODUCT(--(F34:F36<>\"\"))=0,SUMPRODUCT(--(F39:F42<>\"\"))=0,SUMPRODUCT(--(F45:F46<>\"\"))=0)),\"\",\"Bitte geben Sie nur Werte in eine der Spalten E oder F ein!\")","v":""}]
[null,null,null,null,"Anteile [%]","Menge [MWh]",null,null,"Angaben lt. Betriebsdaten I zur Erzeugung",null,"Wärmeerzeuger Art",null,"Wärme","Anteile"]
[null,null,"Erneuerbare Energie","Summe",{"$f":"SUM(E17:E25)","v":0},{"$f":"SUM(F17:F25)","v":0},null,null,"Wärmeerzeuger",null,"(Eingabe in Tabellenblatt Auswertung_I)",null,"[MWh/a]","[%]"]
[null,null,null,"Biomasse: Kesselanlagen (keine Stromerzeugung)",{"$f":"M32","v":0},null,null,null,{"$f":"IF('Betriebsdaten I'!B7=\"\",\"\",'Betriebsdaten I'!B7)","v":""},null,{"$f":"Auswertung_I!H6","v":0},null,{"$f":"'Betriebsdaten I'!Q7/1000","v":0},{"$f":"M17/$M$27","v":{"$error":"#DIV/0!"}}]
[null,null,null,"Biomasse: KWK-Wärme",{"$f":"M33","v":0},null,null,null,{"$f":"IF('Betriebsdaten I'!B8=\"\",\"\",'Betriebsdaten I'!B8)","v":""},null,{"$f":"Auswertung_I!H7","v":0},null,{"$f":"'Betriebsdaten I'!Q8/1000","v":0},{"$error":"#DIV/0!"}]
[null,null,null,"Rauchgaskondensation aus Biomasseanlagen",{"$f":"M34","v":0},null,null,null,{"$f":"IF('Betriebsdaten I'!B9=\"\",\"\",'Betriebsdaten I'!B9)","v":""},null,{"$f":"Auswertung_I!H8","v":0},null,{"$f":"'Betriebsdaten I'!Q9/1000","v":0},{"$error":"#DIV/0!"}]
[null,null,null,"Solarenergie",{"$f":"M35","v":0},null,null,null,{"$f":"IF('Betriebsdaten I'!B13=\"\",\"\",'Betriebsdaten I'!B13)","v":""},null,{"$f":"Auswertung_I!H9","v":0},null,{"$f":"'Betriebsdaten I'!Q13/1000","v":0},{"$error":"#DIV/0!"}]
[null,null,null,"Geothermie",null,null,null,null,{"$f":"IF('Betriebsdaten I'!B14=\"\",\"\",'Betriebsdaten I'!B14)","v":""},null,{"$f":"Auswertung_I!H10","v":0},null,{"$f":"'Betriebsdaten I'!Q14/1000","v":0},{"$error":"#DIV/0!"}]
[null,null,null,"Wärmepumpen (Anteil Umgebungswärme)",{"$f":"M49","v":0},null,null,null,{"$f":"IF('Betriebsdaten I'!B15=\"\",\"\",'Betriebsdaten I'!B15)","v":""},null,{"$f":"Auswertung_I!H11","v":0},null,{"$f":"'Betriebsdaten I'!Q15/1000","v":0},{"$error":"#DIV/0!"}]
[null,null,null,"Abfall (erneuerbarer Anteil)",null,null,null,null,{"$f":"IF('Betriebsdaten I'!B16=\"\",\"\",'Betriebsdaten I'!B16)","v":""},null,{"$f":"Auswertung_I!H12","v":0},null,{"$f":"'Betriebsdaten I'!Q16/1000","v":0},{"$error":"#DIV/0!"}]
[null,null,null,"Strom (erneuerbar)",{"$f":"M51","v":0},null,null,null,{"$f":"IF('Betriebsdaten I'!B17=\"\",\"\",'Betriebsdaten I'!B17)","v":""},null,{"$f":"Auswertung_I!H13","v":0},null,{"$f":"'Betriebsdaten I'!Q17/1000","v":0},{"$error":"#DIV/0!"}]
[null,null,null,"sonstige erneuerbare Quellen",{"$f":"M38","v":0},null,null,null,{"$f":"IF('Betriebsdaten I'!B18=\"\",\"\",'Betriebsdaten I'!B18)","v":""},null,{"$f":"Auswertung_I!H14","v":0},null,{"$f":"'Betriebsdaten I'!Q18/1000","v":0},{"$error":"#DIV/0!"}]
[null,null,null,null,null,null,null,null,{"$f":"IF('Betriebsdaten I'!B19=\"\",\"\",'Betriebsdaten I'!B19)","v":""},null,{"$f":"Auswertung_I!H15","v":0},null,{"$f":"'Betriebsdaten I'!Q19/1000","v":0},{"$error":"#DIV/0!"}]
[null,null,"Abwärme und -kälte","Summe",{"$f":"SUM(E28:E31)","v":0},{"$f":"SUM(F28:F31)","v":0},null,null,"Summe",null,null,null,{"$f":"SUM(M17:M26)","v":0},{"$f":"SUM(N17:N26)","v":{"$error":"#DIV/0!"}}]
[null,null,null,"industrielle Abwärme",{"$f":"M36","v":0}]
[null,null,null,"Rauchgaskondensation sonstige",null,null,null,null,"Stromeinsatz elektrische Wärmepumpe",null,{"$f":"IF((M37>0)*(M29=\"\"),\"bitte hier eingeben!\",\"\")","v":""},null,null,"MWh/a"]
[null,null,null,"Abfall (fossiler Anteil)"]
[null,null,null,"sonstige Abwärmequellen",null,null,null,null,"Wärmeerzeuger Art","Zuordnung in diesem Formular zu",null,null,"Anteil"]
[null,null,null,null,null,null,null,null,"Biomasse",{"$f":"D17","v":"Biomasse: Kesselanlagen (keine Stromerzeugung)"},null,null,{"$f":"SUMIF($K$17:$K$26,I32,$N$17:$N$26)","v":0}]
[null,null,"KWK-Wärme (fossil)","Summe",{"$f":"SUM(E34:E36)","v":0},{"$f":"SUM(F34:F36)","v":0},null,null,"Biomasse-KWK",{"$f":"D18","v":"Biomasse: KWK-Wärme"},null,null,{"$f":"SUMIF($K$17:$K$26,I33,$N$17:$N$26)","v":0}]
[null,null,null,"Erdgas",{"$f":"M42","v":0},null,null,null,"RG-Kondensation",{"$f":"D19","v":"Rauchgaskondensation aus Biomasseanlagen"},null,null,0]
[null,null,null,"Heizöl",{"$f":"M43","v":0},null,null,null,"Solar",{"$f":"D20","v":"Solarenergie"},null,null,0]
[null,null,null,"sonstige fossile Energieträger",{"$f":"M44","v":0},null,null,null,"Abwärme",{"$f":"D28","v":"industrielle Abwärme"},null,null,0]
[null,null,null,null,null,null,null,null,"Wärmepumpe"," *",null,null,0]
[null,null,"Fossile Energie","Summe",{"$f":"SUM(E39:E42)","v":0},{"$f":"SUM(F39:F42)","v":0},null,null,"Abs.-Wärmepumpe",{"$f":"D25","v":"sonstige erneuerbare Quellen"},null,null,0]
[null,null,null,"Erdgas",{"$f":"M40","v":0},null,null,null,"Heizöl",{"$f":"D40","v":"Heizöl"},null,null,0]
[null,null,null,"Heizöl",{"$f":"M39","v":0},null,null,null,"Erdgas",{"$f":"D39","v":"Erdgas"},null,null,0]
[null,null,null,"Strom (fossil)",{"$f":"M52","v":0},null,null,null,"Sonstige",{"$f":"D46","v":"weitere"},null,null,0]
[null,null,null,"sonstige fossile Energieträger",null,null,null,null,"Erdgas-KWK","KWK-Wärme (fossil) / Erdgas",null,null,0]
[null,null,null,null,null,null,null,null,"Heizöl-KWK","KWK-Wärme (fossil) / Heizöl",null,null,0]
[null,null,"Sonstige Energieträger","Summe",{"$f":"SUM(E45:E46)","v":0},{"$f":"SUM(F45:F46)","v":0},null,null,"sonstige fossile KWK","KWK-Wärme (fossil) / sonstige fossile Energieträger",null,null,0]
[null,null,null,"Strom (Import)",{"$f":"M53","v":0},null,null,null,"Summe",null,null,null,{"$f":"SUM(M32:M44)","v":0}]
[null,null,null,"weitere",{"$f":"M41","v":0}]
[null,null,null,null,null,null,null,null,"* Zuordnung für elektrische Wärmepumpen"]
[null,null,"Total",null,{"$f":"SUM(E16,E27,E33,E38,E44)","v":0},{"$f":"SUM(F16,F27,F33,F38,F44)","v":0},null,{"$f":"IF(P88EAG_Nachweis!E47=0,\"\",IF(P88EAG_Nachweis!E47=1,\"\",\"Bitte überprüfen Sie Ihre Eingaben. Diese summieren sich nicht zu 100 %.\"))","v":""},"Wärmepumpe (gesamt = Umgebungswärme + Stromeinsatz)",null,null,null,{"$f":"M37","v":0}]
[null,null,null,null,null,null,null,null,null,{"$f":"D22","v":"Wärmepumpen (Anteil Umgebungswärme)"},null,null,{"$f":"IF(M27=0,0,J6/M27)","v":0}]
[null,null,"Zusammenfassung Energieträgeranteile",null,null,null,null,null,"Stromeinsatz Wärmepumpe (gesamt)",null,null,null,{"$f":"IF(M37>0,IF(M29=0,\"Eingabe M29!\",M29/M27),0)","v":0},"Aufteilung lt. Elektrizitätsbilanz 2020 (E-CONTROL)"]
[null,null,"Erneuerbare Energie",{"$f":"IF($E$48>0,E16,IF($F$48>0,F16/$F$48,0))","v":0},null,null,null,null,null,{"$f":"D24","v":"Strom (erneuerbar)"},null,null,{"$f":"$M$50*N51","v":0},{"$f":"(45.38+3.165+1.407+8.85)/97.389","v":0.60378482169444192}]
[null,null,"Abwärme",{"$f":"IF($E$48>0,E27,IF($F$48>0,F27/$F$48,0))","v":0},null,null,null,null,null,{"$f":"D41","v":"Strom (fossil)"},null,null,{"$f":"$M$50*N52","v":0},{"$f":"1-N51-N53","v":0.14441055971413602}]
[null,null,"KWK-Wärme (fossil)",{"$f":"IF($E$48>0,E33,IF($F$48>0,F33/$F$48,0))","v":0},null,null,null,null,null,{"$f":"D45","v":"Strom (Import)"},null,null,{"$f":"$M$50*N53","v":0},{"$f":"24.523/97.389","v":0.25180461859142206}]
[null,null,"Fossile Energie",{"$f":"IF($E$48>0,E38,IF($F$48>0,F38/$F$48,0))","v":0}]
[null,null,"Sonstige Energieträger",{"$f":"IF($E$48>0,E44,IF($F$48>0,F44/$F$48,0))","v":0}]
[null,null,"Summe",{"$f":"SUM(D51:D55)","v":0}]

{"sheet":"P88EAG_Nachweis","index":8,"n_rows":72,"n_cols":5,"rows_kept":72,"cut":false,"hidden":false,"merged":[[71,2,71,4],[2,2,2,4],[4,3,4,4],[5,3,5,4],[6,3,6,4],[8,3,8,4]]}
[]
[]
[null,null,"Nachweis über den Energieträgeranteil gemäß §88 Erneuerbaren-Ausbau-Gesetz (EAG)"]
[]
[null,null,"Fernwärmenetz",{"$f":"P88EAG_Eingabe!D5","v":"bitte am Titelblatt eintragen!"}]
[null,null,"Betreiber",{"$f":"IF(ISBLANK(P88EAG_Eingabe!D6),\"\",P88EAG_Eingabe!D6)","v":""}]
[null,null,"Adresse",{"$f":"IF(ISBLANK(P88EAG_Eingabe!D7),\"\",P88EAG_Eingabe!D7)","v":""}]
[]
[null,null,"Angaben geprüft durch",{"$f":"IF(ISBLANK(P88EAG_Eingabe!D9),\"\",P88EAG_Eingabe!D9)","v":""}]
[]
[null,null,null,"Beginn","Ende"]
[null,null,"Bezugszeitraum",{"$f":"P88EAG_Eingabe!D12","v":"bitte am Titelblatt eintragen!"},{"$f":"P88EAG_Eingabe!E12","v":"1900-11-30"}]
[]
[]
[null,null,"Erneuerbare Energie","Summe",{"$f":"SUM(E16:E24)","v":0}]
[null,null,null,"Biomasse Kesselanlagen",{"$f":"IF(OR(ISNUMBER(P88EAG_Eingabe!$E17),ISNUMBER(P88EAG_Eingabe!$F17)),IF(ISNUMBER(P88EAG_Eingabe!$E17),P88EAG_Eingabe!$E17,IF(ISNUMBER(P88EAG_Eingabe!$F17),P88EAG_Eingabe!$F17/P88EAG_Eingabe!$F$48,)),)","v":0}]
[null,null,null,"Biomasse KWK-Wärme",{"$f":"IF(OR(ISNUMBER(P88EAG_Eingabe!$E18),ISNUMBER(P88EAG_Eingabe!$F18)),IF(ISNUMBER(P88EAG_Eingabe!$E18),P88EAG_Eingabe!$E18,IF(ISNUMBER(P88EAG_Eingabe!$F18),P88EAG_Eingabe!$F18/P88EAG_Eingabe!$F$48,)),)","v":0}]
[null,null,null,"Rausgaskondensation aus Biomasseanlagen",{"$f":"IF(OR(ISNUMBER(P88EAG_Eingabe!$E19),ISNUMBER(P88EAG_Eingabe!$F19)),IF(ISNUMBER(P88EAG_Eingabe!$E19),P88EAG_Eingabe!$E19,IF(ISNUMBER(P88EAG_Eingabe!$F19),P88EAG_Eingabe!$F19/P88EAG_Eingabe!$F$48,)),)","v":0}]
[null,null,null,"Solarenergie",{"$f":"IF(OR(ISNUMBER(P88EAG_Eingabe!$E20),ISNUMBER(P88EAG_Eingabe!$F20)),IF(ISNUMBER(P88EAG_Eingabe!$E20),P88EAG_Eingabe!$E20,IF(ISNUMBER(P88EAG_Eingabe!$F20),P88EAG_Eingabe!$F20/P88EAG_Eingabe!$F$48,)),)","v":0}]
[null,null,null,"Geothermie",{"$f":"IF(OR(ISNUMBER(P88EAG_Eingabe!$E21),ISNUMBER(P88EAG_Eingabe!$F21)),IF(ISNUMBER(P88EAG_Eingabe!$E21),P88EAG_Eingabe!$E21,IF(ISNUMBER(P88EAG_Eingabe!$F21),P88EAG_Eingabe!$F21/P88EAG_Eingabe!$F$48,)),)","v":0}]
[null,null,null,"Wärmepumpen (Anteil Umgebungswärme)",{"$f":"IF(OR(ISNUMBER(P88EAG_Eingabe!$E22),ISNUMBER(P88EAG_Eingabe!$F22)),IF(ISNUMBER(P88EAG_Eingabe!$E22),P88EAG_Eingabe!$E22,IF(ISNUMBER(P88EAG_Eingabe!$F22),P88EAG_Eingabe!$F22/P88EAG_Eingabe!$F$48,)),)","v":0}]
[null,null,null,"Abfall (erneuerbarer Anteil)",{"$f":"IF(OR(ISNUMBER(P88EAG_Eingabe!$E23),ISNUMBER(P88EAG_Eingabe!$F23)),IF(ISNUMBER(P88EAG_Eingabe!$E23),P88EAG_Eingabe!$E23,IF(ISNUMBER(P88EAG_Eingabe!$F23),P88EAG_Eingabe!$F23/P88EAG_Eingabe!$F$48,)),)","v":0}]
[null,null,null,"Strom (erneuerbar)",{"$f":"IF(OR(ISNUMBER(P88EAG_Eingabe!$E24),ISNUMBER(P88EAG_Eingabe!$F24)),IF(ISNUMBER(P88EAG_Eingabe!$E24),P88EAG_Eingabe!$E24,IF(ISNUMBER(P88EAG_Eingabe!$F24),P88EAG_Eingabe!$F24/P88EAG_Eingabe!$F$48,)),)","v":0}]
[null,null,null,"sonstige erneuerbare Quellen",{"$f":"IF(OR(ISNUMBER(P88EAG_Eingabe!$E25),ISNUMBER(P88EAG_Eingabe!$F25)),IF(ISNUMBER(P88EAG_Eingabe!$E25),P88EAG_Eingabe!$E25,IF(ISNUMBER(P88EAG_Eingabe!$F25),P88EAG_Eingabe!$F25/P88EAG_Eingabe!$F$48,)),)","v":0}]
[]
[null,null,"Abwärme","Summe",{"$f":"SUM(E27:E30)","v":0}]
[null,null,null,"Industrielle Abwärme",{"$f":"IF(OR(ISNUMBER(P88EAG_Eingabe!$E28),ISNUMBER(P88EAG_Eingabe!$F28)),IF(ISNUMBER(P88EAG_Eingabe!$E28),P88EAG_Eingabe!$E28,IF(ISNUMBER(P88EAG_Eingabe!$F28),P88EAG_Eingabe!$F28/P88EAG_Eingabe!$F$48,)),)","v":0}]
[null,null,null,"Rauchgaskondensation sonstige",{"$f":"IF(OR(ISNUMBER(P88EAG_Eingabe!$E29),ISNUMBER(P88EAG_Eingabe!$F29)),IF(ISNUMBER(P88EAG_Eingabe!$E29),P88EAG_Eingabe!$E29,IF(ISNUMBER(P88EAG_Eingabe!$F29),P88EAG_Eingabe!$F29/P88EAG_Eingabe!$F$48,)),)","v":0}]
[null,null,null,"Abfall (fossiler Anteil)",{"$f":"IF(OR(ISNUMBER(P88EAG_Eingabe!$E30),ISNUMBER(P88EAG_Eingabe!$F30)),IF(ISNUMBER(P88EAG_Eingabe!$E30),P88EAG_Eingabe!$E30,IF(ISNUMBER(P88EAG_Eingabe!$F30),P88EAG_Eingabe!$F30/P88EAG_Eingabe!$F$48,)),)","v":0}]
[null,null,null,"sonstige Abwärmequellen",{"$f":"IF(OR(ISNUMBER(P88EAG_Eingabe!$E31),ISNUMBER(P88EAG_Eingabe!$F31)),IF(ISNUMBER(P88EAG_Eingabe!$E31),P88EAG_Eingabe!$E31,IF(ISNUMBER(P88EAG_Eingabe!$F31),P88EAG_Eingabe!$F31/P88EAG_Eingabe!$F$48,)),)","v":0}]
[]
[null,null,"KWK-Wärme (fossil)*","Summe",{"$f":"SUM(E33:E35)","v":0}]
[null,null,null,"Erdgas",{"$f":"IF(OR(ISNUMBER(P88EAG_Eingabe!$E34),ISNUMBER(P88EAG_Eingabe!$F34)),IF(ISNUMBER(P88EAG_Eingabe!$E34),P88EAG_Eingabe!$E34,IF(ISNUMBER(P88EAG_Eingabe!$F34),P88EAG_Eingabe!$F34/P88EAG_Eingabe!$F$48,)),)","v":0}]
[null,null,null,"Heizöl",{"$f":"IF(OR(ISNUMBER(P88EAG_Eingabe!$E35),ISNUMBER(P88EAG_Eingabe!$F35)),IF(ISNUMBER(P88EAG_Eingabe!$E35),P88EAG_Eingabe!$E35,IF(ISNUMBER(P88EAG_Eingabe!$F35),P88EAG_Eingabe!$F35/P88EAG_Eingabe!$F$48,)),)","v":0}]
[null,null,null,"sonstige fossile Energieträger",{"$f":"IF(OR(ISNUMBER(P88EAG_Eingabe!$E36),ISNUMBER(P88EAG_Eingabe!$F36)),IF(ISNUMBER(P88EAG_Eingabe!$E36),P88EAG_Eingabe!$E36,IF(ISNUMBER(P88EAG_Eingabe!$F36),P88EAG_Eingabe!$F36/P88EAG_Eingabe!$F$48,)),)","v":0}]
[]
[null,null,"Fossile Energie","Summe",{"$f":"SUM(E38:E41)","v":0}]
[null,null,null,"Erdgas",{"$f":"IF(OR(ISNUMBER(P88EAG_Eingabe!$E39),ISNUMBER(P88EAG_Eingabe!$F39)),IF(ISNUMBER(P88EAG_Eingabe!$E39),P88EAG_Eingabe!$E39,IF(ISNUMBER(P88EAG_Eingabe!$F39),P88EAG_Eingabe!$F39/P88EAG_Eingabe!$F$48,)),)","v":0}]
[null,null,null,"Heizöl",{"$f":"IF(OR(ISNUMBER(P88EAG_Eingabe!$E40),ISNUMBER(P88EAG_Eingabe!$F40)),IF(ISNUMBER(P88EAG_Eingabe!$E40),P88EAG_Eingabe!$E40,IF(ISNUMBER(P88EAG_Eingabe!$F40),P88EAG_Eingabe!$F40/P88EAG_Eingabe!$F$48,)),)","v":0}]
[null,null,null,"Strom (fossil)",{"$f":"IF(OR(ISNUMBER(P88EAG_Eingabe!$E41),ISNUMBER(P88EAG_Eingabe!$F41)),IF(ISNUMBER(P88EAG_Eingabe!$E41),P88EAG_Eingabe!$E41,IF(ISNUMBER(P88EAG_Eingabe!$F41),P88EAG_Eingabe!$F41/P88EAG_Eingabe!$F$48,)),)","v":0}]
[null,null,null,"sonstige fossile Energieträger",{"$f":"IF(OR(ISNUMBER(P88EAG_Eingabe!$E42),ISNUMBER(P88EAG_Eingabe!$F42)),IF(ISNUMBER(P88EAG_Eingabe!$E42),P88EAG_Eingabe!$E42,IF(ISNUMBER(P88EAG_Eingabe!$F42),P88EAG_Eingabe!$F42/P88EAG_Eingabe!$F$48,)),)","v":0}]
[]
[null,null,"Sonstige Energieträger","Summe",{"$f":"SUM(E44:E45)","v":0}]
[null,null,null,"Strom (Import)",{"$f":"IF(OR(ISNUMBER(P88EAG_Eingabe!$E45),ISNUMBER(P88EAG_Eingabe!$F45)),IF(ISNUMBER(P88EAG_Eingabe!$E45),P88EAG_Eingabe!$E45,IF(ISNUMBER(P88EAG_Eingabe!$F45),P88EAG_Eingabe!$F45/P88EAG_Eingabe!$F$48,)),)","v":0}]
[null,null,null,"weitere",{"$f":"IF(OR(ISNUMBER(P88EAG_Eingabe!$E46),ISNUMBER(P88EAG_Eingabe!$F46)),IF(ISNUMBER(P88EAG_Eingabe!$E46),P88EAG_Eingabe!$E46,IF(ISNUMBER(P88EAG_Eingabe!$F46),P88EAG_Eingabe!$F46/P88EAG_Eingabe!$F$48,)),)","v":0}]
[]
[null,null,"Total",null,{"$f":"SUM(E15,E26,E32,E37,E43)","v":0}]
[]
[null,null,"Zusammenfassung Energieträgeranteile"]
[null,null,"Erneuerbare Energie",{"$f":"E15","v":0}]
[null,null,"Abwärme",{"$f":"E26","v":0}]
[null,null,"KWK-Wärme (fossil)",{"$f":"E32","v":0}]
[null,null,"Fossile Energie",{"$f":"E37","v":0}]
[null,null,"Sonstige Energieträger",{"$f":"E43","v":0}]
[null,null,"Summe",{"$f":"SUM(D50:D54)","v":0}]
[]
[]
[]
[]
[]
[]
[]
[]
[]
[]
[]
[]
[]
[]
[]
[]
[null,null,"* Unter dem Begriff „Kraft-Wärme-Kopplung“  (KWK) wird die gleichzeitige Erzeugung thermischer  Energie und elektrischer und/oder mechanischer Energie in einem Prozess verstanden. \"KWK-Wärme\" bezeichnet die in diesem Prozess erzeugte und in ein Fernwärmenetz gelieferte Wärme (z.B. Wärme aus einem mit Erdgas befeuerten Gas- und Dampfkraftwerk oder aus einem Gasmotor)."]

{"sheet":"Hilfe","index":9,"n_rows":72,"n_cols":6,"rows_kept":72,"cut":false,"hidden":false,"merged":[[26,1,26,3],[66,1,68,3],[64,1,65,3],[23,1,23,3],[24,1,24,3],[28,1,28,3],[29,1,29,3],[35,1,35,3],[34,1,34,3],[30,1,30,3],[31,1,31,3],[32,1,32,3],[43,1,43,3],[44,1,44,3],[37,1,37,3],[17,1,17,3],[25,1,25,3],[20,1,20,3],[15,5,15,7],[17,5,17,7],[18,5,18,7],[19,5,19,7],[16,5,16,7],[21,5,21,7],[22,5,22,7],[20,5,20,7],[22,1,22,3],[21,1,21,3],[12,1,12,3],[13,1,13,3],[3,5,3,7],[8,1,8,3],[2,1,2,3],[4,1,4,3],[5,1,5,3],[6,1,6,3],[7,1,7,3],[32,5,32,7],[33,5,33,7],[16,1,16,3],[2,5,2,7],[9,5,9,7],[11,5,11,7],[12,5,12,7],[14,5,14,7],[4,5,4,7],[5,5,5,7],[6,5,6,7],[7,5,7,7],[8,5,8,7],[9,1,9,2],[10,1,10,3],[11,1,11,3],[45,5,45,7],[45,1,45,3],[53,1,53,3],[50,1,50,3],[52,1,52,3],[52,5,52,7],[50,5,50,7],[46,5,47,7],[49,5,49,7],[46,1,46,3],[54,5,54,7],[49,1,49,3],[51,1,51,3],[48,5,48,7],[53,5,53,7],[51,5,51,7],[43,5,44,7],[14,1,15,3],[34,5,34,7],[42,5,42,7],[36,1,36,3],[40,1,40,3],[42,1,42,3],[41,1,41,3],[23,5,23,7],[24,5,24,7],[25,5,25,7],[29,5,29,7],[41,5,41,7],[40,5,40,7],[30,5,30,7],[31,5,31,7],[71,1,72,3],[69,1,69,3],[70,1,70,3],[62,1,63,3],[27,1,27,3],[33,1,33,3],[59,2,59,3],[60,1,61,3]]}
[null,"Erläuterung zur Erstellung von Betriebsberichten"]
[null,"Ablauf",null,null,null,"Wichtige Eingabefelder"]
[null,"- Speichern Sie diese Excel-Datei auf Ihrem Computer.",null,null,null,"- Projektnummer (Titelblatt)"]
[null,"- Aktivieren Sie die BEARBEITUNG und die Excel-MAKROS (mit \"Inhalt aktivieren\") beim Öffnen der Excel-Datei!",null,null,null,"          - UNBEDINGT ERFORDERLICH, damit der Betriebsbericht dem richtigen Projekt zugeordnet werden kann."]
[null,"- Geben Sie alle erforderlichen Daten in die gelben Eingabefelder ein (Farbe ändert sich nach erfolgter Eingabe)!",null,null,null,"- Welches Projekt, wenn mehrere Ausbauprojekte vorhanden sind?"]
[null,"- Per Klick auf die Schaltfläche \"XML-Datei erstellen\" werden Dateien zum Hochladen erstellt.",null,null,null,"          - Betriebsberichte sind immer für die Gesamtanlage zu erstellen (auch bei Ausbauprojekten)."]
[null,"          - Nur die XML-Dateien können in die QM Datenbank hochgeladen werden.          ",null,null,null,"          - Jedes Kalender- bzw. Betriebsjahr ist pro Anlage NUR EINMAL ZU ERFASSEN."]
[null,"          - Für die Betriebsdaten und die Abnehmerverbräuche werden separate Dateien erstellt.",null,null,null,"          - Im Betriebsbericht müssen ALLE Abnehmer aufscheinen, die in diesem Betriebsjahr Wärme bezogen haben."]
[null,"          - XML-Dateien werden am gleichen Ort wie die Excel-Datei gespeichert.        ",null,null,null,"          - Der Betriebsbericht muss in dem Ausbauprojekt hochgeladen werden, wo diese Abnehmer bereits erfasst sind."]
[null,"- Erstellen und Hochladen eines Betriebsberichtes in die QM Datenbank",null,"https://qm-datenbank.at/",null,"- Betriebsberichtsjahr und Anfangsmonat (Titelblatt)"]
[null,"          - In der QM Datenbank Menüpunkt \"Betriebsbericht-Betriebsbericht NEU\" auswählen",null,null,null,"          - Betriebsberichte können entweder für ein Kalenderjahr ODER ein Betriebsjahr (Betriebsperiode) erstellt werden."]
[null,"          - Die erstellte XML-Datei \"Betriebsbericht\" (zu den Betriebsdaten) auswählen und hochladen",null,null,null,"          - Ein Betriebsjahr ist ein Zeitraum von 12 Monaten mit beliebigem Anfangsmonat."]
[null,"          - Beim Hochladen (nach erfolgreichem Import) wird automatisch ein neuer (offener) Betriebsbericht in der Datenbank erstellt.",null,null,null,"          - Als Betriebsberichtsjahr ist das Jahr anzulegen, in dem der Anfangsmonat des Betriebsjahres liegt."]
[null,"          - Überprüfen Sie nach dem Hochladen die Daten in der QM Datenbank.",null,null,null,"          - Beispiel: Beginn des Betriebsjahres 06/2016: Betriebsberichtsjahr ist dann 2016 (beinhaltet Betriebsdaten von 06/2016 - 05/2017)"]
[null,"          - Die Abnehmerverbräuche können nur nach erfolgreichem Import der Betriebsdaten-XML-Datei (wenn bereits ein offener\n            Betriebsbericht zum selben Jahr in der Datenbank vorhanden ist) in die Datenbank hochgeladen werden.",null,null,null,"- Komponentennummer (Betriebsdaten I)"]
[null,null,null,null,null,"          - Jeder Wärmeerzeuger MUSS in der QM Datenbank als \"Anlagenkomponente\" angelegt sein!"]
[null,"          - Durch Klick auf \"Abschließen\", wird der Betriebsbericht endgültig übermittelt.",null,null,null,"          - Jede Anlagenkomponente in der QM Datenbank (siehe Blatt \"Anlagenkomponenten\") bekommt eine fortlaufende KOMPONENTENNUMMER."]
[null,"          - Nur abgeschlossene Betrichsberichte werden anerkannt!",null,null,null,"          - Jeder Wärmeerzeuger (der Wärme produziert hat) MUSS im Betriebsbericht erfasst werden."]
[null,null,null,null,null,"          - In der Excel-Betriebsberichtsvorlage MUSS DIESE KOMPONENTENNUMMER eingetragen werden."]
[null,"Prüfung der Eingabe und Fehlermeldungen",null,null,null,"          - Nur dann können die Wärmemengen richtig zugeordnet werden!"]
[null,"- Beim Erstellen der XML-Datei werden die Eingaben automatisch geprüft.",null,null,null,"- Abnehmernummer (Abnehmerverbräuche)"]
[null,"- Per Klick auf die Schaltfläche \"Fehlerprüfung\" können die Eingaben vorab geprüft werden.",null,null,null,"          - Bei der Erstellung der Abnehmerliste in der QM Datenbank vergibt der Betreiber eine eindeutige Abnehmernummer."]
[null,"          - Bei Fehlern wird KEINE XML-Datei erstellt.",null,null,null,"          - Diese Abnehmernummer ist auch bei der Erfassung der Abnehmerverbräuche zu verwenden."]
[null,"- Unvollständige Eingaben und Fehler werden angezeigt (Liste mit Fehlermeldungen):",null,null,null,"          - Nur so können die Abnehmerverbräuche richtig zugeordnet werden."]
[null,"          - Mit Doppelklick auf einen Listeneintrag springt man zur betroffenen Eingabezelle.",null,null,null,"          - Die Abnehmernummern findet man in der Abnehmeliste - relevant sind nur die letzten drei Stellen (fortlaufende Nummer)."]
[null,"          - Zellen mit fehlenden oder falschen Eingaben werden ROT markiert.",null,null,null,"          - Die Abnehmerliste kann unter Menüpunkt \"Extras-Formulare\" aus der QM Datenbank exportiert werden."]
[null,"- Prüfung beim Hochladen in die QM Datenbank",null,null,null,"- Emissionsmessungen sind dem letzten vorliegenden Messgutachten zu entnehmen."]
[null,"          - Grundvoraussetzung ist die richtige Projektnummer!",null,null,null,"          - Periodische Messungen sind entsprechend behördlichen Vorgaben durchzuführen."]
[null,"          - Fehlerfrei erstellte XML-Dateien sollten problemlos in die QM Datenbank hochgeladen werden können.",null,null,null,"          - Bei typengeprüften (klein-)Kesseln sind keine Emissionswerte erforderlich (0 eintragen)."]
[null,"          - Tritt dennoch ein Fehler auf, beachten Sie die Fehlermeldung und korrigieren Sie die Eingaben.",null,null,null,"- Wärmepreise - Eingabe typischer Wärmepreise für Privatkunden < 25kW"]
[null,"- Bereits hochgeladene Betriebsberichte können durch erneutes Hochladen überschrieben werden.",null,null,null,"          - Grundpreis in €/a; Bitte järhliche Grundkosten für einen typischen Kunden (25kW) angeben (ggf. von €/kW umrechnen)."]
[null,"- Bereits hochgeladene Betriebsberichte können gelöscht werden.",null,null,null,"          - Messpreis in €/a; Bitte järhliche Messkosten für einen typischen Kunden (25kW) angeben (ggf. von €/Monat, €/kW, … umrechnen)."]
[null,"- Beim Abschluss von Betriebsberichten erfolgt gleich wie in der Excel-Vorlagen eine Plausibilitätsprüfung der Eingaben.",null,null,null,"          - Arbeitspreis (Energiepreis) in €/kWh"]
[null,"          - Abnehmerverbräuche müssen vollständig vorhanden sein.",null,null,null,"          - Preisindex: Angabe der verwendeten Preisindexierung inkl. Bezugsjahr und Gewichtung"]
[null,"          - Komponenten- und Abnehmernummern müssen übereinstimmen.",null,null,null,"- Personalkosten / Aufwand"]
[null,"          - Summe der Monatswerte müssen den Jahreswerten entsprechen (Toleranz wird berücksichtigt).",null,null,null,"          - Heizwerkbetreuung: Personalkosten für Heizwerksbetreuung (Anlagenbetrieb)"]
[null,"          - Die eingespeiste Wärmemenge (+ druckloser Verteiler) darf nicht größer sein als die Summe der Wärmeproduktion.",null,null,null,"          - Kosten Verwaltung: Personalkosten für alle Verwaltungsaufgaben (Einkauf, Abrechnung, sonstige Tätigkeiten, inkl. externer Leistungen)."]
[null,"          - Summe der Abnehmerverbräuche muss gleich wie die Jahressumme der Abnehmer am Netz (Gesamtwärmeverkauf) sein."]
[]
[null,"Mindestanforderungen",null,null,null,"Tipps und Tricks"]
[null,"- Das Erstellen und Hochladen jähricher Betriebsberichte ist im Rahmen der Umweltförderung im Inland verpflichtend.",null,null,null,"- Verwenden Sie immer die aktuellste Betriebsberichtsvorlage (wird beim Hochladen geprüft)."]
[null,"- Sie sind als Nachweis für Betrieb und CO2-Einsparung der Anlage gegenüber den Förderstellen erforderlich!",null,null,null,"- Aktivieren Sie die Excel-MAKROS beim Öffnen der Excel-Datei!"]
[null,"- Die Betreiberin/der Betreiber haben für eine entsprechende Datenaufzeichnung zu sorgen!",null,null,null,"- Die Excel-Vorlage darf NICHT VERÄNDERT werden!"]
[null,"- Das Titelblatt, die Betriebsdaten I & II sind entsprechend der vorgegebenen Eingabemaske VOLLSTÄNDIG auszufüllen!",null,null,null,"- Beim Kopieren/Einfügen von Daten (z.B. aus anderen Excel-Dateien) bitte die Funktion \"Einfügen-nur Werte\" verwenden und\n   KEINE Formatierungen kopieren."]
[null,"      - Emissionswerte für typengeprüfte (Klein-)Kessel können entfallen."]
[null,"- Abnehmerverbräuche sind verpflichtend anzugeben (Nachweis der CO2-Einsparung!!) - Pflichtspalten sind gekennzeichnet.",null,null,null,"- Die Eingabe von Dezimalzahlen ist möglich. Wärmemengen, Stromverbräuche und Volumenströme werden jedoch automatisch gerundet."]
[null,"- Fehlen verpflichtend anzugebende Daten, kontaktieren Sie bitte das Team von AEE INTEC und der KPC (Kontaktdaten siehe unten).",null,null,null,"- KWK-Anlagen mit der richtigen Komponentennummer und der ausgekoppelten Wärmemenge im Blatt \"Betriebsdaten I\" erfassen. \n   Bei Bedarf können Zusatzangaben zum Stromverbrauch nach dem Hochladen direkt in der QM Datenbank ergänzt werden."]
[]
[null,"Weiterführende Hilfe",null,null,null,"- BEACHTEN SIE DIE HINWEISE UND FEHLERMELDUNGEN!"]
[null,"Kontaktieren Sie das klimaaktiv QM Heizwerke - Team von AEE INTEC für alle Fragen zu:",null,null,null,"- XML-Dateien können mit Text-Editoren und herkömmlichen Browsern geöffnet und bearbeitet werden."]
[null,"          - allgemeinem Ablauf, Projektzuordnung, Mindestanforderungen und der Excel-Vorlage",null,null,null,"- ACHTUNG: Änderungen an der Datenstruktur der XML-Datei ergeben Fehler beim Hochladen."]
[null,"          - qm-heizwerke@aee.at, 03112 5886 -234 oder -262",null,null,null,"- XML-Dateien können auch direkt aus anderen Quellen (Anlagenregelung, Datenerfassungssoftware, eigene Programme) erstellt werden."]
[null,"- Kontaktieren sie das QM-Team der KPC für alle Fragen zum Hochladen des Betriebsberichtes in die QM Datenbank.",null,null,null,"          - Manche Regelungs- und Softwarehersteller haben entsprechende Schnittstellen integriert."]
[null,"          - qm@kommunalkredit.at, 01 31631 739",null,null,null,"          - Die extern erstellte XML-Datei MUSS die gleiche Datenstruktur aufweisen!"]
[]
[]
[null,"Hinweise zur Verwendung für den Nachweis gemäß § 88 EAG (Erneuerbaren Ausbaugesetz)"]
[null,"- Der Leitfaden zum Nachweis über den Anteil erneuerbarer Energie in Fernwärmenetzen nach § 88 EAG ist zu beachten!"]
[null,"- Der Leitfaden ist zum Download auf folgender Webseite (ganz unten) verfügbar:"]
[null,null,"https://www.bmk.gv.at/themen/energie/energieversorgung/fernwaerme.html"]
[null,"- Das Excel-Tool zum Leitfaden des BMK zur Unterstützung bzgl. §88 EAG wurde in dieser Betriebsberichtsvorlage \n  (Version 18.1-P88EAG) integriert."]
[]
[null,"- Die Tabellenblätter \"P88EAG_Eingabe\" und \"P88EAG_Nachweis\" sind nicht geschützt (voll editierbar) und entsprechen den \n  Blättern \"Eingabe\" und \"Nachweis\" des Excel-Tools im Original."]
[]
[null,"- Nach der Auswahl der Art der Wärmeerzeuger im Tabellenblatt \"Auswertung_I\" in Spalte H, werden die Angaben lt. § 88 EAG auf \n  Basis der Eingaben zu den erzeugten Wärmemengen (Jahreswerte bei \"Betriebsdaten I\") vorausgefüllt."]
[]
[null,"- Für elektrische Wärmepumpen ist der Stromeinsatz im Tabellenblatt P88EAG_Eingabe Zelle M29 einzugeben. Die Aufteilung in die\n  Strom-Unterkategorien lt. Leitfaden wird entsprechend der Elektrizitätsbilanz 2020 angenommen \n  (Quelle: E-CONTROL, Statistikbroschüre 2021, S. 25)."]
[]
[]
[null,"- ACHTUNG: Die Angaben sind jedenfalls zu prüfen und ggf. manuell anzupassen bzw. zu ergänzen. "]
[null,"  Die automatisch vorausgefüllten Daten dienen als Hilfestellung - ohne Gewähr für die Richtigkeit bzw. Vollständigkeit!"]
[null,"  Bitte beachten Sie die verpflichtende Prüfung vor der Veröffentlichung (gemäß § 88 Abs. 3) durch eine geeignete Überwachungs-,\n  Prüf- oder Zertifizierungsstelle."]

{"sheet":"DatenTransformierung","index":10,"n_rows":15,"n_cols":220,"rows_kept":15,"cut":false,"hidden":true,"merged":[]}
["JahrMonat","/Biomasse1/Text","/Biomasse1/ID","/Biomasse1/WM","/Biomasse2/Text","/Biomasse2/ID","/Biomasse2/WM","/Biomasse3/Text","/Biomasse3/ID","/Biomasse3/WM","/Öl1/Text","/Öl1/ID","/Öl1/WM","/Öl1/BH","/Gas1/Text","/Gas1/ID","/Gas1/WM","/Gas1/BH","/Sonstige1/Text","/Sonstige1/ID","/Sonstige1/WM","/Sonstige2/Text","/Sonstige2/ID","/Sonstige2/WM","/Sonstige3/Text","/Sonstige3/ID","/Sonstige3/WM","/Sonstige4/Text","/Sonstige4/ID","/Sonstige4/WM","/Sonstige5/Text","/Sonstige5/ID","/Sonstige5/WM","/Emissionen1/Text","/Emissionen1/ID","/Emissionen1/O213","/Emissionen1/O2","/Emissionen1/CO","/Emissionen1/NOx","/Emissionen1/CxHy","/Emissionen1/Staub","/Emissionen1/O213_TL","/Emissionen1/O2_TL","/Emissionen1/CO_TL","/Emissionen1/NOx_TL","/Emissionen1/CxHy_TL","/Emissionen1/Staub_TL","/Emissionen2/Text","/Emissionen2/ID","/Emissionen2/O213","/Emissionen2/O2","/Emissionen2/CO","/Emissionen2/NOx","/Emissionen2/CxHy","/Emissionen2/Staub","/Emissionen2/O213_TL","/Emissionen2/O2_TL","/Emissionen2/CO_TL","/Emissionen2/NOx_TL","/Emissionen2/CxHy_TL","/Emissionen2/Staub_TL","/Emissionen3/Text","/Emissionen3/ID","/Emissionen3/O213","/Emissionen3/O2","/Emissionen3/CO","/Emissionen3/NOx","/Emissionen3/CxHy","/Emissionen3/Staub","/Emissionen3/O213_TL","/Emissionen3/O2_TL","/Emissionen3/CO_TL","/Emissionen3/NOx_TL","/Emissionen3/CxHy_TL","/Emissionen3/Staub_TL","WMEingespart","VolumenNetzgefoerdert","WMAbnehmerNetz","WMEigenverbrauch","EVerbrauchWE_ID1","EVerbrauchWE_ID2","EVerbrauchWE_ID3","EVerbrauchWE1","EVerbrauchWE2","EVerbrauchWE3","EVerbrauchNetzPumpe","EVerbrauchEFilter","EVerbrauchSonstige_ID","EVerbrauchSonstige","EVerbrauchGesamt","/Brennstoffeinsatz1/Brennstoffart","/Brennstoffeinsatz1/Einheit","/Brennstoffeinsatz1/Menge","/Brennstoffeinsatz1/PreisEinheit","/Brennstoffeinsatz2/Brennstoffart","/Brennstoffeinsatz2/Einheit","/Brennstoffeinsatz2/Menge","/Brennstoffeinsatz2/PreisEinheit","/Brennstoffeinsatz3/Brennstoffart","/Brennstoffeinsatz3/Einheit","/Brennstoffeinsatz3/Menge","/Brennstoffeinsatz3/PreisEinheit","/Brennstoffeinsatz4/Brennstoffart","/Brennstoffeinsatz4/Einheit","/Brennstoffeinsatz4/Menge","/Brennstoffeinsatz4/PreisEinheit","/Brennstoffeinsatz5/Brennstoffart","/Brennstoffeinsatz5/Einheit","/Brennstoffeinsatz5/Menge","/Brennstoffeinsatz5/PreisEinheit","/Brennstoffeinsatz6/Brennstoffart","/Brennstoffeinsatz6/Einheit","/Brennstoffeinsatz6/ID","/Brennstoffeinsatz6/Menge","/Brennstoffeinsatz6/PreisEinheit","/Brennstoffeinsatz7/Brennstoffart","/Brennstoffeinsatz7/Einheit","/Brennstoffeinsatz7/ID","/Brennstoffeinsatz7/Menge","/Brennstoffeinsatz7/PreisEinheit","/Reststoffe/Asche","/Reststoffe/Kondensatschlamm","/Analyse/pHWert","/Analyse/Haertegrad","/Analyse/Chloride","/Analyse/Eisen","/Analyse/Kupfer","/Analyse/Aluminium","/Analyse/Ammonium","Grundpreis","Messpreis","Arbeitspreis","PreisIndex1Name","PreisIndex1BasisJahr","PreisIndex1Gewichtung","PreisIndex2Name","PreisIndex2BasisJahr","PreisIndex2Gewichtung","Heizwerkbetreuung","Heizwerkverwaltung","InvestitionenText","Investitionen","WartungText","Wartung","StoerungenText","GeplanteWartungText","/Anmerkung/Waermemenge","/Anmerkung/Brennstoffeinsatz","/Anmerkung/BetriebsoptimierungText","/Anmerkung/Messergebnisse","/Anmerkung/Waermepreis","/Anmerkung/Heizwerkbetreuung","/Anmerkung/Heizwerkverwaltung","/Anmerkung/Investitionen","/Anmerkung/Wartung","/Anmerkung/KWK","AenderungenQMDaten",null,null,null,null,null,null,"/KWK1/Text","/KWK1/ID","/KWK1/BSW","/KWK1/Strom","/KWK1/WM","/KWK2/Text","/KWK2/ID","/KWK2/BSW","/KWK2/Strom","/KWK2/WM","/KWK3/Text","/KWK3/ID","/KWK3/BSW","/KWK3/Strom","/KWK3/WM","/EmissionenKWK1/Text","/EmissionenKWK1/ID","/EmissionenKWK1/O213","/EmissionenKWK1/O2","/EmissionenKWK1/CO","/EmissionenKWK1/NOx","/EmissionenKWK1/CxHy","/EmissionenKWK1/Staub","/EmissionenKWK1/O213_TL","/EmissionenKWK1/O2_TL","/EmissionenKWK1/CO_TL","/EmissionenKWK1/NOx_TL","/EmissionenKWK1/CxHy_TL","/EmissionenKWK1/Staub_TL","/EmissionenKWK2/Text","/EmissionenKWK2/ID","/EmissionenKWK2/O213","/EmissionenKWK2/O2","/EmissionenKWK2/CO","/EmissionenKWK2/Nox","/EmissionenKWK2/CxHy","/EmissionenKWK2/Staub","/EmissionenKWK2/O213_TL","/EmissionenKWK2/O2_TL","/EmissionenKWK2/CO_TL","/EmissionenKWK2/NOx_TL","/EmissionenKWK2/CxHy_TL","/EmissionenKWK2/Staub_TL","/EmissionenKWK3/Text","/EmissionenKWK3/ID","/EmissionenKWK3/O213","/EmissionenKWK3/O2","/EmissionenKWK3/CO","/EmissionenKWK3/Nox","/EmissionenKWK3/CxHy","/EmissionenKWK3/Staub","/EmissionenKWK3/O213_TL","/EmissionenKWK3/O2_TL","/EmissionenKWK3/CO_TL","/EmissionenKWK3/NOx_TL","/EmissionenKWK3/CxHy_TL","/EmissionenKWK3/Staub_TL"]
["2030-01-01",null,null,null,null,null,null,null,null,null,null,1,1000,null,null,2,2000,null,null,3,1,null,4,2,null,5,3,null,6,4,null,7,5,null,null,null,null,null,null,null,null,null,null,null,null,null,null,null,null,null,null,null,null,null,null,null,null,null,null,null,null,null,null,null,null,null,null,null,null,null,null,null,null,null,null,0,null,0,null,"","","",null,null,null,null,null,null,null,0]
["2030-02-01",null,null,null,null,null,null,null,null,null,null,1,1000,null,null,2,2000,null,null,3,1,null,4,2,null,5,3,null,6,4,null,7,5,null,null,null,null,null,null,null,null,null,null,null,null,null,null,null,null,null,null,null,null,null,null,null,null,null,null,null,null,null,null,null,null,null,null,null,null,null,null,null,null,null,null,0,null,0,null,"","","",null,null,null,null,null,null,null,0]
["2030-03-01",null,null,null,null,null,null,null,null,null,null,1,1000,null,null,2,2000,null,null,3,1,null,4,2,null,5,3,null,6,4,null,7,5,null,null,null,null,null,null,null,null,null,null,null,null,null,null,null,null,null,null,null,null,null,null,null,null,null,null,null,null,null,null,null,null,null,null,null,null,null,null,null,null,null,null,0,null,0,null,"","","",null,null,null,null,null,null,null,0]
["2030-04-01",null,null,null,null,null,null,null,null,null,null,1,1000,null,null,2,2000,null,null,3,1,null,4,2,null,5,3,null,6,4,null,7,5,null,null,null,null,null,null,null,null,null,null,null,null,null,null,null,null,null,null,null,null,null,null,null,null,null,null,null,null,null,null,null,null,null,null,null,null,null,null,null,null,null,null,0,null,0,null,"","","",null,null,null,null,null,null,null,0]
["2030-05-01",null,null,null,null,null,null,null,null,null,null,1,1000,null,null,2,2000,null,null,3,1,null,4,2,null,5,3,null,6,4,null,7,5,null,null,null,null,null,null,null,null,null,null,null,null,null,null,null,null,null,null,null,null,null,null,null,null,null,null,null,null,null,null,null,null,null,null,null,null,null,null,null,null,null,null,0,null,0,null,"","","",null,null,null,null,null,null,null,0]
["2030-06-01",null,null,null,null,null,null,null,null,null,null,1,1000,null,null,2,2000,null,null,3,1,null,4,2,null,5,3,null,6,4,null,7,5,null,null,null,null,null,null,null,null,null,null,null,null,null,null,null,null,null,null,null,null,null,null,null,null,null,null,null,null,null,null,null,null,null,null,null,null,null,null,null,null,null,null,0,null,0,null,"","","",null,null,null,null,null,null,null,0]
["2030-07-01",null,null,null,null,null,null,null,null,null,null,1,1000,null,null,2,2000,null,null,3,1,null,4,2,null,5,3,null,6,4,null,7,5,null,null,null,null,null,null,null,null,null,null,null,null,null,null,null,null,null,null,null,null,null,null,null,null,null,null,null,null,null,null,null,null,null,null,null,null,null,null,null,null,null,null,0,null,0,null,"","","",null,null,null,null,null,null,null,0]
["2030-08-01",null,null,null,null,null,null,null,null,null,null,1,1000,null,null,2,2000,null,null,3,1,null,4,2,null,5,3,null,6,4,null,7,5,null,null,null,null,null,null,null,null,null,null,null,null,null,null,null,null,null,null,null,null,null,null,null,null,null,null,null,null,null,null,null,null,null,null,null,null,null,null,null,null,null,null,0,null,0,null,"","","",null,null,null,null,null,null,null,0]
["2030-09-01",null,null,null,null,null,null,null,null,null,null,1,1000,null,null,2,2000,null,null,3,1,null,4,2,null,5,3,null,6,4,null,7,5,null,null,null,null,null,null,null,null,null,null,null,null,null,null,null,null,null,null,null,null,null,null,null,null,null,null,null,null,null,null,null,null,null,null,null,null,null,null,null,null,null,null,0,null,0,null,"","","",null,null,null,null,null,null,null,0]
["2030-10-01",null,null,null,null,null,null,null,null,null,null,1,1000,null,null,2,2000,null,null,3,1,null,4,2,null,5,3,null,6,4,null,7,5,null,null,null,null,null,null,null,null,null,null,null,null,null,null,null,null,null,null,null,null,null,null,null,null,null,null,null,null,null,null,null,null,null,null,null,null,null,null,null,null,null,null,0,null,0,null,"","","",null,null,null,null,null,null,null,0]
["2030-11-01",null,null,null,null,null,null,null,null,null,null,1,1000,null,null,2,2000,null,null,3,1,null,4,2,null,5,3,null,6,4,null,7,5,null,null,null,null,null,null,null,null,null,null,null,null,null,null,null,null,null,null,null,null,null,null,null,null,null,null,null,null,null,null,null,null,null,null,null,null,null,null,null,null,null,null,0,null,0,null,"","","",null,null,null,null,null,null,null,0]
["2030-12-01",null,null,null,null,null,null,null,null,null,null,1,1000,null,null,2,2000,null,null,3,1,null,4,2,null,5,3,null,6,4,null,7,5,null,null,null,null,null,null,null,null,null,null,null,null,null,null,null,null,null,null,null,null,null,null,null,null,null,null,null,null,null,null,null,null,null,null,null,null,null,null,null,null,null,null,0,null,0,null,"","","",null,null,null,null,null,null,null,0]
[203000,null,null,null,null,null,null,null,null,null,"Oel",1,12000,null,"Gas",2,24000,null,"Sonstige 3",3,12,"Sonstige 4",4,24,"Sonstige 5",5,36,"Sonstige 6",6,48,"Sonstige 7",7,60,null,null,null,null,null,null,null,null,null,null,null,null,null,null,null,null,null,null,null,null,null,null,null,null,null,null,null,null,null,null,null,null,null,null,null,null,null,null,null,null,null,null,3000,null,2400,null,"","","",null,null,null,null,null,null,null,800]
[null,null,null,null,null,null,null,null,null,null,null,null,null,null,null,null,null,null,null,null,null,null,null,null,null,null,null,null,null,null,null,null,null,null,"",null,0,0,0,0,0,null,0,0,0,0,0,null,"",null,0,0,0,0,0,null,0,0,0,0,0,null,"",null,0,0,0,0,0,null,0,0,0,0,0,null,null,null,null,null,null,null,null,null,null,null,null,null,null,null,"fein WS-P16S-M20-WH ","srm",1000,15,null,null,null,null,null,null,null,null,null,null,null,null,null,null,null,null,null,null,null,null,null,null,null,null,null,null,null,null,null,null,null,null,null,null,null,null,null,null,null,null,null,null,null,null,null,null,null,null,null,null,null,null,null,null,null,null,null,null,null,null,null,null,null,null,null,null,null,null,null,null,null,null,null,null,null,null,null,null,null,null,null,null,null,null,null,"",null,"","","","","",null,"","","","","",null,"",null,"","","","","",null,"","","","","",null,"",null,"","","","","",null,"","","","",""]

{"sheet":"DatenTransformierung2","index":11,"n_rows":2,"n_cols":9,"rows_kept":2,"cut":false,"hidden":true,"merged":[]}
[]
["Abn.\n - Nr.","Liegenschafts-bezeichnung","Verbrauch","Zählerstand","Volumen","Zählerstand \nVolumen","Änderungs- \nAblesedatum","Vorlauf- \ntemperatur Mittel","Rücklauf- \ntemperatur Mittel"]

{"sheet":"Brennstoff","index":12,"n_rows":81,"n_cols":3,"rows_kept":81,"cut":false,"hidden":false,"merged":[[0,1,1,2]]}
[null,"Brennstoffbezeichnungen für die Brennstoffauswahl"]
[]
[null,"Qualitäts-Hackschnitzel aus Waldrest(rund)holz ","fein WS-P16S-M20-WH "]
[null,"Qualitäts-Hackschnitzel aus Waldrest(rund)holz ","grob WS-P31S-M20-WH"]
[null,"Qualitäts-Hackschnitzel aus Industrierestholz ","fein IS-P16S-M20-WH"]
[null,"Qualitäts-Hackschnitzel aus Industrierestholz ","grob IS-P31S-M20-WH"]
[null,"Qualitäts-Hackschnitzel aus Waldrest(rund)holz ","fein WS-P16S-M20-HH "]
[null,"Qualitäts-Hackschnitzel aus Waldrest(rund)holz ","grob WS-P31S-M20-HH"]
[null,"Qualitäts-Hackschnitzel aus Industrierestholz ","fein IS-P16S-M20-HH"]
[null,"Qualitäts-Hackschnitzel aus Industrierestholz ","grob IS-P31S-M20-HH"]
[null,"Hackschnitzel aus Waldrestholz","WS-P31S-M35-WH"]
[null,"Hackschnitzel aus Waldrestholz","WS-P31S-M50-WH"]
[null,"Hackschnitzel aus Waldrestholz","WS-P31S-M55+-WH"]
[null,"Hackschnitzel aus Waldrestholz","WS-P45S-M35-WH"]
[null,"Hackschnitzel aus Waldrestholz","WS-P45S-M50-WH"]
[null,"Hackschnitzel aus Waldrestholz","WS-P45S-M55+-WH"]
[null,"Hackschnitzel aus Waldrestholz","WS-P63-M50-WH"]
[null,"Hackschnitzel aus Waldrestholz","WS-P63-M55+-WH"]
[null,"Hackschnitzel aus Waldrestholz","WS-P31S-M35-HH"]
[null,"Hackschnitzel aus Waldrestholz","WS-P31S-M50-HH"]
[null,"Hackschnitzel aus Waldrestholz","WS-P31S-M55+-HH"]
[null,"Hackschnitzel aus Waldrestholz","WS-P45S-M35-HH"]
[null,"Hackschnitzel aus Waldrestholz","WS-P45S-M50-HH"]
[null,"Hackschnitzel aus Waldrestholz","WS-P45S-M55+-HH"]
[null,"Hackschnitzel aus Waldrestholz","WS-P63-M50-HH"]
[null,"Hackschnitzel aus Waldrestholz","WS-P63-M55+-HH"]
[null,"Hackschnitzel aus Industrierestholz","IS-P31S-M35-WH"]
[null,"Hackschnitzel aus Industrierestholz","IS-P31S-M50-WH"]
[null,"Hackschnitzel aus Industrierestholz","IS-P31S-M55+-WH"]
[null,"Hackschnitzel aus Industrierestholz","IS-P45S-M35-WH"]
[null,"Hackschnitzel aus Industrierestholz","IS-P45S-M50-WH"]
[null,"Hackschnitzel aus Industrierestholz","IS-P45S-M55+-WH"]
[null,"Hackschnitzel aus Industrierestholz","IS-P63-M50-WH"]
[null,"Hackschnitzel aus Industrierestholz","IS-P63-M55+-WH"]
[null,"Hackschnitzel aus Industrierestholz","IS-P31S-M35-HH"]
[null,"Hackschnitzel aus Industrierestholz","IS-P31S-M50-HH"]
[null,"Hackschnitzel aus Industrierestholz","IS-P31S-M55+-HH"]
[null,"Hackschnitzel aus Industrierestholz","IS-P45S-M35-HH"]
[null,"Hackschnitzel aus Industrierestholz","IS-P45S-M50-HH"]
[null,"Hackschnitzel aus Industrierestholz","IS-P45S-M55+-HH"]
[null,"Hackschnitzel aus Industrierestholz","IS-P63-M50-HH"]
[null,"Hackschnitzel aus Industrierestholz","IS-P63-M55+-HH"]
[null,"Pappeln und Weiden aus Wald und Landschaft","PWW-31S"]
[null,"Pappeln und Weiden aus Wald und Landschaft","PWW-45S"]
[null,"Pappeln und Weiden aus Wald und Landschaft","PWW-63"]
[null,"Pappeln und Weiden aus Kurzumtriebsflächen","PWK-31"]
[null,"Pappeln und Weiden aus Kurzumtriebsflächen","PWK-45"]
[null,"Pappeln und Weiden aus Kurzumtriebsflächen","PWK-63"]
[null,"Holz aus Landschaftspflege","LH-31"]
[null,"Holz aus Landschaftspflege","LH-45"]
[null,"Holz aus Landschaftspflege","LH-63"]
[null,"Durchforstungsrestholz von Nadel- und Laubbäumen ∅ <80 mm und Kronenholz","DH-31-WH"]
[null,"Durchforstungsrestholz von Nadel- und Laubbäumen ∅ <80 mm und Kronenholz","DH-45-WH"]
[null,"Durchforstungsrestholz von Nadel- und Laubbäumen ∅ <80 mm und Kronenholz","DH-63-WH"]
[null,"Durchforstungsrestholz von Nadel- und Laubbäumen ∅ <80 mm und Kronenholz","DH-31-HH"]
[null,"Durchforstungsrestholz von Nadel- und Laubbäumen ∅ <80 mm und Kronenholz","DH-45-HH"]
[null,"Durchforstungsrestholz von Nadel- und Laubbäumen ∅ <80 mm und Kronenholz","DH-63-HH"]
[null,"Sägespäne","SP-WH"]
[null,"Sägespäne","SP-HH"]
[null,"Rinde zerkleinert max. Grobanteil 5%","Rz-45-WH"]
[null,"Rinde zerkleinert max. Grobanteil 5%","Rz-63-WH"]
[null,"Rinde zerkleinert max. Grobanteil 5%","Rz-45-HH"]
[null,"Rinde zerkleinert max. Grobanteil 5%","Rz-63-HH"]
[null,"Rinde unzerkleinert","Ruz"]
[null,"Restholz aus der Holzverarbeitung","RHH"]
[null,"Altholz","AH-45"]
[null,"Altholz","AH-63"]
[null,"Pellets","PEL"]
[null,"Holz undefiniert","UH"]
[null,"Stroh","Stroh"]
[null,"Pflanzenöl","POEL"]
[null,"Biodiesel","RME-OEL"]
[null,"Miscanthus","Misc"]
[null,"Heizöl","Heizöl"]
[null,"Erdgas","GAS"]
[null,"Flüssiggas","FLGAS"]
[null,"Biogas","Biogas"]
[null,"Elektrischer Strom aus 100% Erneuerbaren Quellen","EL-E - Strom Erneuerbare"]
[null,"Elektrischer Strom (aus dem Netz für Wärmepumpen, Power to Heat)","EL - Strom"]
[null,"Gewerbliche / Industrielle Abwärme","Industrielle Abwärme"]
[null,"Biogene Abwärme","Biogene Abwärme"]

{"sheet":"Hilfstabelle","index":13,"n_rows":70,"n_cols":18,"rows_kept":70,"cut":false,"hidden":false,"merged":[[0,15,0,18]]}
[{"$f":"Auswertung_I!G6","v":""},{"$f":"'Betriebsdaten I'!E7","v":0},{"$f":"'Betriebsdaten I'!F7","v":0},{"$f":"'Betriebsdaten I'!G7","v":0},{"$f":"'Betriebsdaten I'!H7","v":0},{"$f":"'Betriebsdaten I'!I7","v":0},{"$f":"'Betriebsdaten I'!J7","v":0},{"$f":"'Betriebsdaten I'!K7","v":0},{"$f":"'Betriebsdaten I'!L7","v":0},{"$f":"'Betriebsdaten I'!M7","v":0},{"$f":"'Betriebsdaten I'!N7","v":0},{"$f":"'Betriebsdaten I'!O7","v":0},{"$f":"'Betriebsdaten I'!P7","v":0},{"$f":"WM_BM_1Jahr","v":0},null,"Programmierung"]
[{"$f":"Auswertung_I!G7","v":""},{"$f":"'Betriebsdaten I'!E8","v":0},{"$f":"'Betriebsdaten I'!F8","v":0},{"$f":"'Betriebsdaten I'!G8","v":0},{"$f":"'Betriebsdaten I'!H8","v":0},{"$f":"'Betriebsdaten I'!I8","v":0},{"$f":"'Betriebsdaten I'!J8","v":0},{"$f":"'Betriebsdaten I'!K8","v":0},{"$f":"'Betriebsdaten I'!L8","v":0},{"$f":"'Betriebsdaten I'!M8","v":0},{"$f":"'Betriebsdaten I'!N8","v":0},{"$f":"'Betriebsdaten I'!O8","v":0},{"$f":"'Betriebsdaten I'!P8","v":0},{"$f":"WM_BM_2Jahr","v":0},null,"Bezeichnung","Wert","Anmerkung"]
[{"$f":"Auswertung_I!G8","v":""},{"$f":"'Betriebsdaten I'!E9","v":0},{"$f":"'Betriebsdaten I'!F9","v":0},{"$f":"'Betriebsdaten I'!G9","v":0},{"$f":"'Betriebsdaten I'!H9","v":0},{"$f":"'Betriebsdaten I'!I9","v":0},{"$f":"'Betriebsdaten I'!J9","v":0},{"$f":"'Betriebsdaten I'!K9","v":0},{"$f":"'Betriebsdaten I'!L9","v":0},{"$f":"'Betriebsdaten I'!M9","v":0},{"$f":"'Betriebsdaten I'!N9","v":0},{"$f":"'Betriebsdaten I'!O9","v":0},{"$f":"'Betriebsdaten I'!P9","v":0},{"$f":"WM_BM_3Jahr","v":0},null,"Status Schutz",null,"0…inaktiv; 1….aktiv"]
[{"$f":"Auswertung_I!G9","v":""},{"$f":"'Betriebsdaten I'!E13","v":0},{"$f":"'Betriebsdaten I'!F13","v":0},{"$f":"'Betriebsdaten I'!G13","v":0},{"$f":"'Betriebsdaten I'!H13","v":0},{"$f":"'Betriebsdaten I'!I13","v":0},{"$f":"'Betriebsdaten I'!J13","v":0},{"$f":"'Betriebsdaten I'!K13","v":0},{"$f":"'Betriebsdaten I'!L13","v":0},{"$f":"'Betriebsdaten I'!M13","v":0},{"$f":"'Betriebsdaten I'!N13","v":0},{"$f":"'Betriebsdaten I'!O13","v":0},{"$f":"'Betriebsdaten I'!P13","v":0},{"$f":"WM_Sonstige_1Jahr","v":0},null,"Status Fehler",0,"0… kein Fehler, 1 …. Fehler"]
[{"$f":"Auswertung_I!G10","v":""},{"$f":"'Betriebsdaten I'!E14","v":0},{"$f":"'Betriebsdaten I'!F14","v":0},{"$f":"'Betriebsdaten I'!G14","v":0},{"$f":"'Betriebsdaten I'!H14","v":0},{"$f":"'Betriebsdaten I'!I14","v":0},{"$f":"'Betriebsdaten I'!J14","v":0},{"$f":"'Betriebsdaten I'!K14","v":0},{"$f":"'Betriebsdaten I'!L14","v":0},{"$f":"'Betriebsdaten I'!M14","v":0},{"$f":"'Betriebsdaten I'!N14","v":0},{"$f":"'Betriebsdaten I'!O14","v":0},{"$f":"'Betriebsdaten I'!P14","v":0},{"$f":"WM_Sonstige_2Jahr","v":0},null,"Status Fehler",1,"0… kein Fehler, 1 …. Fehler"]
[{"$f":"Auswertung_I!G11","v":""},{"$f":"'Betriebsdaten I'!E15","v":0},{"$f":"'Betriebsdaten I'!F15","v":0},{"$f":"'Betriebsdaten I'!G15","v":0},{"$f":"'Betriebsdaten I'!H15","v":0},{"$f":"'Betriebsdaten I'!I15","v":0},{"$f":"'Betriebsdaten I'!J15","v":0},{"$f":"'Betriebsdaten I'!K15","v":0},{"$f":"'Betriebsdaten I'!L15","v":0},{"$f":"'Betriebsdaten I'!M15","v":0},{"$f":"'Betriebsdaten I'!N15","v":0},{"$f":"'Betriebsdaten I'!O15","v":0},{"$f":"'Betriebsdaten I'!P15","v":0},{"$f":"WM_Sonstige_3Jahr","v":0}]
[{"$f":"Auswertung_I!G12","v":""},{"$f":"'Betriebsdaten I'!E16","v":0},{"$f":"'Betriebsdaten I'!F16","v":0},{"$f":"'Betriebsdaten I'!G16","v":0},{"$f":"'Betriebsdaten I'!H16","v":0},{"$f":"'Betriebsdaten I'!I16","v":0},{"$f":"'Betriebsdaten I'!J16","v":0},{"$f":"'Betriebsdaten I'!K16","v":0},{"$f":"'Betriebsdaten I'!L16","v":0},{"$f":"'Betriebsdaten I'!M16","v":0},{"$f":"'Betriebsdaten I'!N16","v":0},{"$f":"'Betriebsdaten I'!O16","v":0},{"$f":"'Betriebsdaten I'!P16","v":0},{"$f":"WM_Sonstige_4Jahr","v":0}]
[{"$f":"Auswertung_I!G13","v":""},{"$f":"'Betriebsdaten I'!E17","v":0},{"$f":"'Betriebsdaten I'!F17","v":0},{"$f":"'Betriebsdaten I'!G17","v":0},{"$f":"'Betriebsdaten I'!H17","v":0},{"$f":"'Betriebsdaten I'!I17","v":0},{"$f":"'Betriebsdaten I'!J17","v":0},{"$f":"'Betriebsdaten I'!K17","v":0},{"$f":"'Betriebsdaten I'!L17","v":0},{"$f":"'Betriebsdaten I'!M17","v":0},{"$f":"'Betriebsdaten I'!N17","v":0},{"$f":"'Betriebsdaten I'!O17","v":0},{"$f":"'Betriebsdaten I'!P17","v":0},{"$f":"WM_Sonstige_5Jahr","v":0}]
[{"$f":"Auswertung_I!G14","v":""},{"$f":"'Betriebsdaten I'!E18","v":0},{"$f":"'Betriebsdaten I'!F18","v":0},{"$f":"'Betriebsdaten I'!G18","v":0},{"$f":"'Betriebsdaten I'!H18","v":0},{"$f":"'Betriebsdaten I'!I18","v":0},{"$f":"'Betriebsdaten I'!J18","v":0},{"$f":"'Betriebsdaten I'!K18","v":0},{"$f":"'Betriebsdaten I'!L18","v":0},{"$f":"'Betriebsdaten I'!M18","v":0},{"$f":"'Betriebsdaten I'!N18","v":0},{"$f":"'Betriebsdaten I'!O18","v":0},{"$f":"'Betriebsdaten I'!P18","v":0},{"$f":"WM_Sonstige_6Jahr","v":0}]
[{"$f":"Auswertung_I!G15","v":""},{"$f":"'Betriebsdaten I'!E19","v":0},{"$f":"'Betriebsdaten I'!F19","v":0},{"$f":"'Betriebsdaten I'!G19","v":0},{"$f":"'Betriebsdaten I'!H19","v":0},{"$f":"'Betriebsdaten I'!I19","v":0},{"$f":"'Betriebsdaten I'!J19","v":0},{"$f":"'Betriebsdaten I'!K19","v":0},{"$f":"'Betriebsdaten I'!L19","v":0},{"$f":"'Betriebsdaten I'!M19","v":0},{"$f":"'Betriebsdaten I'!N19","v":0},{"$f":"'Betriebsdaten I'!O19","v":0},{"$f":"'Betriebsdaten I'!P19","v":0},{"$f":"WM_Sonstige_7Jahr","v":0}]
[]
[null,null,null,null,null,null,null,null,null,null,null,null,null,null,null,"Toleranz Eingabeprüfung",0.03]
["Tage ",31,31,30,31,30,31,31,28,31,30,31,30,365]
[null,{"$f":"'Betriebsdaten I'!E5","v":"2024-01-01"},{"$f":"'Betriebsdaten I'!F5","v":"2024-02-01"},{"$f":"'Betriebsdaten I'!G5","v":"2024-03-01"},{"$f":"'Betriebsdaten I'!H5","v":"2024-04-01"},{"$f":"'Betriebsdaten I'!I5","v":"2024-05-01"},{"$f":"'Betriebsdaten I'!J5","v":"2024-06-01"},{"$f":"'Betriebsdaten I'!K5","v":"2024-07-01"},{"$f":"'Betriebsdaten I'!L5","v":"2024-08-01"},{"$f":"'Betriebsdaten I'!M5","v":"2024-09-01"},{"$f":"'Betriebsdaten I'!N5","v":"2024-10-01"},{"$f":"'Betriebsdaten I'!O5","v":"2024-11-01"},{"$f":"'Betriebsdaten I'!P5","v":"2024-12-01"},{"$f":"'Betriebsdaten I'!Q5","v":"Jahr"}]
["erzeugt",{"$f":"'Betriebsdaten I'!E7+'Betriebsdaten I'!E8+'Betriebsdaten I'!E9+SUM('Betriebsdaten I'!E13:E19)","v":0},{"$f":"'Betriebsdaten I'!F7+'Betriebsdaten I'!F8+'Betriebsdaten I'!F9+SUM('Betriebsdaten I'!F13:F19)","v":0},{"$f":"'Betriebsdaten I'!G7+'Betriebsdaten I'!G8+'Betriebsdaten I'!G9+SUM('Betriebsdaten I'!G13:G19)","v":0},{"$f":"'Betriebsdaten I'!H7+'Betriebsdaten I'!H8+'Betriebsdaten I'!H9+SUM('Betriebsdaten I'!H13:H19)","v":0},{"$f":"'Betriebsdaten I'!I7+'Betriebsdaten I'!I8+'Betriebsdaten I'!I9+SUM('Betriebsdaten I'!I13:I19)","v":0},{"$f":"'Betriebsdaten I'!J7+'Betriebsdaten I'!J8+'Betriebsdaten I'!J9+SUM('Betriebsdaten I'!J13:J19)","v":0},{"$f":"'Betriebsdaten I'!K7+'Betriebsdaten I'!K8+'Betriebsdaten I'!K9+SUM('Betriebsdaten I'!K13:K19)","v":0},{"$f":"'Betriebsdaten I'!L7+'Betriebsdaten I'!L8+'Betriebsdaten I'!L9+SUM('Betriebsdaten I'!L13:L19)","v":0},{"$f":"'Betriebsdaten I'!M7+'Betriebsdaten I'!M8+'Betriebsdaten I'!M9+SUM('Betriebsdaten I'!M13:M19)","v":0},{"$f":"'Betriebsdaten I'!N7+'Betriebsdaten I'!N8+'Betriebsdaten I'!N9+SUM('Betriebsdaten I'!N13:N19)","v":0},{"$f":"'Betriebsdaten I'!O7+'Betriebsdaten I'!O8+'Betriebsdaten I'!O9+SUM('Betriebsdaten I'!O13:O19)","v":0},{"$f":"'Betriebsdaten I'!P7+'Betriebsdaten I'!P8+'Betriebsdaten I'!P9+SUM('Betriebsdaten I'!P13:P19)","v":0},{"$f":"'Betriebsdaten I'!Q7+'Betriebsdaten I'!Q8+'Betriebsdaten I'!Q9+SUM('Betriebsdaten I'!Q13:Q19)","v":0}]
["eingespeist",{"$f":"'Betriebsdaten II'!E8","v":0},{"$f":"'Betriebsdaten II'!F8","v":0},{"$f":"'Betriebsdaten II'!G8","v":0},{"$f":"'Betriebsdaten II'!H8","v":0},{"$f":"'Betriebsdaten II'!I8","v":0},{"$f":"'Betriebsdaten II'!J8","v":0},{"$f":"'Betriebsdaten II'!K8","v":0},{"$f":"'Betriebsdaten II'!L8","v":0},{"$f":"'Betriebsdaten II'!M8","v":0},{"$f":"'Betriebsdaten II'!N8","v":0},{"$f":"'Betriebsdaten II'!O8","v":0},{"$f":"'Betriebsdaten II'!P8","v":0},{"$f":"'Betriebsdaten II'!Q8","v":0}]
["abgenommen",{"$f":"'Betriebsdaten II'!E10","v":0},{"$f":"'Betriebsdaten II'!F10","v":0},{"$f":"'Betriebsdaten II'!G10","v":0},{"$f":"'Betriebsdaten II'!H10","v":0},{"$f":"'Betriebsdaten II'!I10","v":0},{"$f":"'Betriebsdaten II'!J10","v":0},{"$f":"'Betriebsdaten II'!K10","v":0},{"$f":"'Betriebsdaten II'!L10","v":0},{"$f":"'Betriebsdaten II'!M10","v":0},{"$f":"'Betriebsdaten II'!N10","v":0},{"$f":"'Betriebsdaten II'!O10","v":0},{"$f":"'Betriebsdaten II'!P10","v":0},{"$f":"'Betriebsdaten II'!Q10","v":0}]
["Heizhausverluste",{"$f":"B15-(B16+'Betriebsdaten II'!E11)","v":0},{"$f":"C15-(C16+'Betriebsdaten II'!F11)","v":0},{"$f":"D15-(D16+'Betriebsdaten II'!G11)","v":0},{"$f":"E15-(E16+'Betriebsdaten II'!H11)","v":0},{"$f":"F15-(F16+'Betriebsdaten II'!I11)","v":0},{"$f":"G15-(G16+'Betriebsdaten II'!J11)","v":0},{"$f":"H15-(H16+'Betriebsdaten II'!K11)","v":0},{"$f":"I15-(I16+'Betriebsdaten II'!L11)","v":0},{"$f":"J15-(J16+'Betriebsdaten II'!M11)","v":0},{"$f":"K15-(K16+'Betriebsdaten II'!N11)","v":0},{"$f":"L15-(L16+'Betriebsdaten II'!O11)","v":0},{"$f":"M15-(M16+'Betriebsdaten II'!P11)","v":0},{"$f":"N15-(N16+'Betriebsdaten II'!Q11)","v":0}]
["Netzverluste",{"$f":"B16-B17","v":0},0,0,0,0,0,0,0,0,0,0,0,0]
["mittlere Netzverlustleistung [kW]",{"$f":"B19/(B13*24)","v":0},{"$f":"C19/(C13*24)","v":0},0,0,0,0,0,0,0,0,0,0,0]
["mittlere Heizhausverlustleistung [kW]",{"$f":"B18/(B13*24)","v":0},{"$f":"C18/(C13*24)","v":0},0,0,0,0,0,0,0,0,0,0,0]
[]
["Netzverluste",{"$f":"IF(B16=0,\"\",B19/B16)","v":""},{"$f":"IF(C16=0,\"\",C19/C16)","v":""},"","","","","","","","","","",""]
["Heizhausverluste",{"$f":"IF(B15=0,\"\",B18/B15)","v":""},{"$f":"IF(C15=0,\"\",C18/C15)","v":""},"","","","","","","","","","",""]
[]
[]
[]
["abgenommen",{"$f":"IF($N$17=0,\"\",B17/$N$17)","v":""},{"$f":"IF($N$17=0,\"\",C17/$N$17)","v":""},"","","","","","","","","","",""]
["Netzverluste",{"$f":"IF($N$16=0,\"\",B19/$N$16)","v":""},{"$f":"IF($N$16=0,\"\",C19/$N$16)","v":""},"","","","","","","","","","",""]
[]
[]
[null,"erzeugt","verkauft","Heizhausverluste","Netzverluste"]
[{"$f":"B14","v":"2024-01-01"},{"$f":"B15/1000","v":0}]
[null,null,{"$f":"B17/1000","v":0},{"$f":"B18/1000","v":0},{"$f":"B19/1000","v":0}]
[]
[{"$f":"C14","v":"2024-02-01"},{"$f":"C15/1000","v":0}]
[null,null,{"$f":"C17/1000","v":0},{"$f":"C18/1000","v":0},{"$f":"C19/1000","v":0}]
[]
[{"$f":"D14","v":"2024-03-01"},{"$f":"D15/1000","v":0}]
[null,null,{"$f":"D17/1000","v":0},{"$f":"D18/1000","v":0},{"$f":"D19/1000","v":0}]
[]
[{"$f":"E14","v":"2024-04-01"},{"$f":"E15/1000","v":0}]
[null,null,{"$f":"E17/1000","v":0},{"$f":"E18/1000","v":0},{"$f":"E19/1000","v":0}]
[]
[{"$f":"F14","v":"2024-05-01"},{"$f":"F15/1000","v":0}]
[null,null,{"$f":"F17/1000","v":0},{"$f":"F18/1000","v":0},{"$f":"F19/1000","v":0}]
[]
[{"$f":"G14","v":"2024-06-01"},{"$f":"G15/1000","v":0}]
[null,null,{"$f":"G17/1000","v":0},{"$f":"G18/1000","v":0},{"$f":"G19/1000","v":0}]
[]
[{"$f":"H14","v":"2024-07-01"},{"$f":"H15/1000","v":0}]
[null,null,{"$f":"H17/1000","v":0},{"$f":"H18/1000","v":0},{"$f":"H19/1000","v":0}]
[]
[{"$f":"I14","v":"2024-08-01"},{"$f":"I15/1000","v":0}]
[null,null,{"$f":"I17/1000","v":0},{"$f":"I18/1000","v":0},{"$f":"I19/1000","v":0}]
[]
[{"$f":"J14","v":"2024-09-01"},{"$f":"J15/1000","v":0}]
[null,null,{"$f":"J17/1000","v":0},{"$f":"J18/1000","v":0},{"$f":"J19/1000","v":0}]
[]
[{"$f":"K14","v":"2024-10-01"},{"$f":"K15/1000","v":0}]
[null,null,{"$f":"K17/1000","v":0},{"$f":"K18/1000","v":0},{"$f":"K19/1000","v":0}]
[]
[{"$f":"L14","v":"2024-11-01"},{"$f":"L15/1000","v":0}]
[null,null,{"$f":"L17/1000","v":0},{"$f":"L18/1000","v":0},{"$f":"L19/1000","v":0}]
[]
[{"$f":"M14","v":"2024-12-01"},{"$f":"M15/1000","v":0}]
[null,null,{"$f":"M17/1000","v":0},{"$f":"M18/1000","v":0},{"$f":"M19/1000","v":0}]
[]
[{"$f":"N14","v":"Jahr"},{"$f":"N15/1000","v":0}]
[null,null,{"$f":"N17/1000","v":0},{"$f":"N18/1000","v":0},{"$f":"N19/1000","v":0}]